Workbook

Sheet S1 Input
B1: Scenario | C1: 1
B2: Unit cost | C2: Historical
B3: Lives | C3: Historical | D3: Unit cost | E3: Replacement life | G3: Method | H3: Quantities | CV3: Replacement Cost (NOT depreciated)
H4: Installation date | CV4: Installation date
A5: ID | B5: Asset category | C5: Asset ID | D5: $ ('000) | E5: μ | F5: σ | G5: # | H5: 2022 | I5: =H5-1 -> 2021 | J5: =I5-1 -> 2020 | K5: 2019 | L5: 2018 | M5: 2017 | N5: 2016 | O5: 2015 | P5: 2014 | Q5: 2013 | R5: 2012 | S5: 2011 | T5: 2010 | U5: 2009 | V5: 2008 | W5: 2007 | X5: 2006 | Y5: 2005 | Z5: 2004 | AA5: 2003 | AB5: 2002 | AC5: 2001 | AD5: 2000 | AE5: 1999 | AF5: 1998 | AG5: 1997 | AH5: 1996 | AI5: 1995 | AJ5: 1994 | AK5: 1993 | AL5: 1992 | AM5: 1991 | AN5: 1990 | AO5: 1989 | AP5: 1988 | AQ5: 1987 | AR5: 1986 | AS5: 1985 | AT5: 1984 | AU5: 1983 | AV5: 1982 | AW5: 1981 | AX5: 1980 | AY5: 1979 | AZ5: 1978 | BA5: 1977 | BB5: 1976 | BC5: 1975 | BD5: 1974 | BE5: 1973 | BF5: 1972 | BG5: 1971 | BH5: 1970 | BI5: 1969 | BJ5: 1968 | BK5: 1967 | BL5: 1966 | BM5: 1965 | BN5: 1964 | BO5: 1963 | BP5: 1962 | BQ5: 1961 | BR5: 1960 | BS5: 1959 | BT5: 1958 | BU5: 1957 | BV5: =BU5-1 -> 1956 | BW5: 1955 | BX5: 1954 | BY5: 1953 | BZ5: 1952 | CA5: 1951 | CB5: 1950 | CC5: 1949 | CD5: 1948 | CE5: 1947 | CF5: 1946 | CG5: 1945 | CH5: 1944 | CI5: 1943 | CJ5: 1942 | CK5: 1941 | CL5: 1940 | CM5: 1939 | CN5: 1938 | CO5: 1937 | CP5: 1936 | CQ5: 1935 | CR5: 1934 | CS5: 1933 | CT5: 1932 | CV5: =H5 -> 2022 | CW5: =I5 -> 2021 | CX5: 2020 | CY5: 2019 | CZ5: 2018 | DA5: 2017 | DB5: 2016 | DC5: 2015 | DD5: 2014 | DE5: 2013 | DF5: 2012 | DG5: 2011 | DH5: 2010 | DI5: 2009 | DJ5: 2008 | DK5: 2007 | DL5: 2006 | DM5: 2005 | DN5: 2004 | DO5: 2003 | DP5: 2002 | DQ5: 2001 | DR5: 2000 | DS5: 1999 | DT5: 1998 | DU5: 1997 | DV5: 1996 | DW5: 1995 | DX5: 1994 | DY5: 1993 | DZ5: 1992 | EA5: 1991 | EB5: 1990 | EC5: 1989 | ED5: 1988 | EE5: 1987 | EF5: 1986 | EG5: 1985 | EH5: 1984 | EI5: 1983 | EJ5: 1982 | EK5: 1981 | EL5: 1980 | EM5: 1979 | EN5: 1978 | EO5: 1977 | EP5: 1976 | EQ5: 1975 | ER5: 1974 | ES5: 1973 | ET5: 1972 | EU5: 1971 | EV5: 1970 | EW5: 1969 | EX5: 1968 | EY5: 1967 | EZ5: 1966 | FA5: 1965 | FB5: 1964 | FC5: 1963 | FD5: 1962 | FE5: 1961 | FF5: 1960 | FG5: 1959 | FH5: 1958 | FI5: =BU5 -> 1957 | FJ5: 1956 | FK5: 1955 | FL5: 1954 | FM5: 1953 | FN5: 1952 | FO5: 1951 | FP5: 1950 | FQ5: 1949 | FR5: 1948 | FS5: 1947 | FT5: 1946 | FU5: 1945 | FV5: 1944 | FW5: 1943 | FX5: 1942 | FY5: 1941 | FZ5: 1940 | GA5: 1939 | GB5: 1938 | GC5: 1937 | GD5: 1936 | GE5: 1935 | GF5: 1934 | GG5: 1933 | GH5: 1932
A21: 2 | B21: POLES | C21: staked wooden pole | D21: 9.220146747 | E21: 25.17166177 | F21: =SQRT(E21) -> 5.01713681 | G21: 2 | H21: 257 | I21: 286 | J21: 273 | K21: 290 | L21: 175 | M21: 342 | N21: 271 | O21: 266 | P21: 161 | Q21: 238 | R21: 314 | S21: 389 | T21: 230 | U21: 325 | V21: 162 | W21: 189 | X21: 168 | Y21: 276 | Z21: 418 | AA21: 522 | AB21: 406 | AC21: 762 | AD21: 48 | AE21: 11 | AF21: 19 | AG21: 0 | AH21: 0 | AI21: 0 | AJ21: 0 | AK21: 0 | AL21: 0 | AM21: 0 | AN21: 0 | AO21: 0 | AP21: 0 | AQ21: 0 | AR21: 0 | AS21: 0 | AT21: 0 | AU21: 0 | AV21: 0 | AW21: 0 | AX21: 0 | AY21: 0 | AZ21: 0 | BA21: 0 | BB21: 0 | BC21: 0 | BD21: 0 | BE21: 0 | BF21: 0 | BG21: 0 | BH21: 0 | BI21: 0 | BJ21: 0 | BK21: 0 | BL21: 0 | BM21: 0 | BN21: 0 | BO21: 0 | BP21: 0 | BQ21: 0 | BR21: 0 | BS21: 0 | BT21: 0 | BU21: 0 | BV21: 0 | BW21: 0 | BX21: 0 | BY21: 0 | BZ21: 0 | CA21: 0 | CB21: 0 | CC21: 0 | CD21: 0 | CE21: 0 | CF21: 0 | CG21: 0 | CH21: 0 | CI21: 0 | CJ21: 0 | CK21: 0 | CL21: 0 | CM21: 0 | CN21: 0 | CO21: 0 | CP21: 0 | CQ21: 0 | CR21: 0 | CS21: 0 | CT21: 0 | CV21: =$D21*H21 -> 2369.577714 | CW21: =$D21*I21 -> 2636.96197 | CX21: =$D21*J21 -> 2517.100062 | CY21: =$D21*K21 -> 2673.842557 | CZ21: =$D21*L21 -> 1613.525681 | DA21: =$D21*M21 -> 3153.290188 | DB21: =$D21*N21 -> 2498.659769 | DC21: =$D21*O21 -> 2452.559035 | DD21: =$D21*P21 -> 1484.443626 | DE21: =$D21*Q21 -> 2194.394926 | DF21: =$D21*R21 -> 2895.126079 | DG21: =$D21*S21 -> 3586.637085 | DH21: =$D21*T21 -> 2120.633752 | DI21: =$D21*U21 -> 2996.547693 | DJ21: =$D21*V21 -> 1493.663773 | DK21: =$D21*W21 -> 1742.607735 | DL21: =$D21*X21 -> 1548.984654 | DM21: =$D21*Y21 -> 2544.760502 | DN21: =$D21*Z21 -> 3854.02134 | DO21: =$D21*AA21 -> 4812.916602 | DP21: =$D21*AB21 -> 3743.379579 | DQ21: =$D21*AC21 -> 7025.751821 | DR21: =$D21*AD21 -> 442.5670439 | DS21: =$D21*AE21 -> 101.4216142 | DT21: =$D21*AF21 -> 175.1827882 | DU21: =$D21*AG21 -> 0 | DV21: =$D21*AH21 -> 0 | DW21: =$D21*AI21 -> 0 | DX21: =$D21*AJ21 -> 0 | DY21: =$D21*AK21 -> 0 | DZ21: =$D21*AL21 -> 0 | EA21: =$D21*AM21 -> 0 | EB21: =$D21*AN21 -> 0 | EC21: =$D21*AO21 -> 0 | ED21: =$D21*AP21 -> 0 | EE21: =$D21*AQ21 -> 0 | EF21: =$D21*AR21 -> 0 | EG21: =$D21*AS21 -> 0 | EH21: =$D21*AT21 -> 0 | EI21: =$D21*AU21 -> 0 | EJ21: =$D21*AV21 -> 0 | EK21: =$D21*AW21 -> 0 | EL21: =$D21*AX21 -> 0 | EM21: =$D21*AY21 -> 0 | EN21: =$D21*AZ21 -> 0 | EO21: =$D21*BA21 -> 0 | EP21: =$D21*BB21 -> 0 | EQ21: =$D21*BC21 -> 0 | ER21: =$D21*BD21 -> 0 | ES21: =$D21*BE21 -> 0 | ET21: =$D21*BF21 -> 0 | EU21: =$D21*BG21 -> 0 | EV21: =$D21*BH21 -> 0 | EW21: =$D21*BI21 -> 0 | EX21: =$D21*BJ21 -> 0 | EY21: =$D21*BK21 -> 0 | EZ21: =$D21*BL21 -> 0 | FA21: =$D21*BM21 -> 0 | FB21: =$D21*BN21 -> 0 | FC21: =$D21*BO21 -> 0 | FD21: =$D21*BP21 -> 0 | FE21: =$D21*BQ21 -> 0 | FF21: =$D21*BR21 -> 0 | FG21: =$D21*BS21 -> 0 | FH21: =$D21*BT21 -> 0 | FI21: =$D21*BU21 -> 0 | FJ21: =$D21*BV21 -> 0 | FK21: =$D21*BW21 -> 0 | FL21: =$D21*BX21 -> 0 | FM21: =$D21*BY21 -> 0 | FN21: =$D21*BZ21 -> 0 | FO21: =$D21*CA21 -> 0 | FP21: =$D21*CB21 -> 0 | FQ21: =$D21*CC21 -> 0 | FR21: =$D21*CD21 -> 0 | FS21: =$D21*CE21 -> 0 | FT21: =$D21*CF21 -> 0 | FU21: =$D21*CG21 -> 0 | FV21: =$D21*CH21 -> 0 | FW21: =$D21*CI21 -> 0 | FX21: =$D21*CJ21 -> 0 | FY21: =$D21*CK21 -> 0 | FZ21: =$D21*CL21 -> 0 | GA21: =$D21*CM21 -> 0 | GB21: =$D21*CN21 -> 0 | GC21: =$D21*CO21 -> 0 | GD21: =$D21*CP21 -> 0 | GE21: =$D21*CQ21 -> 0 | GF21: =$D21*CR21 -> 0 | GG21: =$D21*CS21 -> 0 | GH21: =$D21*CT21 -> 0
A22: 2 | B22: POLES | C22: ˂ = 1 kv ; wood | D22: 7.415157938 | E22: 60.97792772 | F22: =SQRT(E22) -> 7.808836515 | G22: 2 | H22: 558 | I22: 7309 | J22: 1704 | K22: 1208 | L22: 2188 | M22: 1461 | N22: 1341 | O22: 1682 | P22: 1898 | Q22: 1788 | R22: 1218 | S22: 1191 | T22: 1155 | U22: 1439 | V22: 1762 | W22: 1518 | X22: 1631 | Y22: 1843 | Z22: 1295 | AA22: 1733 | AB22: 1145 | AC22: 1137 | AD22: 1769 | AE22: 1109 | AF22: 915 | AG22: 1715 | AH22: 1386 | AI22: 1395 | AJ22: 1784 | AK22: 1415 | AL22: 1028 | AM22: 1723 | AN22: 2101 | AO22: 2239 | AP22: 1832 | AQ22: 1745 | AR22: 1673 | AS22: 2087 | AT22: 1089 | AU22: 1277 | AV22: 2736 | AW22: 3289 | AX22: 2243 | AY22: 1872 | AZ22: 1851 | BA22: 1888 | BB22: 1847 | BC22: 2177 | BD22: 1957 | BE22: 2801 | BF22: 2470 | BG22: 3054 | BH22: 2369 | BI22: 3361 | BJ22: 3341 | BK22: 1902 | BL22: 2173 | BM22: 1627 | BN22: 1572 | BO22: 1255 | BP22: 683 | BQ22: 96 | BR22: 156 | BS22: 23 | BT22: 46 | BU22: 31 | BV22: 3 | BW22: 0 | BX22: 3 | BY22: 0 | BZ22: 21 | CA22: 35 | CB22: 25 | CC22: 23 | CD22: 1 | CE22: 1 | CF22: 0 | CG22: 0 | CH22: 0 | CI22: 0 | CJ22: 0 | CK22: 0 | CL22: 0 | CM22: 0 | CN22: 0 | CO22: 0 | CP22: 0 | CQ22: 0 | CR22: 0 | CS22: 0 | CT22: 0 | CV22: =$D22*H22 -> 4137.658129 | CW22: 54197.38937 | CX22: 12635.42913 | CY22: 8957.510789 | CZ22: 16224.36557 | DA22: 10833.54575 | DB22: 9943.726795 | DC22: 12472.29565 | DD22: 14073.96977 | DE22: 13258.30239 | DF22: 9031.662369 | DG22: 8831.453104 | DH22: 8564.507418 | DI22: 10670.41227 | DJ22: 13065.50829 | DK22: 11256.20975 | DL22: 12094.1226 | DM22: 13666.13608 | DN22: 9602.62953 | DO22: 12850.46871 | DP22: 8490.355839 | DQ22: 8431.034576 | DR22: 13117.41439 | DS22: 8223.410153 | DT22: 6784.869513 | DU22: 12716.99586 | DV22: 10277.4089 | DW22: 10344.14532 | DX22: 13228.64176 | DY22: 10492.44848 | DZ22: 7622.78236 | EA22: 12776.31713 | EB22: 15579.24683 | EC22: 16602.53862 | ED22: 13584.56934 | EE22: 12939.4506 | EF22: 12405.55923 | EG22: 15475.43462 | EH22: 8075.106995 | EI22: 9469.156687 | EJ22: 20287.87212 | EK22: 24388.45446 | EL22: 16632.19926 | EM22: 13881.17566 | EN22: 13725.45734 | EO22: 13999.81819 | EP22: 13695.79671 | EQ22: 16142.79883 | ER22: 14511.46408 | ES22: 20769.85738 | ET22: 18315.44011 | EU22: 22645.89234 | EV22: 17566.50916 | EW22: 24922.34583 | EX22: 24774.04267 | EY22: 14103.6304 | EZ22: 16113.1382 | FA22: 12064.46197 | FB22: 11656.62828 | FC22: 9306.023212 | FD22: 5064.552872 | FE22: 711.8551621 | FF22: 1156.764638 | FG22: 170.5486326 | FH22: 341.0972652 | FI22: 229.8698961 | FJ22: 22.24547381 | FK22: 0 | FL22: 22.24547381 | FM22: 0 | FN22: 155.7183167 | FO22: 259.5305278 | FP22: 185.3789485 | FQ22: 170.5486326 | FR22: 7.415157938 | FS22: 7.415157938 | FT22: 0 | FU22: 0 | FV22: 0 | FW22: 0 | FX22: 0 | FY22: 0 | FZ22: 0 | GA22: 0 | GB22: 0 | GC22: 0 | GD22: 0 | GE22: 0 | GF22: 0 | GG22: 0 | GH22: 0
A23: 2 | B23: POLES | C23: > 1 kv & < = 11 kv ; wood | D23: 8.408080506 | E23: 63.54720964 | F23: 7.971650371 | G23: 2 | H23: 460 | I23: 2320 | J23: 2186 | K23: 2385 | L23: 2691 | M23: 2114 | N23: 2549 | O23: 2831 | P23: 3724 | Q23: 3452 | R23: 2932 | S23: 2868 | T23: 2372 | U23: 2454 | V23: 2593 | W23: 2492 | X23: 2491 | Y23: 3106 | Z23: 1486 | AA23: 3171 | AB23: 2530 | AC23: 2570 | AD23: 2558 | AE23: 1903 | AF23: 1554 | AG23: 2803 | AH23: 2169 | AI23: 1934 | AJ23: 2480 | AK23: 1831 | AL23: 1932 | AM23: 2711 | AN23: 3474 | AO23: 3006 | AP23: 2328 | AQ23: 2664 | AR23: 2204 | AS23: 3306 | AT23: 2174 | AU23: 2482 | AV23: 4000 | AW23: 3769 | AX23: 2997 | AY23: 2092 | AZ23: 2265 | BA23: 2258 | BB23: 2303 | BC23: 2423 | BD23: 1723 | BE23: 2678 | BF23: 2198 | BG23: 3159 | BH23: 2384 | BI23: 2715 | BJ23: 3233 | BK23: 1663 | BL23: 2100 | BM23: 1139 | BN23: 1168 | BO23: 791 | BP23: 436 | BQ23: 58 | BR23: 29 | BS23: 14 | BT23: 8 | BU23: 8 | BV23: 1 | BW23: 0 | BX23: 2 | BY23: 1 | BZ23: 9 | CA23: 15 | CB23: 11 | CC23: 19 | CD23: 0 | CE23: 0 | CF23: 0 | CG23: 0 | CH23: 0 | CI23: 0 | CJ23: 0 | CK23: 0 | CL23: 0 | CM23: 0 | CN23: 0 | CO23: 0 | CP23: 0 | CQ23: 0 | CR23: 0 | CS23: 0 | CT23: 0 | CV23: 3867.717033 | CW23: 19506.74677 | CX23: 18380.06399 | CY23: 20053.27201 | CZ23: 22626.14464 | DA23: 17774.68219 | DB23: 21432.19721 | DC23: 23803.27591 | DD23: 31311.69181 | DE23: 29024.69391 | DF23: 24652.49204 | DG23: 24114.37489 | DH23: 19943.96696 | DI23: 20633.42956 | DJ23: 21802.15275 | DK23: 20952.93662 | DL23: 20944.52854 | DM23: 26115.49805 | DN23: 12494.40763 | DO23: 26662.02329 | DP23: 21272.44368 | DQ23: 21608.7669 | DR23: 21507.86993 | DS23: 16000.5772 | DT23: 13066.15711 | DU23: 23567.84966 | DV23: 18237.12662 | DW23: 16261.2277 | DX23: 20852.03966 | DY23: 15395.19541 | DZ23: 16244.41154 | EA23: 22794.30625 | EB23: 29209.67168 | EC23: 25274.69 | ED23: 19574.01142 | EE23: 22399.12647 | EF23: 18531.40944 | EG23: 27797.11415 | EH23: 18279.16702 | EI23: 20868.85582 | EJ23: 33632.32202 | EK23: 31690.05543 | EL23: 25199.01728 | EM23: 17589.70442 | EN23: 19044.30235 | EO23: 18985.44578 | EP23: 19363.80941 | EQ23: 20372.77907 | ER23: 14487.12271 | ES23: 22516.8396 | ET23: 18480.96095 | EU23: 26561.12632 | EV23: 20044.86393 | EW23: 22827.93857 | EX23: 27183.32428 | EY23: 13982.63788 | EZ23: 17656.96906 | FA23: 9576.803697 | FB23: 9820.638031 | FC23: 6650.79168 | FD23: 3665.923101 | FE23: 487.6686694 | FF23: 243.8343347 | FG23: 117.7131271 | FH23: 67.26464405 | FI23: 67.26464405 | FJ23: 8.408080506 | FK23: 0 | FL23: 16.81616101 | FM23: 8.408080506 | FN23: 75.67272456 | FO23: 126.1212076 | FP23: 92.48888557 | FQ23: 159.7535296 | FR23: 0 | FS23: 0 | FT23: 0 | FU23: 0 | FV23: 0 | FW23: 0 | FX23: 0 | FY23: 0 | FZ23: 0 | GA23: 0 | GB23: 0 | GC23: 0 | GD23: 0 | GE23: 0 | GF23: 0 | GG23: 0 | GH23: 0
A24: 2 | B24: POLES | C24: ˃ 11 kv & < = 22 kv ; wood | D24: 8.906224235 | E24: 60.74613514 | F24: 7.793980699 | G24: 2 | H24: 12 | I24: 47 | J24: 102 | K24: 81 | L24: 146 | M24: 129 | N24: 73 | O24: 82 | P24: 61 | Q24: 56 | R24: 51 | S24: 46 | T24: 29 | U24: 73 | V24: 55 | W24: 53 | X24: 37 | Y24: 45 | Z24: 14 | AA24: 39 | AB24: 32 | AC24: 61 | AD24: 61 | AE24: 37 | AF24: 36 | AG24: 61 | AH24: 30 | AI24: 46 | AJ24: 59 | AK24: 37 | AL24: 21 | AM24: 32 | AN24: 96 | AO24: 109 | AP24: 48 | AQ24: 50 | AR24: 62 | AS24: 128 | AT24: 79 | AU24: 61 | AV24: 176 | AW24: 143 | AX24: 51 | AY24: 30 | AZ24: 26 | BA24: 37 | BB24: 59 | BC24: 50 | BD24: 35 | BE24: 25 | BF24: 39 | BG24: 49 | BH24: 26 | BI24: 21 | BJ24: 39 | BK24: 12 | BL24: 42 | BM24: 15 | BN24: 8 | BO24: 8 | BP24: 6 | BQ24: 0 | BR24: 1 | BS24: 0 | BT24: 0 | BU24: 0 | BV24: 0 | BW24: 0 | BX24: 0 | BY24: 0 | BZ24: 0 | CA24: 0 | CB24: 0 | CC24: 0 | CD24: 0 | CE24: 0 | CF24: 0 | CG24: 0 | CH24: 0 | CI24: 0 | CJ24: 0 | CK24: 0 | CL24: 0 | CM24: 0 | CN24: 0 | CO24: 0 | CP24: 0 | CQ24: 0 | CR24: 0 | CS24: 0 | CT24: 0 | CV24: 106.8746908 | CW24: 418.5925391 | CX24: 908.434872 | CY24: 721.4041631 | CZ24: 1300.308738 | DA24: 1148.902926 | DB24: 650.1543692 | DC24: 730.3103873 | DD24: 543.2796783 | DE24: 498.7485572 | DF24: 454.217436 | DG24: 409.6863148 | DH24: 258.2805028 | DI24: 650.1543692 | DJ24: 489.8423329 | DK24: 472.0298845 | DL24: 329.5302967 | DM24: 400.7800906 | DN24: 124.6871393 | DO24: 347.3427452 | DP24: 284.9991755 | DQ24: 543.2796783 | DR24: 543.2796783 | DS24: 329.5302967 | DT24: 320.6240725 | DU24: 543.2796783 | DV24: 267.1867271 | DW24: 409.6863148 | DX24: 525.4672299 | DY24: 329.5302967 | DZ24: 187.0307089 | EA24: 284.9991755 | EB24: 854.9975266 | EC24: 970.7784416 | ED24: 427.4987633 | EE24: 445.3112118 | EF24: 552.1859026 | EG24: 1139.996702 | EH24: 703.5917146 | EI24: 543.2796783 | EJ24: 1567.495465 | EK24: 1273.590066 | EL24: 454.217436 | EM24: 267.1867271 | EN24: 231.5618301 | EO24: 329.5302967 | EP24: 525.4672299 | EQ24: 445.3112118 | ER24: 311.7178482 | ES24: 222.6556059 | ET24: 347.3427452 | EU24: 436.4049875 | EV24: 231.5618301 | EW24: 187.0307089 | EX24: 347.3427452 | EY24: 106.8746908 | EZ24: 374.0614179 | FA24: 133.5933635 | FB24: 71.24979388 | FC24: 71.24979388 | FD24: 53.43734541 | FE24: 0 | FF24: 8.906224235 | FG24: 0 | FH24: 0 | FI24: 0 | FJ24: 0 | FK24: 0 | FL24: 0 | FM24: 0 | FN24: 0 | FO24: 0 | FP24: 0 | FQ24: 0 | FR24: 0 | FS24: 0 | FT24: 0 | FU24: 0 | FV24: 0 | FW24: 0 | FX24: 0 | FY24: 0 | FZ24: 0 | GA24: 0 | GB24: 0 | GC24: 0 | GD24: 0 | GE24: 0 | GF24: 0 | GG24: 0 | GH24: 0
A25: 2 | B25: POLES | C25: > 22 kv & < = 66 kv ; wood | D25: 14.46450161 | E25: 62.39734955 | F25: 7.899199298 | G25: 2 | H25: 27 | I25: 248 | J25: 301 | K25: 537 | L25: 378 | M25: 356 | N25: 301 | O25: 430 | P25: 516 | Q25: 495 | R25: 444 | S25: 650 | T25: 357 | U25: 396 | V25: 323 | W25: 303 | X25: 368 | Y25: 408 | Z25: 206 | AA25: 309 | AB25: 373 | AC25: 295 | AD25: 250 | AE25: 173 | AF25: 224 | AG25: 238 | AH25: 928 | AI25: 261 | AJ25: 422 | AK25: 211 | AL25: 188 | AM25: 364 | AN25: 413 | AO25: 256 | AP25: 224 | AQ25: 261 | AR25: 262 | AS25: 343 | AT25: 171 | AU25: 242 | AV25: 485 | AW25: 523 | AX25: 420 | AY25: 411 | AZ25: 492 | BA25: 448 | BB25: 419 | BC25: 431 | BD25: 317 | BE25: 627 | BF25: 554 | BG25: 713 | BH25: 520 | BI25: 476 | BJ25: 656 | BK25: 223 | BL25: 415 | BM25: 552 | BN25: 330 | BO25: 155 | BP25: 40 | BQ25: 3 | BR25: 7 | BS25: 0 | BT25: 1 | BU25: 1 | BV25: 0 | BW25: 0 | BX25: 0 | BY25: 0 | BZ25: 1 | CA25: 0 | CB25: 0 | CC25: 0 | CD25: 0 | CE25: 0 | CF25: 0 | CG25: 0 | CH25: 0 | CI25: 0 | CJ25: 0 | CK25: 0 | CL25: 0 | CM25: 0 | CN25: 0 | CO25: 0 | CP25: 0 | CQ25: 0 | CR25: 0 | CS25: 0 | CT25: 0 | CV25: 390.5415435 | CW25: 3587.1964 | CX25: 4353.814985 | CY25: 7767.437366 | CZ25: 5467.58161 | DA25: 5149.362574 | DB25: 4353.814985 | DC25: 6219.735693 | DD25: 7463.682832 | DE25: 7159.928298 | DF25: 6422.238716 | DG25: 9401.926048 | DH25: 5163.827076 | DI25: 5727.942639 | DJ25: 4672.034021 | DK25: 4382.743989 | DL25: 5322.936593 | DM25: 5901.516658 | DN25: 2979.687332 | DO25: 4469.530998 | DP25: 5395.259102 | DQ25: 4267.027976 | DR25: 3616.125403 | DS25: 2502.358779 | DT25: 3240.048361 | DU25: 3442.551384 | DV25: 13423.0575 | DW25: 3775.234921 | DX25: 6104.019681 | DY25: 3052.00984 | DZ25: 2719.326303 | EA25: 5265.078587 | EB25: 5973.839166 | EC25: 3702.912413 | ED25: 3240.048361 | EE25: 3775.234921 | EF25: 3789.699423 | EG25: 4961.324053 | EH25: 2473.429776 | EI25: 3500.40939 | EJ25: 7015.283282 | EK25: 7564.934343 | EL25: 6075.090677 | EM25: 5944.910163 | EN25: 7116.534793 | EO25: 6480.096723 | EP25: 6060.626176 | EQ25: 6234.200195 | ER25: 4585.247011 | ES25: 9069.242511 | ET25: 8013.333893 | EU25: 10313.18965 | EV25: 7521.540839 | EW25: 6885.102768 | EX25: 9488.713058 | EY25: 3225.58386 | EZ25: 6002.768169 | FA25: 7984.40489 | FB25: 4773.285532 | FC25: 2241.99775 | FD25: 578.5800645 | FE25: 43.39350484 | FF25: 101.2515113 | FG25: 0 | FH25: 14.46450161 | FI25: 14.46450161 | FJ25: 0 | FK25: 0 | FL25: 0 | FM25: 0 | FN25: 14.46450161 | FO25: 0 | FP25: 0 | FQ25: 0 | FR25: 0 | FS25: 0 | FT25: 0 | FU25: 0 | FV25: 0 | FW25: 0 | FX25: 0 | FY25: 0 | FZ25: 0 | GA25: 0 | GB25: 0 | GC25: 0 | GD25: 0 | GE25: 0 | GF25: 0 | GG25: 0 | GH25: 0
A26: 2 | B26: POLES | C26: > 66 kv & < = 132 kv ; wood | D26: 14.19325598 | E26: 58.00610352 | F26: 7.616173811 | G26: 2 | H26: 0 | I26: 72 | J26: 30 | K26: 82 | L26: 76 | M26: 53 | N26: 74 | O26: 49 | P26: 57 | Q26: 39 | R26: 75 | S26: 69 | T26: 45 | U26: 36 | V26: 43 | W26: 48 | X26: 37 | Y26: 57 | Z26: 26 | AA26: 27 | AB26: 54 | AC26: 48 | AD26: 20 | AE26: 27 | AF26: 32 | AG26: 34 | AH26: 34 | AI26: 26 | AJ26: 28 | AK26: 39 | AL26: 282 | AM26: 74 | AN26: 36 | AO26: 30 | AP26: 42 | AQ26: 88 | AR26: 20 | AS26: 25 | AT26: 35 | AU26: 25 | AV26: 35 | AW26: 37 | AX26: 27 | AY26: 78 | AZ26: 164 | BA26: 72 | BB26: 59 | BC26: 52 | BD26: 16 | BE26: 20 | BF26: 83 | BG26: 141 | BH26: 131 | BI26: 76 | BJ26: 83 | BK26: 24 | BL26: 26 | BM26: 44 | BN26: 39 | BO26: 88 | BP26: 20 | BQ26: 9 | BR26: 2 | BS26: 4 | BT26: 0 | BU26: 1 | BV26: 0 | BW26: 0 | BX26: 0 | BY26: 0 | BZ26: 0 | CA26: 2 | CB26: 0 | CC26: 0 | CD26: 0 | CE26: 0 | CF26: 0 | CG26: 0 | CH26: 0 | CI26: 0 | CJ26: 0 | CK26: 0 | CL26: 0 | CM26: 0 | CN26: 0 | CO26: 0 | CP26: 0 | CQ26: 0 | CR26: 0 | CS26: 0 | CT26: 0 | CV26: 0 | CW26: 1021.91443 | CX26: 425.7976794 | CY26: 1163.84699 | CZ26: 1078.687454 | DA26: 752.2425669 | DB26: 1050.300942 | DC26: 695.4695429 | DD26: 809.0155908 | DE26: 553.5369832 | DF26: 1064.494198 | DG26: 979.3346625 | DH26: 638.696519 | DI26: 510.9572152 | DJ26: 610.3100071 | DK26: 681.276287 | DL26: 525.1504712 | DM26: 809.0155908 | DN26: 369.0246554 | DO26: 383.2179114 | DP26: 766.4358228 | DQ26: 681.276287 | DR26: 283.8651196 | DS26: 383.2179114 | DT26: 454.1841913 | DU26: 482.5707033 | DV26: 482.5707033 | DW26: 369.0246554 | DX26: 397.4111674 | DY26: 553.5369832 | DZ26: 4002.498186 | EA26: 1050.300942 | EB26: 510.9572152 | EC26: 425.7976794 | ED26: 596.1167511 | EE26: 1249.006526 | EF26: 283.8651196 | EG26: 354.8313995 | EH26: 496.7639592 | EI26: 354.8313995 | EJ26: 496.7639592 | EK26: 525.1504712 | EL26: 383.2179114 | EM26: 1107.073966 | EN26: 2327.69398 | EO26: 1021.91443 | EP26: 837.4021027 | EQ26: 738.0493109 | ER26: 227.0920957 | ES26: 283.8651196 | ET26: 1178.040246 | EU26: 2001.249093 | EV26: 1859.316533 | EW26: 1078.687454 | EX26: 1178.040246 | EY26: 340.6381435 | EZ26: 369.0246554 | FA26: 624.5032631 | FB26: 553.5369832 | FC26: 1249.006526 | FD26: 283.8651196 | FE26: 127.7393038 | FF26: 28.38651196 | FG26: 56.77302391 | FH26: 0 | FI26: 14.19325598 | FJ26: 0 | FK26: 0 | FL26: 0 | FM26: 0 | FN26: 0 | FO26: 28.38651196 | FP26: 0 | FQ26: 0 | FR26: 0 | FS26: 0 | FT26: 0 | FU26: 0 | FV26: 0 | FW26: 0 | FX26: 0 | FY26: 0 | FZ26: 0 | GA26: 0 | GB26: 0 | GC26: 0 | GD26: 0 | GE26: 0 | GF26: 0 | GG26: 0 | GH26: 0
A27: 2 | B27: POLES | C27: ˂ = 1 kv ; concrete | D27: 9.41489553 | E27: 46.29892984 | F27: 6.804331697 | G27: 2 | H27: 14 | I27: 15 | J27: 12 | K27: 39 | L27: 92 | M27: 38 | N27: 68 | O27: 75 | P27: 66 | Q27: 57 | R27: 70 | S27: 92 | T27: 123 | U27: 119 | V27: 109 | W27: 91 | X27: 64 | Y27: 92 | Z27: 23 | AA27: 13 | AB27: 1 | AC27: 0 | AD27: 3 | AE27: 3 | AF27: 4 | AG27: 54 | AH27: 48 | AI27: 174 | AJ27: 120 | AK27: 93 | AL27: 34 | AM27: 69 | AN27: 62 | AO27: 112 | AP27: 92 | AQ27: 39 | AR27: 158 | AS27: 133 | AT27: 4 | AU27: 3 | AV27: 10 | AW27: 3 | AX27: 1 | AY27: 0 | AZ27: 2 | BA27: 0 | BB27: 0 | BC27: 2 | BD27: 2 | BE27: 0 | BF27: 0 | BG27: 0 | BH27: 2 | BI27: 0 | BJ27: 0 | BK27: 1 | BL27: 1 | BM27: 1 | BN27: 0 | BO27: 0 | BP27: 0 | BQ27: 0 | BR27: 1 | BS27: 0 | BT27: 0 | BU27: 0 | BV27: 0 | BW27: 0 | BX27: 0 | BY27: 0 | BZ27: 0 | CA27: 0 | CB27: 0 | CC27: 0 | CD27: 0 | CE27: 0 | CF27: 0 | CG27: 0 | CH27: 0 | CI27: 0 | CJ27: 0 | CK27: 0 | CL27: 0 | CM27: 0 | CN27: 0 | CO27: 0 | CP27: 0 | CQ27: 0 | CR27: 0 | CS27: 0 | CT27: 0 | CV27: 131.8085374 | CW27: 141.2234329 | CX27: 112.9787464 | CY27: 367.1809257 | CZ27: 866.1703887 | DA27: 357.7660301 | DB27: 640.212896 | DC27: 706.1171647 | DD27: 621.383105 | DE27: 536.6490452 | DF27: 659.0426871 | DG27: 866.1703887 | DH27: 1158.03215 | DI27: 1120.372568 | DJ27: 1026.223613 | DK27: 856.7554932 | DL27: 602.5533139 | DM27: 866.1703887 | DN27: 216.5425972 | DO27: 122.3936419 | DP27: 9.41489553 | DQ27: 0 | DR27: 28.24468659 | DS27: 28.24468659 | DT27: 37.65958212 | DU27: 508.4043586 | DV27: 451.9149854 | DW27: 1638.191822 | DX27: 1129.787464 | DY27: 875.5852843 | DZ27: 320.106448 | EA27: 649.6277915 | EB27: 583.7235228 | EC27: 1054.468299 | ED27: 866.1703887 | EE27: 367.1809257 | EF27: 1487.553494 | EG27: 1252.181105 | EH27: 37.65958212 | EI27: 28.24468659 | EJ27: 94.1489553 | EK27: 28.24468659 | EL27: 9.41489553 | EM27: 0 | EN27: 18.82979106 | EO27: 0 | EP27: 0 | EQ27: 18.82979106 | ER27: 18.82979106 | ES27: 0 | ET27: 0 | EU27: 0 | EV27: 18.82979106 | EW27: 0 | EX27: 0 | EY27: 9.41489553 | EZ27: 9.41489553 | FA27: 9.41489553 | FB27: 0 | FC27: 0 | FD27: 0 | FE27: 0 | FF27: 9.41489553 | FG27: 0 | FH27: 0 | FI27: 0 | FJ27: 0 | FK27: 0 | FL27: 0 | FM27: 0 | FN27: 0 | FO27: 0 | FP27: 0 | FQ27: 0 | FR27: 0 | FS27: 0 | FT27: 0 | FU27: 0 | FV27: 0 | FW27: 0 | FX27: 0 | FY27: 0 | FZ27: 0 | GA27: 0 | GB27: 0 | GC27: 0 | GD27: 0 | GE27: 0 | GF27: 0 | GG27: 0 | GH27: 0
A28: 2 | B28: POLES | C28: > 1 kv & < = 11 kv ; concrete | D28: 11.68507077 | E28: 43.57689848 | F28: 6.601280064 | G28: 2 | H28: 6 | I28: 157 | J28: 121 | K28: 281 | L28: 379 | M28: 209 | N28: 273 | O28: 405 | P28: 537 | Q28: 525 | R28: 455 | S28: 454 | T28: 703 | U28: 1005 | V28: 1551 | W28: 1012 | X28: 648 | Y28: 708 | Z28: 153 | AA28: 234 | AB28: 8 | AC28: 2 | AD28: 9 | AE28: 10 | AF28: 8 | AG28: 77 | AH28: 78 | AI28: 166 | AJ28: 314 | AK28: 155 | AL28: 175 | AM28: 269 | AN28: 226 | AO28: 302 | AP28: 304 | AQ28: 199 | AR28: 294 | AS28: 214 | AT28: 46 | AU28: 7 | AV28: 6 | AW28: 8 | AX28: 3 | AY28: 0 | AZ28: 1 | BA28: 0 | BB28: 0 | BC28: 2 | BD28: 0 | BE28: 3 | BF28: 0 | BG28: 2 | BH28: 0 | BI28: 0 | BJ28: 0 | BK28: 0 | BL28: 1 | BM28: 2 | BN28: 0 | BO28: 0 | BP28: 0 | BQ28: 0 | BR28: 0 | BS28: 0 | BT28: 0 | BU28: 0 | BV28: 0 | BW28: 0 | BX28: 0 | BY28: 0 | BZ28: 0 | CA28: 0 | CB28: 0 | CC28: 0 | CD28: 0 | CE28: 0 | CF28: 0 | CG28: 0 | CH28: 0 | CI28: 0 | CJ28: 0 | CK28: 0 | CL28: 0 | CM28: 0 | CN28: 0 | CO28: 0 | CP28: 0 | CQ28: 0 | CR28: 0 | CS28: 0 | CT28: 0 | CV28: 70.11042463 | CW28: 1834.556111 | CX28: 1413.893563 | CY28: 3283.504887 | CZ28: 4428.641823 | DA28: 2442.179791 | DB28: 3190.024321 | DC28: 4732.453663 | DD28: 6274.883005 | DE28: 6134.662155 | DF28: 5316.707201 | DG28: 5305.022131 | DH28: 8214.604753 | DI28: 11743.49613 | DJ28: 18123.54477 | DK28: 11825.29162 | DL28: 7571.92586 | DM28: 8273.030107 | DN28: 1787.815828 | DO28: 2734.306561 | DP28: 93.48056618 | DQ28: 23.37014154 | DR28: 105.165637 | DS28: 116.8507077 | DT28: 93.48056618 | DU28: 899.7504495 | DV28: 911.4355202 | DW28: 1939.721748 | DX28: 3669.112222 | DY28: 1811.18597 | DZ28: 2044.887385 | EA28: 3143.284038 | EB28: 2640.825995 | EC28: 3528.891373 | ED28: 3552.261515 | EE28: 2325.329084 | EF28: 3435.410807 | EG28: 2500.605145 | EH28: 537.5132555 | EI28: 81.79549541 | EJ28: 70.11042463 | EK28: 93.48056618 | EL28: 35.05521232 | EM28: 0 | EN28: 11.68507077 | EO28: 0 | EP28: 0 | EQ28: 23.37014154 | ER28: 0 | ES28: 35.05521232 | ET28: 0 | EU28: 23.37014154 | EV28: 0 | EW28: 0 | EX28: 0 | EY28: 0 | EZ28: 11.68507077 | FA28: 23.37014154 | FB28: 0 | FC28: 0 | FD28: 0 | FE28: 0 | FF28: 0 | FG28: 0 | FH28: 0 | FI28: 0 | FJ28: 0 | FK28: 0 | FL28: 0 | FM28: 0 | FN28: 0 | FO28: 0 | FP28: 0 | FQ28: 0 | FR28: 0 | FS28: 0 | FT28: 0 | FU28: 0 | FV28: 0 | FW28: 0 | FX28: 0 | FY28: 0 | FZ28: 0 | GA28: 0 | GB28: 0 | GC28: 0 | GD28: 0 | GE28: 0 | GF28: 0 | GG28: 0 | GH28: 0
A29: 2 | B29: POLES | C29: ˃ 11 kv & < = 22 kv ; concrete | D29: 13.55489691 | E29: 48.56288237 | F29: 6.968707367 | G29: 2 | H29: 0 | I29: 22 | J29: 11 | K29: 64 | L29: 19 | M29: 11 | N29: 2 | O29: 8 | P29: 135 | Q29: 10 | R29: 34 | S29: 20 | T29: 39 | U29: 49 | V29: 116 | W29: 35 | X29: 23 | Y29: 17 | Z29: 11 | AA29: 12 | AB29: 0 | AC29: 1 | AD29: 3 | AE29: 13 | AF29: 0 | AG29: 24 | AH29: 31 | AI29: 62 | AJ29: 68 | AK29: 19 | AL29: 61 | AM29: 97 | AN29: 67 | AO29: 116 | AP29: 92 | AQ29: 65 | AR29: 45 | AS29: 51 | AT29: 2 | AU29: 2 | AV29: 4 | AW29: 1 | AX29: 1 | AY29: 0 | AZ29: 0 | BA29: 0 | BB29: 0 | BC29: 0 | BD29: 0 | BE29: 0 | BF29: 0 | BG29: 0 | BH29: 0 | BI29: 0 | BJ29: 0 | BK29: 0 | BL29: 0 | BM29: 0 | BN29: 0 | BO29: 0 | BP29: 0 | BQ29: 0 | BR29: 0 | BS29: 0 | BT29: 0 | BU29: 0 | BV29: 0 | BW29: 0 | BX29: 0 | BY29: 0 | BZ29: 0 | CA29: 0 | CB29: 0 | CC29: 0 | CD29: 0 | CE29: 0 | CF29: 0 | CG29: 0 | CH29: 0 | CI29: 0 | CJ29: 0 | CK29: 0 | CL29: 0 | CM29: 0 | CN29: 0 | CO29: 0 | CP29: 0 | CQ29: 0 | CR29: 0 | CS29: 0 | CT29: 0 | CV29: 0 | CW29: 298.2077321 | CX29: 149.103866 | CY29: 867.5134024 | CZ29: 257.5430413 | DA29: 149.103866 | DB29: 27.10979382 | DC29: 108.4391753 | DD29: 1829.911083 | DE29: 135.5489691 | DF29: 460.866495 | DG29: 271.0979382 | DH29: 528.6409796 | DI29: 664.1899487 | DJ29: 1572.368042 | DK29: 474.4213919 | DL29: 311.762629 | DM29: 230.4332475 | DN29: 149.103866 | DO29: 162.6587629 | DP29: 0 | DQ29: 13.55489691 | DR29: 40.66469074 | DS29: 176.2136599 | DT29: 0 | DU29: 325.3175259 | DV29: 420.2018043 | DW29: 840.4036085 | DX29: 921.73299 | DY29: 257.5430413 | DZ29: 826.8487116 | EA29: 1314.825 | EB29: 908.1780931 | EC29: 1572.368042 | ED29: 1247.050516 | EE29: 881.0682993 | EF29: 609.970361 | EG29: 691.2997425 | EH29: 27.10979382 | EI29: 27.10979382 | EJ29: 54.21958765 | EK29: 13.55489691 | EL29: 13.55489691 | EM29: 0 | EN29: 0 | EO29: 0 | EP29: 0 | EQ29: 0 | ER29: 0 | ES29: 0 | ET29: 0 | EU29: 0 | EV29: 0 | EW29: 0 | EX29: 0 | EY29: 0 | EZ29: 0 | FA29: 0 | FB29: 0 | FC29: 0 | FD29: 0 | FE29: 0 | FF29: 0 | FG29: 0 | FH29: 0 | FI29: 0 | FJ29: 0 | FK29: 0 | FL29: 0 | FM29: 0 | FN29: 0 | FO29: 0 | FP29: 0 | FQ29: 0 | FR29: 0 | FS29: 0 | FT29: 0 | FU29: 0 | FV29: 0 | FW29: 0 | FX29: 0 | FY29: 0 | FZ29: 0 | GA29: 0 | GB29: 0 | GC29: 0 | GD29: 0 | GE29: 0 | GF29: 0 | GG29: 0 | GH29: 0
A30: 2 | B30: POLES | C30: > 22 kv & < = 66 kv ; concrete | D30: 24.3357045 | E30: 45.74106346 | F30: 6.763213989 | G30: 2 | H30: 1 | I30: 21 | J30: 61 | K30: 38 | L30: 41 | M30: 30 | N30: 36 | O30: 93 | P30: 64 | Q30: 717 | R30: 158 | S30: 364 | T30: 165 | U30: 195 | V30: 141 | W30: 180 | X30: 201 | Y30: 146 | Z30: 29 | AA30: 22 | AB30: 18 | AC30: 18 | AD30: 18 | AE30: 19 | AF30: 1 | AG30: 4 | AH30: 221 | AI30: 48 | AJ30: 71 | AK30: 18 | AL30: 12 | AM30: 28 | AN30: 42 | AO30: 122 | AP30: 30 | AQ30: 74 | AR30: 83 | AS30: 165 | AT30: 28 | AU30: 37 | AV30: 4 | AW30: 1 | AX30: 2 | AY30: 0 | AZ30: 1 | BA30: 1 | BB30: 2 | BC30: 2 | BD30: 2 | BE30: 0 | BF30: 0 | BG30: 5 | BH30: 1 | BI30: 0 | BJ30: 0 | BK30: 1 | BL30: 1 | BM30: 2 | BN30: 1 | BO30: 1 | BP30: 0 | BQ30: 0 | BR30: 1 | BS30: 0 | BT30: 0 | BU30: 0 | BV30: 0 | BW30: 0 | BX30: 0 | BY30: 0 | BZ30: 0 | CA30: 0 | CB30: 0 | CC30: 0 | CD30: 0 | CE30: 0 | CF30: 0 | CG30: 0 | CH30: 0 | CI30: 0 | CJ30: 0 | CK30: 0 | CL30: 0 | CM30: 0 | CN30: 0 | CO30: 0 | CP30: 0 | CQ30: 0 | CR30: 0 | CS30: 0 | CT30: 0 | CV30: 24.3357045 | CW30: 511.0497944 | CX30: 1484.477974 | CY30: 924.7567708 | CZ30: 997.7638843 | DA30: 730.0711349 | DB30: 876.0853618 | DC30: 2263.220518 | DD30: 1557.485088 | DE30: 17448.70012 | DF30: 3845.04131 | DG30: 8858.196436 | DH30: 4015.391242 | DI30: 4745.462377 | DJ30: 3431.334334 | DK30: 4380.426809 | DL30: 4891.476604 | DM30: 3553.012856 | DN30: 705.7354304 | DO30: 535.3854989 | DP30: 438.0426809 | DQ30: 438.0426809 | DR30: 438.0426809 | DS30: 462.3783854 | DT30: 24.3357045 | DU30: 97.34281798 | DV30: 5378.190693 | DW30: 1168.113816 | DX30: 1727.835019 | DY30: 438.0426809 | DZ30: 292.0284539 | EA30: 681.3997259 | EB30: 1022.099589 | EC30: 2968.955948 | ED30: 730.0711349 | EE30: 1800.842133 | EF30: 2019.863473 | EG30: 4015.391242 | EH30: 681.3997259 | EI30: 900.4210663 | EJ30: 97.34281798 | EK30: 24.3357045 | EL30: 48.67140899 | EM30: 0 | EN30: 24.3357045 | EO30: 24.3357045 | EP30: 48.67140899 | EQ30: 48.67140899 | ER30: 48.67140899 | ES30: 0 | ET30: 0 | EU30: 121.6785225 | EV30: 24.3357045 | EW30: 0 | EX30: 0 | EY30: 24.3357045 | EZ30: 24.3357045 | FA30: 48.67140899 | FB30: 24.3357045 | FC30: 24.3357045 | FD30: 0 | FE30: 0 | FF30: 24.3357045 | FG30: 0 | FH30: 0 | FI30: 0 | FJ30: 0 | FK30: 0 | FL30: 0 | FM30: 0 | FN30: 0 | FO30: 0 | FP30: 0 | FQ30: 0 | FR30: 0 | FS30: 0 | FT30: 0 | FU30: 0 | FV30: 0 | FW30: 0 | FX30: 0 | FY30: 0 | FZ30: 0 | GA30: 0 | GB30: 0 | GC30: 0 | GD30: 0 | GE30: 0 | GF30: 0 | GG30: 0 | GH30: 0
A31: 2 | B31: POLES | C31: > 66 kv & < = 132 kv ; concrete | D31: 29.45295859 | E31: 50.07679254 | F31: 7.076495781 | G31: 2 | H31: 0 | I31: 21 | J31: 0 | K31: 21 | L31: 2 | M31: 9 | N31: 33 | O31: 47 | P31: 86 | Q31: 35 | R31: 84 | S31: 101 | T31: 57 | U31: 25 | V31: 50 | W31: 321 | X31: 94 | Y31: 54 | Z31: 19 | AA31: 4 | AB31: 49 | AC31: 8 | AD31: 6 | AE31: 0 | AF31: 1 | AG31: 12 | AH31: 167 | AI31: 0 | AJ31: 54 | AK31: 191 | AL31: 26 | AM31: 4 | AN31: 87 | AO31: 76 | AP31: 26 | AQ31: 432 | AR31: 2 | AS31: 4 | AT31: 0 | AU31: 2 | AV31: 0 | AW31: 2 | AX31: 0 | AY31: 0 | AZ31: 1 | BA31: 0 | BB31: 1 | BC31: 0 | BD31: 0 | BE31: 0 | BF31: 3 | BG31: 0 | BH31: 0 | BI31: 0 | BJ31: 0 | BK31: 0 | BL31: 0 | BM31: 2 | BN31: 0 | BO31: 0 | BP31: 0 | BQ31: 0 | BR31: 0 | BS31: 0 | BT31: 0 | BU31: 0 | BV31: 0 | BW31: 0 | BX31: 0 | BY31: 0 | BZ31: 0 | CA31: 0 | CB31: 0 | CC31: 0 | CD31: 0 | CE31: 0 | CF31: 0 | CG31: 0 | CH31: 0 | CI31: 0 | CJ31: 0 | CK31: 0 | CL31: 0 | CM31: 0 | CN31: 0 | CO31: 0 | CP31: 0 | CQ31: 0 | CR31: 0 | CS31: 0 | CT31: 0 | CV31: 0 | CW31: 618.5121305 | CX31: 0 | CY31: 618.5121305 | CZ31: 58.90591719 | DA31: 265.0766273 | DB31: 971.9476336 | DC31: 1384.289054 | DD31: 2532.954439 | DE31: 1030.853551 | DF31: 2474.048522 | DG31: 2974.748818 | DH31: 1678.81864 | DI31: 736.3239648 | DJ31: 1472.64793 | DK31: 9454.399709 | DL31: 2768.578108 | DM31: 1590.459764 | DN31: 559.6062133 | DO31: 117.8118344 | DP31: 1443.194971 | DQ31: 235.6236688 | DR31: 176.7177516 | DS31: 0 | DT31: 29.45295859 | DU31: 353.4355031 | DV31: 4918.644085 | DW31: 0 | DX31: 1590.459764 | DY31: 5625.515091 | DZ31: 765.7769234 | EA31: 117.8118344 | EB31: 2562.407398 | EC31: 2238.424853 | ED31: 765.7769234 | EE31: 12723.67811 | EF31: 58.90591719 | EG31: 117.8118344 | EH31: 0 | EI31: 58.90591719 | EJ31: 0 | EK31: 58.90591719 | EL31: 0 | EM31: 0 | EN31: 29.45295859 | EO31: 0 | EP31: 29.45295859 | EQ31: 0 | ER31: 0 | ES31: 0 | ET31: 88.35887578 | EU31: 0 | EV31: 0 | EW31: 0 | EX31: 0 | EY31: 0 | EZ31: 0 | FA31: 58.90591719 | FB31: 0 | FC31: 0 | FD31: 0 | FE31: 0 | FF31: 0 | FG31: 0 | FH31: 0 | FI31: 0 | FJ31: 0 | FK31: 0 | FL31: 0 | FM31: 0 | FN31: 0 | FO31: 0 | FP31: 0 | FQ31: 0 | FR31: 0 | FS31: 0 | FT31: 0 | FU31: 0 | FV31: 0 | FW31: 0 | FX31: 0 | FY31: 0 | FZ31: 0 | GA31: 0 | GB31: 0 | GC31: 0 | GD31: 0 | GE31: 0 | GF31: 0 | GG31: 0 | GH31: 0
A32: 2 | B32: POLES | C32: ˂ = 1 kv ; steel | D32: 8.222605961 | E32: 40.14066767 | F32: 6.335666316 | G32: 2 | H32: 1 | I32: 10 | J32: 28 | K32: 39 | L32: 16 | M32: 29 | N32: 12 | O32: 17 | P32: 16 | Q32: 54 | R32: 47 | S32: 16 | T32: 20 | U32: 71 | V32: 59 | W32: 27 | X32: 23 | Y32: 76 | Z32: 17 | AA32: 14 | AB32: 8 | AC32: 2 | AD32: 12 | AE32: 8 | AF32: 4 | AG32: 14 | AH32: 12 | AI32: 10 | AJ32: 20 | AK32: 7 | AL32: 9 | AM32: 6 | AN32: 6 | AO32: 4 | AP32: 7 | AQ32: 5 | AR32: 5 | AS32: 6 | AT32: 2 | AU32: 3 | AV32: 0 | AW32: 2 | AX32: 4 | AY32: 2 | AZ32: 3 | BA32: 0 | BB32: 3 | BC32: 6 | BD32: 2 | BE32: 6 | BF32: 1 | BG32: 3 | BH32: 0 | BI32: 4 | BJ32: 3 | BK32: 1 | BL32: 6 | BM32: 4 | BN32: 6 | BO32: 2 | BP32: 1 | BQ32: 0 | BR32: 0 | BS32: 0 | BT32: 0 | BU32: 0 | BV32: 0 | BW32: 0 | BX32: 0 | BY32: 0 | BZ32: 0 | CA32: 0 | CB32: 0 | CC32: 0 | CD32: 0 | CE32: 0 | CF32: 0 | CG32: 0 | CH32: 0 | CI32: 0 | CJ32: 0 | CK32: 0 | CL32: 0 | CM32: 0 | CN32: 0 | CO32: 0 | CP32: 0 | CQ32: 0 | CR32: 0 | CS32: 0 | CT32: 0 | CV32: 8.222605961 | CW32: 82.22605961 | CX32: 230.2329669 | CY32: 320.6816325 | CZ32: 131.5616954 | DA32: 238.4555729 | DB32: 98.67127153 | DC32: 139.7843013 | DD32: 131.5616954 | DE32: 444.0207219 | DF32: 386.4624802 | DG32: 131.5616954 | DH32: 164.4521192 | DI32: 583.8050232 | DJ32: 485.1337517 | DK32: 222.0103609 | DL32: 189.1199371 | DM32: 624.918053 | DN32: 139.7843013 | DO32: 115.1164834 | DP32: 65.78084769 | DQ32: 16.44521192 | DR32: 98.67127153 | DS32: 65.78084769 | DT32: 32.89042384 | DU32: 115.1164834 | DV32: 98.67127153 | DW32: 82.22605961 | DX32: 164.4521192 | DY32: 57.55824172 | DZ32: 74.00345365 | EA32: 49.33563576 | EB32: 49.33563576 | EC32: 32.89042384 | ED32: 57.55824172 | EE32: 41.1130298 | EF32: 41.1130298 | EG32: 49.33563576 | EH32: 16.44521192 | EI32: 24.66781788 | EJ32: 0 | EK32: 16.44521192 | EL32: 32.89042384 | EM32: 16.44521192 | EN32: 24.66781788 | EO32: 0 | EP32: 24.66781788 | EQ32: 49.33563576 | ER32: 16.44521192 | ES32: 49.33563576 | ET32: 8.222605961 | EU32: 24.66781788 | EV32: 0 | EW32: 32.89042384 | EX32: 24.66781788 | EY32: 8.222605961 | EZ32: 49.33563576 | FA32: 32.89042384 | FB32: 49.33563576 | FC32: 16.44521192 | FD32: 8.222605961 | FE32: 0 | FF32: 0 | FG32: 0 | FH32: 0 | FI32: 0 | FJ32: 0 | FK32: 0 | FL32: 0 | FM32: 0 | FN32: 0 | FO32: 0 | FP32: 0 | FQ32: 0 | FR32: 0 | FS32: 0 | FT32: 0 | FU32: 0 | FV32: 0 | FW32: 0 | FX32: 0 | FY32: 0 | FZ32: 0 | GA32: 0 | GB32: 0 | GC32: 0 | GD32: 0 | GE32: 0 | GF32: 0 | GG32: 0 | GH32: 0
A33: 2 | B33: POLES | C33: > 1 kv & < = 11 kv ; steel | D33: 10.46167027 | E33: 31.87871071 | F33: 5.646123512 | G33: 2 | H33: 4 | I33: 10 | J33: 0 | K33: 5 | L33: 8 | M33: 113 | N33: 23 | O33: 1 | P33: 1 | Q33: 7 | R33: 4 | S33: 6 | T33: 14 | U33: 35 | V33: 27 | W33: 27 | X33: 8 | Y33: 4 | Z33: 1 | AA33: 2 | AB33: 2 | AC33: 3 | AD33: 4 | AE33: 0 | AF33: 0 | AG33: 0 | AH33: 2 | AI33: 3 | AJ33: 0 | AK33: 5 | AL33: 0 | AM33: 0 | AN33: 0 | AO33: 0 | AP33: 1 | AQ33: 1 | AR33: 0 | AS33: 1 | AT33: 0 | AU33: 0 | AV33: 0 | AW33: 1 | AX33: 0 | AY33: 1 | AZ33: 0 | BA33: 0 | BB33: 0 | BC33: 0 | BD33: 1 | BE33: 3 | BF33: 1 | BG33: 5 | BH33: 1 | BI33: 0 | BJ33: 0 | BK33: 0 | BL33: 0 | BM33: 0 | BN33: 0 | BO33: 0 | BP33: 0 | BQ33: 0 | BR33: 0 | BS33: 0 | BT33: 0 | BU33: 0 | BV33: 0 | BW33: 0 | BX33: 0 | BY33: 0 | BZ33: 0 | CA33: 0 | CB33: 0 | CC33: 0 | CD33: 0 | CE33: 0 | CF33: 0 | CG33: 0 | CH33: 0 | CI33: 0 | CJ33: 0 | CK33: 0 | CL33: 0 | CM33: 0 | CN33: 0 | CO33: 0 | CP33: 0 | CQ33: 0 | CR33: 0 | CS33: 0 | CT33: 0 | CV33: 41.8466811 | CW33: 104.6167027 | CX33: 0 | CY33: 52.30835137 | CZ33: 83.69336219 | DA33: 1182.168741 | DB33: 240.6184163 | DC33: 10.46167027 | DD33: 10.46167027 | DE33: 73.23169192 | DF33: 41.8466811 | DG33: 62.77002164 | DH33: 146.4633838 | DI33: 366.1584596 | DJ33: 282.4650974 | DK33: 282.4650974 | DL33: 83.69336219 | DM33: 41.8466811 | DN33: 10.46167027 | DO33: 20.92334055 | DP33: 20.92334055 | DQ33: 31.38501082 | DR33: 41.8466811 | DS33: 0 | DT33: 0 | DU33: 0 | DV33: 20.92334055 | DW33: 31.38501082 | DX33: 0 | DY33: 52.30835137 | DZ33: 0 | EA33: 0 | EB33: 0 | EC33: 0 | ED33: 10.46167027 | EE33: 10.46167027 | EF33: 0 | EG33: 10.46167027 | EH33: 0 | EI33: 0 | EJ33: 0 | EK33: 10.46167027 | EL33: 0 | EM33: 10.46167027 | EN33: 0 | EO33: 0 | EP33: 0 | EQ33: 0 | ER33: 10.46167027 | ES33: 31.38501082 | ET33: 10.46167027 | EU33: 52.30835137 | EV33: 10.46167027 | EW33: 0 | EX33: 0 | EY33: 0 | EZ33: 0 | FA33: 0 | FB33: 0 | FC33: 0 | FD33: 0 | FE33: 0 | FF33: 0 | FG33: 0 | FH33: 0 | FI33: 0 | FJ33: 0 | FK33: 0 | FL33: 0 | FM33: 0 | FN33: 0 | FO33: 0 | FP33: 0 | FQ33: 0 | FR33: 0 | FS33: 0 | FT33: 0 | FU33: 0 | FV33: 0 | FW33: 0 | FX33: 0 | FY33: 0 | FZ33: 0 | GA33: 0 | GB33: 0 | GC33: 0 | GD33: 0 | GE33: 0 | GF33: 0 | GG33: 0 | GH33: 0
A34: 2 | B34: POLES | C34: ˃ 11 kv & < = 22 kv ; steel | D34: 12.47091611 | E34: 16.1275118 | F34: 4.015907345 | G34: 2 | H34: 0 | I34: 0 | J34: 0 | K34: 6 | L34: 9 | M34: 88 | N34: 64 | O34: 153 | P34: 0 | Q34: 0 | R34: 0 | S34: 0 | T34: 13 | U34: 0 | V34: 0 | W34: 0 | X34: 1 | Y34: 0 | Z34: 0 | AA34: 0 | AB34: 0 | AC34: 0 | AD34: 0 | AE34: 0 | AF34: 0 | AG34: 0 | AH34: 0 | AI34: 0 | AJ34: 0 | AK34: 0 | AL34: 0 | AM34: 0 | AN34: 0 | AO34: 0 | AP34: 0 | AQ34: 0 | AR34: 0 | AS34: 0 | AT34: 0 | AU34: 0 | AV34: 0 | AW34: 0 | AX34: 0 | AY34: 0 | AZ34: 0 | BA34: 0 | BB34: 0 | BC34: 0 | BD34: 0 | BE34: 0 | BF34: 0 | BG34: 0 | BH34: 0 | BI34: 0 | BJ34: 0 | BK34: 0 | BL34: 0 | BM34: 0 | BN34: 0 | BO34: 0 | BP34: 0 | BQ34: 0 | BR34: 0 | BS34: 0 | BT34: 0 | BU34: 0 | BV34: 0 | BW34: 0 | BX34: 0 | BY34: 0 | BZ34: 0 | CA34: 0 | CB34: 0 | CC34: 0 | CD34: 0 | CE34: 0 | CF34: 0 | CG34: 0 | CH34: 0 | CI34: 0 | CJ34: 0 | CK34: 0 | CL34: 0 | CM34: 0 | CN34: 0 | CO34: 0 | CP34: 0 | CQ34: 0 | CR34: 0 | CS34: 0 | CT34: 0 | CV34: 0 | CW34: 0 | CX34: 0 | CY34: 74.82549666 | CZ34: 112.238245 | DA34: 1097.440618 | DB34: 798.1386311 | DC34: 1908.050165 | DD34: 0 | DE34: 0 | DF34: 0 | DG34: 0 | DH34: 162.1219094 | DI34: 0 | DJ34: 0 | DK34: 0 | DL34: 12.47091611 | DM34: 0 | DN34: 0 | DO34: 0 | DP34: 0 | DQ34: 0 | DR34: 0 | DS34: 0 | DT34: 0 | DU34: 0 | DV34: 0 | DW34: 0 | DX34: 0 | DY34: 0 | DZ34: 0 | EA34: 0 | EB34: 0 | EC34: 0 | ED34: 0 | EE34: 0 | EF34: 0 | EG34: 0 | EH34: 0 | EI34: 0 | EJ34: 0 | EK34: 0 | EL34: 0 | EM34: 0 | EN34: 0 | EO34: 0 | EP34: 0 | EQ34: 0 | ER34: 0 | ES34: 0 | ET34: 0 | EU34: 0 | EV34: 0 | EW34: 0 | EX34: 0 | EY34: 0 | EZ34: 0 | FA34: 0 | FB34: 0 | FC34: 0 | FD34: 0 | FE34: 0 | FF34: 0 | FG34: 0 | FH34: 0 | FI34: 0 | FJ34: 0 | FK34: 0 | FL34: 0 | FM34: 0 | FN34: 0 | FO34: 0 | FP34: 0 | FQ34: 0 | FR34: 0 | FS34: 0 | FT34: 0 | FU34: 0 | FV34: 0 | FW34: 0 | FX34: 0 | FY34: 0 | FZ34: 0 | GA34: 0 | GB34: 0 | GC34: 0 | GD34: 0 | GE34: 0 | GF34: 0 | GG34: 0 | GH34: 0
A35: 2 | B35: POLES | C35: > 22 kv & < = 66 kv ; steel | D35: 24.29242015 | E35: 16.94323287 | F35: 4.116215843 | G35: 2 | H35: 0 | I35: 9 | J35: 10 | K35: 57 | L35: 3 | M35: 17 | N35: 22 | O35: 114 | P35: 11 | Q35: 26 | R35: 19 | S35: 89 | T35: 19 | U35: 1 | V35: 35 | W35: 0 | X35: 5 | Y35: 6 | Z35: 0 | AA35: 0 | AB35: 0 | AC35: 4 | AD35: 1 | AE35: 1 | AF35: 0 | AG35: 0 | AH35: 0 | AI35: 1 | AJ35: 0 | AK35: 0 | AL35: 0 | AM35: 1 | AN35: 0 | AO35: 0 | AP35: 0 | AQ35: 0 | AR35: 0 | AS35: 0 | AT35: 0 | AU35: 0 | AV35: 0 | AW35: 0 | AX35: 0 | AY35: 0 | AZ35: 0 | BA35: 0 | BB35: 0 | BC35: 1 | BD35: 0 | BE35: 0 | BF35: 0 | BG35: 0 | BH35: 0 | BI35: 0 | BJ35: 0 | BK35: 0 | BL35: 0 | BM35: 0 | BN35: 0 | BO35: 0 | BP35: 0 | BQ35: 0 | BR35: 0 | BS35: 0 | BT35: 0 | BU35: 0 | BV35: 0 | BW35: 0 | BX35: 0 | BY35: 0 | BZ35: 0 | CA35: 0 | CB35: 0 | CC35: 0 | CD35: 0 | CE35: 0 | CF35: 0 | CG35: 0 | CH35: 0 | CI35: 0 | CJ35: 0 | CK35: 0 | CL35: 0 | CM35: 0 | CN35: 0 | CO35: 0 | CP35: 0 | CQ35: 0 | CR35: 0 | CS35: 0 | CT35: 0 | CV35: 0 | CW35: 218.6317813 | CX35: 242.9242015 | CY35: 1384.667949 | CZ35: 72.87726045 | DA35: 412.9711425 | DB35: 534.4332433 | DC35: 2769.335897 | DD35: 267.2166216 | DE35: 631.6029239 | DF35: 461.5559828 | DG35: 2162.025393 | DH35: 461.5559828 | DI35: 24.29242015 | DJ35: 850.2347052 | DK35: 0 | DL35: 121.4621007 | DM35: 145.7545209 | DN35: 0 | DO35: 0 | DP35: 0 | DQ35: 97.1696806 | DR35: 24.29242015 | DS35: 24.29242015 | DT35: 0 | DU35: 0 | DV35: 0 | DW35: 24.29242015 | DX35: 0 | DY35: 0 | DZ35: 0 | EA35: 24.29242015 | EB35: 0 | EC35: 0 | ED35: 0 | EE35: 0 | EF35: 0 | EG35: 0 | EH35: 0 | EI35: 0 | EJ35: 0 | EK35: 0 | EL35: 0 | EM35: 0 | EN35: 0 | EO35: 0 | EP35: 0 | EQ35: 24.29242015 | ER35: 0 | ES35: 0 | ET35: 0 | EU35: 0 | EV35: 0 | EW35: 0 | EX35: 0 | EY35: 0 | EZ35: 0 | FA35: 0 | FB35: 0 | FC35: 0 | FD35: 0 | FE35: 0 | FF35: 0 | FG35: 0 | FH35: 0 | FI35: 0 | FJ35: 0 | FK35: 0 | FL35: 0 | FM35: 0 | FN35: 0 | FO35: 0 | FP35: 0 | FQ35: 0 | FR35: 0 | FS35: 0 | FT35: 0 | FU35: 0 | FV35: 0 | FW35: 0 | FX35: 0 | FY35: 0 | FZ35: 0 | GA35: 0 | GB35: 0 | GC35: 0 | GD35: 0 | GE35: 0 | GF35: 0 | GG35: 0 | GH35: 0
A36: 2 | B36: POLES | C36: > 66 kv & < = 132 kv ; steel | D36: 28.37657281 | E36: 21.29157411 | F36: 4.614279371 | G36: 2 | H36: 0 | I36: 2 | J36: 2 | K36: 0 | L36: 0 | M36: 0 | N36: 0 | O36: 1 | P36: 0 | Q36: 12 | R36: 0 | S36: 0 | T36: 3 | U36: 6 | V36: 89 | W36: 40 | X36: 0 | Y36: 2 | Z36: 0 | AA36: 0 | AB36: 0 | AC36: 0 | AD36: 0 | AE36: 0 | AF36: 0 | AG36: 2 | AH36: 0 | AI36: 0 | AJ36: 0 | AK36: 0 | AL36: 0 | AM36: 0 | AN36: 0 | AO36: 0 | AP36: 0 | AQ36: 0 | AR36: 0 | AS36: 0 | AT36: 0 | AU36: 0 | AV36: 0 | AW36: 0 | AX36: 0 | AY36: 0 | AZ36: 0 | BA36: 0 | BB36: 0 | BC36: 0 | BD36: 0 | BE36: 0 | BF36: 0 | BG36: 0 | BH36: 0 | BI36: 0 | BJ36: 0 | BK36: 0 | BL36: 0 | BM36: 0 | BN36: 0 | BO36: 0 | BP36: 0 | BQ36: 0 | BR36: 0 | BS36: 0 | BT36: 0 | BU36: 0 | BV36: 0 | BW36: 0 | BX36: 0 | BY36: 0 | BZ36: 0 | CA36: 0 | CB36: 0 | CC36: 0 | CD36: 0 | CE36: 0 | CF36: 0 | CG36: 0 | CH36: 0 | CI36: 0 | CJ36: 0 | CK36: 0 | CL36: 0 | CM36: 0 | CN36: 0 | CO36: 0 | CP36: 0 | CQ36: 0 | CR36: 0 | CS36: 0 | CT36: 0 | CV36: 0 | CW36: 56.75314563 | CX36: 56.75314563 | CY36: 0 | CZ36: 0 | DA36: 0 | DB36: 0 | DC36: 28.37657281 | DD36: 0 | DE36: 340.5188738 | DF36: 0 | DG36: 0 | DH36: 85.12971844 | DI36: 170.2594369 | DJ36: 2525.51498 | DK36: 1135.062913 | DL36: 0 | DM36: 56.75314563 | DN36: 0 | DO36: 0 | DP36: 0 | DQ36: 0 | DR36: 0 | DS36: 0 | DT36: 0 | DU36: 56.75314563 | DV36: 0 | DW36: 0 | DX36: 0 | DY36: 0 | DZ36: 0 | EA36: 0 | EB36: 0 | EC36: 0 | ED36: 0 | EE36: 0 | EF36: 0 | EG36: 0 | EH36: 0 | EI36: 0 | EJ36: 0 | EK36: 0 | EL36: 0 | EM36: 0 | EN36: 0 | EO36: 0 | EP36: 0 | EQ36: 0 | ER36: 0 | ES36: 0 | ET36: 0 | EU36: 0 | EV36: 0 | EW36: 0 | EX36: 0 | EY36: 0 | EZ36: 0 | FA36: 0 | FB36: 0 | FC36: 0 | FD36: 0 | FE36: 0 | FF36: 0 | FG36: 0 | FH36: 0 | FI36: 0 | FJ36: 0 | FK36: 0 | FL36: 0 | FM36: 0 | FN36: 0 | FO36: 0 | FP36: 0 | FQ36: 0 | FR36: 0 | FS36: 0 | FT36: 0 | FU36: 0 | FV36: 0 | FW36: 0 | FX36: 0 | FY36: 0 | FZ36: 0 | GA36: 0 | GB36: 0 | GC36: 0 | GD36: 0 | GE36: 0 | GF36: 0 | GG36: 0 | GH36: 0
A37: 1 | B37: OVERHEAD CONDUCTORS | C37: ˂ = 1 kv | D37: 78.47220734 | E37: 67.02904225 | F37: 8.187126617 | G37: 2 | H37: 31.5283 | I37: 54.1206 | J37: 86.6424 | K37: 100.081 | L37: 147.5308 | M37: 165.3191 | N37: 110.6018 | O37: 154.6666 | P37: 180.8506 | Q37: 194.3956 | R37: 221.6444 | S37: 177.2514 | T37: 150.8848 | U37: 161.5764 | V37: 157.1482 | W37: 161.8198 | X37: 174.7797 | Y37: 291.4369 | Z37: 190.531 | AA37: 167.4905 | AB37: 105.2247 | AC37: 109.7645 | AD37: 156.4604 | AE37: 115.5355 | AF37: 138.6475 | AG37: 147.2286 | AH37: 199.7672 | AI37: 225.6494 | AJ37: 330.5071 | AK37: 236.5477 | AL37: 200.2442 | AM37: 376.7105 | AN37: 419.729 | AO37: 364.2755 | AP37: 240.4181 | AQ37: 242.6851 | AR37: 196.3109 | AS37: 407.5964 | AT37: 148.8822 | AU37: 165.9842 | AV37: 509.968 | AW37: 538.5304 | AX37: 363.4103 | AY37: 260.5208 | AZ37: 249.2591 | BA37: 262.9979 | BB37: 235.2646 | BC37: 311.5529 | BD37: 141.4585 | BE37: 376.8231 | BF37: 347.4477 | BG37: 527.2566 | BH37: 344.6798 | BI37: 515.5134 | BJ37: 600.4693 | BK37: 125.6509 | BL37: 155.3726 | BM37: 72.6918 | BN37: 18.0022 | BO37: 11.2745 | BP37: 8.5802 | BQ37: 3.6318 | BR37: 0 | BS37: 0 | BT37: 0 | BU37: 0 | BV37: 0 | BW37: 0 | BX37: 0 | BY37: 0 | BZ37: 0 | CA37: 0 | CB37: 0 | CC37: 0 | CD37: 0 | CE37: 0 | CF37: 0 | CG37: 0 | CH37: 0 | CI37: 0 | CJ37: 0 | CK37: 0 | CL37: 0 | CM37: 0 | CN37: 0 | CO37: 0 | CP37: 0 | CQ37: 0 | CR37: 0 | CS37: 0 | CT37: 0 | CV37: 2474.095295 | CW37: 4246.962945 | CX37: 6799.020377 | CY37: 7853.576983 | CZ37: 11577.06753 | DA37: 12972.95469 | DB37: 8679.167382 | DC37: 12137.0295 | DD37: 14191.74578 | DE37: 15254.65183 | DF37: 17392.92531 | DG37: 13909.30861 | DH37: 11840.26331 | DI37: 12679.25676 | DJ37: 12331.76613 | DK37: 12698.3569 | DL37: 13715.34886 | DM37: 22869.69684 | DN37: 14951.38814 | DO37: 13143.34924 | DP37: 8257.214476 | DQ37: 8613.462602 | DR37: 12277.79295 | DS37: 9066.325711 | DT37: 10879.97537 | DU37: 11553.35323 | DV37: 15676.17314 | DW37: 17707.2065 | DX37: 25935.62168 | DY37: 18562.42016 | DZ37: 15713.60438 | EA37: 29561.30446 | EB37: 32937.06111 | EC37: 28585.50256 | ED37: 18866.13899 | EE37: 19044.03549 | EF37: 15404.94965 | EG37: 31984.98921 | EH37: 11683.11487 | EI37: 13025.14656 | EJ37: 40018.31463 | EK37: 42259.66921 | EL37: 28517.60841 | EM37: 20443.64223 | EN37: 19559.91178 | EO37: 20638.02574 | EP37: 18461.73247 | EQ37: 24448.24377 | ER37: 11100.56074 | ES37: 29570.14043 | ET37: 27264.98795 | EU37: 41374.98924 | EV37: 27047.78473 | EW37: 40453.47441 | EX37: 47120.15141 | EY37: 9860.103477 | EZ37: 12192.43088 | FA37: 5704.286001 | FB37: 1412.672371 | FC37: 884.7349016 | FD37: 673.3072334 | FE37: 284.9953626 | FF37: 0 | FG37: 0 | FH37: 0 | FI37: 0 | FJ37: 0 | FK37: 0 | FL37: 0 | FM37: 0 | FN37: 0 | FO37: 0 | FP37: 0 | FQ37: 0 | FR37: 0 | FS37: 0 | FT37: 0 | FU37: 0 | FV37: 0 | FW37: 0 | FX37: 0 | FY37: 0 | FZ37: 0 | GA37: 0 | GB37: 0 | GC37: 0 | GD37: 0 | GE37: 0 | GF37: 0 | GG37: 0 | GH37: 0
A38: 1 | B38: OVERHEAD CONDUCTORS | C38: > 1 kv & < = 11 kv | D38: 86.30416271 | E38: 57.74378872 | F38: 7.598933394 | G38: 2 | H38: 90.658 | I38: 137.766 | J38: 134.7691 | K38: 147.5278 | L38: 161.8109 | M38: 170.4772 | N38: 172.4238 | O38: 226.4755 | P38: 332.0446 | Q38: 348.2832 | R38: 237.035 | S38: 149.9771 | T38: 159.378 | U38: 178.1902 | V38: 163.3888 | W38: 183.0623 | X38: 217.8939 | Y38: 242.5344 | Z38: 198.2707 | AA38: 168.6968 | AB38: 97.2343 | AC38: 142.8232 | AD38: 128.7902 | AE38: 108.8971 | AF38: 113.1948 | AG38: 141.8078 | AH38: 197.7786 | AI38: 209.6343 | AJ38: 229.6506 | AK38: 206.2344 | AL38: 181.682 | AM38: 251.2817 | AN38: 295.2525 | AO38: 237.8778 | AP38: 174.47 | AQ38: 228.7781 | AR38: 134.8265 | AS38: 265.2916 | AT38: 127.4397 | AU38: 153.0153 | AV38: 388.7851 | AW38: 311.2627 | AX38: 192.242 | AY38: 124.6995 | AZ38: 137.2267 | BA38: 150.5078 | BB38: 138.9744 | BC38: 166.7878 | BD38: 88.3484 | BE38: 211.3974 | BF38: 130.7634 | BG38: 213.6464 | BH38: 136.5212 | BI38: 149.1837 | BJ38: 172.0478 | BK38: 49.523 | BL38: 72.4268 | BM38: 46.8539 | BN38: 28.9512 | BO38: 6.4823 | BP38: 5.2671 | BQ38: 9.5997 | BR38: 0 | BS38: 0 | BT38: 0 | BU38: 0 | BV38: 0 | BW38: 0 | BX38: 0 | BY38: 0 | BZ38: 0 | CA38: 0 | CB38: 0 | CC38: 0 | CD38: 0 | CE38: 0 | CF38: 0 | CG38: 0 | CH38: 0 | CI38: 0 | CJ38: 0 | CK38: 0 | CL38: 0 | CM38: 0 | CN38: 0 | CO38: 0 | CP38: 0 | CQ38: 0 | CR38: 0 | CS38: 0 | CT38: 0 | CV38: 7824.162783 | CW38: 11889.77928 | CX38: 11631.13433 | CY38: 12732.26326 | CZ38: 13964.95424 | DA38: 14712.89201 | DB38: 14880.89169 | DC38: 19545.7784 | DD38: 28656.83119 | DE38: 30058.28996 | DF38: 20457.10721 | DG38: 12943.64804 | DH38: 13754.98484 | DI38: 15378.55601 | DJ38: 14101.13358 | DK38: 15799.03853 | DL38: 18805.1506 | DM38: 20931.72832 | DN38: 17111.58675 | DO38: 14559.23608 | DP38: 8391.724848 | DQ38: 12326.23669 | DR38: 11115.13038 | DS38: 9398.273037 | DT38: 9769.182437 | DU38: 12238.60344 | DV38: 17069.11648 | DW38: 18092.31274 | DX38: 19819.80275 | DY38: 17798.88721 | DZ38: 15679.91289 | EA38: 21686.65672 | EB38: 25481.5198 | EC38: 20529.84436 | ED38: 15057.48727 | EE38: 19744.50237 | EF38: 11636.08819 | EG38: 22895.76941 | EH38: 10998.5766 | EI38: 13205.85735 | EJ38: 33553.77253 | EK38: 26863.26671 | EL38: 16591.28485 | EM38: 10762.08594 | EN38: 11843.23545 | EO38: 12989.44966 | EP38: 11994.06923 | EQ38: 14394.48143 | ER38: 7624.834689 | ES38: 18244.47561 | ET38: 11285.42575 | EU38: 18438.57367 | EV38: 11782.34786 | EW38: 12875.17432 | EX38: 14848.44133 | EY38: 4274.04105 | EZ38: 6250.734332 | FA38: 4043.686609 | FB38: 2498.609075 | FC38: 559.4494739 | FD38: 454.5726554 | FE38: 828.4940708 | FF38: 0 | FG38: 0 | FH38: 0 | FI38: 0 | FJ38: 0 | FK38: 0 | FL38: 0 | FM38: 0 | FN38: 0 | FO38: 0 | FP38: 0 | FQ38: 0 | FR38: 0 | FS38: 0 | FT38: 0 | FU38: 0 | FV38: 0 | FW38: 0 | FX38: 0 | FY38: 0 | FZ38: 0 | GA38: 0 | GB38: 0 | GC38: 0 | GD38: 0 | GE38: 0 | GF38: 0 | GG38: 0 | GH38: 0
A39: 1 | B39: OVERHEAD CONDUCTORS | C39: ˃ 11 kv & < = 22 kv ; swer | D39: 46.45681283 | E39: 52.87136776 | F39: 7.271270024 | G39: 2 | H39: 0.9558 | I39: 8.4952 | J39: 18.1176 | K39: 10.3337 | L39: 29.4378 | M39: 36.0863 | N39: 32.2216 | O39: 12.0473 | P39: 24.9607 | Q39: 0.5398 | R39: 2.6017 | S39: 1.9256 | T39: 0.7517 | U39: 1.0162 | V39: 3.1975 | W39: 2.2726 | X39: 6.6722 | Y39: 2.229 | Z39: 2.7508 | AA39: 0.8087 | AB39: 16.9807 | AC39: 4.9053 | AD39: 36.7455 | AE39: 10.0631 | AF39: 4.7318 | AG39: 0.9246 | AH39: 5.5384 | AI39: 6.7309 | AJ39: 24.2225 | AK39: 6.8221 | AL39: 4.6369 | AM39: 1.2252 | AN39: 3.1483 | AO39: 15.8055 | AP39: 6.7729 | AQ39: 7.4219 | AR39: 20.4935 | AS39: 17.1457 | AT39: 4.5127 | AU39: 6.3234 | AV39: 39.3188 | AW39: 13.2385 | AX39: 0 | AY39: 0 | AZ39: 0 | BA39: 8.0192 | BB39: 9.0337 | BC39: 0.1767 | BD39: 3.1706 | BE39: 5.5628 | BF39: 0 | BG39: 0 | BH39: 0 | BI39: 0 | BJ39: 0 | BK39: 0 | BL39: 0 | BM39: 0 | BN39: 0 | BO39: 0 | BP39: 0 | BQ39: 0 | BR39: 0 | BS39: 0 | BT39: 0 | BU39: 0 | BV39: 0 | BW39: 0 | BX39: 0 | BY39: 0 | BZ39: 0 | CA39: 0 | CB39: 0 | CC39: 0 | CD39: 0 | CE39: 0 | CF39: 0 | CG39: 0 | CH39: 0 | CI39: 0 | CJ39: 0 | CK39: 0 | CL39: 0 | CM39: 0 | CN39: 0 | CO39: 0 | CP39: 0 | CQ39: 0 | CR39: 0 | CS39: 0 | CT39: 0 | CV39: 44.4034217 | CW39: 394.6599163 | CX39: 841.685952 | CY39: 480.0707667 | CZ39: 1367.586365 | DA39: 1676.454485 | DB39: 1496.91284 | DC39: 559.6791612 | DD39: 1159.594568 | DE39: 25.07738756 | DF39: 120.8666899 | DG39: 89.45723878 | DH39: 34.9215862 | DI39: 47.20941319 | DJ39: 148.545659 | DK39: 105.5777528 | DL39: 309.9691465 | DM39: 103.5522358 | DN39: 127.7934007 | DO39: 37.56962453 | DP39: 788.8692015 | DQ39: 227.884604 | DR39: 1707.078816 | DS39: 467.4995531 | DT39: 219.8243469 | DU39: 42.95396914 | DV39: 257.2964122 | DW39: 312.6961614 | DX39: 1125.300149 | DY39: 316.9330228 | DZ39: 215.4155954 | EA39: 56.91888707 | EB39: 146.2599838 | EC39: 734.2731551 | ED39: 314.6473476 | EE39: 344.7978191 | EF39: 952.0626936 | EG39: 796.5345757 | EH39: 209.6456592 | EI39: 293.7650102 | EJ39: 1826.626132 | EK39: 615.0185166 | EL39: 0 | EM39: 0 | EN39: 0 | EO39: 372.5464734 | EP39: 419.67691 | EQ39: 8.208918826 | ER39: 147.2959707 | ES39: 258.4299584 | ET39: 0 | EU39: 0 | EV39: 0 | EW39: 0 | EX39: 0 | EY39: 0 | EZ39: 0 | FA39: 0 | FB39: 0 | FC39: 0 | FD39: 0 | FE39: 0 | FF39: 0 | FG39: 0 | FH39: 0 | FI39: 0 | FJ39: 0 | FK39: 0 | FL39: 0 | FM39: 0 | FN39: 0 | FO39: 0 | FP39: 0 | FQ39: 0 | FR39: 0 | FS39: 0 | FT39: 0 | FU39: 0 | FV39: 0 | FW39: 0 | FX39: 0 | FY39: 0 | FZ39: 0 | GA39: 0 | GB39: 0 | GC39: 0 | GD39: 0 | GE39: 0 | GF39: 0 | GG39: 0 | GH39: 0
B40: OVERHEAD CONDUCTORS | C40: ˃ 11 kv & < = 22 kv ; single-phase | G40: 2 | H40: 0 | I40: 0 | J40: 0 | K40: 0 | L40: 0 | M40: 0 | N40: 0 | O40: 0 | P40: 0 | Q40: 0 | R40: 0 | S40: 0 | T40: 0 | U40: 0 | V40: 0 | W40: 0 | X40: 0 | Y40: 0 | Z40: 0 | AA40: 0 | AB40: 0 | AC40: 0 | AD40: 0 | AE40: 0 | AF40: 0 | AG40: 0 | AH40: 0 | AI40: 0 | AJ40: 0 | AK40: 0 | AL40: 0 | AM40: 0 | AN40: 0 | AO40: 0 | AP40: 0 | AQ40: 0 | AR40: 0 | AS40: 0 | AT40: 0 | AU40: 0 | AV40: 0 | AW40: 0 | AX40: 0 | AY40: 0 | AZ40: 0 | BA40: 0 | BB40: 0 | BC40: 0 | BD40: 0 | BE40: 0 | BF40: 0 | BG40: 0 | BH40: 0 | BI40: 0 | BJ40: 0 | BK40: 0 | BL40: 0 | BM40: 0 | BN40: 0 | BO40: 0 | BP40: 0 | BQ40: 0 | BR40: 0 | BS40: 0 | BT40: 0 | BU40: 0 | BV40: 0 | BW40: 0 | BX40: 0 | BY40: 0 | BZ40: 0 | CA40: 0 | CB40: 0 | CC40: 0 | CD40: 0 | CE40: 0 | CF40: 0 | CG40: 0 | CH40: 0 | CI40: 0 | CJ40: 0 | CK40: 0 | CL40: 0 | CM40: 0 | CN40: 0 | CO40: 0 | CP40: 0 | CQ40: 0 | CR40: 0 | CS40: 0 | CT40: 0
A41: 1 | B41: OVERHEAD CONDUCTORS | C41: ˃ 11 kv & < = 22 kv ; multiple-phase | D41: 83.72225137 | E41: 54.70608349 | F41: 7.396356095 | G41: 2 | H41: 1.4896 | I41: 1.6628 | J41: 9.9737 | K41: 3.2922 | L41: 4.8945 | M41: 9.4621 | N41: 9.6652 | O41: 22.4386 | P41: 3.2382 | Q41: 5.0115 | R41: 3.8618 | S41: 0.0194 | T41: 6.1542 | U41: 13.5156 | V41: 2.3386 | W41: 1.0855 | X41: 3.246 | Y41: 2.3231 | Z41: 0.9963 | AA41: 2.9187 | AB41: 6.3064 | AC41: 9.551 | AD41: 26.3118 | AE41: 19.2286 | AF41: 1.0617 | AG41: 3.9744 | AH41: 4.3047 | AI41: 6.2139 | AJ41: 11.8677 | AK41: 3.7472 | AL41: 2.7455 | AM41: 1.0449 | AN41: 5.7309 | AO41: 7.0233 | AP41: 3.5965 | AQ41: 0.3626 | AR41: 3.6082 | AS41: 9.7037 | AT41: 1.801 | AU41: 3.8654 | AV41: 10.911 | AW41: 15.1363 | AX41: 2.3313 | AY41: 2.0381 | AZ41: 0.8498 | BA41: 1.1092 | BB41: 0.4541 | BC41: 0.4673 | BD41: 1.15 | BE41: 0.7958 | BF41: 1.8414 | BG41: 2.5185 | BH41: 0 | BI41: 0.6087 | BJ41: 2.2072 | BK41: 0.0331 | BL41: 3.1358 | BM41: 0 | BN41: 0 | BO41: 0 | BP41: 0 | BQ41: 0 | BR41: 0 | BS41: 0 | BT41: 0 | BU41: 0 | BV41: 0 | BW41: 0 | BX41: 0 | BY41: 0 | BZ41: 0 | CA41: 0 | CB41: 0 | CC41: 0 | CD41: 0 | CE41: 0 | CF41: 0 | CG41: 0 | CH41: 0 | CI41: 0 | CJ41: 0 | CK41: 0 | CL41: 0 | CM41: 0 | CN41: 0 | CO41: 0 | CP41: 0 | CQ41: 0 | CR41: 0 | CS41: 0 | CT41: 0 | CV41: 124.7126656 | CW41: 139.2133596 | CX41: 835.0206185 | CY41: 275.630396 | CZ41: 409.7785593 | DA41: 792.1883147 | DB41: 809.192304 | DC41: 1878.61011 | DD41: 271.1093944 | DE41: 419.5740627 | DF41: 323.3185903 | DG41: 1.624211677 | DH41: 515.2434794 | DI41: 1131.556461 | DJ41: 195.7928571 | DK41: 90.88050386 | DL41: 271.762428 | DM41: 194.4951622 | DN41: 83.41247904 | DO41: 244.3601351 | DP41: 527.9860061 | DQ41: 799.6312229 | DR41: 2202.883134 | DS41: 1609.861683 | DT41: 88.88791428 | DU41: 332.7457159 | DV41: 360.3991755 | DW41: 520.2416978 | DX41: 993.5905626 | DY41: 313.7240203 | DZ41: 229.8594411 | EA41: 87.48138046 | EB41: 479.8038504 | EC41: 588.0064881 | ED41: 301.1070771 | EE41: 30.35768835 | EF41: 302.0866274 | EG41: 812.4156106 | EH41: 150.7837747 | EI41: 323.6199905 | EJ41: 913.4934847 | EK41: 1267.245113 | EL41: 195.1816846 | EM41: 170.6343205 | EN41: 71.14716922 | EO41: 92.86472122 | EP41: 38.01827435 | EQ41: 39.12340807 | ER41: 96.28058908 | ES41: 66.62616764 | ET41: 154.1661537 | EU41: 210.8544901 | EV41: 0 | EW41: 50.96173441 | EX41: 184.7917532 | EY41: 2.77120652 | EZ41: 262.5362359 | FA41: 0 | FB41: 0 | FC41: 0 | FD41: 0 | FE41: 0 | FF41: 0 | FG41: 0 | FH41: 0 | FI41: 0 | FJ41: 0 | FK41: 0 | FL41: 0 | FM41: 0 | FN41: 0 | FO41: 0 | FP41: 0 | FQ41: 0 | FR41: 0 | FS41: 0 | FT41: 0 | FU41: 0 | FV41: 0 | FW41: 0 | FX41: 0 | FY41: 0 | FZ41: 0 | GA41: 0 | GB41: 0 | GC41: 0 | GD41: 0 | GE41: 0 | GF41: 0 | GG41: 0 | GH41: 0
A42: 1 | B42: OVERHEAD CONDUCTORS | C42: > 22 kv & < = 66 kv | D42: 554.6545032 | E42: 62.5091884 | F42: 7.906275254 | G42: 2 | H42: 0.9066 | I42: 8.3267 | J42: 28.4459 | K42: 16.412 | L42: 60.2554 | M42: 57.0194 | N42: 18.8964 | O42: 72.7415 | P42: 70.0773 | Q42: 50.1098 | R42: 33.9273 | S42: 20.9738 | T42: 11.114 | U42: 17.9321 | V42: 11.083 | W42: 32.01 | X42: 21.3457 | Y42: 11.2539 | Z42: 29.5032 | AA42: 5.3174 | AB42: 20.2284 | AC42: 33.339 | AD42: 14.8388 | AE42: 9.8164 | AF42: 29.3972 | AG42: 9.119 | AH42: 37.8248 | AI42: 103.9207 | AJ42: 96.585 | AK42: 25.2297 | AL42: 15.5022 | AM42: 29.9621 | AN42: 32.8127 | AO42: 10.5542 | AP42: 18.999 | AQ42: 9.7162 | AR42: 8.585 | AS42: 28.7982 | AT42: 3.4028 | AU42: 16.1112 | AV42: 35.5152 | AW42: 34.8512 | AX42: 29.9555 | AY42: 48.038 | AZ42: 43.2494 | BA42: 64.7931 | BB42: 40.1424 | BC42: 41.6413 | BD42: 18.4506 | BE42: 58.2025 | BF42: 40.7411 | BG42: 58.1573 | BH42: 29.6266 | BI42: 30.6434 | BJ42: 37.7434 | BK42: 11.5299 | BL42: 34.3458 | BM42: 41.8598 | BN42: 43.6072 | BO42: 5.5502 | BP42: 0 | BQ42: 0 | BR42: 0 | BS42: 0 | BT42: 0 | BU42: 0 | BV42: 0 | BW42: 0 | BX42: 0 | BY42: 0 | BZ42: 0 | CA42: 0 | CB42: 0 | CC42: 0 | CD42: 0 | CE42: 0 | CF42: 0 | CG42: 0 | CH42: 0 | CI42: 0 | CJ42: 0 | CK42: 0 | CL42: 0 | CM42: 0 | CN42: 0 | CO42: 0 | CP42: 0 | CQ42: 0 | CR42: 0 | CS42: 0 | CT42: 0 | CV42: 502.8497726 | CW42: 4618.441652 | CX42: 15777.64653 | CY42: 9102.989707 | CZ42: 33420.92895 | DA42: 31626.06698 | DB42: 10480.97335 | DC42: 40346.40054 | DD42: 38868.69002 | DE42: 27793.62622 | DF42: 18817.92973 | DG42: 11633.21262 | DH42: 6164.430149 | DI42: 9946.120017 | DJ42: 6147.235859 | DK42: 17754.49065 | DL42: 11839.48863 | DM42: 6242.026314 | DN42: 16364.08274 | DO42: 2949.319855 | DP42: 11219.77315 | DQ42: 18491.62648 | DR42: 8230.407242 | DS42: 5444.710465 | DT42: 16305.28936 | DU42: 5057.894415 | DV42: 20979.69565 | DW42: 57640.08423 | DX42: 53571.30519 | DY42: 13993.76672 | DZ42: 8598.36504 | EA42: 16618.61369 | EB42: 18199.71182 | EC42: 5853.934558 | ED42: 10537.88091 | EE42: 5389.134084 | EF42: 4761.70891 | EG42: 15973.05131 | EH42: 1887.378343 | EI42: 8936.149632 | EJ42: 19698.66561 | EK42: 19330.37502 | EL42: 16614.95297 | EM42: 26644.49302 | EN42: 23988.47447 | EO42: 35937.78469 | EP42: 22265.16293 | EQ42: 23096.53456 | ER42: 10233.70838 | ES42: 32282.27872 | ET42: 22597.23458 | EU42: 32257.20834 | EV42: 16432.5271 | EW42: 16996.4998 | EX42: 20934.54678 | EY42: 6395.110956 | EZ42: 19050.05264 | FA42: 23217.72657 | FB42: 24186.92985 | FC42: 3078.443424 | FD42: 0 | FE42: 0 | FF42: 0 | FG42: 0 | FH42: 0 | FI42: 0 | FJ42: 0 | FK42: 0 | FL42: 0 | FM42: 0 | FN42: 0 | FO42: 0 | FP42: 0 | FQ42: 0 | FR42: 0 | FS42: 0 | FT42: 0 | FU42: 0 | FV42: 0 | FW42: 0 | FX42: 0 | FY42: 0 | FZ42: 0 | GA42: 0 | GB42: 0 | GC42: 0 | GD42: 0 | GE42: 0 | GF42: 0 | GG42: 0 | GH42: 0
A43: 1 | B43: OVERHEAD CONDUCTORS | C43: > 66 kv & < = 132 kv | D43: 708.6693084 | E43: 65.11637126 | F43: 8.06947156 | G43: 2 | H43: 1.403 | I43: 9.9385 | J43: 7.663 | K43: 5.8633 | L43: 16.2216 | M43: 25.56 | N43: 15.4386 | O43: 18.7339 | P43: 15.8753 | Q43: 19.1731 | R43: 9.4343 | S43: 8.2749 | T43: 14.126 | U43: 6.7788 | V43: 41.9509 | W43: 44.1252 | X43: 8.4929 | Y43: 14.5767 | Z43: 45.7709 | AA43: 98.3695 | AB43: 32.3036 | AC43: 22.2703 | AD43: 16.5459 | AE43: 11.7191 | AF43: 1.203 | AG43: 11.1839 | AH43: 18.3923 | AI43: 66.396 | AJ43: 18.4619 | AK43: 6.6209 | AL43: 41.6636 | AM43: 15.97 | AN43: 30.5314 | AO43: 12.0559 | AP43: 13.6849 | AQ43: 15.9933 | AR43: 8.6514 | AS43: 12.6347 | AT43: 2.9768 | AU43: 9.9614 | AV43: 19.0689 | AW43: 12.8844 | AX43: 19.1099 | AY43: 13.9563 | AZ43: 55.1471 | BA43: 11.493 | BB43: 15.9775 | BC43: 6.4377 | BD43: 7.3055 | BE43: 8.5924 | BF43: 13.4139 | BG43: 22.9719 | BH43: 28.0965 | BI43: 25.867 | BJ43: 30.3767 | BK43: 3.9323 | BL43: 4.721 | BM43: 3.4412 | BN43: 14.1721 | BO43: 7.7679 | BP43: 1.03 | BQ43: 0.1441 | BR43: 0 | BS43: 0 | BT43: 0 | BU43: 0 | BV43: 0 | BW43: 0 | BX43: 0 | BY43: 0 | BZ43: 0 | CA43: 0 | CB43: 0 | CC43: 0 | CD43: 0 | CE43: 0 | CF43: 0 | CG43: 0 | CH43: 0 | CI43: 0 | CJ43: 0 | CK43: 0 | CL43: 0 | CM43: 0 | CN43: 0 | CO43: 0 | CP43: 0 | CQ43: 0 | CR43: 0 | CS43: 0 | CT43: 0 | CV43: 994.2630397 | CW43: 7043.109921 | CX43: 5430.53291 | CY43: 4155.140756 | CZ43: 11495.75005 | DA43: 18113.58752 | DB43: 10940.86198 | DC43: 13276.13996 | DD43: 11250.33787 | DE43: 13587.38752 | DF43: 6685.798856 | DG43: 5864.16766 | DH43: 10010.66265 | DI43: 4803.927508 | DJ43: 29729.31529 | DK43: 31270.17497 | DL43: 6018.657569 | DM43: 10330.05991 | DN43: 32436.43205 | DO43: 69711.44553 | DP43: 22892.56987 | DQ43: 15782.2781 | DR43: 11725.57151 | DS43: 8304.966492 | DT43: 852.529178 | DU43: 7925.686678 | DV43: 13034.05852 | DW43: 47052.8074 | DX43: 13083.3819 | DY43: 4692.028624 | DZ43: 29525.7146 | EA43: 11317.44885 | EB43: 21636.66612 | EC43: 8543.646315 | ED43: 9698.068618 | EE43: 11333.96085 | EF43: 6130.981655 | EG43: 8953.824111 | EH43: 2109.566797 | EI43: 7059.338448 | EJ43: 13513.54417 | EK43: 9130.778837 | EL43: 13542.59962 | EM43: 9890.401469 | EN43: 39081.05722 | EO43: 8144.736361 | EP43: 11322.76387 | EQ43: 4562.200407 | ER43: 5177.183632 | ES43: 6089.170165 | ET43: 9506.019236 | EU43: 16279.48049 | EV43: 19911.12722 | EW43: 18331.149 | EX43: 21527.03498 | EY43: 2786.700321 | EZ43: 3345.627805 | FA43: 2438.672824 | FB43: 10043.33231 | FC43: 5504.872321 | FD43: 729.9293876 | FE43: 102.1192473 | FF43: 0 | FG43: 0 | FH43: 0 | FI43: 0 | FJ43: 0 | FK43: 0 | FL43: 0 | FM43: 0 | FN43: 0 | FO43: 0 | FP43: 0 | FQ43: 0 | FR43: 0 | FS43: 0 | FT43: 0 | FU43: 0 | FV43: 0 | FW43: 0 | FX43: 0 | FY43: 0 | FZ43: 0 | GA43: 0 | GB43: 0 | GC43: 0 | GD43: 0 | GE43: 0 | GF43: 0 | GG43: 0 | GH43: 0
B44: OVERHEAD CONDUCTORS | C44: > 132 kv | G44: 2 | H44: 0 | I44: 0 | J44: 0 | K44: 0 | L44: 0 | M44: 0 | N44: 0 | O44: 0 | P44: 0 | Q44: 0 | R44: 0 | S44: 0 | T44: 0 | U44: 0 | V44: 0 | W44: 0 | X44: 0 | Y44: 0 | Z44: 0 | AA44: 0 | AB44: 0 | AC44: 0 | AD44: 0 | AE44: 0 | AF44: 0 | AG44: 0 | AH44: 0 | AI44: 0 | AJ44: 0 | AK44: 0 | AL44: 0 | AM44: 0 | AN44: 0 | AO44: 0 | AP44: 0 | AQ44: 0 | AR44: 0 | AS44: 0 | AT44: 0 | AU44: 0 | AV44: 0 | AW44: 0 | AX44: 0 | AY44: 0 | AZ44: 0 | BA44: 0 | BB44: 0 | BC44: 0 | BD44: 0 | BE44: 0 | BF44: 0 | BG44: 0 | BH44: 0 | BI44: 0 | BJ44: 0 | BK44: 0 | BL44: 0 | BM44: 0 | BN44: 0 | BO44: 0 | BP44: 0 | BQ44: 0 | BR44: 0 | BS44: 0 | BT44: 0 | BU44: 0 | BV44: 0 | BW44: 0 | BX44: 0 | BY44: 0 | BZ44: 0 | CA44: 0 | CB44: 0 | CC44: 0 | CD44: 0 | CE44: 0 | CF44: 0 | CG44: 0 | CH44: 0 | CI44: 0 | CJ44: 0 | CK44: 0 | CL44: 0 | CM44: 0 | CN44: 0 | CO44: 0 | CP44: 0 | CQ44: 0 | CR44: 0 | CS44: 0 | CT44: 0
A45: 6 | B45: UNDERGROUND CABLES | C45: ˂ = 1 kv | D45: 524.5547682 | E45: 64.54481762 | F45: 8.033978941 | G45: 2 | H45: 164.8196 | I45: 393.0123 | J45: 406.5135 | K45: 639.2848 | L45: 471.5435 | M45: 636.4247 | N45: 479.6697 | O45: 446.0534 | P45: 415.3582 | Q45: 399.1499 | R45: 325.6456 | S45: 329.8381 | T45: 324.0738 | U45: 261.0543 | V45: 322.4955 | W45: 269.6375 | X45: 535.0553 | Y45: 555.8821 | Z45: 229.653 | AA45: 242.9111 | AB45: 184.8495 | AC45: 189.5718 | AD45: 211.9563 | AE45: 169.495 | AF45: 162.2959 | AG45: 127.5046 | AH45: 174.3551 | AI45: 180.731 | AJ45: 200.2669 | AK45: 194.9521 | AL45: 167.8367 | AM45: 265.116 | AN45: 260.439 | AO45: 257.7403 | AP45: 239.8555 | AQ45: 207.2219 | AR45: 276.7287 | AS45: 290.6431 | AT45: 258.9656 | AU45: 458.5383 | AV45: 531.2813 | AW45: 366.2073 | AX45: 257.4672 | AY45: 174.3411 | AZ45: 158.5125 | BA45: 122.6729 | BB45: 127.092 | BC45: 123.166 | BD45: 54.4598 | BE45: 47.8422 | BF45: 25.148 | BG45: 26.6893 | BH45: 14.6139 | BI45: 16.187 | BJ45: 12.1101 | BK45: 2.1977 | BL45: 12.7123 | BM45: 5.0861 | BN45: 6.2649 | BO45: 0.3564 | BP45: 3.1371 | BQ45: 0.2508 | BR45: 0.3836 | BS45: 0.1359 | BT45: 0.5151 | BU45: 0 | BV45: 0.0379 | BW45: 0.3152 | BX45: 0.209 | BY45: 0 | BZ45: 0 | CA45: 0 | CB45: 0 | CC45: 0 | CD45: 0 | CE45: 0 | CF45: 0 | CG45: 0 | CH45: 0 | CI45: 0 | CJ45: 0 | CK45: 0 | CL45: 0 | CM45: 0 | CN45: 0 | CO45: 0 | CP45: 0 | CQ45: 0 | CR45: 0 | CS45: 0 | CT45: 0 | CV45: 86456.90707 | CW45: 206156.4759 | CX45: 213238.5948 | CY45: 335339.8901 | CZ45: 247350.3913 | DA45: 333839.611 | DB45: 251613.0283 | DC45: 233979.4378 | DD45: 217878.1243 | DE45: 209375.9833 | DF45: 170818.9522 | DG45: 173018.1481 | DH45: 169994.457 | DI45: 136937.2778 | DJ45: 169166.5522 | DK45: 141439.6363 | DL45: 280665.8089 | DM45: 291590.6061 | DN45: 120465.5762 | DO45: 127420.1757 | DP45: 96963.68662 | DQ45: 99440.7916 | DR45: 111182.6878 | DS45: 88909.41043 | DT45: 85133.0882 | DU45: 66883.14589 | DV45: 91458.79906 | DW45: 94803.30781 | DX45: 105050.9573 | DY45: 102263.0536 | DZ45: 88039.54126 | EA45: 139067.8619 | EB45: 136614.5193 | EC45: 135198.9033 | ED45: 125817.3462 | EE45: 108699.2357 | EF45: 145159.3591 | EG45: 152458.2239 | EH45: 135841.6403 | EI45: 240528.4517 | EJ45: 278686.1392 | EK45: 192095.7854 | EL45: 135055.6474 | EM45: 91451.45529 | EN45: 83148.48769 | EO45: 64348.65462 | EP45: 66666.7146 | EQ45: 64607.31258 | ER45: 28567.14776 | ES45: 25095.85413 | ET45: 13191.50331 | EU45: 13999.99957 | EV45: 7665.790927 | EW45: 8490.968032 | EX45: 6352.410698 | EY45: 1152.814014 | EZ45: 6668.297579 | FA45: 2667.938006 | FB45: 3286.283167 | FC45: 186.9513194 | FD45: 1645.580763 | FE45: 131.5583359 | FF45: 201.2192091 | FG45: 71.286993 | FH45: 270.1981611 | FI45: 0 | FJ45: 19.88062571 | FK45: 165.3396629 | FL45: 109.6319465 | FM45: 0 | FN45: 0 | FO45: 0 | FP45: 0 | FQ45: 0 | FR45: 0 | FS45: 0 | FT45: 0 | FU45: 0 | FV45: 0 | FW45: 0 | FX45: 0 | FY45: 0 | FZ45: 0 | GA45: 0 | GB45: 0 | GC45: 0 | GD45: 0 | GE45: 0 | GF45: 0 | GG45: 0 | GH45: 0
B46: UNDERGROUND CABLES | C46: > 1 kv & < = 11 kv | G46: 2 | H46: 143.3528 | I46: 243.9584 | J46: 263.3352 | K46: 268.6338 | L46: 247.6047 | M46: 230.7999 | N46: 214.6002 | O46: 213.4305 | P46: 218.1265 | Q46: 200.7205 | R46: 183.1218 | S46: 134.6393 | T46: 140.8498 | U46: 114.71 | V46: 115.2079 | W46: 136.5998 | X46: 166.5722 | Y46: 160.4761 | Z46: 125.7408 | AA46: 89.8337 | AB46: 47.6125 | AC46: 48.5435 | AD46: 70.0562 | AE46: 50.9484 | AF46: 48.3777 | AG46: 36.8799 | AH46: 66.4816 | AI46: 52.5316 | AJ46: 58.5826 | AK46: 44.3103 | AL46: 43.1017 | AM46: 75.9727 | AN46: 68.1169 | AO46: 59.5438 | AP46: 60.1317 | AQ46: 52.5804 | AR46: 65.972 | AS46: 66.4022 | AT46: 63.0526 | AU46: 90.8003 | AV46: 107.273 | AW46: 79.3687 | AX46: 60.6137 | AY46: 38.7515 | AZ46: 38.6997 | BA46: 27.3547 | BB46: 38.1871 | BC46: 39.1626 | BD46: 10.9896 | BE46: 13.2054 | BF46: 8.7857 | BG46: 9.2839 | BH46: 10.0421 | BI46: 7.4248 | BJ46: 11.2908 | BK46: 1.1162 | BL46: 2.1224 | BM46: 1.2133 | BN46: 1.3548 | BO46: 0.1463 | BP46: 1.7627 | BQ46: 0.0328 | BR46: 0.1861 | BS46: 0.0715 | BT46: 0.0589 | BU46: 0 | BV46: 0 | BW46: 0.2017 | BX46: 0.0355 | BY46: 0.0144 | BZ46: 0 | CA46: 0 | CB46: 0 | CC46: 0 | CD46: 0 | CE46: 0 | CF46: 0 | CG46: 0 | CH46: 0 | CI46: 0 | CJ46: 0 | CK46: 0 | CL46: 0 | CM46: 0 | CN46: 0 | CO46: 0 | CP46: 0 | CQ46: 0 | CR46: 0 | CS46: 0 | CT46: 0
B47: UNDERGROUND CABLES | C47: > 11 kv & < = 22 kv | G47: 2 | H47: 19.7842 | I47: 22.4288 | J47: 13.372 | K47: 29.1605 | L47: 35.049 | M47: 22.2725 | N47: 16.844 | O47: 11.8445 | P47: 15.3621 | Q47: 15.4363 | R47: 10.6787 | S47: 13.8147 | T47: 12.5342 | U47: 8.1356 | V47: 11.5048 | W47: 17.5729 | X47: 16.3609 | Y47: 15.892 | Z47: 18.6897 | AA47: 20.8899 | AB47: 10.2829 | AC47: 18.7969 | AD47: 7.1338 | AE47: 10.107 | AF47: 8.1306 | AG47: 4.186 | AH47: 2.6138 | AI47: 4.4229 | AJ47: 3.1692 | AK47: 0.8448 | AL47: 0.0445 | AM47: 0.261 | AN47: 0.024 | AO47: 0 | AP47: 0 | AQ47: 0.5748 | AR47: 0.2911 | AS47: 1.1444 | AT47: 0 | AU47: 0.2656 | AV47: 0.1544 | AW47: 0.6378 | AX47: 0.0458 | AY47: 0.1884 | AZ47: 0 | BA47: 0 | BB47: 0 | BC47: 0.1673 | BD47: 0 | BE47: 0 | BF47: 0 | BG47: 0 | BH47: 0 | BI47: 0 | BJ47: 0.702 | BK47: 0 | BL47: 0 | BM47: 0 | BN47: 0 | BO47: 0 | BP47: 0 | BQ47: 0 | BR47: 0 | BS47: 0 | BT47: 0 | BU47: 0 | BV47: 0 | BW47: 0 | BX47: 0 | BY47: 0 | BZ47: 0 | CA47: 0 | CB47: 0 | CC47: 0 | CD47: 0 | CE47: 0 | CF47: 0 | CG47: 0 | CH47: 0 | CI47: 0 | CJ47: 0 | CK47: 0 | CL47: 0 | CM47: 0 | CN47: 0 | CO47: 0 | CP47: 0 | CQ47: 0 | CR47: 0 | CS47: 0 | CT47: 0
B48: UNDERGROUND CABLES | C48: > 22 kv & < = 33 kv | G48: 2 | H48: 1.4746 | I48: 2.1133 | J48: 6.624 | K48: 14.413 | L48: 4.7766 | M48: 6.1935 | N48: 10.7533 | O48: 5.2069 | P48: 21.2279 | Q48: 13.3093 | R48: 10.5164 | S48: 7.4771 | T48: 10.3419 | U48: 2.0778 | V48: 19.7337 | W48: 9.7387 | X48: 1.7875 | Y48: 2.9748 | Z48: 5.6854 | AA48: 0.7301 | AB48: 0 | AC48: 3.188 | AD48: 0 | AE48: 0.0218 | AF48: 0 | AG48: 0 | AH48: 0 | AI48: 0 | AJ48: 0 | AK48: 0 | AL48: 0 | AM48: 0.3872 | AN48: 0 | AO48: 0 | AP48: 0 | AQ48: 0 | AR48: 0 | AS48: 0 | AT48: 3.4352 | AU48: 0 | AV48: 5.9221 | AW48: 0 | AX48: 0 | AY48: 0.8377 | AZ48: 1.9609 | BA48: 0 | BB48: 10.2395 | BC48: 0.9118 | BD48: 4.415 | BE48: 0 | BF48: 2.1095 | BG48: 1.7869 | BH48: 4.8304 | BI48: 2.251 | BJ48: 1.3868 | BK48: 1.2309 | BL48: 0.5794 | BM48: 0.205 | BN48: 1.1554 | BO48: 0.3304 | BP48: 0 | BQ48: 0 | BR48: 0 | BS48: 1.8895 | BT48: 0 | BU48: 0 | BV48: 0 | BW48: 0 | BX48: 0 | BY48: 0 | BZ48: 0 | CA48: 0 | CB48: 0 | CC48: 0 | CD48: 0 | CE48: 0 | CF48: 0 | CG48: 0 | CH48: 0 | CI48: 0 | CJ48: 0 | CK48: 0 | CL48: 0 | CM48: 0 | CN48: 0 | CO48: 0 | CP48: 0 | CQ48: 0 | CR48: 0 | CS48: 0 | CT48: 0
B49: UNDERGROUND CABLES | C49: > 33 kv & < = 66 kv | G49: 2 | H49: 0 | I49: 0.0012 | J49: 1.6302 | K49: 5.46 | L49: 0.0627 | M49: 2.2719 | N49: 1.415 | O49: 0.3658 | P49: 0.8377 | Q49: 14.085 | R49: 0.8479 | S49: 0.5654 | T49: 0.0036 | U49: 0.0815 | V49: 0 | W49: 0 | X49: 0.4709 | Y49: 0 | Z49: 0 | AA49: 0 | AB49: 0 | AC49: 2.6066 | AD49: 0 | AE49: 0 | AF49: 0 | AG49: 0 | AH49: 1.1637 | AI49: 0 | AJ49: 0 | AK49: 0 | AL49: 0 | AM49: 0 | AN49: 0.2419 | AO49: 0 | AP49: 0.5188 | AQ49: 0 | AR49: 0.0971 | AS49: 2.1413 | AT49: 0.6752 | AU49: 0.3822 | AV49: 0.2397 | AW49: 0 | AX49: 0 | AY49: 0 | AZ49: 0 | BA49: 0 | BB49: 0 | BC49: 0 | BD49: 0 | BE49: 0 | BF49: 0 | BG49: 0 | BH49: 0 | BI49: 0 | BJ49: 0 | BK49: 0 | BL49: 0 | BM49: 0 | BN49: 3.5519 | BO49: 0 | BP49: 0 | BQ49: 0 | BR49: 0 | BS49: 0 | BT49: 0 | BU49: 0 | BV49: 0.1633 | BW49: 0 | BX49: 0 | BY49: 0 | BZ49: 0 | CA49: 0 | CB49: 0 | CC49: 0 | CD49: 0 | CE49: 0 | CF49: 0 | CG49: 0 | CH49: 0 | CI49: 0 | CJ49: 0 | CK49: 0 | CL49: 0 | CM49: 0 | CN49: 0 | CO49: 0 | CP49: 0 | CQ49: 0 | CR49: 0 | CS49: 0 | CT49: 0
B50: UNDERGROUND CABLES | C50: > 66 kv & < = 132 kv | G50: 2 | H50: 7.2424 | I50: 4.7373 | J50: 4.7345 | K50: 8.6078 | L50: 4.3592 | M50: 16.4524 | N50: 3.8382 | O50: 2.3106 | P50: 14.0792 | Q50: 13.4074 | R50: 30.2841 | S50: 5.2143 | T50: 8.2306 | U50: 3.4317 | V50: 1.44 | W50: 8.0972 | X50: 0.0318 | Y50: 0.568 | Z50: 0 | AA50: 0 | AB50: 0 | AC50: 0 | AD50: 1.5022 | AE50: 0 | AF50: 0 | AG50: 0 | AH50: 0 | AI50: 0 | AJ50: 0 | AK50: 0 | AL50: 0 | AM50: 0.2334 | AN50: 0 | AO50: 0 | AP50: 0 | AQ50: 0 | AR50: 0 | AS50: 0 | AT50: 0 | AU50: 0 | AV50: 0 | AW50: 5.0216 | AX50: 0 | AY50: 0 | AZ50: 0 | BA50: 0 | BB50: 1.4842 | BC50: 0 | BD50: 0 | BE50: 0 | BF50: 0 | BG50: 0 | BH50: 2.1696 | BI50: 0 | BJ50: 0 | BK50: 0 | BL50: 0 | BM50: 0 | BN50: 0.5145 | BO50: 0 | BP50: 0 | BQ50: 0 | BR50: 0 | BS50: 22.1211 | BT50: 0 | BU50: 0 | BV50: 0 | BW50: 0 | BX50: 0 | BY50: 0 | BZ50: 0 | CA50: 0 | CB50: 0 | CC50: 0 | CD50: 0 | CE50: 0 | CF50: 0 | CG50: 0 | CH50: 0 | CI50: 0 | CJ50: 0 | CK50: 0 | CL50: 0 | CM50: 0 | CN50: 0 | CO50: 0 | CP50: 0 | CQ50: 0 | CR50: 0 | CS50: 0 | CT50: 0
A51: 3 | B51: SERVICE LINES | C51: ˂ = 11 kv ; residential ; simple type | D51: 0.6785839979 | E51: 55.33661107 | F51: 7.438858183 | G51: 2 | H51: 4913 | I51: 4118 | J51: 39171 | K51: 25632 | L51: 12711 | M51: 9405 | N51: 8853 | O51: 6771 | P51: 6867 | Q51: 5481 | R51: 11018 | S51: 11223 | T51: 11998 | U51: 7625 | V51: 11566 | W51: 7281 | X51: 7654 | Y51: 7353 | Z51: 5772 | AA51: 5173 | AB51: 3898 | AC51: 4036 | AD51: 5006 | AE51: 3196 | AF51: 3655 | AG51: 3652 | AH51: 4913 | AI51: 5599 | AJ51: 7771 | AK51: 6133 | AL51: 4887 | AM51: 8195 | AN51: 9184 | AO51: 7570 | AP51: 5917 | AQ51: 5493 | AR51: 5261 | AS51: 7577 | AT51: 3771 | AU51: 4617 | AV51: 9960 | AW51: 10547 | AX51: 7624 | AY51: 6074 | AZ51: 6008 | BA51: 5790 | BB51: 5260 | BC51: 6758 | BD51: 3850 | BE51: 7592 | BF51: 7517 | BG51: 10175 | BH51: 6807 | BI51: 9816 | BJ51: 10449 | BK51: 3343 | BL51: 4223 | BM51: 1906 | BN51: 632 | BO51: 896 | BP51: 620 | BQ51: 308 | BR51: 0 | BS51: 0 | BT51: 0 | BU51: 0 | BV51: 0 | BW51: 0 | BX51: 0 | BY51: 0 | BZ51: 0 | CA51: 0 | CB51: 1 | CC51: 0 | CD51: 0 | CE51: 0 | CF51: 0 | CG51: 0 | CH51: 0 | CI51: 0 | CJ51: 0 | CK51: 0 | CL51: 0 | CM51: 0 | CN51: 0 | CO51: 0 | CP51: 0 | CQ51: 0 | CR51: 0 | CS51: 0 | CT51: 0 | CV51: 3333.883182 | CW51: 2794.408903 | CX51: 26580.81378 | CY51: 17393.46503 | CZ51: 8625.481197 | DA51: 6382.0825 | DB51: 6007.504133 | DC51: 4594.69225 | DD51: 4659.836314 | DE51: 3719.318892 | DF51: 7476.638489 | DG51: 7615.748208 | DH51: 8141.650807 | DI51: 5174.202984 | DJ51: 7848.50252 | DK51: 4940.770089 | DL51: 5193.88192 | DM51: 4989.628136 | DN51: 3916.786836 | DO51: 3510.315021 | DP51: 2645.120424 | DQ51: 2738.765015 | DR51: 3396.991493 | DS51: 2168.754457 | DT51: 2480.224512 | DU51: 2478.18876 | DV51: 3333.883182 | DW51: 3799.391804 | DX51: 5273.276248 | DY51: 4161.755659 | DZ51: 3316.239998 | EA51: 5560.995863 | EB51: 6232.115437 | EC51: 5136.880864 | ED51: 4015.181516 | EE51: 3727.4619 | EF51: 3570.030413 | EG51: 5141.630952 | EH51: 2558.940256 | EI51: 3133.022318 | EJ51: 6758.696619 | EK51: 7157.025426 | EL51: 5173.5244 | EM51: 4121.719203 | EN51: 4076.932659 | EO51: 3929.001348 | EP51: 3569.351829 | EQ51: 4585.870658 | ER51: 2612.548392 | ES51: 5151.809712 | ET51: 5100.915912 | EU51: 6904.592179 | EV51: 4619.121274 | EW51: 6660.980523 | EX51: 7090.524194 | EY51: 2268.506305 | EZ51: 2865.660223 | FA51: 1293.3811 | FB51: 428.8650867 | FC51: 608.0112621 | FD51: 420.7220787 | FE51: 209.0038714 | FF51: 0 | FG51: 0 | FH51: 0 | FI51: 0 | FJ51: 0 | FK51: 0 | FL51: 0 | FM51: 0 | FN51: 0 | FO51: 0 | FP51: 0.6785839979 | FQ51: 0 | FR51: 0 | FS51: 0 | FT51: 0 | FU51: 0 | FV51: 0 | FW51: 0 | FX51: 0 | FY51: 0 | FZ51: 0 | GA51: 0 | GB51: 0 | GC51: 0 | GD51: 0 | GE51: 0 | GF51: 0 | GG51: 0 | GH51: 0
B52: SERVICE LINES | C52: ˂ = 11 kv ; residential ; complex type | G52: 2 | H52: 8539 | I52: 15755 | J52: 15224 | K52: 26079 | L52: 16564 | M52: 20054 | N52: 15039 | O52: 12546 | P52: 12892 | Q52: 10822 | R52: 11995 | S52: 11717 | T52: 10624 | U52: 7956 | V52: 9251 | W52: 6436 | X52: 7681 | Y52: 7089 | Z52: 6427 | AA52: 7356 | AB52: 6537 | AC52: 7055 | AD52: 7169 | AE52: 6720 | AF52: 6191 | AG52: 4813 | AH52: 6929 | AI52: 6924 | AJ52: 7293 | AK52: 6743 | AL52: 4662 | AM52: 7474 | AN52: 5921 | AO52: 5484 | AP52: 4750 | AQ52: 3713 | AR52: 5201 | AS52: 5075 | AT52: 4802 | AU52: 8025 | AV52: 9579 | AW52: 7613 | AX52: 5047 | AY52: 3332 | AZ52: 3115 | BA52: 2660 | BB52: 3108 | BC52: 3222 | BD52: 1162 | BE52: 1498 | BF52: 591 | BG52: 556 | BH52: 337 | BI52: 427 | BJ52: 279 | BK52: 59 | BL52: 235 | BM52: 77 | BN52: 164 | BO52: 3 | BP52: 23 | BQ52: 11 | BR52: 7 | BS52: 0 | BT52: 162 | BU52: 0 | BV52: 0 | BW52: 5 | BX52: 2 | BY52: 0 | BZ52: 0 | CA52: 0 | CB52: 1 | CC52: 0 | CD52: 0 | CE52: 0 | CF52: 0 | CG52: 0 | CH52: 0 | CI52: 0 | CJ52: 0 | CK52: 0 | CL52: 0 | CM52: 0 | CN52: 0 | CO52: 0 | CP52: 0 | CQ52: 0 | CR52: 0 | CS52: 0 | CT52: 0
A53: 5 | B53: TRANSFORMERS | C53: pole mounted ; < = 22 kv ; < = 60 kva ; single phase | D53: 11.70819495 | E53: 63.8542976 | F53: 7.990888411 | G53: 2 | H53: 4 | I53: 47 | J53: 79 | K53: 72 | L53: 54 | M53: 42 | N53: 53 | O53: 75 | P53: 80 | Q53: 59 | R53: 72 | S53: 90 | T53: 96 | U53: 85 | V53: 103 | W53: 91 | X53: 86 | Y53: 73 | Z53: 80 | AA53: 67 | AB53: 190 | AC53: 40 | AD53: 124 | AE53: 50 | AF53: 115 | AG53: 35 | AH53: 99 | AI53: 92 | AJ53: 88 | AK53: 110 | AL53: 100 | AM53: 102 | AN53: 148 | AO53: 178 | AP53: 170 | AQ53: 113 | AR53: 94 | AS53: 104 | AT53: 106 | AU53: 65 | AV53: 73 | AW53: 49 | AX53: 70 | AY53: 31 | AZ53: 21 | BA53: 16 | BB53: 28 | BC53: 25 | BD53: 14 | BE53: 13 | BF53: 17 | BG53: 9 | BH53: 5 | BI53: 13 | BJ53: 13 | BK53: 7 | BL53: 6 | BM53: 11 | BN53: 10 | BO53: 5 | BP53: 10 | BQ53: 1 | BR53: 1 | BS53: 4 | BT53: 3 | BU53: 7 | BV53: 1 | BW53: 3 | BX53: 2 | BY53: 1 | BZ53: 1 | CA53: 0 | CB53: 0 | CC53: 0 | CD53: 0 | CE53: 1 | CF53: 1 | CG53: 1 | CH53: 0 | CI53: 0 | CJ53: 0 | CK53: 0 | CL53: 0 | CM53: 0 | CN53: 0 | CO53: 0 | CP53: 0 | CQ53: 0 | CR53: 0 | CS53: 0 | CT53: 0 | CV53: 46.83277981 | CW53: 550.2851628 | CX53: 924.9474013 | CY53: 842.9900366 | CZ53: 632.2425275 | DA53: 491.744188 | DB53: 620.5343325 | DC53: 878.1146215 | DD53: 936.6555962 | DE53: 690.7835022 | DF53: 842.9900366 | DG53: 1053.737546 | DH53: 1123.986715 | DI53: 995.196571 | DJ53: 1205.94408 | DK53: 1065.445741 | DL53: 1006.904766 | DM53: 854.6982316 | DN53: 936.6555962 | DO53: 784.4490619 | DP53: 2224.557041 | DQ53: 468.3277981 | DR53: 1451.816174 | DS53: 585.4097477 | DT53: 1346.44242 | DU53: 409.7868234 | DV53: 1159.1113 | DW53: 1077.153936 | DX53: 1030.321156 | DY53: 1287.901445 | DZ53: 1170.819495 | EA53: 1194.235885 | EB53: 1732.812853 | EC53: 2084.058702 | ED53: 1990.393142 | EE53: 1323.02603 | EF53: 1100.570326 | EG53: 1217.652275 | EH53: 1241.068665 | EI53: 761.032672 | EJ53: 854.6982316 | EK53: 573.7015527 | EL53: 819.5736467 | EM53: 362.9540435 | EN53: 245.872094 | EO53: 187.3311192 | EP53: 327.8294587 | EQ53: 292.7048738 | ER53: 163.9147293 | ES53: 152.2065344 | ET53: 199.0393142 | EU53: 105.3737546 | EV53: 58.54097477 | EW53: 152.2065344 | EX53: 152.2065344 | EY53: 81.95736467 | EZ53: 70.24916972 | FA53: 128.7901445 | FB53: 117.0819495 | FC53: 58.54097477 | FD53: 117.0819495 | FE53: 11.70819495 | FF53: 11.70819495 | FG53: 46.83277981 | FH53: 35.12458486 | FI53: 81.95736467 | FJ53: 11.70819495 | FK53: 35.12458486 | FL53: 23.41638991 | FM53: 11.70819495 | FN53: 11.70819495 | FO53: 0 | FP53: 0 | FQ53: 0 | FR53: 0 | FS53: 11.70819495 | FT53: 11.70819495 | FU53: 11.70819495 | FV53: 0 | FW53: 0 | FX53: 0 | FY53: 0 | FZ53: 0 | GA53: 0 | GB53: 0 | GC53: 0 | GD53: 0 | GE53: 0 | GF53: 0 | GG53: 0 | GH53: 0
A54: 5 | B54: TRANSFORMERS | C54: pole mounted ; < = 22 kv ; > 60 kva and < = 600 kva ; single phase | D54: 14.13742013 | E54: 65.58589263 | F54: 8.098511754 | G54: 2 | H54: 0 | I54: 1 | J54: 0 | K54: 0 | L54: 0 | M54: 2 | N54: 3 | O54: 1 | P54: 1 | Q54: 0 | R54: 4 | S54: 0 | T54: 2 | U54: 1 | V54: 3 | W54: 4 | X54: 3 | Y54: 1 | Z54: 4 | AA54: 3 | AB54: 5 | AC54: 4 | AD54: 3 | AE54: 2 | AF54: 19 | AG54: 6 | AH54: 4 | AI54: 4 | AJ54: 4 | AK54: 1 | AL54: 3 | AM54: 1 | AN54: 2 | AO54: 0 | AP54: 1 | AQ54: 1 | AR54: 1 | AS54: 2 | AT54: 4 | AU54: 1 | AV54: 1 | AW54: 1 | AX54: 0 | AY54: 1 | AZ54: 0 | BA54: 0 | BB54: 0 | BC54: 1 | BD54: 0 | BE54: 0 | BF54: 0 | BG54: 0 | BH54: 1 | BI54: 0 | BJ54: 0 | BK54: 0 | BL54: 0 | BM54: 0 | BN54: 0 | BO54: 0 | BP54: 0 | BQ54: 1 | BR54: 0 | BS54: 0 | BT54: 0 | BU54: 0 | BV54: 0 | BW54: 0 | BX54: 0 | BY54: 0 | BZ54: 0 | CA54: 0 | CB54: 0 | CC54: 0 | CD54: 0 | CE54: 0 | CF54: 0 | CG54: 0 | CH54: 0 | CI54: 0 | CJ54: 0 | CK54: 0 | CL54: 0 | CM54: 0 | CN54: 0 | CO54: 0 | CP54: 0 | CQ54: 0 | CR54: 0 | CS54: 0 | CT54: 0 | CV54: 0 | CW54: 14.13742013 | CX54: 0 | CY54: 0 | CZ54: 0 | DA54: 28.27484025 | DB54: 42.41226038 | DC54: 14.13742013 | DD54: 14.13742013 | DE54: 0 | DF54: 56.5496805 | DG54: 0 | DH54: 28.27484025 | DI54: 14.13742013 | DJ54: 42.41226038 | DK54: 56.5496805 | DL54: 42.41226038 | DM54: 14.13742013 | DN54: 56.5496805 | DO54: 42.41226038 | DP54: 70.68710062 | DQ54: 56.5496805 | DR54: 42.41226038 | DS54: 28.27484025 | DT54: 268.6109824 | DU54: 84.82452075 | DV54: 56.5496805 | DW54: 56.5496805 | DX54: 56.5496805 | DY54: 14.13742013 | DZ54: 42.41226038 | EA54: 14.13742013 | EB54: 28.27484025 | EC54: 0 | ED54: 14.13742013 | EE54: 14.13742013 | EF54: 14.13742013 | EG54: 28.27484025 | EH54: 56.5496805 | EI54: 14.13742013 | EJ54: 14.13742013 | EK54: 14.13742013 | EL54: 0 | EM54: 14.13742013 | EN54: 0 | EO54: 0 | EP54: 0 | EQ54: 14.13742013 | ER54: 0 | ES54: 0 | ET54: 0 | EU54: 0 | EV54: 14.13742013 | EW54: 0 | EX54: 0 | EY54: 0 | EZ54: 0 | FA54: 0 | FB54: 0 | FC54: 0 | FD54: 0 | FE54: 14.13742013 | FF54: 0 | FG54: 0 | FH54: 0 | FI54: 0 | FJ54: 0 | FK54: 0 | FL54: 0 | FM54: 0 | FN54: 0 | FO54: 0 | FP54: 0 | FQ54: 0 | FR54: 0 | FS54: 0 | FT54: 0 | FU54: 0 | FV54: 0 | FW54: 0 | FX54: 0 | FY54: 0 | FZ54: 0 | GA54: 0 | GB54: 0 | GC54: 0 | GD54: 0 | GE54: 0 | GF54: 0 | GG54: 0 | GH54: 0
B55: TRANSFORMERS | C55: pole mounted ; < = 22 kv ; > 600 kva ; single phase | D55: 41.01728366 | E55: 66.76693326 | F55: 8.171103552 | G55: 2 | H55: 0 | I55: 0 | J55: 0 | K55: 0 | L55: 0 | M55: 0 | N55: 0 | O55: 0 | P55: 0 | Q55: 0 | R55: 0 | S55: 0 | T55: 0 | U55: 0 | V55: 0 | W55: 0 | X55: 0 | Y55: 0 | Z55: 0 | AA55: 0 | AB55: 0 | AC55: 0 | AD55: 0 | AE55: 0 | AF55: 0 | AG55: 0 | AH55: 0 | AI55: 0 | AJ55: 0 | AK55: 0 | AL55: 0 | AM55: 0 | AN55: 0 | AO55: 0 | AP55: 0 | AQ55: 0 | AR55: 0 | AS55: 0 | AT55: 0 | AU55: 0 | AV55: 0 | AW55: 0 | AX55: 0 | AY55: 0 | AZ55: 0 | BA55: 0 | BB55: 0 | BC55: 0 | BD55: 0 | BE55: 0 | BF55: 0 | BG55: 0 | BH55: 0 | BI55: 0 | BJ55: 0 | BK55: 0 | BL55: 0 | BM55: 0 | BN55: 0 | BO55: 0 | BP55: 0 | BQ55: 0 | BR55: 0 | BS55: 0 | BT55: 0 | BU55: 0 | BV55: 0 | BW55: 0 | BX55: 0 | BY55: 0 | BZ55: 0 | CA55: 0 | CB55: 0 | CC55: 0 | CD55: 0 | CE55: 0 | CF55: 0 | CG55: 0 | CH55: 0 | CI55: 0 | CJ55: 0 | CK55: 0 | CL55: 0 | CM55: 0 | CN55: 0 | CO55: 0 | CP55: 0 | CQ55: 0 | CR55: 0 | CS55: 0 | CT55: 0 | CV55: 0 | CW55: 0 | CX55: 0 | CY55: 0 | CZ55: 0 | DA55: 0 | DB55: 0 | DC55: 0 | DD55: 0 | DE55: 0 | DF55: 0 | DG55: 0 | DH55: 0 | DI55: 0 | DJ55: 0 | DK55: 0 | DL55: 0 | DM55: 0 | DN55: 0 | DO55: 0 | DP55: 0 | DQ55: 0 | DR55: 0 | DS55: 0 | DT55: 0 | DU55: 0 | DV55: 0 | DW55: 0 | DX55: 0 | DY55: 0 | DZ55: 0 | EA55: 0 | EB55: 0 | EC55: 0 | ED55: 0 | EE55: 0 | EF55: 0 | EG55: 0 | EH55: 0 | EI55: 0 | EJ55: 0 | EK55: 0 | EL55: 0 | EM55: 0 | EN55: 0 | EO55: 0 | EP55: 0 | EQ55: 0 | ER55: 0 | ES55: 0 | ET55: 0 | EU55: 0 | EV55: 0 | EW55: 0 | EX55: 0 | EY55: 0 | EZ55: 0 | FA55: 0 | FB55: 0 | FC55: 0 | FD55: 0 | FE55: 0 | FF55: 0 | FG55: 0 | FH55: 0 | FI55: 0 | FJ55: 0 | FK55: 0 | FL55: 0 | FM55: 0 | FN55: 0 | FO55: 0 | FP55: 0 | FQ55: 0 | FR55: 0 | FS55: 0 | FT55: 0 | FU55: 0 | FV55: 0 | FW55: 0 | FX55: 0 | FY55: 0 | FZ55: 0 | GA55: 0 | GB55: 0 | GC55: 0 | GD55: 0 | GE55: 0 | GF55: 0 | GG55: 0 | GH55: 0
A56: 5 | B56: TRANSFORMERS | C56: pole mounted ; < = 22 kv ; < = 60 kva ; multiple phase | D56: 17.27566009 | E56: 72.3168511 | F56: 8.503931508 | G56: 2 | H56: 0 | I56: 22 | J56: 30 | K56: 49 | L56: 26 | M56: 17 | N56: 32 | O56: 45 | P56: 26 | Q56: 34 | R56: 48 | S56: 27 | T56: 31 | U56: 47 | V56: 44 | W56: 45 | X56: 34 | Y56: 29 | Z56: 41 | AA56: 23 | AB56: 37 | AC56: 15 | AD56: 45 | AE56: 27 | AF56: 59 | AG56: 29 | AH56: 58 | AI56: 40 | AJ56: 50 | AK56: 67 | AL56: 77 | AM56: 76 | AN56: 63 | AO56: 76 | AP56: 82 | AQ56: 71 | AR56: 72 | AS56: 63 | AT56: 60 | AU56: 47 | AV56: 81 | AW56: 39 | AX56: 53 | AY56: 24 | AZ56: 20 | BA56: 20 | BB56: 20 | BC56: 14 | BD56: 10 | BE56: 11 | BF56: 12 | BG56: 10 | BH56: 20 | BI56: 15 | BJ56: 22 | BK56: 16 | BL56: 15 | BM56: 17 | BN56: 13 | BO56: 8 | BP56: 8 | BQ56: 2 | BR56: 6 | BS56: 3 | BT56: 2 | BU56: 6 | BV56: 5 | BW56: 2 | BX56: 5 | BY56: 10 | BZ56: 1 | CA56: 0 | CB56: 0 | CC56: 0 | CD56: 0 | CE56: 0 | CF56: 1 | CG56: 0 | CH56: 0 | CI56: 0 | CJ56: 0 | CK56: 0 | CL56: 0 | CM56: 0 | CN56: 0 | CO56: 0 | CP56: 0 | CQ56: 0 | CR56: 0 | CS56: 0 | CT56: 0 | CV56: 0 | CW56: 380.064522 | CX56: 518.2698027 | CY56: 846.5073444 | CZ56: 449.1671623 | DA56: 293.6862215 | DB56: 552.8211229 | DC56: 777.4047041 | DD56: 449.1671623 | DE56: 587.3724431 | DF56: 829.2316843 | DG56: 466.4428224 | DH56: 535.5454628 | DI56: 811.9560242 | DJ56: 760.129044 | DK56: 777.4047041 | DL56: 587.3724431 | DM56: 500.9941426 | DN56: 708.3020637 | DO56: 397.3401821 | DP56: 639.1994233 | DQ56: 259.1349014 | DR56: 777.4047041 | DS56: 466.4428224 | DT56: 1019.263945 | DU56: 500.9941426 | DV56: 1001.988285 | DW56: 691.0264036 | DX56: 863.7830045 | DY56: 1157.469226 | DZ56: 1330.225827 | EA56: 1312.950167 | EB56: 1088.366586 | EC56: 1312.950167 | ED56: 1416.604127 | EE56: 1226.571866 | EF56: 1243.847526 | EG56: 1088.366586 | EH56: 1036.539605 | EI56: 811.9560242 | EJ56: 1399.328467 | EK56: 673.7507435 | EL56: 915.6099848 | EM56: 414.6158422 | EN56: 345.5132018 | EO56: 345.5132018 | EP56: 345.5132018 | EQ56: 241.8592413 | ER56: 172.7566009 | ES56: 190.032261 | ET56: 207.3079211 | EU56: 172.7566009 | EV56: 345.5132018 | EW56: 259.1349014 | EX56: 380.064522 | EY56: 276.4105614 | EZ56: 259.1349014 | FA56: 293.6862215 | FB56: 224.5835812 | FC56: 138.2052807 | FD56: 138.2052807 | FE56: 34.55132018 | FF56: 103.6539605 | FG56: 51.82698027 | FH56: 34.55132018 | FI56: 103.6539605 | FJ56: 86.37830045 | FK56: 34.55132018 | FL56: 86.37830045 | FM56: 172.7566009 | FN56: 17.27566009 | FO56: 0 | FP56: 0 | FQ56: 0 | FR56: 0 | FS56: 0 | FT56: 17.27566009 | FU56: 0 | FV56: 0 | FW56: 0 | FX56: 0 | FY56: 0 | FZ56: 0 | GA56: 0 | GB56: 0 | GC56: 0 | GD56: 0 | GE56: 0 | GF56: 0 | GG56: 0 | GH56: 0
A57: 5 | B57: TRANSFORMERS | C57: pole mounted ; < = 22 kv ; > 60 kva and < = 600 kva ; multiple phase | D57: 41.01728366 | E57: 66.76693326 | F57: 8.171103552 | G57: 2 | H57: 3 | I57: 182 | J57: 202 | K57: 246 | L57: 268 | M57: 246 | N57: 260 | O57: 257 | P57: 236 | Q57: 286 | R57: 213 | S57: 308 | T57: 409 | U57: 439 | V57: 444 | W57: 424 | X57: 371 | Y57: 392 | Z57: 461 | AA57: 203 | AB57: 604 | AC57: 446 | AD57: 358 | AE57: 82 | AF57: 216 | AG57: 130 | AH57: 315 | AI57: 239 | AJ57: 229 | AK57: 283 | AL57: 264 | AM57: 228 | AN57: 232 | AO57: 312 | AP57: 317 | AQ57: 304 | AR57: 277 | AS57: 231 | AT57: 310 | AU57: 283 | AV57: 392 | AW57: 201 | AX57: 203 | AY57: 128 | AZ57: 107 | BA57: 96 | BB57: 128 | BC57: 66 | BD57: 54 | BE57: 52 | BF57: 86 | BG57: 68 | BH57: 96 | BI57: 115 | BJ57: 94 | BK57: 75 | BL57: 74 | BM57: 49 | BN57: 42 | BO57: 24 | BP57: 14 | BQ57: 15 | BR57: 13 | BS57: 9 | BT57: 4 | BU57: 3 | BV57: 0 | BW57: 2 | BX57: 2 | BY57: 1 | BZ57: 3 | CA57: 0 | CB57: 0 | CC57: 0 | CD57: 0 | CE57: 0 | CF57: 0 | CG57: 0 | CH57: 0 | CI57: 0 | CJ57: 0 | CK57: 0 | CL57: 0 | CM57: 0 | CN57: 0 | CO57: 0 | CP57: 0 | CQ57: 0 | CR57: 0 | CS57: 0 | CT57: 0 | CV57: 123.051851 | CW57: 7465.145626 | CX57: 8285.4913 | CY57: 10090.25178 | CZ57: 10992.63202 | DA57: 10090.25178 | DB57: 10664.49375 | DC57: 10541.4419 | DD57: 9680.078944 | DE57: 11730.94313 | DF57: 8736.68142 | DG57: 12633.32337 | DH57: 16776.06902 | DI57: 18006.58753 | DJ57: 18211.67395 | DK57: 17391.32827 | DL57: 15217.41224 | DM57: 16078.7752 | DN57: 18908.96777 | DO57: 8326.508583 | DP57: 24774.43933 | DQ57: 18293.70851 | DR57: 14684.18755 | DS57: 3363.41726 | DT57: 8859.733271 | DU57: 5332.246876 | DV57: 12920.44435 | DW57: 9803.130795 | DX57: 9392.957958 | DY57: 11607.89128 | DZ57: 10828.56289 | EA57: 9351.940675 | EB57: 9516.009809 | EC57: 12797.3925 | ED57: 13002.47892 | EE57: 12469.25423 | EF57: 11361.78757 | EG57: 9474.992526 | EH57: 12715.35794 | EI57: 11607.89128 | EJ57: 16078.7752 | EK57: 8244.474016 | EL57: 8326.508583 | EM57: 5250.212309 | EN57: 4388.849352 | EO57: 3937.659231 | EP57: 5250.212309 | EQ57: 2707.140722 | ER57: 2214.933318 | ES57: 2132.89875 | ET57: 3527.486395 | EU57: 2789.175289 | EV57: 3937.659231 | EW57: 4716.987621 | EX57: 3855.624664 | EY57: 3076.296275 | EZ57: 3035.278991 | FA57: 2009.846899 | FB57: 1722.725914 | FC57: 984.4148079 | FD57: 574.2419713 | FE57: 615.2592549 | FF57: 533.2246876 | FG57: 369.155553 | FH57: 164.0691346 | FI57: 123.051851 | FJ57: 0 | FK57: 82.03456732 | FL57: 82.03456732 | FM57: 41.01728366 | FN57: 123.051851 | FO57: 0 | FP57: 0 | FQ57: 0 | FR57: 0 | FS57: 0 | FT57: 0 | FU57: 0 | FV57: 0 | FW57: 0 | FX57: 0 | FY57: 0 | FZ57: 0 | GA57: 0 | GB57: 0 | GC57: 0 | GD57: 0 | GE57: 0 | GF57: 0 | GG57: 0 | GH57: 0
B58: TRANSFORMERS | C58: pole mounted ; < = 22 kv ; > 600 kva ; multiple phase | D58: 41.01728366 | E58: 66.76693326 | F58: 8.171103552 | G58: 2 | H58: 0 | I58: 0 | J58: 0 | K58: 0 | L58: 0 | M58: 0 | N58: 0 | O58: 0 | P58: 0 | Q58: 0 | R58: 0 | S58: 0 | T58: 0 | U58: 0 | V58: 0 | W58: 0 | X58: 0 | Y58: 0 | Z58: 0 | AA58: 0 | AB58: 0 | AC58: 0 | AD58: 0 | AE58: 0 | AF58: 0 | AG58: 0 | AH58: 0 | AI58: 0 | AJ58: 0 | AK58: 0 | AL58: 0 | AM58: 0 | AN58: 0 | AO58: 0 | AP58: 0 | AQ58: 0 | AR58: 0 | AS58: 0 | AT58: 0 | AU58: 0 | AV58: 0 | AW58: 0 | AX58: 0 | AY58: 0 | AZ58: 0 | BA58: 0 | BB58: 0 | BC58: 0 | BD58: 0 | BE58: 0 | BF58: 0 | BG58: 0 | BH58: 0 | BI58: 0 | BJ58: 0 | BK58: 0 | BL58: 0 | BM58: 0 | BN58: 0 | BO58: 0 | BP58: 0 | BQ58: 0 | BR58: 0 | BS58: 0 | BT58: 0 | BU58: 0 | BV58: 0 | BW58: 0 | BX58: 0 | BY58: 0 | BZ58: 0 | CA58: 0 | CB58: 0 | CC58: 0 | CD58: 0 | CE58: 0 | CF58: 0 | CG58: 0 | CH58: 0 | CI58: 0 | CJ58: 0 | CK58: 0 | CL58: 0 | CM58: 0 | CN58: 0 | CO58: 0 | CP58: 0 | CQ58: 0 | CR58: 0 | CS58: 0 | CT58: 0 | CV58: 0 | CW58: 0 | CX58: 0 | CY58: 0 | CZ58: 0 | DA58: 0 | DB58: 0 | DC58: 0 | DD58: 0 | DE58: 0 | DF58: 0 | DG58: 0 | DH58: 0 | DI58: 0 | DJ58: 0 | DK58: 0 | DL58: 0 | DM58: 0 | DN58: 0 | DO58: 0 | DP58: 0 | DQ58: 0 | DR58: 0 | DS58: 0 | DT58: 0 | DU58: 0 | DV58: 0 | DW58: 0 | DX58: 0 | DY58: 0 | DZ58: 0 | EA58: 0 | EB58: 0 | EC58: 0 | ED58: 0 | EE58: 0 | EF58: 0 | EG58: 0 | EH58: 0 | EI58: 0 | EJ58: 0 | EK58: 0 | EL58: 0 | EM58: 0 | EN58: 0 | EO58: 0 | EP58: 0 | EQ58: 0 | ER58: 0 | ES58: 0 | ET58: 0 | EU58: 0 | EV58: 0 | EW58: 0 | EX58: 0 | EY58: 0 | EZ58: 0 | FA58: 0 | FB58: 0 | FC58: 0 | FD58: 0 | FE58: 0 | FF58: 0 | FG58: 0 | FH58: 0 | FI58: 0 | FJ58: 0 | FK58: 0 | FL58: 0 | FM58: 0 | FN58: 0 | FO58: 0 | FP58: 0 | FQ58: 0 | FR58: 0 | FS58: 0 | FT58: 0 | FU58: 0 | FV58: 0 | FW58: 0 | FX58: 0 | FY58: 0 | FZ58: 0 | GA58: 0 | GB58: 0 | GC58: 0 | GD58: 0 | GE58: 0 | GF58: 0 | GG58: 0 | GH58: 0
B59: TRANSFORMERS | C59: kiosk mounted ; < = 22 kv ; < = 60 kva ; single phase | D59: 40.82004827 | E59: 55.86251516 | F59: 7.474123036 | G59: 2 | H59: 0 | I59: 0 | J59: 0 | K59: 0 | L59: 0 | M59: 0 | N59: 0 | O59: 0 | P59: 0 | Q59: 0 | R59: 0 | S59: 0 | T59: 0 | U59: 0 | V59: 0 | W59: 0 | X59: 0 | Y59: 0 | Z59: 0 | AA59: 0 | AB59: 0 | AC59: 0 | AD59: 0 | AE59: 0 | AF59: 0 | AG59: 0 | AH59: 0 | AI59: 0 | AJ59: 0 | AK59: 0 | AL59: 0 | AM59: 0 | AN59: 0 | AO59: 0 | AP59: 0 | AQ59: 0 | AR59: 0 | AS59: 0 | AT59: 0 | AU59: 0 | AV59: 0 | AW59: 0 | AX59: 0 | AY59: 0 | AZ59: 0 | BA59: 0 | BB59: 0 | BC59: 0 | BD59: 0 | BE59: 0 | BF59: 0 | BG59: 0 | BH59: 0 | BI59: 0 | BJ59: 0 | BK59: 0 | BL59: 0 | BM59: 0 | BN59: 0 | BO59: 0 | BP59: 0 | BQ59: 0 | BR59: 0 | BS59: 0 | BT59: 0 | BU59: 0 | BV59: 0 | BW59: 0 | BX59: 0 | BY59: 0 | BZ59: 0 | CA59: 0 | CB59: 0 | CC59: 0 | CD59: 0 | CE59: 0 | CF59: 0 | CG59: 0 | CH59: 0 | CI59: 0 | CJ59: 0 | CK59: 0 | CL59: 0 | CM59: 0 | CN59: 0 | CO59: 0 | CP59: 0 | CQ59: 0 | CR59: 0 | CS59: 0 | CT59: 0 | CV59: 0 | CW59: 0 | CX59: 0 | CY59: 0 | CZ59: 0 | DA59: 0 | DB59: 0 | DC59: 0 | DD59: 0 | DE59: 0 | DF59: 0 | DG59: 0 | DH59: 0 | DI59: 0 | DJ59: 0 | DK59: 0 | DL59: 0 | DM59: 0 | DN59: 0 | DO59: 0 | DP59: 0 | DQ59: 0 | DR59: 0 | DS59: 0 | DT59: 0 | DU59: 0 | DV59: 0 | DW59: 0 | DX59: 0 | DY59: 0 | DZ59: 0 | EA59: 0 | EB59: 0 | EC59: 0 | ED59: 0 | EE59: 0 | EF59: 0 | EG59: 0 | EH59: 0 | EI59: 0 | EJ59: 0 | EK59: 0 | EL59: 0 | EM59: 0 | EN59: 0 | EO59: 0 | EP59: 0 | EQ59: 0 | ER59: 0 | ES59: 0 | ET59: 0 | EU59: 0 | EV59: 0 | EW59: 0 | EX59: 0 | EY59: 0 | EZ59: 0 | FA59: 0 | FB59: 0 | FC59: 0 | FD59: 0 | FE59: 0 | FF59: 0 | FG59: 0 | FH59: 0 | FI59: 0 | FJ59: 0 | FK59: 0 | FL59: 0 | FM59: 0 | FN59: 0 | FO59: 0 | FP59: 0 | FQ59: 0 | FR59: 0 | FS59: 0 | FT59: 0 | FU59: 0 | FV59: 0 | FW59: 0 | FX59: 0 | FY59: 0 | FZ59: 0 | GA59: 0 | GB59: 0 | GC59: 0 | GD59: 0 | GE59: 0 | GF59: 0 | GG59: 0 | GH59: 0
A60: 5 | B60: TRANSFORMERS | C60: kiosk mounted ; < = 22 kv ; < = 60 kva ; multiple phase | D60: 17.67177516 | E60: 17.82315467 | F60: 4.221747822 | G60: 2 | H60: 0 | I60: 0 | J60: 0 | K60: 0 | L60: 0 | M60: 0 | N60: 1 | O60: 0 | P60: 0 | Q60: 0 | R60: 0 | S60: 0 | T60: 0 | U60: 0 | V60: 0 | W60: 0 | X60: 0 | Y60: 0 | Z60: 0 | AA60: 0 | AB60: 0 | AC60: 0 | AD60: 0 | AE60: 0 | AF60: 0 | AG60: 0 | AH60: 0 | AI60: 0 | AJ60: 0 | AK60: 0 | AL60: 0 | AM60: 0 | AN60: 0 | AO60: 0 | AP60: 0 | AQ60: 0 | AR60: 0 | AS60: 0 | AT60: 0 | AU60: 0 | AV60: 0 | AW60: 0 | AX60: 0 | AY60: 0 | AZ60: 0 | BA60: 0 | BB60: 0 | BC60: 0 | BD60: 0 | BE60: 0 | BF60: 0 | BG60: 0 | BH60: 0 | BI60: 0 | BJ60: 0 | BK60: 0 | BL60: 0 | BM60: 0 | BN60: 0 | BO60: 0 | BP60: 0 | BQ60: 0 | BR60: 0 | BS60: 0 | BT60: 0 | BU60: 0 | BV60: 0 | BW60: 0 | BX60: 0 | BY60: 0 | BZ60: 0 | CA60: 0 | CB60: 0 | CC60: 0 | CD60: 0 | CE60: 0 | CF60: 0 | CG60: 0 | CH60: 0 | CI60: 0 | CJ60: 0 | CK60: 0 | CL60: 0 | CM60: 0 | CN60: 0 | CO60: 0 | CP60: 0 | CQ60: 0 | CR60: 0 | CS60: 0 | CT60: 0 | CV60: 0 | CW60: 0 | CX60: 0 | CY60: 0 | CZ60: 0 | DA60: 0 | DB60: 17.67177516 | DC60: 0 | DD60: 0 | DE60: 0 | DF60: 0 | DG60: 0 | DH60: 0 | DI60: 0 | DJ60: 0 | DK60: 0 | DL60: 0 | DM60: 0 | DN60: 0 | DO60: 0 | DP60: 0 | DQ60: 0 | DR60: 0 | DS60: 0 | DT60: 0 | DU60: 0 | DV60: 0 | DW60: 0 | DX60: 0 | DY60: 0 | DZ60: 0 | EA60: 0 | EB60: 0 | EC60: 0 | ED60: 0 | EE60: 0 | EF60: 0 | EG60: 0 | EH60: 0 | EI60: 0 | EJ60: 0 | EK60: 0 | EL60: 0 | EM60: 0 | EN60: 0 | EO60: 0 | EP60: 0 | EQ60: 0 | ER60: 0 | ES60: 0 | ET60: 0 | EU60: 0 | EV60: 0 | EW60: 0 | EX60: 0 | EY60: 0 | EZ60: 0 | FA60: 0 | FB60: 0 | FC60: 0 | FD60: 0 | FE60: 0 | FF60: 0 | FG60: 0 | FH60: 0 | FI60: 0 | FJ60: 0 | FK60: 0 | FL60: 0 | FM60: 0 | FN60: 0 | FO60: 0 | FP60: 0 | FQ60: 0 | FR60: 0 | FS60: 0 | FT60: 0 | FU60: 0 | FV60: 0 | FW60: 0 | FX60: 0 | FY60: 0 | FZ60: 0 | GA60: 0 | GB60: 0 | GC60: 0 | GD60: 0 | GE60: 0 | GF60: 0 | GG60: 0 | GH60: 0
A61: 5 | B61: TRANSFORMERS | C61: kiosk mounted ; < = 22 kv ; > 60 kva and < = 600 kva ; multiple phase | D61: 40.82004827 | E61: 55.86251516 | F61: 7.474123036 | G61: 2 | H61: 10 | I61: 151 | J61: 282 | K61: 442 | L61: 376 | M61: 320 | N61: 267 | O61: 213 | P61: 331 | Q61: 327 | R61: 340 | S61: 376 | T61: 370 | U61: 300 | V61: 334 | W61: 403 | X61: 366 | Y61: 367 | Z61: 503 | AA61: 145 | AB61: 467 | AC61: 125 | AD61: 328 | AE61: 65 | AF61: 192 | AG61: 117 | AH61: 142 | AI61: 122 | AJ61: 105 | AK61: 89 | AL61: 93 | AM61: 123 | AN61: 126 | AO61: 151 | AP61: 134 | AQ61: 129 | AR61: 155 | AS61: 120 | AT61: 107 | AU61: 182 | AV61: 220 | AW61: 117 | AX61: 75 | AY61: 52 | AZ61: 45 | BA61: 22 | BB61: 40 | BC61: 31 | BD61: 13 | BE61: 15 | BF61: 7 | BG61: 2 | BH61: 4 | BI61: 8 | BJ61: 2 | BK61: 2 | BL61: 0 | BM61: 0 | BN61: 2 | BO61: 2 | BP61: 1 | BQ61: 0 | BR61: 1 | BS61: 0 | BT61: 0 | BU61: 0 | BV61: 0 | BW61: 0 | BX61: 0 | BY61: 0 | BZ61: 0 | CA61: 0 | CB61: 0 | CC61: 0 | CD61: 0 | CE61: 0 | CF61: 0 | CG61: 0 | CH61: 0 | CI61: 0 | CJ61: 0 | CK61: 0 | CL61: 0 | CM61: 0 | CN61: 0 | CO61: 0 | CP61: 0 | CQ61: 0 | CR61: 0 | CS61: 0 | CT61: 0 | CV61: 408.2004827 | CW61: 6163.827289 | CX61: 11511.25361 | CY61: 18042.46133 | CZ61: 15348.33815 | DA61: 13062.41545 | DB61: 10898.95289 | DC61: 8694.670281 | DD61: 13511.43598 | DE61: 13348.15578 | DF61: 13878.81641 | DG61: 15348.33815 | DH61: 15103.41786 | DI61: 12246.01448 | DJ61: 13633.89612 | DK61: 16450.47945 | DL61: 14940.13767 | DM61: 14980.95771 | DN61: 20532.48428 | DO61: 5918.906999 | DP61: 19062.96254 | DQ61: 5102.506034 | DR61: 13388.97583 | DS61: 2653.303137 | DT61: 7837.449268 | DU61: 4775.945647 | DV61: 5796.446854 | DW61: 4980.045889 | DX61: 4286.105068 | DY61: 3632.984296 | DZ61: 3796.264489 | EA61: 5020.865937 | EB61: 5143.326082 | EC61: 6163.827289 | ED61: 5469.886468 | EE61: 5265.786227 | EF61: 6327.107482 | EG61: 4898.405792 | EH61: 4367.745165 | EI61: 7429.248785 | EJ61: 8980.410619 | EK61: 4775.945647 | EL61: 3061.50362 | EM61: 2122.64251 | EN61: 1836.902172 | EO61: 898.0410619 | EP61: 1632.801931 | EQ61: 1265.421496 | ER61: 530.6606275 | ES61: 612.300724 | ET61: 285.7403379 | EU61: 81.64009654 | EV61: 163.2801931 | EW61: 326.5603862 | EX61: 81.64009654 | EY61: 81.64009654 | EZ61: 0 | FA61: 0 | FB61: 81.64009654 | FC61: 81.64009654 | FD61: 40.82004827 | FE61: 0 | FF61: 40.82004827 | FG61: 0 | FH61: 0 | FI61: 0 | FJ61: 0 | FK61: 0 | FL61: 0 | FM61: 0 | FN61: 0 | FO61: 0 | FP61: 0 | FQ61: 0 | FR61: 0 | FS61: 0 | FT61: 0 | FU61: 0 | FV61: 0 | FW61: 0 | FX61: 0 | FY61: 0 | FZ61: 0 | GA61: 0 | GB61: 0 | GC61: 0 | GD61: 0 | GE61: 0 | GF61: 0 | GG61: 0 | GH61: 0
A62: 5 | B62: TRANSFORMERS | C62: kiosk mounted ; < = 22 kv ; > 600 kva ; multiple phase | D62: 59.08071282 | E62: 46.02663926 | F62: 6.784293571 | G62: 2 | H62: 1 | I62: 130 | J62: 179 | K62: 184 | L62: 156 | M62: 104 | N62: 100 | O62: 92 | P62: 116 | Q62: 89 | R62: 110 | S62: 93 | T62: 95 | U62: 142 | V62: 161 | W62: 138 | X62: 169 | Y62: 99 | Z62: 125 | AA62: 116 | AB62: 104 | AC62: 73 | AD62: 116 | AE62: 106 | AF62: 77 | AG62: 56 | AH62: 60 | AI62: 70 | AJ62: 57 | AK62: 42 | AL62: 30 | AM62: 33 | AN62: 35 | AO62: 28 | AP62: 44 | AQ62: 28 | AR62: 12 | AS62: 26 | AT62: 14 | AU62: 13 | AV62: 8 | AW62: 6 | AX62: 5 | AY62: 4 | AZ62: 6 | BA62: 0 | BB62: 7 | BC62: 4 | BD62: 2 | BE62: 3 | BF62: 5 | BG62: 1 | BH62: 1 | BI62: 0 | BJ62: 0 | BK62: 0 | BL62: 1 | BM62: 0 | BN62: 0 | BO62: 1 | BP62: 0 | BQ62: 0 | BR62: 0 | BS62: 0 | BT62: 0 | BU62: 0 | BV62: 0 | BW62: 0 | BX62: 0 | BY62: 0 | BZ62: 0 | CA62: 0 | CB62: 0 | CC62: 0 | CD62: 0 | CE62: 0 | CF62: 0 | CG62: 0 | CH62: 0 | CI62: 0 | CJ62: 0 | CK62: 0 | CL62: 0 | CM62: 0 | CN62: 0 | CO62: 0 | CP62: 0 | CQ62: 0 | CR62: 0 | CS62: 0 | CT62: 0 | CV62: 59.08071282 | CW62: 7680.492666 | CX62: 10575.44759 | CY62: 10870.85116 | CZ62: 9216.591199 | DA62: 6144.394133 | DB62: 5908.071282 | DC62: 5435.425579 | DD62: 6853.362687 | DE62: 5258.183441 | DF62: 6498.87841 | DG62: 5494.506292 | DH62: 5612.667717 | DI62: 8389.46122 | DJ62: 9511.994763 | DK62: 8153.138369 | DL62: 9984.640466 | DM62: 5848.990569 | DN62: 7385.089102 | DO62: 6853.362687 | DP62: 6144.394133 | DQ62: 4312.892036 | DR62: 6853.362687 | DS62: 6262.555558 | DT62: 4549.214887 | DU62: 3308.519918 | DV62: 3544.842769 | DW62: 4135.649897 | DX62: 3367.60063 | DY62: 2481.389938 | DZ62: 1772.421384 | EA62: 1949.663523 | EB62: 2067.824949 | EC62: 1654.259959 | ED62: 2599.551364 | EE62: 1654.259959 | EF62: 708.9685538 | EG62: 1536.098533 | EH62: 827.1299794 | EI62: 768.0492666 | EJ62: 472.6457025 | EK62: 354.4842769 | EL62: 295.4035641 | EM62: 236.3228513 | EN62: 354.4842769 | EO62: 0 | EP62: 413.5649897 | EQ62: 236.3228513 | ER62: 118.1614256 | ES62: 177.2421384 | ET62: 295.4035641 | EU62: 59.08071282 | EV62: 59.08071282 | EW62: 0 | EX62: 0 | EY62: 0 | EZ62: 59.08071282 | FA62: 0 | FB62: 0 | FC62: 59.08071282 | FD62: 0 | FE62: 0 | FF62: 0 | FG62: 0 | FH62: 0 | FI62: 0 | FJ62: 0 | FK62: 0 | FL62: 0 | FM62: 0 | FN62: 0 | FO62: 0 | FP62: 0 | FQ62: 0 | FR62: 0 | FS62: 0 | FT62: 0 | FU62: 0 | FV62: 0 | FW62: 0 | FX62: 0 | FY62: 0 | FZ62: 0 | GA62: 0 | GB62: 0 | GC62: 0 | GD62: 0 | GE62: 0 | GF62: 0 | GG62: 0 | GH62: 0
B63: TRANSFORMERS | C63: ground outdoor / indoor chamber mounted ; ˂ 22 kv ; < = 60 kva ; single phase | D63: 17.67177516 | E63: 17.82315467 | F63: 4.221747822 | G63: 2 | H63: 0 | I63: 0 | J63: 0 | K63: 0 | L63: 0 | M63: 0 | N63: 0 | O63: 0 | P63: 0 | Q63: 0 | R63: 0 | S63: 0 | T63: 0 | U63: 0 | V63: 0 | W63: 0 | X63: 0 | Y63: 0 | Z63: 0 | AA63: 0 | AB63: 0 | AC63: 0 | AD63: 0 | AE63: 0 | AF63: 0 | AG63: 0 | AH63: 0 | AI63: 0 | AJ63: 0 | AK63: 0 | AL63: 0 | AM63: 0 | AN63: 0 | AO63: 0 | AP63: 0 | AQ63: 0 | AR63: 0 | AS63: 0 | AT63: 0 | AU63: 0 | AV63: 0 | AW63: 0 | AX63: 0 | AY63: 0 | AZ63: 0 | BA63: 0 | BB63: 0 | BC63: 0 | BD63: 0 | BE63: 0 | BF63: 0 | BG63: 0 | BH63: 0 | BI63: 0 | BJ63: 0 | BK63: 0 | BL63: 0 | BM63: 0 | BN63: 0 | BO63: 0 | BP63: 0 | BQ63: 0 | BR63: 0 | BS63: 0 | BT63: 0 | BU63: 0 | BV63: 0 | BW63: 0 | BX63: 0 | BY63: 0 | BZ63: 0 | CA63: 0 | CB63: 0 | CC63: 0 | CD63: 0 | CE63: 0 | CF63: 0 | CG63: 0 | CH63: 0 | CI63: 0 | CJ63: 0 | CK63: 0 | CL63: 0 | CM63: 0 | CN63: 0 | CO63: 0 | CP63: 0 | CQ63: 0 | CR63: 0 | CS63: 0 | CT63: 0 | CV63: 0 | CW63: 0 | CX63: 0 | CY63: 0 | CZ63: 0 | DA63: 0 | DB63: 0 | DC63: 0 | DD63: 0 | DE63: 0 | DF63: 0 | DG63: 0 | DH63: 0 | DI63: 0 | DJ63: 0 | DK63: 0 | DL63: 0 | DM63: 0 | DN63: 0 | DO63: 0 | DP63: 0 | DQ63: 0 | DR63: 0 | DS63: 0 | DT63: 0 | DU63: 0 | DV63: 0 | DW63: 0 | DX63: 0 | DY63: 0 | DZ63: 0 | EA63: 0 | EB63: 0 | EC63: 0 | ED63: 0 | EE63: 0 | EF63: 0 | EG63: 0 | EH63: 0 | EI63: 0 | EJ63: 0 | EK63: 0 | EL63: 0 | EM63: 0 | EN63: 0 | EO63: 0 | EP63: 0 | EQ63: 0 | ER63: 0 | ES63: 0 | ET63: 0 | EU63: 0 | EV63: 0 | EW63: 0 | EX63: 0 | EY63: 0 | EZ63: 0 | FA63: 0 | FB63: 0 | FC63: 0 | FD63: 0 | FE63: 0 | FF63: 0 | FG63: 0 | FH63: 0 | FI63: 0 | FJ63: 0 | FK63: 0 | FL63: 0 | FM63: 0 | FN63: 0 | FO63: 0 | FP63: 0 | FQ63: 0 | FR63: 0 | FS63: 0 | FT63: 0 | FU63: 0 | FV63: 0 | FW63: 0 | FX63: 0 | FY63: 0 | FZ63: 0 | GA63: 0 | GB63: 0 | GC63: 0 | GD63: 0 | GE63: 0 | GF63: 0 | GG63: 0 | GH63: 0
B64: TRANSFORMERS | C64: ground outdoor / indoor chamber mounted ; ˂ 22 kv ; < = 60 kva ; multiple phase | D64: 17.67177516 | E64: 17.82315467 | F64: 4.221747822 | G64: 2 | H64: 0 | I64: 0 | J64: 0 | K64: 0 | L64: 0 | M64: 0 | N64: 0 | O64: 0 | P64: 0 | Q64: 0 | R64: 0 | S64: 0 | T64: 0 | U64: 0 | V64: 0 | W64: 0 | X64: 0 | Y64: 0 | Z64: 0 | AA64: 0 | AB64: 0 | AC64: 0 | AD64: 0 | AE64: 0 | AF64: 0 | AG64: 0 | AH64: 0 | AI64: 0 | AJ64: 0 | AK64: 0 | AL64: 0 | AM64: 0 | AN64: 0 | AO64: 0 | AP64: 0 | AQ64: 0 | AR64: 0 | AS64: 0 | AT64: 0 | AU64: 0 | AV64: 0 | AW64: 0 | AX64: 0 | AY64: 0 | AZ64: 0 | BA64: 0 | BB64: 0 | BC64: 0 | BD64: 0 | BE64: 0 | BF64: 0 | BG64: 0 | BH64: 0 | BI64: 0 | BJ64: 0 | BK64: 0 | BL64: 0 | BM64: 0 | BN64: 0 | BO64: 1 | BP64: 0 | BQ64: 0 | BR64: 0 | BS64: 0 | BT64: 0 | BU64: 0 | BV64: 0 | BW64: 0 | BX64: 0 | BY64: 0 | BZ64: 0 | CA64: 0 | CB64: 0 | CC64: 0 | CD64: 0 | CE64: 0 | CF64: 0 | CG64: 0 | CH64: 0 | CI64: 0 | CJ64: 0 | CK64: 0 | CL64: 0 | CM64: 0 | CN64: 0 | CO64: 0 | CP64: 0 | CQ64: 0 | CR64: 0 | CS64: 0 | CT64: 0 | CV64: 0 | CW64: 0 | CX64: 0 | CY64: 0 | CZ64: 0 | DA64: 0 | DB64: 0 | DC64: 0 | DD64: 0 | DE64: 0 | DF64: 0 | DG64: 0 | DH64: 0 | DI64: 0 | DJ64: 0 | DK64: 0 | DL64: 0 | DM64: 0 | DN64: 0 | DO64: 0 | DP64: 0 | DQ64: 0 | DR64: 0 | DS64: 0 | DT64: 0 | DU64: 0 | DV64: 0 | DW64: 0 | DX64: 0 | DY64: 0 | DZ64: 0 | EA64: 0 | EB64: 0 | EC64: 0 | ED64: 0 | EE64: 0 | EF64: 0 | EG64: 0 | EH64: 0 | EI64: 0 | EJ64: 0 | EK64: 0 | EL64: 0 | EM64: 0 | EN64: 0 | EO64: 0 | EP64: 0 | EQ64: 0 | ER64: 0 | ES64: 0 | ET64: 0 | EU64: 0 | EV64: 0 | EW64: 0 | EX64: 0 | EY64: 0 | EZ64: 0 | FA64: 0 | FB64: 0 | FC64: 17.67177516 | FD64: 0 | FE64: 0 | FF64: 0 | FG64: 0 | FH64: 0 | FI64: 0 | FJ64: 0 | FK64: 0 | FL64: 0 | FM64: 0 | FN64: 0 | FO64: 0 | FP64: 0 | FQ64: 0 | FR64: 0 | FS64: 0 | FT64: 0 | FU64: 0 | FV64: 0 | FW64: 0 | FX64: 0 | FY64: 0 | FZ64: 0 | GA64: 0 | GB64: 0 | GC64: 0 | GD64: 0 | GE64: 0 | GF64: 0 | GG64: 0 | GH64: 0
B65: TRANSFORMERS | C65: ground outdoor / indoor chamber mounted ; ˂ 22 kv ; > 60 kva and < = 600 kva ; multiple phase | D65: 40.82004827 | E65: 55.86251516 | F65: 7.474123036 | G65: 2 | H65: 2 | I65: 1 | J65: 1 | K65: 1 | L65: 0 | M65: 1 | N65: 1 | O65: 0 | P65: 1 | Q65: 0 | R65: 0 | S65: 1 | T65: 1 | U65: 0 | V65: 0 | W65: 0 | X65: 0 | Y65: 0 | Z65: 0 | AA65: 0 | AB65: 0 | AC65: 0 | AD65: 0 | AE65: 0 | AF65: 0 | AG65: 0 | AH65: 0 | AI65: 2 | AJ65: 2 | AK65: 2 | AL65: 1 | AM65: 4 | AN65: 1 | AO65: 2 | AP65: 2 | AQ65: 0 | AR65: 0 | AS65: 0 | AT65: 2 | AU65: 4 | AV65: 1 | AW65: 3 | AX65: 2 | AY65: 1 | AZ65: 2 | BA65: 4 | BB65: 1 | BC65: 0 | BD65: 0 | BE65: 1 | BF65: 2 | BG65: 0 | BH65: 1 | BI65: 0 | BJ65: 1 | BK65: 1 | BL65: 0 | BM65: 1 | BN65: 2 | BO65: 1 | BP65: 0 | BQ65: 0 | BR65: 1 | BS65: 1 | BT65: 0 | BU65: 0 | BV65: 0 | BW65: 0 | BX65: 1 | BY65: 1 | BZ65: 0 | CA65: 0 | CB65: 0 | CC65: 0 | CD65: 0 | CE65: 0 | CF65: 0 | CG65: 0 | CH65: 0 | CI65: 0 | CJ65: 0 | CK65: 0 | CL65: 0 | CM65: 0 | CN65: 0 | CO65: 0 | CP65: 0 | CQ65: 0 | CR65: 0 | CS65: 0 | CT65: 0 | CV65: 81.64009654 | CW65: 40.82004827 | CX65: 40.82004827 | CY65: 40.82004827 | CZ65: 0 | DA65: 40.82004827 | DB65: 40.82004827 | DC65: 0 | DD65: 40.82004827 | DE65: 0 | DF65: 0 | DG65: 40.82004827 | DH65: 40.82004827 | DI65: 0 | DJ65: 0 | DK65: 0 | DL65: 0 | DM65: 0 | DN65: 0 | DO65: 0 | DP65: 0 | DQ65: 0 | DR65: 0 | DS65: 0 | DT65: 0 | DU65: 0 | DV65: 0 | DW65: 81.64009654 | DX65: 81.64009654 | DY65: 81.64009654 | DZ65: 40.82004827 | EA65: 163.2801931 | EB65: 40.82004827 | EC65: 81.64009654 | ED65: 81.64009654 | EE65: 0 | EF65: 0 | EG65: 0 | EH65: 81.64009654 | EI65: 163.2801931 | EJ65: 40.82004827 | EK65: 122.4601448 | EL65: 81.64009654 | EM65: 40.82004827 | EN65: 81.64009654 | EO65: 163.2801931 | EP65: 40.82004827 | EQ65: 0 | ER65: 0 | ES65: 40.82004827 | ET65: 81.64009654 | EU65: 0 | EV65: 40.82004827 | EW65: 0 | EX65: 40.82004827 | EY65: 40.82004827 | EZ65: 0 | FA65: 40.82004827 | FB65: 81.64009654 | FC65: 40.82004827 | FD65: 0 | FE65: 0 | FF65: 40.82004827 | FG65: 40.82004827 | FH65: 0 | FI65: 0 | FJ65: 0 | FK65: 0 | FL65: 40.82004827 | FM65: 40.82004827 | FN65: 0 | FO65: 0 | FP65: 0 | FQ65: 0 | FR65: 0 | FS65: 0 | FT65: 0 | FU65: 0 | FV65: 0 | FW65: 0 | FX65: 0 | FY65: 0 | FZ65: 0 | GA65: 0 | GB65: 0 | GC65: 0 | GD65: 0 | GE65: 0 | GF65: 0 | GG65: 0 | GH65: 0
B66: TRANSFORMERS | C66: ground outdoor / indoor chamber mounted ; ˂ 22 kv ; > 600 kva ; multiple phase | D66: 59.08071282 | E66: 46.02663926 | F66: =SQRT(E66) -> 6.784293571 | G66: 2 | H66: 0 | I66: 0 | J66: 0 | K66: 0 | L66: 0 | M66: 0 | N66: 0 | O66: 0 | P66: 1 | Q66: 0 | R66: 1 | S66: 0 | T66: 0 | U66: 1 | V66: 0 | W66: 0 | X66: 0 | Y66: 0 | Z66: 3 | AA66: 0 | AB66: 0 | AC66: 0 | AD66: 0 | AE66: 0 | AF66: 0 | AG66: 1 | AH66: 1 | AI66: 0 | AJ66: 1 | AK66: 0 | AL66: 1 | AM66: 2 | AN66: 0 | AO66: 4 | AP66: 8 | AQ66: 5 | AR66: 3 | AS66: 1 | AT66: 3 | AU66: 5 | AV66: 3 | AW66: 1 | AX66: 3 | AY66: 2 | AZ66: 2 | BA66: 0 | BB66: 0 | BC66: 0 | BD66: 3 | BE66: 1 | BF66: 0 | BG66: 0 | BH66: 0 | BI66: 0 | BJ66: 0 | BK66: 0 | BL66: 0 | BM66: 0 | BN66: 3 | BO66: 0 | BP66: 0 | BQ66: 0 | BR66: 0 | BS66: 0 | BT66: 0 | BU66: 0 | BV66: 0 | BW66: 0 | BX66: 0 | BY66: 1 | BZ66: 0 | CA66: 0 | CB66: 0 | CC66: 0 | CD66: 0 | CE66: 0 | CF66: 0 | CG66: 0 | CH66: 0 | CI66: 0 | CJ66: 0 | CK66: 0 | CL66: 0 | CM66: 0 | CN66: 0 | CO66: 0 | CP66: 0 | CQ66: 0 | CR66: 0 | CS66: 0 | CT66: 0 | CV66: =$D66*H66 -> 0 | CW66: =$D66*I66 -> 0 | CX66: =$D66*J66 -> 0 | CY66: =$D66*K66 -> 0 | CZ66: =$D66*L66 -> 0 | DA66: =$D66*M66 -> 0 | DB66: =$D66*N66 -> 0 | DC66: =$D66*O66 -> 0 | DD66: =$D66*P66 -> 59.08071282 | DE66: =$D66*Q66 -> 0 | DF66: =$D66*R66 -> 59.08071282 | DG66: =$D66*S66 -> 0 | DH66: =$D66*T66 -> 0 | DI66: =$D66*U66 -> 59.08071282 | DJ66: =$D66*V66 -> 0 | DK66: =$D66*W66 -> 0 | DL66: =$D66*X66 -> 0 | DM66: =$D66*Y66 -> 0 | DN66: =$D66*Z66 -> 177.2421384 | DO66: =$D66*AA66 -> 0 | DP66: =$D66*AB66 -> 0 | DQ66: =$D66*AC66 -> 0 | DR66: =$D66*AD66 -> 0 | DS66: =$D66*AE66 -> 0 | DT66: =$D66*AF66 -> 0 | DU66: =$D66*AG66 -> 59.08071282 | DV66: =$D66*AH66 -> 59.08071282 | DW66: =$D66*AI66 -> 0 | DX66: =$D66*AJ66 -> 59.08071282 | DY66: =$D66*AK66 -> 0 | DZ66: =$D66*AL66 -> 59.08071282 | EA66: =$D66*AM66 -> 118.1614256 | EB66: =$D66*AN66 -> 0 | EC66: =$D66*AO66 -> 236.3228513 | ED66: =$D66*AP66 -> 472.6457025 | EE66: =$D66*AQ66 -> 295.4035641 | EF66: =$D66*AR66 -> 177.2421384 | EG66: =$D66*AS66 -> 59.08071282 | EH66: =$D66*AT66 -> 177.2421384 | EI66: =$D66*AU66 -> 295.4035641 | EJ66: =$D66*AV66 -> 177.2421384 | EK66: =$D66*AW66 -> 59.08071282 | EL66: =$D66*AX66 -> 177.2421384 | EM66: =$D66*AY66 -> 118.1614256 | EN66: =$D66*AZ66 -> 118.1614256 | EO66: =$D66*BA66 -> 0 | EP66: =$D66*BB66 -> 0 | EQ66: =$D66*BC66 -> 0 | ER66: =$D66*BD66 -> 177.2421384 | ES66: =$D66*BE66 -> 59.08071282 | ET66: =$D66*BF66 -> 0 | EU66: =$D66*BG66 -> 0 | EV66: =$D66*BH66 -> 0 | EW66: =$D66*BI66 -> 0 | EX66: =$D66*BJ66 -> 0 | EY66: =$D66*BK66 -> 0 | EZ66: =$D66*BL66 -> 0 | FA66: =$D66*BM66 -> 0 | FB66: =$D66*BN66 -> 177.2421384 | FC66: =$D66*BO66 -> 0 | FD66: =$D66*BP66 -> 0 | FE66: =$D66*BQ66 -> 0 | FF66: =$D66*BR66 -> 0 | FG66: =$D66*BS66 -> 0 | FH66: =$D66*BT66 -> 0 | FI66: =$D66*BU66 -> 0 | FJ66: =$D66*BV66 -> 0 | FK66: =$D66*BW66 -> 0 | FL66: =$D66*BX66 -> 0 | FM66: =$D66*BY66 -> 59.08071282 | FN66: =$D66*BZ66 -> 0 | FO66: =$D66*CA66 -> 0 | FP66: =$D66*CB66 -> 0 | FQ66: =$D66*CC66 -> 0 | FR66: =$D66*CD66 -> 0 | FS66: =$D66*CE66 -> 0 | FT66: =$D66*CF66 -> 0 | FU66: =$D66*CG66 -> 0 | FV66: =$D66*CH66 -> 0 | FW66: =$D66*CI66 -> 0 | FX66: =$D66*CJ66 -> 0 | FY66: =$D66*CK66 -> 0 | FZ66: =$D66*CL66 -> 0 | GA66: =$D66*CM66 -> 0 | GB66: =$D66*CN66 -> 0 | GC66: =$D66*CO66 -> 0 | GD66: =$D66*CP66 -> 0 | GE66: =$D66*CQ66 -> 0 | GF66: =$D66*CR66 -> 0 | GG66: =$D66*CS66 -> 0 | GH66: =$D66*CT66 -> 0
B67: TRANSFORMERS | C67: ground outdoor / indoor chamber mounted ; > = 22 kv & < = 33 kv ; < = 15 mva | G67: 2 | H67: 0 | I67: 0 | J67: 0 | K67: 0 | L67: 4 | M67: 0 | N67: 0 | O67: 0 | P67: 3 | Q67: 2 | R67: 2 | S67: 1 | T67: 3 | U67: 2 | V67: 2 | W67: 2 | X67: 0 | Y67: 3 | Z67: 2 | AA67: 0 | AB67: 4 | AC67: 0 | AD67: 1 | AE67: 0 | AF67: 0 | AG67: 0 | AH67: 0 | AI67: 0 | AJ67: 0 | AK67: 0 | AL67: 2 | AM67: 3 | AN67: 1 | AO67: 1 | AP67: 0 | AQ67: 0 | AR67: 0 | AS67: 0 | AT67: 1 | AU67: 0 | AV67: 3 | AW67: 3 | AX67: 1 | AY67: 0 | AZ67: 0 | BA67: 0 | BB67: 0 | BC67: 0 | BD67: 1 | BE67: 0 | BF67: 0 | BG67: 4 | BH67: 1 | BI67: 1 | BJ67: 2 | BK67: 0 | BL67: 1 | BM67: 3 | BN67: 1 | BO67: 8 | BP67: 3 | BQ67: 0 | BR67: 0 | BS67: 0 | BT67: 1 | BU67: 1 | BV67: 0 | BW67: 0 | BX67: 0 | BY67: 0 | BZ67: 0 | CA67: 0 | CB67: 0 | CC67: 0 | CD67: 0 | CE67: 0 | CF67: 0 | CG67: 0 | CH67: 0 | CI67: 0 | CJ67: 0 | CK67: 0 | CL67: 0 | CM67: 0 | CN67: 0 | CO67: 0 | CP67: 0 | CQ67: 0 | CR67: 0 | CS67: 0 | CT67: 0
B68: TRANSFORMERS | C68: ground outdoor / indoor chamber mounted ; > = 22 kv & < = 33 kv ; > 15 mva and < = 40 mva | F68: =SQRT(E68) ->  | G68: 2 | H68: 0 | I68: 2 | J68: 0 | K68: 0 | L68: 1 | M68: 0 | N68: 0 | O68: 4 | P68: 7 | Q68: 8 | R68: 5 | S68: 8 | T68: 2 | U68: 18 | V68: 5 | W68: 1 | X68: 5 | Y68: 8 | Z68: 11 | AA68: 5 | AB68: 4 | AC68: 6 | AD68: 1 | AE68: 0 | AF68: 0 | AG68: 0 | AH68: 0 | AI68: 0 | AJ68: 2 | AK68: 2 | AL68: 0 | AM68: 0 | AN68: 1 | AO68: 0 | AP68: 2 | AQ68: 2 | AR68: 0 | AS68: 0 | AT68: 4 | AU68: 1 | AV68: 6 | AW68: 4 | AX68: 2 | AY68: 3 | AZ68: 6 | BA68: 3 | BB68: 0 | BC68: 2 | BD68: 4 | BE68: 5 | BF68: 2 | BG68: 7 | BH68: 7 | BI68: 5 | BJ68: 1 | BK68: 5 | BL68: 0 | BM68: 1 | BN68: 1 | BO68: 0 | BP68: 0 | BQ68: 0 | BR68: 0 | BS68: 0 | BT68: 0 | BU68: 0 | BV68: 0 | BW68: 0 | BX68: 0 | BY68: 0 | BZ68: 0 | CA68: 0 | CB68: 0 | CC68: 0 | CD68: 0 | CE68: 0 | CF68: 0 | CG68: 0 | CH68: 0 | CI68: 0 | CJ68: 0 | CK68: 0 | CL68: 0 | CM68: 0 | CN68: 0 | CO68: 0 | CP68: 0 | CQ68: 0 | CR68: 0 | CS68: 0 | CT68: 0 | CV68: =$D68*H68 ->  | CW68: =$D68*I68 ->  | CX68: =$D68*J68 ->  | CY68: =$D68*K68 ->  | CZ68: =$D68*L68 ->  | DA68: =$D68*M68 ->  | DB68: =$D68*N68 ->  | DC68: =$D68*O68 ->  | DD68: =$D68*P68 ->  | DE68: =$D68*Q68 ->  | DF68: =$D68*R68 ->  | DG68: =$D68*S68 ->  | DH68: =$D68*T68 ->  | DI68: =$D68*U68 ->  | DJ68: =$D68*V68 ->  | DK68: =$D68*W68 ->  | DL68: =$D68*X68 ->  | DM68: =$D68*Y68 ->  | DN68: =$D68*Z68 ->  | DO68: =$D68*AA68 ->  | DP68: =$D68*AB68 ->  | DQ68: =$D68*AC68 ->  | DR68: =$D68*AD68 ->  | DS68: =$D68*AE68 ->  | DT68: =$D68*AF68 ->  | DU68: =$D68*AG68 ->  | DV68: =$D68*AH68 ->  | DW68: =$D68*AI68 ->  | DX68: =$D68*AJ68 ->  | DY68: =$D68*AK68 ->  | DZ68: =$D68*AL68 ->  | EA68: =$D68*AM68 ->  | EB68: =$D68*AN68 ->  | EC68: =$D68*AO68 ->  | ED68: =$D68*AP68 ->  | EE68: =$D68*AQ68 ->  | EF68: =$D68*AR68 ->  | EG68: =$D68*AS68 ->  | EH68: =$D68*AT68 ->  | EI68: =$D68*AU68 ->  | EJ68: =$D68*AV68 ->  | EK68: =$D68*AW68 ->  | EL68: =$D68*AX68 ->  | EM68: =$D68*AY68 ->  | EN68: =$D68*AZ68 ->  | EO68: =$D68*BA68 ->  | EP68: =$D68*BB68 ->  | EQ68: =$D68*BC68 ->  | ER68: =$D68*BD68 ->  | ES68: =$D68*BE68 ->  | ET68: =$D68*BF68 ->  | EU68: =$D68*BG68 ->  | EV68: =$D68*BH68 ->  | EW68: =$D68*BI68 ->  | EX68: =$D68*BJ68 ->  | EY68: =$D68*BK68 ->  | EZ68: =$D68*BL68 ->  | FA68: =$D68*BM68 ->  | FB68: =$D68*BN68 ->  | FC68: =$D68*BO68 ->  | FD68: =$D68*BP68 ->  | FE68: =$D68*BQ68 ->  | FF68: =$D68*BR68 ->  | FG68: =$D68*BS68 ->  | FH68: =$D68*BT68 ->  | FI68: =$D68*BU68 ->  | FJ68: =$D68*BV68 ->  | FK68: =$D68*BW68 ->  | FL68: =$D68*BX68 ->  | FM68: =$D68*BY68 ->  | FN68: =$D68*BZ68 ->  | FO68: =$D68*CA68 ->  | FP68: =$D68*CB68 ->  | FQ68: =$D68*CC68 ->  | FR68: =$D68*CD68 ->  | FS68: =$D68*CE68 ->  | FT68: =$D68*CF68 ->  | FU68: =$D68*CG68 ->  | FV68: =$D68*CH68 ->  | FW68: =$D68*CI68 ->  | FX68: =$D68*CJ68 ->  | FY68: =$D68*CK68 ->  | FZ68: =$D68*CL68 ->  | GA68: =$D68*CM68 ->  | GB68: =$D68*CN68 ->  | GC68: =$D68*CO68 ->  | GD68: =$D68*CP68 ->  | GE68: =$D68*CQ68 ->  | GF68: =$D68*CR68 ->  | GG68: =$D68*CS68 ->  | GH68: =$D68*CT68 -> 
B69: TRANSFORMERS | C69: ground outdoor / indoor chamber mounted ; > 33 kv & < = 66 kv ; < = 15 mva | G69: 2 | H69: 0 | I69: 0 | J69: 0 | K69: 0 | L69: 0 | M69: 0 | N69: 0 | O69: 0 | P69: 0 | Q69: 0 | R69: 0 | S69: 0 | T69: 0 | U69: 0 | V69: 0 | W69: 0 | X69: 0 | Y69: 0 | Z69: 0 | AA69: 0 | AB69: 0 | AC69: 0 | AD69: 0 | AE69: 0 | AF69: 0 | AG69: 0 | AH69: 0 | AI69: 0 | AJ69: 0 | AK69: 0 | AL69: 0 | AM69: 0 | AN69: 0 | AO69: 0 | AP69: 0 | AQ69: 0 | AR69: 0 | AS69: 0 | AT69: 0 | AU69: 3 | AV69: 0 | AW69: 0 | AX69: 0 | AY69: 0 | AZ69: 0 | BA69: 0 | BB69: 0 | BC69: 0 | BD69: 0 | BE69: 0 | BF69: 0 | BG69: 2 | BH69: 0 | BI69: 0 | BJ69: 0 | BK69: 1 | BL69: 0 | BM69: 2 | BN69: 0 | BO69: 0 | BP69: 0 | BQ69: 0 | BR69: 0 | BS69: 0 | BT69: 0 | BU69: 0 | BV69: 0 | BW69: 0 | BX69: 0 | BY69: 4 | BZ69: 1 | CA69: 1 | CB69: 0 | CC69: 0 | CD69: 0 | CE69: 0 | CF69: 0 | CG69: 0 | CH69: 0 | CI69: 0 | CJ69: 0 | CK69: 0 | CL69: 0 | CM69: 0 | CN69: 0 | CO69: 0 | CP69: 0 | CQ69: 0 | CR69: 0 | CS69: 0 | CT69: 0
B70: TRANSFORMERS | C70: ground outdoor / indoor chamber mounted ; > 33 kv & < = 66 kv ; > 15 mva and < = 40 mva | F70: =SQRT(E70) ->  | G70: 2 | H70: 0 | I70: 0 | J70: 0 | K70: 0 | L70: 0 | M70: 0 | N70: 0 | O70: 0 | P70: 1 | Q70: 0 | R70: 1 | S70: 0 | T70: 4 | U70: 0 | V70: 0 | W70: 2 | X70: 4 | Y70: 2 | Z70: 4 | AA70: 1 | AB70: 0 | AC70: 0 | AD70: 0 | AE70: 0 | AF70: 0 | AG70: 0 | AH70: 0 | AI70: 2 | AJ70: 2 | AK70: 0 | AL70: 0 | AM70: 0 | AN70: 0 | AO70: 1 | AP70: 3 | AQ70: 0 | AR70: 5 | AS70: 0 | AT70: 2 | AU70: 3 | AV70: 2 | AW70: 0 | AX70: 0 | AY70: 2 | AZ70: 0 | BA70: 0 | BB70: 5 | BC70: 0 | BD70: 0 | BE70: 0 | BF70: 0 | BG70: 0 | BH70: 0 | BI70: 0 | BJ70: 0 | BK70: 4 | BL70: 0 | BM70: 0 | BN70: 0 | BO70: 0 | BP70: 0 | BQ70: 1 | BR70: 0 | BS70: 0 | BT70: 0 | BU70: 0 | BV70: 0 | BW70: 0 | BX70: 0 | BY70: 0 | BZ70: 0 | CA70: 0 | CB70: 0 | CC70: 0 | CD70: 0 | CE70: 0 | CF70: 0 | CG70: 0 | CH70: 0 | CI70: 0 | CJ70: 0 | CK70: 0 | CL70: 0 | CM70: 0 | CN70: 0 | CO70: 0 | CP70: 0 | CQ70: 0 | CR70: 0 | CS70: 0 | CT70: 0 | CV70: =$D70*H70 ->  | CW70: =$D70*I70 ->  | CX70: =$D70*J70 ->  | CY70: =$D70*K70 ->  | CZ70: =$D70*L70 ->  | DA70: =$D70*M70 ->  | DB70: =$D70*N70 ->  | DC70: =$D70*O70 ->  | DD70: =$D70*P70 ->  | DE70: =$D70*Q70 ->  | DF70: =$D70*R70 ->  | DG70: =$D70*S70 ->  | DH70: =$D70*T70 ->  | DI70: =$D70*U70 ->  | DJ70: =$D70*V70 ->  | DK70: =$D70*W70 ->  | DL70: =$D70*X70 ->  | DM70: =$D70*Y70 ->  | DN70: =$D70*Z70 ->  | DO70: =$D70*AA70 ->  | DP70: =$D70*AB70 ->  | DQ70: =$D70*AC70 ->  | DR70: =$D70*AD70 ->  | DS70: =$D70*AE70 ->  | DT70: =$D70*AF70 ->  | DU70: =$D70*AG70 ->  | DV70: =$D70*AH70 ->  | DW70: =$D70*AI70 ->  | DX70: =$D70*AJ70 ->  | DY70: =$D70*AK70 ->  | DZ70: =$D70*AL70 ->  | EA70: =$D70*AM70 ->  | EB70: =$D70*AN70 ->  | EC70: =$D70*AO70 ->  | ED70: =$D70*AP70 ->  | EE70: =$D70*AQ70 ->  | EF70: =$D70*AR70 ->  | EG70: =$D70*AS70 ->  | EH70: =$D70*AT70 ->  | EI70: =$D70*AU70 ->  | EJ70: =$D70*AV70 ->  | EK70: =$D70*AW70 ->  | EL70: =$D70*AX70 ->  | EM70: =$D70*AY70 ->  | EN70: =$D70*AZ70 ->  | EO70: =$D70*BA70 ->  | EP70: =$D70*BB70 ->  | EQ70: =$D70*BC70 ->  | ER70: =$D70*BD70 ->  | ES70: =$D70*BE70 ->  | ET70: =$D70*BF70 ->  | EU70: =$D70*BG70 ->  | EV70: =$D70*BH70 ->  | EW70: =$D70*BI70 ->  | EX70: =$D70*BJ70 ->  | EY70: =$D70*BK70 ->  | EZ70: =$D70*BL70 ->  | FA70: =$D70*BM70 ->  | FB70: =$D70*BN70 ->  | FC70: =$D70*BO70 ->  | FD70: =$D70*BP70 ->  | FE70: =$D70*BQ70 ->  | FF70: =$D70*BR70 ->  | FG70: =$D70*BS70 ->  | FH70: =$D70*BT70 ->  | FI70: =$D70*BU70 ->  | FJ70: =$D70*BV70 ->  | FK70: =$D70*BW70 ->  | FL70: =$D70*BX70 ->  | FM70: =$D70*BY70 ->  | FN70: =$D70*BZ70 ->  | FO70: =$D70*CA70 ->  | FP70: =$D70*CB70 ->  | FQ70: =$D70*CC70 ->  | FR70: =$D70*CD70 ->  | FS70: =$D70*CE70 ->  | FT70: =$D70*CF70 ->  | FU70: =$D70*CG70 ->  | FV70: =$D70*CH70 ->  | FW70: =$D70*CI70 ->  | FX70: =$D70*CJ70 ->  | FY70: =$D70*CK70 ->  | FZ70: =$D70*CL70 ->  | GA70: =$D70*CM70 ->  | GB70: =$D70*CN70 ->  | GC70: =$D70*CO70 ->  | GD70: =$D70*CP70 ->  | GE70: =$D70*CQ70 ->  | GF70: =$D70*CR70 ->  | GG70: =$D70*CS70 ->  | GH70: =$D70*CT70 -> 
B71: TRANSFORMERS | C71: ground outdoor / indoor chamber mounted ; > 66 kv & < = 132 kv ; < = 100 mva | G71: 2 | H71: 0 | I71: 0 | J71: 0 | K71: 1 | L71: 2 | M71: 0 | N71: 0 | O71: 2 | P71: 1 | Q71: 4 | R71: 4 | S71: 4 | T71: 0 | U71: 10 | V71: 9 | W71: 0 | X71: 7 | Y71: 10 | Z71: 1 | AA71: 8 | AB71: 1 | AC71: 3 | AD71: 2 | AE71: 0 | AF71: 0 | AG71: 2 | AH71: 2 | AI71: 1 | AJ71: 0 | AK71: 2 | AL71: 2 | AM71: 1 | AN71: 0 | AO71: 0 | AP71: 6 | AQ71: 0 | AR71: 3 | AS71: 2 | AT71: 0 | AU71: 0 | AV71: 0 | AW71: 3 | AX71: 0 | AY71: 0 | AZ71: 0 | BA71: 0 | BB71: 0 | BC71: 0 | BD71: 0 | BE71: 0 | BF71: 0 | BG71: 2 | BH71: 0 | BI71: 0 | BJ71: 0 | BK71: 1 | BL71: 0 | BM71: 0 | BN71: 0 | BO71: 2 | BP71: 1 | BQ71: 0 | BR71: 0 | BS71: 0 | BT71: 0 | BU71: 0 | BV71: 0 | BW71: 0 | BX71: 0 | BY71: 0 | BZ71: 0 | CA71: 0 | CB71: 0 | CC71: 0 | CD71: 0 | CE71: 0 | CF71: 0 | CG71: 0 | CH71: 0 | CI71: 0 | CJ71: 0 | CK71: 0 | CL71: 0 | CM71: 0 | CN71: 0 | CO71: 0 | CP71: 0 | CQ71: 0 | CR71: 0 | CS71: 0 | CT71: 0
B72: TRANSFORMERS | C72: ground outdoor / indoor chamber mounted ; > 66 kv & < = 132 kv ; > 100 mva | G72: 2 | H72: 0 | I72: 0 | J72: 1 | K72: 0 | L72: 0 | M72: 0 | N72: 0 | O72: 0 | P72: 1 | Q72: 1 | R72: 0 | S72: 3 | T72: 0 | U72: 0 | V72: 3 | W72: 0 | X72: 10 | Y72: 1 | Z72: 1 | AA72: 0 | AB72: 0 | AC72: 0 | AD72: 0 | AE72: 0 | AF72: 0 | AG72: 0 | AH72: 0 | AI72: 0 | AJ72: 0 | AK72: 0 | AL72: 0 | AM72: 0 | AN72: 0 | AO72: 0 | AP72: 0 | AQ72: 0 | AR72: 0 | AS72: 0 | AT72: 0 | AU72: 1 | AV72: 0 | AW72: 0 | AX72: 0 | AY72: 0 | AZ72: 1 | BA72: 0 | BB72: 2 | BC72: 0 | BD72: 1 | BE72: 2 | BF72: 0 | BG72: 0 | BH72: 0 | BI72: 4 | BJ72: 1 | BK72: 0 | BL72: 2 | BM72: 0 | BN72: 0 | BO72: 1 | BP72: 0 | BQ72: 0 | BR72: 0 | BS72: 0 | BT72: 0 | BU72: 0 | BV72: 0 | BW72: 0 | BX72: 0 | BY72: 0 | BZ72: 0 | CA72: 0 | CB72: 0 | CC72: 0 | CD72: 0 | CE72: 0 | CF72: 0 | CG72: 0 | CH72: 0 | CI72: 0 | CJ72: 0 | CK72: 0 | CL72: 0 | CM72: 0 | CN72: 0 | CO72: 0 | CP72: 0 | CQ72: 0 | CR72: 0 | CS72: 0 | CT72: 0
A73: 4 | B73: SWITCHGEAR | C73: ˂ = 11 kv ; fuse | D73: 3.480277415 | E73: 68.90159094 | F73: 8.30069822 | G73: 2 | H73: 13 | I73: 102 | J73: 203 | K73: 247 | L73: 642 | M73: 867 | N73: 894 | O73: 725 | P73: 924 | Q73: 932 | R73: 1009 | S73: 878 | T73: 934 | U73: 922 | V73: 789 | W73: 864 | X73: 774 | Y73: 1098 | Z73: 1302 | AA73: 946 | AB73: 1026 | AC73: 768 | AD73: 725 | AE73: 488 | AF73: 517 | AG73: 451 | AH73: 582 | AI73: 662 | AJ73: 645 | AK73: 770 | AL73: 689 | AM73: 895 | AN73: 877 | AO73: 1048 | AP73: 883 | AQ73: 793 | AR73: 959 | AS73: 1376 | AT73: 1805 | AU73: 1238 | AV73: 1088 | AW73: 1871 | AX73: 1432 | AY73: 1029 | AZ73: 945 | BA73: 789 | BB73: 838 | BC73: 486 | BD73: 255 | BE73: 292 | BF73: 336 | BG73: 286 | BH73: 418 | BI73: 368 | BJ73: 381 | BK73: 279 | BL73: 256 | BM73: 272 | BN73: 231 | BO73: 124 | BP73: 116 | BQ73: 108 | BR73: 208 | BS73: 50 | BT73: 31 | BU73: 62 | BV73: 10 | BW73: 28 | BX73: 43 | BY73: 56 | BZ73: 21 | CA73: 5 | CB73: 0 | CC73: 0 | CD73: 2 | CE73: 0 | CF73: 0 | CG73: 0 | CH73: 0 | CI73: 0 | CJ73: 0 | CK73: 0 | CL73: 0 | CM73: 0 | CN73: 0 | CO73: 0 | CP73: 0 | CQ73: 0 | CR73: 0 | CS73: 0 | CT73: 0 | CV73: 45.24360639 | CW73: 354.9882963 | CX73: 706.4963152 | CY73: 859.6285214 | CZ73: 2234.3381 | DA73: 3017.400519 | DB73: 3111.368009 | DC73: 2523.201126 | DD73: 3215.776331 | DE73: 3243.61855 | DF73: 3511.599911 | DG73: 3055.68357 | DH73: 3250.579105 | DI73: 3208.815776 | DJ73: 2745.93888 | DK73: 3006.959686 | DL73: 2693.734719 | DM73: 3821.344601 | DN73: 4531.321194 | DO73: 3292.342434 | DP73: 3570.764627 | DQ73: 2672.853054 | DR73: 2523.201126 | DS73: 1698.375378 | DT73: 1799.303423 | DU73: 1569.605114 | DV73: 2025.521455 | DW73: 2303.943649 | DX73: 2244.778932 | DY73: 2679.813609 | DZ73: 2397.911139 | EA73: 3114.848286 | EB73: 3052.203293 | EC73: 3647.330731 | ED73: 3073.084957 | EE73: 2759.85999 | EF73: 3337.586041 | EG73: 4788.861723 | EH73: 6281.900733 | EI73: 4308.583439 | EJ73: 3786.541827 | EK73: 6511.599043 | EL73: 4983.757258 | EM73: 3581.20546 | EN73: 3288.862157 | EO73: 2745.93888 | EP73: 2916.472473 | EQ73: 1691.414824 | ER73: 887.4707407 | ES73: 1016.241005 | ET73: 1169.373211 | EU73: 995.3593406 | EV73: 1454.755959 | EW73: 1280.742089 | EX73: 1325.985695 | EY73: 970.9973987 | EZ73: 890.9510182 | FA73: 946.6354568 | FB73: 803.9440828 | FC73: 431.5543994 | FD73: 403.7121801 | FE73: 375.8699608 | FF73: 723.8977023 | FG73: 174.0138707 | FH73: 107.8885999 | FI73: 215.7771997 | FJ73: 34.80277415 | FK73: 97.44776761 | FL73: 149.6519288 | FM73: 194.8955352 | FN73: 73.08582571 | FO73: 17.40138707 | FP73: 0 | FQ73: 0 | FR73: 6.960554829 | FS73: 0 | FT73: 0 | FU73: 0 | FV73: 0 | FW73: 0 | FX73: 0 | FY73: 0 | FZ73: 0 | GA73: 0 | GB73: 0 | GC73: 0 | GD73: 0 | GE73: 0 | GF73: 0 | GG73: 0 | GH73: 0
A74: 4 | B74: SWITCHGEAR | C74: ˂ = 11 kv ; switch | D74: 17.801244 | E74: 41.8126673 | F74: 6.466271515 | G74: 2 | H74: 150 | I74: 829 | J74: 992 | K74: 1005 | L74: 1182 | M74: 1001 | N74: 823 | O74: 973 | P74: 1268 | Q74: 1386 | R74: 1168 | S74: 1023 | T74: 1007 | U74: 1135 | V74: 1291 | W74: 1291 | X74: 1046 | Y74: 1035 | Z74: 1078 | AA74: 804 | AB74: 736 | AC74: 664 | AD74: 592 | AE74: 529 | AF74: 264 | AG74: 237 | AH74: 262 | AI74: 309 | AJ74: 310 | AK74: 310 | AL74: 292 | AM74: 451 | AN74: 616 | AO74: 586 | AP74: 598 | AQ74: 563 | AR74: 495 | AS74: 640 | AT74: 755 | AU74: 534 | AV74: 554 | AW74: 437 | AX74: 473 | AY74: 333 | AZ74: 302 | BA74: 146 | BB74: 242 | BC74: 147 | BD74: 84 | BE74: 72 | BF74: 105 | BG74: 51 | BH74: 89 | BI74: 41 | BJ74: 22 | BK74: 25 | BL74: 55 | BM74: 48 | BN74: 13 | BO74: 4 | BP74: 12 | BQ74: 7 | BR74: 29 | BS74: 0 | BT74: 0 | BU74: 0 | BV74: 0 | BW74: 0 | BX74: 1 | BY74: 0 | BZ74: 0 | CA74: 0 | CB74: 0 | CC74: 0 | CD74: 0 | CE74: 0 | CF74: 0 | CG74: 0 | CH74: 0 | CI74: 0 | CJ74: 0 | CK74: 0 | CL74: 0 | CM74: 0 | CN74: 0 | CO74: 0 | CP74: 0 | CQ74: 0 | CR74: 0 | CS74: 0 | CT74: 0 | CV74: 2670.1866 | CW74: 14757.23127 | CX74: 17658.83405 | CY74: 17890.25022 | CZ74: 21041.07041 | DA74: 17819.04524 | DB74: 14650.42381 | DC74: 17320.61041 | DD74: 22571.97739 | DE74: 24672.52418 | DF74: 20791.85299 | DG74: 18210.67261 | DH74: 17925.85271 | DI74: 20204.41194 | DJ74: 22981.406 | DK74: 22981.406 | DL74: 18620.10122 | DM74: 18424.28754 | DN74: 19189.74103 | DO74: 14312.20017 | DP74: 13101.71558 | DQ74: 11820.02601 | DR74: 10538.33645 | DS74: 9416.858075 | DT74: 4699.528416 | DU74: 4218.894828 | DV74: 4663.925928 | DW74: 5500.584395 | DX74: 5518.385639 | DY74: 5518.385639 | DZ74: 5197.963247 | EA74: 8028.361043 | EB74: 10965.5663 | EC74: 10431.52898 | ED74: 10645.14391 | EE74: 10022.10037 | EF74: 8811.615779 | EG74: 11392.79616 | EH74: 13439.93922 | EI74: 9505.864295 | EJ74: 9861.889175 | EK74: 7779.143627 | EL74: 8419.988411 | EM74: 5927.814251 | EN74: 5375.975687 | EO74: 2598.981624 | EP74: 4307.901048 | EQ74: 2616.782868 | ER74: 1495.304496 | ES74: 1281.689568 | ET74: 1869.13062 | EU74: 907.8634439 | EV74: 1584.310716 | EW74: 729.8510039 | EX74: 391.627368 | EY74: 445.0311 | EZ74: 979.0684199 | FA74: 854.4597119 | FB74: 231.416172 | FC74: 71.20497599 | FD74: 213.614928 | FE74: 124.608708 | FF74: 516.2360759 | FG74: 0 | FH74: 0 | FI74: 0 | FJ74: 0 | FK74: 0 | FL74: 17.801244 | FM74: 0 | FN74: 0 | FO74: 0 | FP74: 0 | FQ74: 0 | FR74: 0 | FS74: 0 | FT74: 0 | FU74: 0 | FV74: 0 | FW74: 0 | FX74: 0 | FY74: 0 | FZ74: 0 | GA74: 0 | GB74: 0 | GC74: 0 | GD74: 0 | GE74: 0 | GF74: 0 | GG74: 0 | GH74: 0
A75: 4 | B75: SWITCHGEAR | C75: ˂ = 11 kv ; circuit breaker | D75: 328.7152767 | E75: 53.37525297 | F75: 7.305836911 | G75: 2 | H75: 6 | I75: 67 | J75: 67 | K75: 130 | L75: 87 | M75: 57 | N75: 64 | O75: 62 | P75: 179 | Q75: 300 | R75: 266 | S75: 168 | T75: 117 | U75: 84 | V75: 139 | W75: 147 | X75: 129 | Y75: 150 | Z75: 77 | AA75: 69 | AB75: 66 | AC75: 59 | AD75: 13 | AE75: 0 | AF75: 42 | AG75: 5 | AH75: 7 | AI75: 4 | AJ75: 21 | AK75: 13 | AL75: 7 | AM75: 27 | AN75: 26 | AO75: 39 | AP75: 40 | AQ75: 14 | AR75: 36 | AS75: 8 | AT75: 181 | AU75: 179 | AV75: 33 | AW75: 77 | AX75: 11 | AY75: 3 | AZ75: 0 | BA75: 0 | BB75: 13 | BC75: 5 | BD75: 0 | BE75: 0 | BF75: 0 | BG75: 0 | BH75: 0 | BI75: 0 | BJ75: 2 | BK75: 4 | BL75: 37 | BM75: 0 | BN75: 10 | BO75: 0 | BP75: 0 | BQ75: 0 | BR75: 0 | BS75: 1 | BT75: 0 | BU75: 0 | BV75: 0 | BW75: 0 | BX75: 0 | BY75: 0 | BZ75: 0 | CA75: 0 | CB75: 0 | CC75: 0 | CD75: 0 | CE75: 0 | CF75: 0 | CG75: 0 | CH75: 0 | CI75: 0 | CJ75: 0 | CK75: 0 | CL75: 0 | CM75: 0 | CN75: 0 | CO75: 0 | CP75: 0 | CQ75: 0 | CR75: 0 | CS75: 0 | CT75: 0 | CV75: 1972.29166 | CW75: 22023.92354 | CX75: 22023.92354 | CY75: 42732.98597 | CZ75: 28598.22907 | DA75: 18736.77077 | DB75: 21037.77771 | DC75: 20380.34715 | DD75: 58840.03453 | DE75: 98614.583 | DF75: 87438.2636 | DG75: 55224.16648 | DH75: 38459.68737 | DI75: 27612.08324 | DJ75: 45691.42346 | DK75: 48321.14567 | DL75: 42404.27069 | DM75: 49307.2915 | DN75: 25311.0763 | DO75: 22681.35409 | DP75: 21695.20826 | DQ75: 19394.20132 | DR75: 4273.298597 | DS75: 0 | DT75: 13806.04162 | DU75: 1643.576383 | DV75: 2301.006937 | DW75: 1314.861107 | DX75: 6903.02081 | DY75: 4273.298597 | DZ75: 2301.006937 | EA75: 8875.31247 | EB75: 8546.597194 | EC75: 12819.89579 | ED75: 13148.61107 | EE75: 4602.013873 | EF75: 11833.74996 | EG75: 2629.722213 | EH75: 59497.46508 | EI75: 58840.03453 | EJ75: 10847.60413 | EK75: 25311.0763 | EL75: 3615.868043 | EM75: 986.14583 | EN75: 0 | EO75: 0 | EP75: 4273.298597 | EQ75: 1643.576383 | ER75: 0 | ES75: 0 | ET75: 0 | EU75: 0 | EV75: 0 | EW75: 0 | EX75: 657.4305534 | EY75: 1314.861107 | EZ75: 12162.46524 | FA75: 0 | FB75: 3287.152767 | FC75: 0 | FD75: 0 | FE75: 0 | FF75: 0 | FG75: 328.7152767 | FH75: 0 | FI75: 0 | FJ75: 0 | FK75: 0 | FL75: 0 | FM75: 0 | FN75: 0 | FO75: 0 | FP75: 0 | FQ75: 0 | FR75: 0 | FS75: 0 | FT75: 0 | FU75: 0 | FV75: 0 | FW75: 0 | FX75: 0 | FY75: 0 | FZ75: 0 | GA75: 0 | GB75: 0 | GC75: 0 | GD75: 0 | GE75: 0 | GF75: 0 | GG75: 0 | GH75: 0
A76: 4 | B76: SWITCHGEAR | C76: > 11 kv & < = 22 kv ; switch | D76: 5.338039163 | E76: 41.1380271 | F76: 6.413893287 | G76: 2 | H76: 0 | I76: 1 | J76: 4 | K76: 32 | L76: 39 | M76: 75 | N76: 130 | O76: 126 | P76: 55 | Q76: 35 | R76: 25 | S76: 35 | T76: 20 | U76: 21 | V76: 36 | W76: 26 | X76: 54 | Y76: 35 | Z76: 68 | AA76: 42 | AB76: 53 | AC76: 40 | AD76: 24 | AE76: 17 | AF76: 17 | AG76: 8 | AH76: 5 | AI76: 6 | AJ76: 4 | AK76: 2 | AL76: 1 | AM76: 3 | AN76: 2 | AO76: 10 | AP76: 2 | AQ76: 2 | AR76: 7 | AS76: 3 | AT76: 4 | AU76: 0 | AV76: 0 | AW76: 4 | AX76: 0 | AY76: 0 | AZ76: 0 | BA76: 0 | BB76: 0 | BC76: 0 | BD76: 0 | BE76: 1 | BF76: 0 | BG76: 0 | BH76: 0 | BI76: 0 | BJ76: 0 | BK76: 0 | BL76: 0 | BM76: 0 | BN76: 0 | BO76: 0 | BP76: 0 | BQ76: 0 | BR76: 0 | BS76: 0 | BT76: 0 | BU76: 0 | BV76: 0 | BW76: 0 | BX76: 0 | BY76: 0 | BZ76: 0 | CA76: 0 | CB76: 0 | CC76: 0 | CD76: 0 | CE76: 0 | CF76: 0 | CG76: 0 | CH76: 0 | CI76: 0 | CJ76: 0 | CK76: 0 | CL76: 0 | CM76: 0 | CN76: 0 | CO76: 0 | CP76: 0 | CQ76: 0 | CR76: 0 | CS76: 0 | CT76: 0 | CV76: 0 | CW76: 5.338039163 | CX76: 21.35215665 | CY76: 170.8172532 | CZ76: 208.1835274 | DA76: 400.3529372 | DB76: 693.9450912 | DC76: 672.5929345 | DD76: 293.592154 | DE76: 186.8313707 | DF76: 133.4509791 | DG76: 186.8313707 | DH76: 106.7607833 | DI76: 112.0988224 | DJ76: 192.1694099 | DK76: 138.7890182 | DL76: 288.2541148 | DM76: 186.8313707 | DN76: 362.9866631 | DO76: 224.1976448 | DP76: 282.9160756 | DQ76: 213.5215665 | DR76: 128.1129399 | DS76: 90.74666577 | DT76: 90.74666577 | DU76: 42.7043133 | DV76: 26.69019581 | DW76: 32.02823498 | DX76: 21.35215665 | DY76: 10.67607833 | DZ76: 5.338039163 | EA76: 16.01411749 | EB76: 10.67607833 | EC76: 53.38039163 | ED76: 10.67607833 | EE76: 10.67607833 | EF76: 37.36627414 | EG76: 16.01411749 | EH76: 21.35215665 | EI76: 0 | EJ76: 0 | EK76: 21.35215665 | EL76: 0 | EM76: 0 | EN76: 0 | EO76: 0 | EP76: 0 | EQ76: 0 | ER76: 0 | ES76: 5.338039163 | ET76: 0 | EU76: 0 | EV76: 0 | EW76: 0 | EX76: 0 | EY76: 0 | EZ76: 0 | FA76: 0 | FB76: 0 | FC76: 0 | FD76: 0 | FE76: 0 | FF76: 0 | FG76: 0 | FH76: 0 | FI76: 0 | FJ76: 0 | FK76: 0 | FL76: 0 | FM76: 0 | FN76: 0 | FO76: 0 | FP76: 0 | FQ76: 0 | FR76: 0 | FS76: 0 | FT76: 0 | FU76: 0 | FV76: 0 | FW76: 0 | FX76: 0 | FY76: 0 | FZ76: 0 | GA76: 0 | GB76: 0 | GC76: 0 | GD76: 0 | GE76: 0 | GF76: 0 | GG76: 0 | GH76: 0
B77: SWITCHGEAR | C77: > 11 kv & < = 22 kv ; circuit breaker | D77: 328.7152767 | E77: 53.37525297 | F77: 7.305836911 | G77: 2 | H77: 0 | I77: 0 | J77: 0 | K77: 0 | L77: 0 | M77: 1 | N77: 0 | O77: 0 | P77: 0 | Q77: 1 | R77: 0 | S77: 3 | T77: 30 | U77: 1 | V77: 0 | W77: 0 | X77: 0 | Y77: 7 | Z77: 0 | AA77: 0 | AB77: 0 | AC77: 2 | AD77: 16 | AE77: 0 | AF77: 0 | AG77: 0 | AH77: 0 | AI77: 0 | AJ77: 0 | AK77: 0 | AL77: 0 | AM77: 0 | AN77: 0 | AO77: 0 | AP77: 0 | AQ77: 0 | AR77: 0 | AS77: 0 | AT77: 0 | AU77: 0 | AV77: 0 | AW77: 0 | AX77: 0 | AY77: 0 | AZ77: 0 | BA77: 0 | BB77: 0 | BC77: 0 | BD77: 0 | BE77: 0 | BF77: 0 | BG77: 0 | BH77: 0 | BI77: 0 | BJ77: 0 | BK77: 0 | BL77: 0 | BM77: 0 | BN77: 0 | BO77: 0 | BP77: 0 | BQ77: 0 | BR77: 0 | BS77: 0 | BT77: 0 | BU77: 0 | BV77: 0 | BW77: 0 | BX77: 0 | BY77: 0 | BZ77: 0 | CA77: 0 | CB77: 0 | CC77: 0 | CD77: 0 | CE77: 0 | CF77: 0 | CG77: 0 | CH77: 0 | CI77: 0 | CJ77: 0 | CK77: 0 | CL77: 0 | CM77: 0 | CN77: 0 | CO77: 0 | CP77: 0 | CQ77: 0 | CR77: 0 | CS77: 0 | CT77: 0 | CV77: 0 | CW77: 0 | CX77: 0 | CY77: 0 | CZ77: 0 | DA77: 328.7152767 | DB77: 0 | DC77: 0 | DD77: 0 | DE77: 328.7152767 | DF77: 0 | DG77: 986.14583 | DH77: 9861.4583 | DI77: 328.7152767 | DJ77: 0 | DK77: 0 | DL77: 0 | DM77: 2301.006937 | DN77: 0 | DO77: 0 | DP77: 0 | DQ77: 657.4305534 | DR77: 5259.444427 | DS77: 0 | DT77: 0 | DU77: 0 | DV77: 0 | DW77: 0 | DX77: 0 | DY77: 0 | DZ77: 0 | EA77: 0 | EB77: 0 | EC77: 0 | ED77: 0 | EE77: 0 | EF77: 0 | EG77: 0 | EH77: 0 | EI77: 0 | EJ77: 0 | EK77: 0 | EL77: 0 | EM77: 0 | EN77: 0 | EO77: 0 | EP77: 0 | EQ77: 0 | ER77: 0 | ES77: 0 | ET77: 0 | EU77: 0 | EV77: 0 | EW77: 0 | EX77: 0 | EY77: 0 | EZ77: 0 | FA77: 0 | FB77: 0 | FC77: 0 | FD77: 0 | FE77: 0 | FF77: 0 | FG77: 0 | FH77: 0 | FI77: 0 | FJ77: 0 | FK77: 0 | FL77: 0 | FM77: 0 | FN77: 0 | FO77: 0 | FP77: 0 | FQ77: 0 | FR77: 0 | FS77: 0 | FT77: 0 | FU77: 0 | FV77: 0 | FW77: 0 | FX77: 0 | FY77: 0 | FZ77: 0 | GA77: 0 | GB77: 0 | GC77: 0 | GD77: 0 | GE77: 0 | GF77: 0 | GG77: 0 | GH77: 0
A78: 4 | B78: SWITCHGEAR | C78: > 22 kv & < = 33 kv ; switch | D78: 25.61705669 | E78: 24.73786233 | F78: 4.973717154 | G78: 2 | H78: 0 | I78: 3 | J78: 2 | K78: 13 | L78: 2 | M78: 7 | N78: 9 | O78: 0 | P78: 7 | Q78: 4 | R78: 5 | S78: 3 | T78: 0 | U78: 4 | V78: 1 | W78: 7 | X78: 5 | Y78: 7 | Z78: 6 | AA78: 4 | AB78: 0 | AC78: 1 | AD78: 9 | AE78: 1 | AF78: 2 | AG78: 0 | AH78: 0 | AI78: 0 | AJ78: 0 | AK78: 1 | AL78: 0 | AM78: 0 | AN78: 0 | AO78: 0 | AP78: 0 | AQ78: 0 | AR78: 1 | AS78: 0 | AT78: 0 | AU78: 0 | AV78: 0 | AW78: 0 | AX78: 0 | AY78: 0 | AZ78: 0 | BA78: 0 | BB78: 0 | BC78: 0 | BD78: 0 | BE78: 0 | BF78: 0 | BG78: 0 | BH78: 0 | BI78: 0 | BJ78: 0 | BK78: 0 | BL78: 0 | BM78: 0 | BN78: 0 | BO78: 0 | BP78: 0 | BQ78: 0 | BR78: 0 | BS78: 0 | BT78: 0 | BU78: 0 | BV78: 0 | BW78: 0 | BX78: 0 | BY78: 0 | BZ78: 0 | CA78: 0 | CB78: 0 | CC78: 0 | CD78: 0 | CE78: 0 | CF78: 0 | CG78: 0 | CH78: 0 | CI78: 0 | CJ78: 0 | CK78: 0 | CL78: 0 | CM78: 0 | CN78: 0 | CO78: 0 | CP78: 0 | CQ78: 0 | CR78: 0 | CS78: 0 | CT78: 0 | CV78: 0 | CW78: 76.85117007 | CX78: 51.23411338 | CY78: 333.021737 | CZ78: 51.23411338 | DA78: 179.3193968 | DB78: 230.5535102 | DC78: 0 | DD78: 179.3193968 | DE78: 102.4682268 | DF78: 128.0852835 | DG78: 76.85117007 | DH78: 0 | DI78: 102.4682268 | DJ78: 25.61705669 | DK78: 179.3193968 | DL78: 128.0852835 | DM78: 179.3193968 | DN78: 153.7023401 | DO78: 102.4682268 | DP78: 0 | DQ78: 25.61705669 | DR78: 230.5535102 | DS78: 25.61705669 | DT78: 51.23411338 | DU78: 0 | DV78: 0 | DW78: 0 | DX78: 0 | DY78: 25.61705669 | DZ78: 0 | EA78: 0 | EB78: 0 | EC78: 0 | ED78: 0 | EE78: 0 | EF78: 25.61705669 | EG78: 0 | EH78: 0 | EI78: 0 | EJ78: 0 | EK78: 0 | EL78: 0 | EM78: 0 | EN78: 0 | EO78: 0 | EP78: 0 | EQ78: 0 | ER78: 0 | ES78: 0 | ET78: 0 | EU78: 0 | EV78: 0 | EW78: 0 | EX78: 0 | EY78: 0 | EZ78: 0 | FA78: 0 | FB78: 0 | FC78: 0 | FD78: 0 | FE78: 0 | FF78: 0 | FG78: 0 | FH78: 0 | FI78: 0 | FJ78: 0 | FK78: 0 | FL78: 0 | FM78: 0 | FN78: 0 | FO78: 0 | FP78: 0 | FQ78: 0 | FR78: 0 | FS78: 0 | FT78: 0 | FU78: 0 | FV78: 0 | FW78: 0 | FX78: 0 | FY78: 0 | FZ78: 0 | GA78: 0 | GB78: 0 | GC78: 0 | GD78: 0 | GE78: 0 | GF78: 0 | GG78: 0 | GH78: 0
A79: 4 | B79: SWITCHGEAR | C79: > 22 kv & < = 33 kv ; circuit breaker | D79: 318.0919528 | E79: 69.14579031 | F79: 8.315394778 | G79: 2 | H79: 0 | I79: 3 | J79: 6 | K79: 14 | L79: 22 | M79: 1 | N79: 5 | O79: 30 | P79: 119 | Q79: 65 | R79: 89 | S79: 65 | T79: 62 | U79: 55 | V79: 19 | W79: 31 | X79: 24 | Y79: 17 | Z79: 24 | AA79: 22 | AB79: 4 | AC79: 11 | AD79: 4 | AE79: 5 | AF79: 0 | AG79: 7 | AH79: 10 | AI79: 4 | AJ79: 13 | AK79: 0 | AL79: 0 | AM79: 5 | AN79: 6 | AO79: 0 | AP79: 1 | AQ79: 1 | AR79: 0 | AS79: 6 | AT79: 12 | AU79: 2 | AV79: 6 | AW79: 26 | AX79: 0 | AY79: 0 | AZ79: 1 | BA79: 0 | BB79: 16 | BC79: 2 | BD79: 2 | BE79: 1 | BF79: 26 | BG79: 5 | BH79: 32 | BI79: 18 | BJ79: 1 | BK79: 26 | BL79: 21 | BM79: 17 | BN79: 6 | BO79: 0 | BP79: 0 | BQ79: 1 | BR79: 2 | BS79: 0 | BT79: 0 | BU79: 0 | BV79: 0 | BW79: 0 | BX79: 0 | BY79: 0 | BZ79: 0 | CA79: 0 | CB79: 0 | CC79: 0 | CD79: 0 | CE79: 0 | CF79: 0 | CG79: 0 | CH79: 0 | CI79: 0 | CJ79: 0 | CK79: 0 | CL79: 0 | CM79: 0 | CN79: 0 | CO79: 0 | CP79: 0 | CQ79: 0 | CR79: 0 | CS79: 0 | CT79: 0 | CV79: 0 | CW79: 954.2758584 | CX79: 1908.551717 | CY79: 4453.287339 | CZ79: 6998.022962 | DA79: 318.0919528 | DB79: 1590.459764 | DC79: 9542.758584 | DD79: 37852.94238 | DE79: 20675.97693 | DF79: 28310.1838 | DG79: 20675.97693 | DH79: 19721.70107 | DI79: 17495.0574 | DJ79: 6043.747103 | DK79: 9860.850537 | DL79: 7634.206868 | DM79: 5407.563198 | DN79: 7634.206868 | DO79: 6998.022962 | DP79: 1272.367811 | DQ79: 3499.011481 | DR79: 1272.367811 | DS79: 1590.459764 | DT79: 0 | DU79: 2226.64367 | DV79: 3180.919528 | DW79: 1272.367811 | DX79: 4135.195387 | DY79: 0 | DZ79: 0 | EA79: 1590.459764 | EB79: 1908.551717 | EC79: 0 | ED79: 318.0919528 | EE79: 318.0919528 | EF79: 0 | EG79: 1908.551717 | EH79: 3817.103434 | EI79: 636.1839056 | EJ79: 1908.551717 | EK79: 8270.390773 | EL79: 0 | EM79: 0 | EN79: 318.0919528 | EO79: 0 | EP79: 5089.471245 | EQ79: 636.1839056 | ER79: 636.1839056 | ES79: 318.0919528 | ET79: 8270.390773 | EU79: 1590.459764 | EV79: 10178.94249 | EW79: 5725.655151 | EX79: 318.0919528 | EY79: 8270.390773 | EZ79: 6679.931009 | FA79: 5407.563198 | FB79: 1908.551717 | FC79: 0 | FD79: 0 | FE79: 318.0919528 | FF79: 636.1839056 | FG79: 0 | FH79: 0 | FI79: 0 | FJ79: 0 | FK79: 0 | FL79: 0 | FM79: 0 | FN79: 0 | FO79: 0 | FP79: 0 | FQ79: 0 | FR79: 0 | FS79: 0 | FT79: 0 | FU79: 0 | FV79: 0 | FW79: 0 | FX79: 0 | FY79: 0 | FZ79: 0 | GA79: 0 | GB79: 0 | GC79: 0 | GD79: 0 | GE79: 0 | GF79: 0 | GG79: 0 | GH79: 0
A80: 4 | B80: SWITCHGEAR | C80: > 33 kv & < = 66 kv ; switch | D80: 23.5180342 | E80: 17.91953868 | F80: 4.233147609 | G80: 2 | H80: 0 | I80: 0 | J80: 0 | K80: 0 | L80: 0 | M80: 0 | N80: 0 | O80: 0 | P80: 4 | Q80: 1 | R80: 0 | S80: 0 | T80: 1 | U80: 0 | V80: 0 | W80: 1 | X80: 1 | Y80: 0 | Z80: 0 | AA80: 0 | AB80: 0 | AC80: 0 | AD80: 2 | AE80: 0 | AF80: 0 | AG80: 0 | AH80: 0 | AI80: 0 | AJ80: 0 | AK80: 0 | AL80: 0 | AM80: 0 | AN80: 0 | AO80: 0 | AP80: 0 | AQ80: 0 | AR80: 0 | AS80: 0 | AT80: 0 | AU80: 0 | AV80: 0 | AW80: 0 | AX80: 0 | AY80: 0 | AZ80: 0 | BA80: 0 | BB80: 0 | BC80: 0 | BD80: 0 | BE80: 0 | BF80: 0 | BG80: 0 | BH80: 0 | BI80: 0 | BJ80: 0 | BK80: 0 | BL80: 0 | BM80: 0 | BN80: 0 | BO80: 0 | BP80: 0 | BQ80: 0 | BR80: 0 | BS80: 0 | BT80: 0 | BU80: 0 | BV80: 0 | BW80: 0 | BX80: 0 | BY80: 0 | BZ80: 0 | CA80: 0 | CB80: 0 | CC80: 0 | CD80: 0 | CE80: 0 | CF80: 0 | CG80: 0 | CH80: 0 | CI80: 0 | CJ80: 0 | CK80: 0 | CL80: 0 | CM80: 0 | CN80: 0 | CO80: 0 | CP80: 0 | CQ80: 0 | CR80: 0 | CS80: 0 | CT80: 0 | CV80: 0 | CW80: 0 | CX80: 0 | CY80: 0 | CZ80: 0 | DA80: 0 | DB80: 0 | DC80: 0 | DD80: 94.0721368 | DE80: 23.5180342 | DF80: 0 | DG80: 0 | DH80: 23.5180342 | DI80: 0 | DJ80: 0 | DK80: 23.5180342 | DL80: 23.5180342 | DM80: 0 | DN80: 0 | DO80: 0 | DP80: 0 | DQ80: 0 | DR80: 47.0360684 | DS80: 0 | DT80: 0 | DU80: 0 | DV80: 0 | DW80: 0 | DX80: 0 | DY80: 0 | DZ80: 0 | EA80: 0 | EB80: 0 | EC80: 0 | ED80: 0 | EE80: 0 | EF80: 0 | EG80: 0 | EH80: 0 | EI80: 0 | EJ80: 0 | EK80: 0 | EL80: 0 | EM80: 0 | EN80: 0 | EO80: 0 | EP80: 0 | EQ80: 0 | ER80: 0 | ES80: 0 | ET80: 0 | EU80: 0 | EV80: 0 | EW80: 0 | EX80: 0 | EY80: 0 | EZ80: 0 | FA80: 0 | FB80: 0 | FC80: 0 | FD80: 0 | FE80: 0 | FF80: 0 | FG80: 0 | FH80: 0 | FI80: 0 | FJ80: 0 | FK80: 0 | FL80: 0 | FM80: 0 | FN80: 0 | FO80: 0 | FP80: 0 | FQ80: 0 | FR80: 0 | FS80: 0 | FT80: 0 | FU80: 0 | FV80: 0 | FW80: 0 | FX80: 0 | FY80: 0 | FZ80: 0 | GA80: 0 | GB80: 0 | GC80: 0 | GD80: 0 | GE80: 0 | GF80: 0 | GG80: 0 | GH80: 0
A81: 4 | B81: SWITCHGEAR | C81: > 33 kv & < = 66 kv ; circuit breaker | D81: 181.6384361 | E81: 47.68756321 | F81: 6.905618235 | G81: 2 | H81: 0 | I81: 0 | J81: 1 | K81: 0 | L81: 0 | M81: 0 | N81: 1 | O81: 0 | P81: 13 | Q81: 5 | R81: 20 | S81: 26 | T81: 3 | U81: 25 | V81: 9 | W81: 12 | X81: 10 | Y81: 5 | Z81: 0 | AA81: 7 | AB81: 0 | AC81: 5 | AD81: 1 | AE81: 0 | AF81: 0 | AG81: 0 | AH81: 3 | AI81: 2 | AJ81: 0 | AK81: 0 | AL81: 0 | AM81: 0 | AN81: 9 | AO81: 3 | AP81: 5 | AQ81: 0 | AR81: 5 | AS81: 0 | AT81: 3 | AU81: 1 | AV81: 1 | AW81: 7 | AX81: 2 | AY81: 0 | AZ81: 0 | BA81: 0 | BB81: 0 | BC81: 0 | BD81: 0 | BE81: 0 | BF81: 0 | BG81: 0 | BH81: 0 | BI81: 0 | BJ81: 0 | BK81: 0 | BL81: 0 | BM81: 2 | BN81: 0 | BO81: 0 | BP81: 0 | BQ81: 0 | BR81: 0 | BS81: 0 | BT81: 0 | BU81: 0 | BV81: 0 | BW81: 0 | BX81: 0 | BY81: 0 | BZ81: 0 | CA81: 0 | CB81: 0 | CC81: 0 | CD81: 0 | CE81: 0 | CF81: 0 | CG81: 0 | CH81: 0 | CI81: 0 | CJ81: 0 | CK81: 0 | CL81: 0 | CM81: 0 | CN81: 0 | CO81: 0 | CP81: 0 | CQ81: 0 | CR81: 0 | CS81: 0 | CT81: 0 | CV81: 0 | CW81: 0 | CX81: 181.6384361 | CY81: 0 | CZ81: 0 | DA81: 0 | DB81: 181.6384361 | DC81: 0 | DD81: 2361.29967 | DE81: 908.1921806 | DF81: 3632.768722 | DG81: 4722.599339 | DH81: 544.9153084 | DI81: 4540.960903 | DJ81: 1634.745925 | DK81: 2179.661233 | DL81: 1816.384361 | DM81: 908.1921806 | DN81: 0 | DO81: 1271.469053 | DP81: 0 | DQ81: 908.1921806 | DR81: 181.6384361 | DS81: 0 | DT81: 0 | DU81: 0 | DV81: 544.9153084 | DW81: 363.2768722 | DX81: 0 | DY81: 0 | DZ81: 0 | EA81: 0 | EB81: 1634.745925 | EC81: 544.9153084 | ED81: 908.1921806 | EE81: 0 | EF81: 908.1921806 | EG81: 0 | EH81: 544.9153084 | EI81: 181.6384361 | EJ81: 181.6384361 | EK81: 1271.469053 | EL81: 363.2768722 | EM81: 0 | EN81: 0 | EO81: 0 | EP81: 0 | EQ81: 0 | ER81: 0 | ES81: 0 | ET81: 0 | EU81: 0 | EV81: 0 | EW81: 0 | EX81: 0 | EY81: 0 | EZ81: 0 | FA81: 363.2768722 | FB81: 0 | FC81: 0 | FD81: 0 | FE81: 0 | FF81: 0 | FG81: 0 | FH81: 0 | FI81: 0 | FJ81: 0 | FK81: 0 | FL81: 0 | FM81: 0 | FN81: 0 | FO81: 0 | FP81: 0 | FQ81: 0 | FR81: 0 | FS81: 0 | FT81: 0 | FU81: 0 | FV81: 0 | FW81: 0 | FX81: 0 | FY81: 0 | FZ81: 0 | GA81: 0 | GB81: 0 | GC81: 0 | GD81: 0 | GE81: 0 | GF81: 0 | GG81: 0 | GH81: 0
B82: SWITCHGEAR | C82: > 66 kv & < = 132 kv ; switch | D82: 23.5180342 | E82: 17.91953868 | F82: 4.233147609 | G82: 2 | H82: 0 | I82: 0 | J82: 0 | K82: 0 | L82: 0 | M82: 0 | N82: 0 | O82: 0 | P82: 0 | Q82: 0 | R82: 0 | S82: 0 | T82: 0 | U82: 0 | V82: 0 | W82: 0 | X82: 0 | Y82: 0 | Z82: 0 | AA82: 0 | AB82: 0 | AC82: 0 | AD82: 0 | AE82: 0 | AF82: 0 | AG82: 0 | AH82: 0 | AI82: 0 | AJ82: 0 | AK82: 0 | AL82: 0 | AM82: 0 | AN82: 0 | AO82: 0 | AP82: 0 | AQ82: 0 | AR82: 0 | AS82: 0 | AT82: 0 | AU82: 0 | AV82: 0 | AW82: 0 | AX82: 0 | AY82: 0 | AZ82: 0 | BA82: 0 | BB82: 0 | BC82: 0 | BD82: 0 | BE82: 0 | BF82: 0 | BG82: 0 | BH82: 0 | BI82: 0 | BJ82: 0 | BK82: 0 | BL82: 0 | BM82: 0 | BN82: 0 | BO82: 0 | BP82: 0 | BQ82: 0 | BR82: 0 | BS82: 0 | BT82: 0 | BU82: 0 | BV82: 0 | BW82: 0 | BX82: 0 | BY82: 0 | BZ82: 0 | CA82: 0 | CB82: 0 | CC82: 0 | CD82: 0 | CE82: 0 | CF82: 0 | CG82: 0 | CH82: 0 | CI82: 0 | CJ82: 0 | CK82: 0 | CL82: 0 | CM82: 0 | CN82: 0 | CO82: 0 | CP82: 0 | CQ82: 0 | CR82: 0 | CS82: 0 | CT82: 0 | CV82: 0 | CW82: 0 | CX82: 0 | CY82: 0 | CZ82: 0 | DA82: 0 | DB82: 0 | DC82: 0 | DD82: 0 | DE82: 0 | DF82: 0 | DG82: 0 | DH82: 0 | DI82: 0 | DJ82: 0 | DK82: 0 | DL82: 0 | DM82: 0 | DN82: 0 | DO82: 0 | DP82: 0 | DQ82: 0 | DR82: 0 | DS82: 0 | DT82: 0 | DU82: 0 | DV82: 0 | DW82: 0 | DX82: 0 | DY82: 0 | DZ82: 0 | EA82: 0 | EB82: 0 | EC82: 0 | ED82: 0 | EE82: 0 | EF82: 0 | EG82: 0 | EH82: 0 | EI82: 0 | EJ82: 0 | EK82: 0 | EL82: 0 | EM82: 0 | EN82: 0 | EO82: 0 | EP82: 0 | EQ82: 0 | ER82: 0 | ES82: 0 | ET82: 0 | EU82: 0 | EV82: 0 | EW82: 0 | EX82: 0 | EY82: 0 | EZ82: 0 | FA82: 0 | FB82: 0 | FC82: 0 | FD82: 0 | FE82: 0 | FF82: 0 | FG82: 0 | FH82: 0 | FI82: 0 | FJ82: 0 | FK82: 0 | FL82: 0 | FM82: 0 | FN82: 0 | FO82: 0 | FP82: 0 | FQ82: 0 | FR82: 0 | FS82: 0 | FT82: 0 | FU82: 0 | FV82: 0 | FW82: 0 | FX82: 0 | FY82: 0 | FZ82: 0 | GA82: 0 | GB82: 0 | GC82: 0 | GD82: 0 | GE82: 0 | GF82: 0 | GG82: 0 | GH82: 0
A83: 4 | B83: SWITCHGEAR | C83: > 66 kv & < = 132 kv ; circuit breaker | D83: 195.3072344 | E83: 45.08483227 | F83: 6.714523979 | G83: 2 | H83: 0 | I83: 0 | J83: 2 | K83: 15 | L83: 1 | M83: 10 | N83: 7 | O83: 1 | P83: 47 | Q83: 46 | R83: 39 | S83: 18 | T83: 32 | U83: 23 | V83: 14 | W83: 34 | X83: 10 | Y83: 21 | Z83: 11 | AA83: 7 | AB83: 1 | AC83: 4 | AD83: 13 | AE83: 10 | AF83: 6 | AG83: 0 | AH83: 4 | AI83: 1 | AJ83: 3 | AK83: 0 | AL83: 0 | AM83: 0 | AN83: 12 | AO83: 4 | AP83: 0 | AQ83: 0 | AR83: 6 | AS83: 0 | AT83: 0 | AU83: 0 | AV83: 4 | AW83: 0 | AX83: 0 | AY83: 0 | AZ83: 0 | BA83: 4 | BB83: 0 | BC83: 0 | BD83: 0 | BE83: 0 | BF83: 0 | BG83: 0 | BH83: 0 | BI83: 0 | BJ83: 0 | BK83: 0 | BL83: 0 | BM83: 0 | BN83: 0 | BO83: 0 | BP83: 0 | BQ83: 0 | BR83: 0 | BS83: 0 | BT83: 0 | BU83: 0 | BV83: 0 | BW83: 0 | BX83: 0 | BY83: 0 | BZ83: 0 | CA83: 0 | CB83: 0 | CC83: 0 | CD83: 0 | CE83: 0 | CF83: 0 | CG83: 0 | CH83: 0 | CI83: 0 | CJ83: 0 | CK83: 0 | CL83: 0 | CM83: 0 | CN83: 0 | CO83: 0 | CP83: 0 | CQ83: 0 | CR83: 0 | CS83: 0 | CT83: 0 | CV83: 0 | CW83: 0 | CX83: 390.6144689 | CY83: 2929.608517 | CZ83: 195.3072344 | DA83: 1953.072344 | DB83: 1367.150641 | DC83: 195.3072344 | DD83: 9179.440018 | DE83: 8984.132784 | DF83: 7616.982143 | DG83: 3515.53022 | DH83: 6249.831502 | DI83: 4492.066392 | DJ83: 2734.301282 | DK83: 6640.445971 | DL83: 1953.072344 | DM83: 4101.451923 | DN83: 2148.379579 | DO83: 1367.150641 | DP83: 195.3072344 | DQ83: 781.2289377 | DR83: 2538.994048 | DS83: 1953.072344 | DT83: 1171.843407 | DU83: 0 | DV83: 781.2289377 | DW83: 195.3072344 | DX83: 585.9217033 | DY83: 0 | DZ83: 0 | EA83: 0 | EB83: 2343.686813 | EC83: 781.2289377 | ED83: 0 | EE83: 0 | EF83: 1171.843407 | EG83: 0 | EH83: 0 | EI83: 0 | EJ83: 781.2289377 | EK83: 0 | EL83: 0 | EM83: 0 | EN83: 0 | EO83: 781.2289377 | EP83: 0 | EQ83: 0 | ER83: 0 | ES83: 0 | ET83: 0 | EU83: 0 | EV83: 0 | EW83: 0 | EX83: 0 | EY83: 0 | EZ83: 0 | FA83: 0 | FB83: 0 | FC83: 0 | FD83: 0 | FE83: 0 | FF83: 0 | FG83: 0 | FH83: 0 | FI83: 0 | FJ83: 0 | FK83: 0 | FL83: 0 | FM83: 0 | FN83: 0 | FO83: 0 | FP83: 0 | FQ83: 0 | FR83: 0 | FS83: 0 | FT83: 0 | FU83: 0 | FV83: 0 | FW83: 0 | FX83: 0 | FY83: 0 | FZ83: 0 | GA83: 0 | GB83: 0 | GC83: 0 | GD83: 0 | GE83: 0 | GF83: 0 | GG83: 0 | GH83: 0
A84: 0 | B84: 0 | C84: 0 | D84: 0 | E84: 0 | F84: =SQRT(E84) -> 0 | G84: 2 | H84: 0 | I84: 0 | J84: 0 | K84: 0 | L84: 0 | M84: 0 | N84: 0 | O84: 0 | P84: 0 | Q84: 0 | R84: 0 | S84: 0 | T84: 0 | U84: 0 | V84: 0 | W84: 0 | X84: 0 | Y84: 0 | Z84: 0 | AA84: 0 | AB84: 0 | AC84: 0 | AD84: 0 | AE84: 0 | AF84: 0 | AG84: 0 | AH84: 0 | AI84: 0 | AJ84: 0 | AK84: 0 | AL84: 0 | AM84: 0 | AN84: 0 | AO84: 0 | AP84: 0 | AQ84: 0 | AR84: 0 | AS84: 0 | AT84: 0 | AU84: 0 | AV84: 0 | AW84: 0 | AX84: 0 | AY84: 0 | AZ84: 0 | BA84: 0 | BB84: 0 | BC84: 0 | BD84: 0 | BE84: 0 | BF84: 0 | BG84: 0 | BH84: 0 | BI84: 0 | BJ84: 0 | BK84: 0 | BL84: 0 | BM84: 0 | BN84: 0 | BO84: 0 | BP84: 0 | BQ84: 0 | BR84: 0 | BS84: 0 | BT84: 0 | BU84: 0 | BV84: 0 | BW84: 0 | BX84: 0 | BY84: 0 | BZ84: 0 | CA84: 0 | CB84: 0 | CC84: 0 | CD84: 0 | CE84: 0 | CF84: 0 | CG84: 0 | CH84: 0 | CI84: 0 | CJ84: 0 | CK84: 0 | CL84: 0 | CM84: 0 | CN84: 0 | CO84: 0 | CP84: 0 | CQ84: 0 | CR84: 0 | CS84: 0 | CT84: 0 | CV84: =$D84*H84 -> 0 | CW84: =$D84*I84 -> 0 | CX84: =$D84*J84 -> 0 | CY84: =$D84*K84 -> 0 | CZ84: =$D84*L84 -> 0 | DA84: =$D84*M84 -> 0 | DB84: =$D84*N84 -> 0 | DC84: =$D84*O84 -> 0 | DD84: =$D84*P84 -> 0 | DE84: =$D84*Q84 -> 0 | DF84: =$D84*R84 -> 0 | DG84: =$D84*S84 -> 0 | DH84: =$D84*T84 -> 0 | DI84: =$D84*U84 -> 0 | DJ84: =$D84*V84 -> 0 | DK84: =$D84*W84 -> 0 | DL84: =$D84*X84 -> 0 | DM84: =$D84*Y84 -> 0 | DN84: =$D84*Z84 -> 0 | DO84: =$D84*AA84 -> 0 | DP84: =$D84*AB84 -> 0 | DQ84: =$D84*AC84 -> 0 | DR84: =$D84*AD84 -> 0 | DS84: =$D84*AE84 -> 0 | DT84: =$D84*AF84 -> 0 | DU84: =$D84*AG84 -> 0 | DV84: =$D84*AH84 -> 0 | DW84: =$D84*AI84 -> 0 | DX84: =$D84*AJ84 -> 0 | DY84: =$D84*AK84 -> 0 | DZ84: =$D84*AL84 -> 0 | EA84: =$D84*AM84 -> 0 | EB84: =$D84*AN84 -> 0 | EC84: =$D84*AO84 -> 0 | ED84: =$D84*AP84 -> 0 | EE84: =$D84*AQ84 -> 0 | EF84: =$D84*AR84 -> 0 | EG84: =$D84*AS84 -> 0 | EH84: =$D84*AT84 -> 0 | EI84: =$D84*AU84 -> 0 | EJ84: =$D84*AV84 -> 0 | EK84: =$D84*AW84 -> 0 | EL84: =$D84*AX84 -> 0 | EM84: =$D84*AY84 -> 0 | EN84: =$D84*AZ84 -> 0 | EO84: =$D84*BA84 -> 0 | EP84: =$D84*BB84 -> 0 | EQ84: =$D84*BC84 -> 0 | ER84: =$D84*BD84 -> 0 | ES84: =$D84*BE84 -> 0 | ET84: =$D84*BF84 -> 0 | EU84: =$D84*BG84 -> 0 | EV84: =$D84*BH84 -> 0 | EW84: =$D84*BI84 -> 0 | EX84: =$D84*BJ84 -> 0 | EY84: =$D84*BK84 -> 0 | EZ84: =$D84*BL84 -> 0 | FA84: =$D84*BM84 -> 0 | FB84: =$D84*BN84 -> 0 | FC84: =$D84*BO84 -> 0 | FD84: =$D84*BP84 -> 0 | FE84: =$D84*BQ84 -> 0 | FF84: =$D84*BR84 -> 0 | FG84: =$D84*BS84 -> 0 | FH84: =$D84*BT84 -> 0 | FI84: =$D84*BU84 -> 0 | FJ84: =$D84*BV84 -> 0 | FK84: =$D84*BW84 -> 0 | FL84: =$D84*BX84 -> 0 | FM84: =$D84*BY84 -> 0 | FN84: =$D84*BZ84 -> 0 | FO84: =$D84*CA84 -> 0 | FP84: =$D84*CB84 -> 0 | FQ84: =$D84*CC84 -> 0 | FR84: =$D84*CD84 -> 0 | FS84: =$D84*CE84 -> 0 | FT84: =$D84*CF84 -> 0 | FU84: =$D84*CG84 -> 0 | FV84: =$D84*CH84 -> 0 | FW84: =$D84*CI84 -> 0 | FX84: =$D84*CJ84 -> 0 | FY84: =$D84*CK84 -> 0 | FZ84: =$D84*CL84 -> 0 | GA84: =$D84*CM84 -> 0 | GB84: =$D84*CN84 -> 0 | GC84: =$D84*CO84 -> 0 | GD84: =$D84*CP84 -> 0 | GE84: =$D84*CQ84 -> 0 | GF84: =$D84*CR84 -> 0 | GG84: =$D84*CS84 -> 0 | GH84: =$D84*CT84 -> 0
A85: 0 | B85: 0 | C85: 0 | D85: 0 | E85: 0 | F85: 0 | G85: 2 | H85: 0 | I85: 0 | J85: 0 | K85: 0 | L85: 0 | M85: 0 | N85: 0 | O85: 0 | P85: 0 | Q85: 0 | R85: 0 | S85: 0 | T85: 0 | U85: 0 | V85: 0 | W85: 0 | X85: 0 | Y85: 0 | Z85: 0 | AA85: 0 | AB85: 0 | AC85: 0 | AD85: 0 | AE85: 0 | AF85: 0 | AG85: 0 | AH85: 0 | AI85: 0 | AJ85: 0 | AK85: 0 | AL85: 0 | AM85: 0 | AN85: 0 | AO85: 0 | AP85: 0 | AQ85: 0 | AR85: 0 | AS85: 0 | AT85: 0 | AU85: 0 | AV85: 0 | AW85: 0 | AX85: 0 | AY85: 0 | AZ85: 0 | BA85: 0 | BB85: 0 | BC85: 0 | BD85: 0 | BE85: 0 | BF85: 0 | BG85: 0 | BH85: 0 | BI85: 0 | BJ85: 0 | BK85: 0 | BL85: 0 | BM85: 0 | BN85: 0 | BO85: 0 | BP85: 0 | BQ85: 0 | BR85: 0 | BS85: 0 | BT85: 0 | BU85: 0 | BV85: 0 | BW85: 0 | BX85: 0 | BY85: 0 | BZ85: 0 | CA85: 0 | CB85: 0 | CC85: 0 | CD85: 0 | CE85: 0 | CF85: 0 | CG85: 0 | CH85: 0 | CI85: 0 | CJ85: 0 | CK85: 0 | CL85: 0 | CM85: 0 | CN85: 0 | CO85: 0 | CP85: 0 | CQ85: 0 | CR85: 0 | CS85: 0 | CT85: 0 | CV85: 0 | CW85: 0 | CX85: 0 | CY85: 0 | CZ85: 0 | DA85: 0 | DB85: 0 | DC85: 0 | DD85: 0 | DE85: 0 | DF85: 0 | DG85: 0 | DH85: 0 | DI85: 0 | DJ85: 0 | DK85: 0 | DL85: 0 | DM85: 0 | DN85: 0 | DO85: 0 | DP85: 0 | DQ85: 0 | DR85: 0 | DS85: 0 | DT85: 0 | DU85: 0 | DV85: 0 | DW85: 0 | DX85: 0 | DY85: 0 | DZ85: 0 | EA85: 0 | EB85: 0 | EC85: 0 | ED85: 0 | EE85: 0 | EF85: 0 | EG85: 0 | EH85: 0 | EI85: 0 | EJ85: 0 | EK85: 0 | EL85: 0 | EM85: 0 | EN85: 0 | EO85: 0 | EP85: 0 | EQ85: 0 | ER85: 0 | ES85: 0 | ET85: 0 | EU85: 0 | EV85: 0 | EW85: 0 | EX85: 0 | EY85: 0 | EZ85: 0 | FA85: 0 | FB85: 0 | FC85: 0 | FD85: 0 | FE85: 0 | FF85: 0 | FG85: 0 | FH85: 0 | FI85: 0 | FJ85: 0 | FK85: 0 | FL85: 0 | FM85: 0 | FN85: 0 | FO85: 0 | FP85: 0 | FQ85: 0 | FR85: 0 | FS85: 0 | FT85: 0 | FU85: 0 | FV85: 0 | FW85: 0 | FX85: 0 | FY85: 0 | FZ85: 0 | GA85: 0 | GB85: 0 | GC85: 0 | GD85: 0 | GE85: 0 | GF85: 0 | GG85: 0 | GH85: 0
A86: 0 | B86: 0 | C86: 0 | D86: 0 | E86: 0 | F86: 0 | G86: 2 | H86: 0 | I86: 0 | J86: 0 | K86: 0 | L86: 0 | M86: 0 | N86: 0 | O86: 0 | P86: 0 | Q86: 0 | R86: 0 | S86: 0 | T86: 0 | U86: 0 | V86: 0 | W86: 0 | X86: 0 | Y86: 0 | Z86: 0 | AA86: 0 | AB86: 0 | AC86: 0 | AD86: 0 | AE86: 0 | AF86: 0 | AG86: 0 | AH86: 0 | AI86: 0 | AJ86: 0 | AK86: 0 | AL86: 0 | AM86: 0 | AN86: 0 | AO86: 0 | AP86: 0 | AQ86: 0 | AR86: 0 | AS86: 0 | AT86: 0 | AU86: 0 | AV86: 0 | AW86: 0 | AX86: 0 | AY86: 0 | AZ86: 0 | BA86: 0 | BB86: 0 | BC86: 0 | BD86: 0 | BE86: 0 | BF86: 0 | BG86: 0 | BH86: 0 | BI86: 0 | BJ86: 0 | BK86: 0 | BL86: 0 | BM86: 0 | BN86: 0 | BO86: 0 | BP86: 0 | BQ86: 0 | BR86: 0 | BS86: 0 | BT86: 0 | BU86: 0 | BV86: 0 | BW86: 0 | BX86: 0 | BY86: 0 | BZ86: 0 | CA86: 0 | CB86: 0 | CC86: 0 | CD86: 0 | CE86: 0 | CF86: 0 | CG86: 0 | CH86: 0 | CI86: 0 | CJ86: 0 | CK86: 0 | CL86: 0 | CM86: 0 | CN86: 0 | CO86: 0 | CP86: 0 | CQ86: 0 | CR86: 0 | CS86: 0 | CT86: 0 | CV86: 0 | CW86: 0 | CX86: 0 | CY86: 0 | CZ86: 0 | DA86: 0 | DB86: 0 | DC86: 0 | DD86: 0 | DE86: 0 | DF86: 0 | DG86: 0 | DH86: 0 | DI86: 0 | DJ86: 0 | DK86: 0 | DL86: 0 | DM86: 0 | DN86: 0 | DO86: 0 | DP86: 0 | DQ86: 0 | DR86: 0 | DS86: 0 | DT86: 0 | DU86: 0 | DV86: 0 | DW86: 0 | DX86: 0 | DY86: 0 | DZ86: 0 | EA86: 0 | EB86: 0 | EC86: 0 | ED86: 0 | EE86: 0 | EF86: 0 | EG86: 0 | EH86: 0 | EI86: 0 | EJ86: 0 | EK86: 0 | EL86: 0 | EM86: 0 | EN86: 0 | EO86: 0 | EP86: 0 | EQ86: 0 | ER86: 0 | ES86: 0 | ET86: 0 | EU86: 0 | EV86: 0 | EW86: 0 | EX86: 0 | EY86: 0 | EZ86: 0 | FA86: 0 | FB86: 0 | FC86: 0 | FD86: 0 | FE86: 0 | FF86: 0 | FG86: 0 | FH86: 0 | FI86: 0 | FJ86: 0 | FK86: 0 | FL86: 0 | FM86: 0 | FN86: 0 | FO86: 0 | FP86: 0 | FQ86: 0 | FR86: 0 | FS86: 0 | FT86: 0 | FU86: 0 | FV86: 0 | FW86: 0 | FX86: 0 | FY86: 0 | FZ86: 0 | GA86: 0 | GB86: 0 | GC86: 0 | GD86: 0 | GE86: 0 | GF86: 0 | GG86: 0 | GH86: 0
A87: 0 | B87: 0 | C87: 0 | D87: 0 | E87: 0 | F87: 0 | G87: 2 | H87: 0 | I87: 0 | J87: 0 | K87: 0 | L87: 0 | M87: 0 | N87: 0 | O87: 0 | P87: 0 | Q87: 0 | R87: 0 | S87: 0 | T87: 0 | U87: 0 | V87: 0 | W87: 0 | X87: 0 | Y87: 0 | Z87: 0 | AA87: 0 | AB87: 0 | AC87: 0 | AD87: 0 | AE87: 0 | AF87: 0 | AG87: 0 | AH87: 0 | AI87: 0 | AJ87: 0 | AK87: 0 | AL87: 0 | AM87: 0 | AN87: 0 | AO87: 0 | AP87: 0 | AQ87: 0 | AR87: 0 | AS87: 0 | AT87: 0 | AU87: 0 | AV87: 0 | AW87: 0 | AX87: 0 | AY87: 0 | AZ87: 0 | BA87: 0 | BB87: 0 | BC87: 0 | BD87: 0 | BE87: 0 | BF87: 0 | BG87: 0 | BH87: 0 | BI87: 0 | BJ87: 0 | BK87: 0 | BL87: 0 | BM87: 0 | BN87: 0 | BO87: 0 | BP87: 0 | BQ87: 0 | BR87: 0 | BS87: 0 | BT87: 0 | BU87: 0 | BV87: 0 | BW87: 0 | BX87: 0 | BY87: 0 | BZ87: 0 | CA87: 0 | CB87: 0 | CC87: 0 | CD87: 0 | CE87: 0 | CF87: 0 | CG87: 0 | CH87: 0 | CI87: 0 | CJ87: 0 | CK87: 0 | CL87: 0 | CM87: 0 | CN87: 0 | CO87: 0 | CP87: 0 | CQ87: 0 | CR87: 0 | CS87: 0 | CT87: 0 | CV87: 0 | CW87: 0 | CX87: 0 | CY87: 0 | CZ87: 0 | DA87: 0 | DB87: 0 | DC87: 0 | DD87: 0 | DE87: 0 | DF87: 0 | DG87: 0 | DH87: 0 | DI87: 0 | DJ87: 0 | DK87: 0 | DL87: 0 | DM87: 0 | DN87: 0 | DO87: 0 | DP87: 0 | DQ87: 0 | DR87: 0 | DS87: 0 | DT87: 0 | DU87: 0 | DV87: 0 | DW87: 0 | DX87: 0 | DY87: 0 | DZ87: 0 | EA87: 0 | EB87: 0 | EC87: 0 | ED87: 0 | EE87: 0 | EF87: 0 | EG87: 0 | EH87: 0 | EI87: 0 | EJ87: 0 | EK87: 0 | EL87: 0 | EM87: 0 | EN87: 0 | EO87: 0 | EP87: 0 | EQ87: 0 | ER87: 0 | ES87: 0 | ET87: 0 | EU87: 0 | EV87: 0 | EW87: 0 | EX87: 0 | EY87: 0 | EZ87: 0 | FA87: 0 | FB87: 0 | FC87: 0 | FD87: 0 | FE87: 0 | FF87: 0 | FG87: 0 | FH87: 0 | FI87: 0 | FJ87: 0 | FK87: 0 | FL87: 0 | FM87: 0 | FN87: 0 | FO87: 0 | FP87: 0 | FQ87: 0 | FR87: 0 | FS87: 0 | FT87: 0 | FU87: 0 | FV87: 0 | FW87: 0 | FX87: 0 | FY87: 0 | FZ87: 0 | GA87: 0 | GB87: 0 | GC87: 0 | GD87: 0 | GE87: 0 | GF87: 0 | GG87: 0 | GH87: 0
A88: 0 | B88: 0 | C88: 0 | D88: 0 | E88: 0 | F88: =SQRT(E88) -> 0 | G88: 2 | H88: 0 | I88: 0 | J88: 0 | K88: 0 | L88: 0 | M88: 0 | N88: 0 | O88: 0 | P88: 0 | Q88: 0 | R88: 0 | S88: 0 | T88: 0 | U88: 0 | V88: 0 | W88: 0 | X88: 0 | Y88: 0 | Z88: 0 | AA88: 0 | AB88: 0 | AC88: 0 | AD88: 0 | AE88: 0 | AF88: 0 | AG88: 0 | AH88: 0 | AI88: 0 | AJ88: 0 | AK88: 0 | AL88: 0 | AM88: 0 | AN88: 0 | AO88: 0 | AP88: 0 | AQ88: 0 | AR88: 0 | AS88: 0 | AT88: 0 | AU88: 0 | AV88: 0 | AW88: 0 | AX88: 0 | AY88: 0 | AZ88: 0 | BA88: 0 | BB88: 0 | BC88: 0 | BD88: 0 | BE88: 0 | BF88: 0 | BG88: 0 | BH88: 0 | BI88: 0 | BJ88: 0 | BK88: 0 | BL88: 0 | BM88: 0 | BN88: 0 | BO88: 0 | BP88: 0 | BQ88: 0 | BR88: 0 | BS88: 0 | BT88: 0 | BU88: 0 | BV88: 0 | BW88: 0 | BX88: 0 | BY88: 0 | BZ88: 0 | CA88: 0 | CB88: 0 | CC88: 0 | CD88: 0 | CE88: 0 | CF88: 0 | CG88: 0 | CH88: 0 | CI88: 0 | CJ88: 0 | CK88: 0 | CL88: 0 | CM88: 0 | CN88: 0 | CO88: 0 | CP88: 0 | CQ88: 0 | CR88: 0 | CS88: 0 | CT88: 0 | CV88: =$D88*H88 -> 0 | CW88: =$D88*I88 -> 0 | CX88: =$D88*J88 -> 0 | CY88: =$D88*K88 -> 0 | CZ88: =$D88*L88 -> 0 | DA88: =$D88*M88 -> 0 | DB88: =$D88*N88 -> 0 | DC88: =$D88*O88 -> 0 | DD88: =$D88*P88 -> 0 | DE88: =$D88*Q88 -> 0 | DF88: =$D88*R88 -> 0 | DG88: =$D88*S88 -> 0 | DH88: =$D88*T88 -> 0 | DI88: =$D88*U88 -> 0 | DJ88: =$D88*V88 -> 0 | DK88: =$D88*W88 -> 0 | DL88: =$D88*X88 -> 0 | DM88: =$D88*Y88 -> 0 | DN88: =$D88*Z88 -> 0 | DO88: =$D88*AA88 -> 0 | DP88: =$D88*AB88 -> 0 | DQ88: =$D88*AC88 -> 0 | DR88: =$D88*AD88 -> 0 | DS88: =$D88*AE88 -> 0 | DT88: =$D88*AF88 -> 0 | DU88: =$D88*AG88 -> 0 | DV88: =$D88*AH88 -> 0 | DW88: =$D88*AI88 -> 0 | DX88: =$D88*AJ88 -> 0 | DY88: =$D88*AK88 -> 0 | DZ88: =$D88*AL88 -> 0 | EA88: =$D88*AM88 -> 0 | EB88: =$D88*AN88 -> 0 | EC88: =$D88*AO88 -> 0 | ED88: =$D88*AP88 -> 0 | EE88: =$D88*AQ88 -> 0 | EF88: =$D88*AR88 -> 0 | EG88: =$D88*AS88 -> 0 | EH88: =$D88*AT88 -> 0 | EI88: =$D88*AU88 -> 0 | EJ88: =$D88*AV88 -> 0 | EK88: =$D88*AW88 -> 0 | EL88: =$D88*AX88 -> 0 | EM88: =$D88*AY88 -> 0 | EN88: =$D88*AZ88 -> 0 | EO88: =$D88*BA88 -> 0 | EP88: =$D88*BB88 -> 0 | EQ88: =$D88*BC88 -> 0 | ER88: =$D88*BD88 -> 0 | ES88: =$D88*BE88 -> 0 | ET88: =$D88*BF88 -> 0 | EU88: =$D88*BG88 -> 0 | EV88: =$D88*BH88 -> 0 | EW88: =$D88*BI88 -> 0 | EX88: =$D88*BJ88 -> 0 | EY88: =$D88*BK88 -> 0 | EZ88: =$D88*BL88 -> 0 | FA88: =$D88*BM88 -> 0 | FB88: =$D88*BN88 -> 0 | FC88: =$D88*BO88 -> 0 | FD88: =$D88*BP88 -> 0 | FE88: =$D88*BQ88 -> 0 | FF88: =$D88*BR88 -> 0 | FG88: =$D88*BS88 -> 0 | FH88: =$D88*BT88 -> 0 | FI88: =$D88*BU88 -> 0 | FJ88: =$D88*BV88 -> 0 | FK88: =$D88*BW88 -> 0 | FL88: =$D88*BX88 -> 0 | FM88: =$D88*BY88 -> 0 | FN88: =$D88*BZ88 -> 0 | FO88: =$D88*CA88 -> 0 | FP88: =$D88*CB88 -> 0 | FQ88: =$D88*CC88 -> 0 | FR88: =$D88*CD88 -> 0 | FS88: =$D88*CE88 -> 0 | FT88: =$D88*CF88 -> 0 | FU88: =$D88*CG88 -> 0 | FV88: =$D88*CH88 -> 0 | FW88: =$D88*CI88 -> 0 | FX88: =$D88*CJ88 -> 0 | FY88: =$D88*CK88 -> 0 | FZ88: =$D88*CL88 -> 0 | GA88: =$D88*CM88 -> 0 | GB88: =$D88*CN88 -> 0 | GC88: =$D88*CO88 -> 0 | GD88: =$D88*CP88 -> 0 | GE88: =$D88*CQ88 -> 0 | GF88: =$D88*CR88 -> 0 | GG88: =$D88*CS88 -> 0 | GH88: =$D88*CT88 -> 0

Sheet S1 Output
B1: ='S1 Input'!B1 -> Scenario | C1: ='S1 Input'!C1 -> 1 | D1: Replacement expenditure forecast ($,000) | X1: Replacement quantity forecast (#)
B2: ='S1 Input'!B2 -> Unit cost | C2: ='S1 Input'!C2 -> Historical | D2: 1 | E2: 2 | F2: 3 | G2: 4 | H2: 5 | I2: 6 | J2: 7 | K2: 8 | L2: 9 | M2: 10 | N2: 11 | O2: 12 | P2: 13 | Q2: 14 | R2: 15 | S2: 16 | T2: 17 | U2: 18 | V2: 19 | W2: 20 | X2: 1 | Y2: 2 | Z2: 3 | AA2: 4 | AB2: 5 | AC2: 6 | AD2: 7 | AE2: 8 | AF2: 9 | AG2: 10 | AH2: 11 | AI2: 12 | AJ2: 13 | AK2: 14 | AL2: 15 | AM2: 16 | AN2: 17 | AO2: 18 | AP2: 19 | AQ2: 20
B3: ='S1 Input'!B3 -> Lives | C3: ='S1 Input'!C3 -> Historical
A5: ID | B5: Asset category | D5: 2023 | E5: =D5+1 -> 2024 | F5: =E5+1 -> 2025 | G5: 2026 | H5: 2027 | I5: 2028 | J5: 2029 | K5: 2030 | L5: 2031 | M5: 2032 | N5: 2033 | O5: 2034 | P5: 2035 | Q5: 2036 | R5: 2037 | S5: 2038 | T5: 2039 | U5: 2040 | V5: 2041 | W5: 2042 | X5: =D5 -> 2023 | Y5: =E5 -> 2024 | Z5: 2025 | AA5: 2026 | AB5: 2027 | AC5: 2028 | AD5: 2029 | AE5: 2030 | AF5: 2031 | AG5: 2032 | AH5: 2033 | AI5: 2034 | AJ5: 2035 | AK5: 2036 | AL5: 2037 | AM5: 2038 | AN5: 2039 | AO5: 2040 | AP5: 2041 | AQ5: 2042
A6: 1 | B6: OVERHEAD CONDUCTORS | D6: =IFERROR(IF($A6="","",SUMIFS(D$21:D$175,$A$21:$A$175,$A6)),"") -> 24357.94161 | E6: =IFERROR(IF($A6="","",SUMIFS(E$21:E$175,$A$21:$A$175,$A6)),"") -> 27629.70611 | F6: 31045.50826 | G6: 34565.12035 | H6: 38143.86811 | I6: 41733.95685 | J6: 45285.95411 | K6: 48750.37291 | L6: 52079.29855 | M6: 55228.00169 | N6: 58156.4784 | O6: 60830.85501 | P6: 63224.59254 | Q6: 65319.42355 | R6: 67105.9567 | S6: 68583.89285 | T6: 69761.81242 | U6: =IFERROR(IF($A6="","",SUMIFS(U$21:U$175,$A$21:$A$175,$A6)),"") -> 70656.51828 | V6: 71291.94912 | W6: 71697.71353 | X6: =IFERROR(IF($A6="","",SUMIFS(X$21:X$175,$A$21:$A$175,$A6)),"") -> 169.82468 | Y6: =IFERROR(IF($A6="","",SUMIFS(Y$21:Y$175,$A$21:$A$175,$A6)),"") -> 192.637959 | Z6: 216.6721133 | AA6: 241.7180527 | AB6: 267.5341732 | AC6: 293.8507314 | AD6: 320.3753237 | AE6: 346.7995037 | AF6: 372.8065253 | AG6: 398.0801015 | AH6: 422.3139341 | AI6: 445.2216035 | AJ6: 466.5462588 | AK6: 486.0694358 | AL6: 503.6182974 | AM6: 519.0706531 | AN6: 532.3572802 | AO6: =IFERROR(IF($A6="","",SUMIFS(AO$21:AO$175,$A$21:$A$175,$A6)),"") -> 543.4613149 | AP6: 552.4147867 | AQ6: 559.2926731
A7: 2 | B7: POLES | D7: =IFERROR(IF($A7="","",SUMIFS(D$21:D$175,$A$21:$A$175,$A7)),"") -> 26264.97321 | E7: 29303.95472 | F7: 32436.0618 | G7: 35564.36263 | H7: 38604.93119 | I7: 41482.53028 | J7: 44133.03191 | K7: 46507.1535 | L7: 48572.99512 | M7: 50317.13691 | N7: 51743.99637 | O7: 52873.51209 | P7: 53737.51862 | Q7: 54375.42069 | R7: 54829.8685 | S7: 55143.03349 | T7: 55353.82911 | U7: 55496.12546 | V7: 55597.78333 | W7: 55680.24379 | X7: 2938.473289 | Y7: 3269.735821 | Z7: 3606.85167 | AA7: 3940.873715 | AB7: 4263.677458 | AC7: 4568.019061 | AD7: 4847.835824 | AE7: 5098.544073 | AF7: 5317.2189 | AG7: 5502.642183 | AH7: 5655.209714 | AI7: 5776.710023 | AJ7: 5870.006447 | AK7: 5938.669279 | AL7: 5986.609959 | AM7: 6017.761016 | AN7: 6035.826995 | AO7: 6044.110859 | AP7: 6045.405249 | AQ7: 6041.932551
A8: 3 | B8: SERVICE LINES | D8: 4705.80226 | E8: 4937.434289 | F8: 5128.614831 | G8: 5277.57762 | H8: 5384.428749 | I8: 5451.012457 | J8: 5480.651771 | K8: 5477.796382 | L8: 5447.617988 | M8: 5395.595582 | N8: 5327.129978 | O8: 5247.21938 | P8: 5160.217469 | Q8: 5069.684312 | R8: 4978.329912 | S8: 4888.041745 | T8: 4799.981761 | U8: 4714.735047 | V8: 4632.491317 | W8: 4553.240832 | X8: 6934.738034 | Y8: 7276.084175 | Z8: 7557.818703 | AA8: 7777.338748 | AB8: 7934.800652 | AC8: 8032.922194 | AD8: 8076.600374 | AE8: 8072.39251 | AF8: 8027.919912 | AG8: 7951.256733 | AH8: 7850.361922 | AI8: 7732.601117 | AJ8: 7604.390149 | AK8: 7470.975337 | AL8: 7336.350293 | AM8: 7203.296512 | AN8: 7073.526308 | AO8: 6947.901899 | AP8: 6826.702857 | AQ8: 6709.914832
A9: 4 | B9: SWITCHGEAR | D9: 21749.25319 | E9: 21628.19624 | F9: 21668.38492 | G9: 21843.8858 | H9: 22134.30727 | I9: 22522.84075 | J9: 22994.57966 | K9: 23535.31671 | L9: 24130.92598 | M9: 24767.33804 | N9: 25431.02746 | O9: 26109.86516 | P9: 26794.15136 | Q9: 27477.63891 | R9: 28158.37668 | S9: 28839.23995 | T9: 29528.06191 | U9: 30237.32929 | V9: 30983.45184 | W9: 31785.65452 | X9: 979.0354908 | Y9: 956.0528859 | Z9: 938.7202243 | AA9: 925.3464399 | AB9: 914.8864419 | AC9: 906.8816368 | AD9: 901.3818731 | AE9: 898.8538648 | AF9: 900.0799623 | AG9: 906.0503729 | AH9: 917.8517343 | AI9: 936.5553551 | AJ9: 963.1093188 | AK9: 998.2396327 | AL9: 1042.366251 | AM9: 1095.539733 | AN9: 1157.403318 | AO9: 1227.183445 | AP9: 1303.709336 | AQ9: 1385.45979
A10: 5 | B10: TRANSFORMERS | D10: 2307.27269 | E10: 2639.073864 | F10: 3014.005309 | G10: 3434.112049 | H10: 3900.7487 | I10: 4414.510009 | J10: 4975.208261 | K10: 5581.902469 | L10: 6232.978201 | M10: 6926.270282 | N10: 7659.214547 | O10: 8429.010416 | P10: 9232.77442 | Q10: 10067.66627 | R10: 10930.97337 | S10: 11820.14605 | T10: 12732.78235 | U10: 13666.5679 | V10: 14619.18119 | W10: 15588.17835 | X10: 59.54299298 | Y10: 67.82790204 | Z10: 77.16486545 | AA10: 87.60791636 | AB10: 99.19673536 | AC10: 111.9550199 | AD10: 125.8898023 | AE10: 140.9918656 | AF10: 157.2372815 | AG10: 174.5899284 | AH10: 193.0046785 | AI10: 212.4308061 | AJ10: 232.8151055 | AK10: 254.1042509 | AL10: 276.2460609 | AM10: 299.1895197 | AN10: 322.8836037 | AO10: 347.2751188 | AP10: 372.3058635 | AQ10: 397.9094894
A11: 6 | B11: UNDERGROUND CABLES | D11: 4276.810778 | E11: 5383.838715 | F11: 6734.883436 | G11: 8369.333837 | H11: 10328.32257 | I11: 12653.29195 | J11: 15384.12702 | K11: 18556.87709 | L11: 22201.13303 | M11: 26337.17774 | N11: 30973.07985 | O11: 36101.94635 | P11: 41699.58423 | Q11: 47722.83538 | R11: 54108.83818 | S11: 60775.42927 | T11: 67622.83008 | U11: 74536.66763 | V11: 81392.26647 | W11: 88060.02886 | X11: 8.153220669 | Y11: 10.26363507 | Z11: 12.83923785 | AA11: 15.95511917 | AB11: 19.68969342 | AC11: 24.12196537 | AD11: 29.32797098 | AE11: 35.37643392 | AF11: 42.32376556 | AG11: 50.2086328 | AH11: 59.04641751 | AI11: 68.823979 | AJ11: 79.49519623 | AK11: 90.97779351 | AL11: 103.1519328 | AM11: 115.8609795 | AN11: 128.9147181 | AO11: 142.0951103 | AP11: 155.1644774 | AQ11: 167.8757571
C18: Total | D18: =IFERROR(SUM(D$6:D$17),"") -> 83662.05373 | E18: =IFERROR(SUM(E$6:E$17),"") -> 91522.20394 | F18: 100027.4586 | G18: 109054.3923 | H18: 118496.6066 | I18: 128258.1423 | J18: 138253.5527 | K18: 148409.4191 | L18: 158664.9489 | M18: 168971.5202 | N18: 179290.9266 | O18: 189592.4084 | P18: 199848.8386 | Q18: 210032.6691 | R18: 220112.3433 | S18: 230049.7833 | T18: 239799.2976 | U18: 249307.9436 | V18: 258517.1233 | W18: 267365.0599
A20: ID | B20: Asset category | C20: Asset class
A21: 2 | B21: POLES | C21: staked wooden pole | D21: =IFERROR(repcalc('S1 Input'!$CV21:$GH21,'S1 Input'!$G21,'S1 Input'!$E21,'S1 Input'!$F21,20,TRUE,TRUE),"") -> 1551.601188 | E21: 1835.699865 | F21: 2106.294068 | G21: 2347.553722 | H21: 2546.454135 | I21: 2694.685371 | J21: 2789.699712 | K21: 2834.671688 | L21: 2837.42743 | M21: 2808.65836 | N21: 2759.885816 | O21: 2701.647524 | P21: 2642.247959 | Q21: 2587.211787 | R21: 2539.37912 | S21: 2499.445224 | T21: 2466.702491 | U21: 2439.777204 | V21: 2417.231182 | W21: 2397.977523 | X21: =IFERROR(IF(OR(D21="",'S1 Input'!$D21=""),"",D21/'S1 Input'!$D21),"") -> 168.2837844 | Y21: =IFERROR(IF(OR(E21="",'S1 Input'!$D21=""),"",E21/'S1 Input'!$D21),"") -> 199.0965996 | Z21: =IFERROR(IF(OR(F21="",'S1 Input'!$D21=""),"",F21/'S1 Input'!$D21),"") -> 228.4447445 | AA21: =IFERROR(IF(OR(G21="",'S1 Input'!$D21=""),"",G21/'S1 Input'!$D21),"") -> 254.6113187 | AB21: =IFERROR(IF(OR(H21="",'S1 Input'!$D21=""),"",H21/'S1 Input'!$D21),"") -> 276.1836883 | AC21: =IFERROR(IF(OR(I21="",'S1 Input'!$D21=""),"",I21/'S1 Input'!$D21),"") -> 292.2605729 | AD21: =IFERROR(IF(OR(J21="",'S1 Input'!$D21=""),"",J21/'S1 Input'!$D21),"") -> 302.565652 | AE21: =IFERROR(IF(OR(K21="",'S1 Input'!$D21=""),"",K21/'S1 Input'!$D21),"") -> 307.443229 | AF21: =IFERROR(IF(OR(L21="",'S1 Input'!$D21=""),"",L21/'S1 Input'!$D21),"") -> 307.7421117 | AG21: =IFERROR(IF(OR(M21="",'S1 Input'!$D21=""),"",M21/'S1 Input'!$D21),"") -> 304.6218718 | AH21: =IFERROR(IF(OR(N21="",'S1 Input'!$D21=""),"",N21/'S1 Input'!$D21),"") -> 299.3320921 | AI21: =IFERROR(IF(OR(O21="",'S1 Input'!$D21=""),"",O21/'S1 Input'!$D21),"") -> 293.0156752 | AJ21: =IFERROR(IF(OR(P21="",'S1 Input'!$D21=""),"",P21/'S1 Input'!$D21),"") -> 286.5733086 | AK21: =IFERROR(IF(OR(Q21="",'S1 Input'!$D21=""),"",Q21/'S1 Input'!$D21),"") -> 280.6041875 | AL21: =IFERROR(IF(OR(R21="",'S1 Input'!$D21=""),"",R21/'S1 Input'!$D21),"") -> 275.4163452 | AM21: =IFERROR(IF(OR(S21="",'S1 Input'!$D21=""),"",S21/'S1 Input'!$D21),"") -> 271.0851891 | AN21: =IFERROR(IF(OR(T21="",'S1 Input'!$D21=""),"",T21/'S1 Input'!$D21),"") -> 267.533973 | AO21: =IFERROR(IF(OR(U21="",'S1 Input'!$D21=""),"",U21/'S1 Input'!$D21),"") -> 264.6137064 | AP21: =IFERROR(IF(OR(V21="",'S1 Input'!$D21=""),"",V21/'S1 Input'!$D21),"") -> 262.1684067 | AQ21: =IFERROR(IF(OR(W21="",'S1 Input'!$D21=""),"",W21/'S1 Input'!$D21),"") -> 260.0801905
A22: 2 | B22: POLES | C22: ˂ = 1 kv ; wood | D22: =IFERROR(repcalc('S1 Input'!$CV22:$GH22,'S1 Input'!$G22,'S1 Input'!$E22,'S1 Input'!$F22,20,TRUE,TRUE),"") -> 10840.43297 | E22: 11828.39689 | F22: 12781.59448 | G22: 13679.96679 | H22: 14505.1531 | I22: 15241.43858 | J22: 15876.51993 | K22: 16402.02919 | L22: 16813.77942 | M22: 17111.72351 | N22: 17299.64467 | O22: 17384.62134 | P22: 17376.32779 | Q22: 17286.24176 | R22: 17126.83298 | S22: 16910.80015 | T22: 16650.41174 | U22: 16356.98886 | V22: 16040.55013 | W22: 15709.6201 | X22: =IFERROR(IF(OR(D22="",'S1 Input'!$D22=""),"",D22/'S1 Input'!$D22),"") -> 1461.928803 | Y22: =IFERROR(IF(OR(E22="",'S1 Input'!$D22=""),"",E22/'S1 Input'!$D22),"") -> 1595.164525 | Z22: =IFERROR(IF(OR(F22="",'S1 Input'!$D22=""),"",F22/'S1 Input'!$D22),"") -> 1723.711698 | AA22: =IFERROR(IF(OR(G22="",'S1 Input'!$D22=""),"",G22/'S1 Input'!$D22),"") -> 1844.865194 | AB22: =IFERROR(IF(OR(H22="",'S1 Input'!$D22=""),"",H22/'S1 Input'!$D22),"") -> 1956.148908 | AC22: =IFERROR(IF(OR(I22="",'S1 Input'!$D22=""),"",I22/'S1 Input'!$D22),"") -> 2055.443553 | AD22: =IFERROR(IF(OR(J22="",'S1 Input'!$D22=""),"",J22/'S1 Input'!$D22),"") -> 2141.089921 | AE22: =IFERROR(IF(OR(K22="",'S1 Input'!$D22=""),"",K22/'S1 Input'!$D22),"") -> 2211.959519 | AF22: =IFERROR(IF(OR(L22="",'S1 Input'!$D22=""),"",L22/'S1 Input'!$D22),"") -> 2267.4877 | AG22: =IFERROR(IF(OR(M22="",'S1 Input'!$D22=""),"",M22/'S1 Input'!$D22),"") -> 2307.668111 | AH22: =IFERROR(IF(OR(N22="",'S1 Input'!$D22=""),"",N22/'S1 Input'!$D22),"") -> 2333.01095 | AI22: =IFERROR(IF(OR(O22="",'S1 Input'!$D22=""),"",O22/'S1 Input'!$D22),"") -> 2344.47081 | AJ22: =IFERROR(IF(OR(P22="",'S1 Input'!$D22=""),"",P22/'S1 Input'!$D22),"") -> 2343.352351 | AK22: =IFERROR(IF(OR(Q22="",'S1 Input'!$D22=""),"",Q22/'S1 Input'!$D22),"") -> 2331.203449 | AL22: =IFERROR(IF(OR(R22="",'S1 Input'!$D22=""),"",R22/'S1 Input'!$D22),"") -> 2309.705757 | AM22: =IFERROR(IF(OR(S22="",'S1 Input'!$D22=""),"",S22/'S1 Input'!$D22),"") -> 2280.571809 | AN22: =IFERROR(IF(OR(T22="",'S1 Input'!$D22=""),"",T22/'S1 Input'!$D22),"") -> 2245.456116 | AO22: =IFERROR(IF(OR(U22="",'S1 Input'!$D22=""),"",U22/'S1 Input'!$D22),"") -> 2205.885431 | AP22: =IFERROR(IF(OR(V22="",'S1 Input'!$D22=""),"",V22/'S1 Input'!$D22),"") -> 2163.210853 | AQ22: =IFERROR(IF(OR(W22="",'S1 Input'!$D22=""),"",W22/'S1 Input'!$D22),"") -> 2118.581996
A23: 2 | B23: POLES | C23: > 1 kv & < = 11 kv ; wood | D23: =IFERROR(repcalc('S1 Input'!$CV23:$GH23,'S1 Input'!$G23,'S1 Input'!$E23,'S1 Input'!$F23,20,TRUE,TRUE),"") -> 7019.249794 | E23: 7999.400499 | F23: 9025.924481 | G23: 10084.78999 | H23: 11160.54799 | I23: 12237.0533 | J23: 13298.2404 | K23: 14328.88941 | L23: 15315.31724 | M23: 16245.93609 | N23: 17111.63537 | O23: 17905.96213 | P23: 18625.09699 | Q23: 19267.64425 | R23: 19834.27368 | S23: 20327.26514 | T23: 20750.01375 | U23: 21106.55284 | V23: 21401.14386 | W23: 21637.9698 | X23: =IFERROR(IF(OR(D23="",'S1 Input'!$D23=""),"",D23/'S1 Input'!$D23),"") -> 834.821906 | Y23: =IFERROR(IF(OR(E23="",'S1 Input'!$D23=""),"",E23/'S1 Input'!$D23),"") -> 951.3943751 | Z23: =IFERROR(IF(OR(F23="",'S1 Input'!$D23=""),"",F23/'S1 Input'!$D23),"") -> 1073.482167 | AA23: =IFERROR(IF(OR(G23="",'S1 Input'!$D23=""),"",G23/'S1 Input'!$D23),"") -> 1199.41644 | AB23: =IFERROR(IF(OR(H23="",'S1 Input'!$D23=""),"",H23/'S1 Input'!$D23),"") -> 1327.359792 | AC23: =IFERROR(IF(OR(I23="",'S1 Input'!$D23=""),"",I23/'S1 Input'!$D23),"") -> 1455.392023 | AD23: =IFERROR(IF(OR(J23="",'S1 Input'!$D23=""),"",J23/'S1 Input'!$D23),"") -> 1581.602411 | AE23: =IFERROR(IF(OR(K23="",'S1 Input'!$D23=""),"",K23/'S1 Input'!$D23),"") -> 1704.180805 | AF23: =IFERROR(IF(OR(L23="",'S1 Input'!$D23=""),"",L23/'S1 Input'!$D23),"") -> 1821.499833 | AG23: =IFERROR(IF(OR(M23="",'S1 Input'!$D23=""),"",M23/'S1 Input'!$D23),"") -> 1932.18132 | AH23: =IFERROR(IF(OR(N23="",'S1 Input'!$D23=""),"",N23/'S1 Input'!$D23),"") -> 2035.141714 | AI23: =IFERROR(IF(OR(O23="",'S1 Input'!$D23=""),"",O23/'S1 Input'!$D23),"") -> 2129.613544 | AJ23: =IFERROR(IF(OR(P23="",'S1 Input'!$D23=""),"",P23/'S1 Input'!$D23),"") -> 2215.142561 | AK23: =IFERROR(IF(OR(Q23="",'S1 Input'!$D23=""),"",Q23/'S1 Input'!$D23),"") -> 2291.562769 | AL23: =IFERROR(IF(OR(R23="",'S1 Input'!$D23=""),"",R23/'S1 Input'!$D23),"") -> 2358.953826 | AM23: =IFERROR(IF(OR(S23="",'S1 Input'!$D23=""),"",S23/'S1 Input'!$D23),"") -> 2417.586882 | AN23: =IFERROR(IF(OR(T23="",'S1 Input'!$D23=""),"",T23/'S1 Input'!$D23),"") -> 2467.865732 | AO23: =IFERROR(IF(OR(U23="",'S1 Input'!$D23=""),"",U23/'S1 Input'!$D23),"") -> 2510.270069 | AP23: =IFERROR(IF(OR(V23="",'S1 Input'!$D23=""),"",V23/'S1 Input'!$D23),"") -> 2545.306725 | AQ23: =IFERROR(IF(OR(W23="",'S1 Input'!$D23=""),"",W23/'S1 Input'!$D23),"") -> 2573.473195
A24: 2 | B24: POLES | C24: ˃ 11 kv & < = 22 kv ; wood | D24: =IFERROR(repcalc('S1 Input'!$CV24:$GH24,'S1 Input'!$G24,'S1 Input'!$E24,'S1 Input'!$F24,20,TRUE,TRUE),"") -> 154.6650581 | E24: 174.6463686 | F24: 195.6166801 | G24: 217.4631679 | H24: 240.0775712 | I24: 263.3581444 | J24: 287.2083399 | K24: 311.5320226 | L24: 336.2255396 | M24: 361.1675088 | N24: 386.2076737 | O24: 411.1565166 | P24: 435.7774607 | Q24: 459.783379 | R24: 482.8387523 | S24: 504.5682215 | T24: 524.571512 | U24: 542.4438924 | V24: 557.800558 | W24: 570.3027327 | X24: =IFERROR(IF(OR(D24="",'S1 Input'!$D24=""),"",D24/'S1 Input'!$D24),"") -> 17.36595149 | Y24: =IFERROR(IF(OR(E24="",'S1 Input'!$D24=""),"",E24/'S1 Input'!$D24),"") -> 19.60947355 | Z24: =IFERROR(IF(OR(F24="",'S1 Input'!$D24=""),"",F24/'S1 Input'!$D24),"") -> 21.96404165 | AA24: =IFERROR(IF(OR(G24="",'S1 Input'!$D24=""),"",G24/'S1 Input'!$D24),"") -> 24.41698774 | AB24: =IFERROR(IF(OR(H24="",'S1 Input'!$D24=""),"",H24/'S1 Input'!$D24),"") -> 26.95615615 | AC24: =IFERROR(IF(OR(I24="",'S1 Input'!$D24=""),"",I24/'S1 Input'!$D24),"") -> 29.57012281 | AD24: =IFERROR(IF(OR(J24="",'S1 Input'!$D24=""),"",J24/'S1 Input'!$D24),"") -> 32.24804724 | AE24: =IFERROR(IF(OR(K24="",'S1 Input'!$D24=""),"",K24/'S1 Input'!$D24),"") -> 34.97913531 | AF24: =IFERROR(IF(OR(L24="",'S1 Input'!$D24=""),"",L24/'S1 Input'!$D24),"") -> 37.75174874 | AG24: =IFERROR(IF(OR(M24="",'S1 Input'!$D24=""),"",M24/'S1 Input'!$D24),"") -> 40.55225865 | AH24: =IFERROR(IF(OR(N24="",'S1 Input'!$D24=""),"",N24/'S1 Input'!$D24),"") -> 43.36379408 | AI24: =IFERROR(IF(OR(O24="",'S1 Input'!$D24=""),"",O24/'S1 Input'!$D24),"") -> 46.16507577 | AJ24: =IFERROR(IF(OR(P24="",'S1 Input'!$D24=""),"",P24/'S1 Input'!$D24),"") -> 48.92954065 | AK24: =IFERROR(IF(OR(Q24="",'S1 Input'!$D24=""),"",Q24/'S1 Input'!$D24),"") -> 51.62494979 | AL24: =IFERROR(IF(OR(R24="",'S1 Input'!$D24=""),"",R24/'S1 Input'!$D24),"") -> 54.21363078 | AM24: =IFERROR(IF(OR(S24="",'S1 Input'!$D24=""),"",S24/'S1 Input'!$D24),"") -> 56.65343789 | AN24: =IFERROR(IF(OR(T24="",'S1 Input'!$D24=""),"",T24/'S1 Input'!$D24),"") -> 58.89942787 | AO24: =IFERROR(IF(OR(U24="",'S1 Input'!$D24=""),"",U24/'S1 Input'!$D24),"") -> 60.90615709 | AP24: =IFERROR(IF(OR(V24="",'S1 Input'!$D24=""),"",V24/'S1 Input'!$D24),"") -> 62.63041928 | AQ24: =IFERROR(IF(OR(W24="",'S1 Input'!$D24=""),"",W24/'S1 Input'!$D24),"") -> 64.03417628
A25: 2 | B25: POLES | C25: > 22 kv & < = 66 kv ; wood | D25: =IFERROR(repcalc('S1 Input'!$CV25:$GH25,'S1 Input'!$G25,'S1 Input'!$E25,'S1 Input'!$F25,20,TRUE,TRUE),"") -> 3125.076234 | E25: 3508.58571 | F25: 3894.815 | G25: 4276.132031 | H25: 4644.743065 | I25: 4993.05433 | J25: 5314.028452 | K25: 5601.509826 | L25: 5850.496082 | M25: 6057.338158 | N25: 6219.85831 | O25: 6337.382857 | P25: 6410.693677 | Q25: 6441.90848 | R25: 6434.304251 | S25: 6392.100572 | T25: 6320.219885 | U25: 6224.040423 | V25: 6109.155131 | W25: 5981.146896 | X25: =IFERROR(IF(OR(D25="",'S1 Input'!$D25=""),"",D25/'S1 Input'!$D25),"") -> 216.0514283 | Y25: =IFERROR(IF(OR(E25="",'S1 Input'!$D25=""),"",E25/'S1 Input'!$D25),"") -> 242.565268 | Z25: =IFERROR(IF(OR(F25="",'S1 Input'!$D25=""),"",F25/'S1 Input'!$D25),"") -> 269.2671414 | AA25: =IFERROR(IF(OR(G25="",'S1 Input'!$D25=""),"",G25/'S1 Input'!$D25),"") -> 295.6294068 | AB25: =IFERROR(IF(OR(H25="",'S1 Input'!$D25=""),"",H25/'S1 Input'!$D25),"") -> 321.113246 | AC25: =IFERROR(IF(OR(I25="",'S1 Input'!$D25=""),"",I25/'S1 Input'!$D25),"") -> 345.1936654 | AD25: =IFERROR(IF(OR(J25="",'S1 Input'!$D25=""),"",J25/'S1 Input'!$D25),"") -> 367.3841377 | AE25: =IFERROR(IF(OR(K25="",'S1 Input'!$D25=""),"",K25/'S1 Input'!$D25),"") -> 387.2590965 | AF25: =IFERROR(IF(OR(L25="",'S1 Input'!$D25=""),"",L25/'S1 Input'!$D25),"") -> 404.4727042 | AG25: =IFERROR(IF(OR(M25="",'S1 Input'!$D25=""),"",M25/'S1 Input'!$D25),"") -> 418.7726837 | AH25: =IFERROR(IF(OR(N25="",'S1 Input'!$D25=""),"",N25/'S1 Input'!$D25),"") -> 430.008477 | AI25: =IFERROR(IF(OR(O25="",'S1 Input'!$D25=""),"",O25/'S1 Input'!$D25),"") -> 438.1335096 | AJ25: =IFERROR(IF(OR(P25="",'S1 Input'!$D25=""),"",P25/'S1 Input'!$D25),"") -> 443.2018364 | AK25: =IFERROR(IF(OR(Q25="",'S1 Input'!$D25=""),"",Q25/'S1 Input'!$D25),"") -> 445.3598646 | AL25: =IFERROR(IF(OR(R25="",'S1 Input'!$D25=""),"",R25/'S1 Input'!$D25),"") -> 444.834148 | AM25: =IFERROR(IF(OR(S25="",'S1 Input'!$D25=""),"",S25/'S1 Input'!$D25),"") -> 441.9164064 | AN25: =IFERROR(IF(OR(T25="",'S1 Input'!$D25=""),"",T25/'S1 Input'!$D25),"") -> 436.9469515 | AO25: =IFERROR(IF(OR(U25="",'S1 Input'!$D25=""),"",U25/'S1 Input'!$D25),"") -> 430.2976065 | AP25: =IFERROR(IF(OR(V25="",'S1 Input'!$D25=""),"",V25/'S1 Input'!$D25),"") -> 422.3550382 | AQ25: =IFERROR(IF(OR(W25="",'S1 Input'!$D25=""),"",W25/'S1 Input'!$D25),"") -> 413.5052182
A26: 2 | B26: POLES | C26: > 66 kv & < = 132 kv ; wood | D26: =IFERROR(repcalc('S1 Input'!$CV26:$GH26,'S1 Input'!$G26,'S1 Input'!$E26,'S1 Input'!$F26,20,TRUE,TRUE),"") -> 931.1899101 | E26: 975.682494 | F26: 1012.984342 | G26: 1042.489402 | H26: 1063.876842 | I26: 1077.120033 | J26: 1082.479547 | K26: 1080.481562 | L26: 1071.883772 | M26: 1057.631362 | N26: 1038.805756 | O26: 1016.568801 | P26: 992.1049438 | Q26: 966.5638376 | R26: 941.0057947 | S26: 916.352574 | T26: 893.3461032 | U26: 872.5177835 | V26: 854.1708786 | W26: 838.3780135 | X26: =IFERROR(IF(OR(D26="",'S1 Input'!$D26=""),"",D26/'S1 Input'!$D26),"") -> 65.60791347 | Y26: =IFERROR(IF(OR(E26="",'S1 Input'!$D26=""),"",E26/'S1 Input'!$D26),"") -> 68.74268283 | Z26: =IFERROR(IF(OR(F26="",'S1 Input'!$D26=""),"",F26/'S1 Input'!$D26),"") -> 71.37082175 | AA26: =IFERROR(IF(OR(G26="",'S1 Input'!$D26=""),"",G26/'S1 Input'!$D26),"") -> 73.4496301 | AB26: =IFERROR(IF(OR(H26="",'S1 Input'!$D26=""),"",H26/'S1 Input'!$D26),"") -> 74.95650353 | AC26: =IFERROR(IF(OR(I26="",'S1 Input'!$D26=""),"",I26/'S1 Input'!$D26),"") -> 75.88956575 | AD26: =IFERROR(IF(OR(J26="",'S1 Input'!$D26=""),"",J26/'S1 Input'!$D26),"") -> 76.26717568 | AE26: =IFERROR(IF(OR(K26="",'S1 Input'!$D26=""),"",K26/'S1 Input'!$D26),"") -> 76.12640565 | AF26: =IFERROR(IF(OR(L26="",'S1 Input'!$D26=""),"",L26/'S1 Input'!$D26),"") -> 75.52063975 | AG26: =IFERROR(IF(OR(M26="",'S1 Input'!$D26=""),"",M26/'S1 Input'!$D26),"") -> 74.516472 | AH26: =IFERROR(IF(OR(N26="",'S1 Input'!$D26=""),"",N26/'S1 Input'!$D26),"") -> 73.19009517 | AI26: =IFERROR(IF(OR(O26="",'S1 Input'!$D26=""),"",O26/'S1 Input'!$D26),"") -> 71.62336833 | AJ26: =IFERROR(IF(OR(P26="",'S1 Input'!$D26=""),"",P26/'S1 Input'!$D26),"") -> 69.8997429 | AK26: =IFERROR(IF(OR(Q26="",'S1 Input'!$D26=""),"",Q26/'S1 Input'!$D26),"") -> 68.1002188 | AL26: =IFERROR(IF(OR(R26="",'S1 Input'!$D26=""),"",R26/'S1 Input'!$D26),"") -> 66.2995014 | AM26: =IFERROR(IF(OR(S26="",'S1 Input'!$D26=""),"",S26/'S1 Input'!$D26),"") -> 64.56253416 | AN26: =IFERROR(IF(OR(T26="",'S1 Input'!$D26=""),"",T26/'S1 Input'!$D26),"") -> 62.94159033 | AO26: =IFERROR(IF(OR(U26="",'S1 Input'!$D26=""),"",U26/'S1 Input'!$D26),"") -> 61.4741103 | AP26: =IFERROR(IF(OR(V26="",'S1 Input'!$D26=""),"",V26/'S1 Input'!$D26),"") -> 60.18146082 | AQ26: =IFERROR(IF(OR(W26="",'S1 Input'!$D26=""),"",W26/'S1 Input'!$D26),"") -> 59.06875877
A27: 2 | B27: POLES | C27: ˂ = 1 kv ; concrete | D27: =IFERROR(repcalc('S1 Input'!$CV27:$GH27,'S1 Input'!$G27,'S1 Input'!$E27,'S1 Input'!$F27,20,TRUE,TRUE),"") -> 160.3092984 | E27: 189.508529 | F27: 223.0529011 | G27: 260.4194974 | H27: 300.8317003 | I27: 343.2779161 | J27: 386.5516262 | K27: 429.3113659 | L27: 470.1568936 | M27: 507.7159277 | N27: 540.7346449 | O27: 568.1647366 | P27: 589.2401339 | Q27: 603.5373378 | R27: 611.0144081 | S27: 612.0249083 | T27: 607.3044292 | U27: 597.9287825 | V27: 585.2447079 | W27: 570.7760668 | X27: =IFERROR(IF(OR(D27="",'S1 Input'!$D27=""),"",D27/'S1 Input'!$D27),"") -> 17.02719886 | Y27: =IFERROR(IF(OR(E27="",'S1 Input'!$D27=""),"",E27/'S1 Input'!$D27),"") -> 20.12858543 | Z27: =IFERROR(IF(OR(F27="",'S1 Input'!$D27=""),"",F27/'S1 Input'!$D27),"") -> 23.69148977 | AA27: =IFERROR(IF(OR(G27="",'S1 Input'!$D27=""),"",G27/'S1 Input'!$D27),"") -> 27.66037038 | AB27: =IFERROR(IF(OR(H27="",'S1 Input'!$D27=""),"",H27/'S1 Input'!$D27),"") -> 31.95273908 | AC27: =IFERROR(IF(OR(I27="",'S1 Input'!$D27=""),"",I27/'S1 Input'!$D27),"") -> 36.46114978 | AD27: =IFERROR(IF(OR(J27="",'S1 Input'!$D27=""),"",J27/'S1 Input'!$D27),"") -> 41.05745252 | AE27: =IFERROR(IF(OR(K27="",'S1 Input'!$D27=""),"",K27/'S1 Input'!$D27),"") -> 45.59916407 | AF27: =IFERROR(IF(OR(L27="",'S1 Input'!$D27=""),"",L27/'S1 Input'!$D27),"") -> 49.93755821 | AG27: =IFERROR(IF(OR(M27="",'S1 Input'!$D27=""),"",M27/'S1 Input'!$D27),"") -> 53.92687854 | AH27: =IFERROR(IF(OR(N27="",'S1 Input'!$D27=""),"",N27/'S1 Input'!$D27),"") -> 57.43395061 | AI27: =IFERROR(IF(OR(O27="",'S1 Input'!$D27=""),"",O27/'S1 Input'!$D27),"") -> 60.34742869 | AJ27: =IFERROR(IF(OR(P27="",'S1 Input'!$D27=""),"",P27/'S1 Input'!$D27),"") -> 62.58594501 | AK27: =IFERROR(IF(OR(Q27="",'S1 Input'!$D27=""),"",Q27/'S1 Input'!$D27),"") -> 64.10451778 | AL27: =IFERROR(IF(OR(R27="",'S1 Input'!$D27=""),"",R27/'S1 Input'!$D27),"") -> 64.89869231 | AM27: =IFERROR(IF(OR(S27="",'S1 Input'!$D27=""),"",S27/'S1 Input'!$D27),"") -> 65.00602225 | AN27: =IFERROR(IF(OR(T27="",'S1 Input'!$D27=""),"",T27/'S1 Input'!$D27),"") -> 64.50463814 | AO27: =IFERROR(IF(OR(U27="",'S1 Input'!$D27=""),"",U27/'S1 Input'!$D27),"") -> 63.50880693 | AP27: =IFERROR(IF(OR(V27="",'S1 Input'!$D27=""),"",V27/'S1 Input'!$D27),"") -> 62.16157217 | AQ27: =IFERROR(IF(OR(W27="",'S1 Input'!$D27=""),"",W27/'S1 Input'!$D27),"") -> 60.62479026
A28: 2 | B28: POLES | C28: > 1 kv & < = 11 kv ; concrete | D28: =IFERROR(repcalc('S1 Input'!$CV28:$GH28,'S1 Input'!$G28,'S1 Input'!$E28,'S1 Input'!$F28,20,TRUE,TRUE),"") -> 779.6233711 | E28: 918.1069009 | F28: 1065.809288 | G28: 1218.500495 | H28: 1371.301169 | I28: 1519.057598 | J28: 1656.807655 | K28: 1780.300562 | L28: 1886.521819 | M28: 1974.1676 | N28: 2044.01123 | O28: 2099.108444 | P28: 2144.797825 | Q28: 2188.46776 | R28: 2239.080959 | S28: 2306.471105 | T28: 2400.452427 | U28: 2529.809681 | V28: 2701.260199 | W28: 2918.497383 | X28: =IFERROR(IF(OR(D28="",'S1 Input'!$D28=""),"",D28/'S1 Input'!$D28),"") -> 66.71961054 | Y28: =IFERROR(IF(OR(E28="",'S1 Input'!$D28=""),"",E28/'S1 Input'!$D28),"") -> 78.57093199 | Z28: =IFERROR(IF(OR(F28="",'S1 Input'!$D28=""),"",F28/'S1 Input'!$D28),"") -> 91.21119666 | AA28: =IFERROR(IF(OR(G28="",'S1 Input'!$D28=""),"",G28/'S1 Input'!$D28),"") -> 104.278401 | AB28: =IFERROR(IF(OR(H28="",'S1 Input'!$D28=""),"",H28/'S1 Input'!$D28),"") -> 117.3549733 | AC28: =IFERROR(IF(OR(I28="",'S1 Input'!$D28=""),"",I28/'S1 Input'!$D28),"") -> 129.9998628 | AD28: =IFERROR(IF(OR(J28="",'S1 Input'!$D28=""),"",J28/'S1 Input'!$D28),"") -> 141.7884143 | AE28: =IFERROR(IF(OR(K28="",'S1 Input'!$D28=""),"",K28/'S1 Input'!$D28),"") -> 152.3568489 | AF28: =IFERROR(IF(OR(L28="",'S1 Input'!$D28=""),"",L28/'S1 Input'!$D28),"") -> 161.4471881 | AG28: =IFERROR(IF(OR(M28="",'S1 Input'!$D28=""),"",M28/'S1 Input'!$D28),"") -> 168.9478513 | AH28: =IFERROR(IF(OR(N28="",'S1 Input'!$D28=""),"",N28/'S1 Input'!$D28),"") -> 174.9250192 | AI28: =IFERROR(IF(OR(O28="",'S1 Input'!$D28=""),"",O28/'S1 Input'!$D28),"") -> 179.6401995 | AJ28: =IFERROR(IF(OR(P28="",'S1 Input'!$D28=""),"",P28/'S1 Input'!$D28),"") -> 183.550264 | AK28: =IFERROR(IF(OR(Q28="",'S1 Input'!$D28=""),"",Q28/'S1 Input'!$D28),"") -> 187.2875058 | AL28: =IFERROR(IF(OR(R28="",'S1 Input'!$D28=""),"",R28/'S1 Input'!$D28),"") -> 191.6189472 | AM28: =IFERROR(IF(OR(S28="",'S1 Input'!$D28=""),"",S28/'S1 Input'!$D28),"") -> 197.3861477 | AN28: =IFERROR(IF(OR(T28="",'S1 Input'!$D28=""),"",T28/'S1 Input'!$D28),"") -> 205.429002 | AO28: =IFERROR(IF(OR(U28="",'S1 Input'!$D28=""),"",U28/'S1 Input'!$D28),"") -> 216.4993033 | AP28: =IFERROR(IF(OR(V28="",'S1 Input'!$D28=""),"",V28/'S1 Input'!$D28),"") -> 231.171916 | AQ28: =IFERROR(IF(OR(W28="",'S1 Input'!$D28=""),"",W28/'S1 Input'!$D28),"") -> 249.7629189
A29: 2 | B29: POLES | C29: ˃ 11 kv & < = 22 kv ; concrete | D29: =IFERROR(repcalc('S1 Input'!$CV29:$GH29,'S1 Input'!$G29,'S1 Input'!$E29,'S1 Input'!$F29,20,TRUE,TRUE),"") -> 72.12127374 | E29: 93.39545369 | F29: 118.8540294 | G29: 148.6458124 | H29: 182.7138071 | I29: 220.7518348 | J29: 262.175163 | K29: 306.1114412 | L29: 351.4168718 | M29: 396.7202089 | N29: 440.4940957 | O29: 481.1498044 | P29: 517.1481185 | Q29: 547.1164205 | R29: 569.9604575 | S29: 584.9590605 | T29: 591.8313689 | U29: 590.7687262 | V29: 582.4270273 | W29: 567.8794338 | X29: =IFERROR(IF(OR(D29="",'S1 Input'!$D29=""),"",D29/'S1 Input'!$D29),"") -> 5.320680357 | Y29: =IFERROR(IF(OR(E29="",'S1 Input'!$D29=""),"",E29/'S1 Input'!$D29),"") -> 6.890163333 | Z29: =IFERROR(IF(OR(F29="",'S1 Input'!$D29=""),"",F29/'S1 Input'!$D29),"") -> 8.768346245 | AA29: =IFERROR(IF(OR(G29="",'S1 Input'!$D29=""),"",G29/'S1 Input'!$D29),"") -> 10.96620752 | AB29: =IFERROR(IF(OR(H29="",'S1 Input'!$D29=""),"",H29/'S1 Input'!$D29),"") -> 13.47954236 | AC29: =IFERROR(IF(OR(I29="",'S1 Input'!$D29=""),"",I29/'S1 Input'!$D29),"") -> 16.28576272 | AD29: =IFERROR(IF(OR(J29="",'S1 Input'!$D29=""),"",J29/'S1 Input'!$D29),"") -> 19.3417305 | AE29: =IFERROR(IF(OR(K29="",'S1 Input'!$D29=""),"",K29/'S1 Input'!$D29),"") -> 22.58308884 | AF29: =IFERROR(IF(OR(L29="",'S1 Input'!$D29=""),"",L29/'S1 Input'!$D29),"") -> 25.92545514 | AG29: =IFERROR(IF(OR(M29="",'S1 Input'!$D29=""),"",M29/'S1 Input'!$D29),"") -> 29.26766699 | AH29: =IFERROR(IF(OR(N29="",'S1 Input'!$D29=""),"",N29/'S1 Input'!$D29),"") -> 32.49704506 | AI29: =IFERROR(IF(OR(O29="",'S1 Input'!$D29=""),"",O29/'S1 Input'!$D29),"") -> 35.49638242 | AJ29: =IFERROR(IF(OR(P29="",'S1 Input'!$D29=""),"",P29/'S1 Input'!$D29),"") -> 38.15212479 | AK29: =IFERROR(IF(OR(Q29="",'S1 Input'!$D29=""),"",Q29/'S1 Input'!$D29),"") -> 40.36300859 | AL29: =IFERROR(IF(OR(R29="",'S1 Input'!$D29=""),"",R29/'S1 Input'!$D29),"") -> 42.04830632 | AM29: =IFERROR(IF(OR(S29="",'S1 Input'!$D29=""),"",S29/'S1 Input'!$D29),"") -> 43.15481441 | AN29: =IFERROR(IF(OR(T29="",'S1 Input'!$D29=""),"",T29/'S1 Input'!$D29),"") -> 43.66181261 | AO29: =IFERROR(IF(OR(U29="",'S1 Input'!$D29=""),"",U29/'S1 Input'!$D29),"") -> 43.58341713 | AP29: =IFERROR(IF(OR(V29="",'S1 Input'!$D29=""),"",V29/'S1 Input'!$D29),"") -> 42.96801599 | AQ29: =IFERROR(IF(OR(W29="",'S1 Input'!$D29=""),"",W29/'S1 Input'!$D29),"") -> 41.89478072
A30: 2 | B30: POLES | C30: > 22 kv & < = 66 kv ; concrete | D30: =IFERROR(repcalc('S1 Input'!$CV30:$GH30,'S1 Input'!$G30,'S1 Input'!$E30,'S1 Input'!$F30,20,TRUE,TRUE),"") -> 510.6210253 | E30: 574.5310388 | F30: 646.9575125 | G30: 725.7274974 | H30: 808.2493712 | I30: 891.6855111 | J30: 973.1598008 | K30: 1049.982297 | L30: 1119.870304 | M30: 1181.14525 | N30: 1232.888052 | O30: 1275.041258 | P30: 1308.452754 | Q30: 1334.861572 | R30: 1356.83012 | S30: 1377.628283 | T30: 1401.073768 | U30: 1431.33083 | V30: 1472.667816 | W30: 1529.174439 | X30: =IFERROR(IF(OR(D30="",'S1 Input'!$D30=""),"",D30/'S1 Input'!$D30),"") -> 20.98238107 | Y30: =IFERROR(IF(OR(E30="",'S1 Input'!$D30=""),"",E30/'S1 Input'!$D30),"") -> 23.60856407 | Z30: =IFERROR(IF(OR(F30="",'S1 Input'!$D30=""),"",F30/'S1 Input'!$D30),"") -> 26.58470449 | AA30: =IFERROR(IF(OR(G30="",'S1 Input'!$D30=""),"",G30/'S1 Input'!$D30),"") -> 29.82151174 | AB30: =IFERROR(IF(OR(H30="",'S1 Input'!$D30=""),"",H30/'S1 Input'!$D30),"") -> 33.21249119 | AC30: =IFERROR(IF(OR(I30="",'S1 Input'!$D30=""),"",I30/'S1 Input'!$D30),"") -> 36.64103956 | AD30: =IFERROR(IF(OR(J30="",'S1 Input'!$D30=""),"",J30/'S1 Input'!$D30),"") -> 39.9889718 | AE30: =IFERROR(IF(OR(K30="",'S1 Input'!$D30=""),"",K30/'S1 Input'!$D30),"") -> 43.14575306 | AF30: =IFERROR(IF(OR(L30="",'S1 Input'!$D30=""),"",L30/'S1 Input'!$D30),"") -> 46.01758309 | AG30: =IFERROR(IF(OR(M30="",'S1 Input'!$D30=""),"",M30/'S1 Input'!$D30),"") -> 48.53548622 | AH30: =IFERROR(IF(OR(N30="",'S1 Input'!$D30=""),"",N30/'S1 Input'!$D30),"") -> 50.66169556 | AI30: =IFERROR(IF(OR(O30="",'S1 Input'!$D30=""),"",O30/'S1 Input'!$D30),"") -> 52.39385031 | AJ30: =IFERROR(IF(OR(P30="",'S1 Input'!$D30=""),"",P30/'S1 Input'!$D30),"") -> 53.76679167 | AK30: =IFERROR(IF(OR(Q30="",'S1 Input'!$D30=""),"",Q30/'S1 Input'!$D30),"") -> 54.85197983 | AL30: =IFERROR(IF(OR(R30="",'S1 Input'!$D30=""),"",R30/'S1 Input'!$D30),"") -> 55.75470892 | AM30: =IFERROR(IF(OR(S30="",'S1 Input'!$D30=""),"",S30/'S1 Input'!$D30),"") -> 56.60934465 | AN30: =IFERROR(IF(OR(T30="",'S1 Input'!$D30=""),"",T30/'S1 Input'!$D30),"") -> 57.57276385 | AO30: =IFERROR(IF(OR(U30="",'S1 Input'!$D30=""),"",U30/'S1 Input'!$D30),"") -> 58.81608358 | AP30: =IFERROR(IF(OR(V30="",'S1 Input'!$D30=""),"",V30/'S1 Input'!$D30),"") -> 60.51469832 | AQ30: =IFERROR(IF(OR(W30="",'S1 Input'!$D30=""),"",W30/'S1 Input'!$D30),"") -> 62.83666203
A31: 2 | B31: POLES | C31: > 66 kv & < = 132 kv ; concrete | D31: =IFERROR(repcalc('S1 Input'!$CV31:$GH31,'S1 Input'!$G31,'S1 Input'!$E31,'S1 Input'!$F31,20,TRUE,TRUE),"") -> 164.9738716 | E31: 208.7150724 | F31: 262.9141378 | G31: 328.5610215 | H31: 406.2412166 | I31: 495.9974475 | J31: 597.2127127 | K31: 708.5328308 | L31: 827.8451493 | M31: 952.3257686 | N31: 1078.560783 | O31: 1202.738401 | P31: 1320.89957 | Q31: 1429.226305 | R31: 1524.340588 | S31: 1603.583569 | T31: 1665.245338 | U31: 1708.719636 | V31: 1734.565137 | W31: 1744.464158 | X31: =IFERROR(IF(OR(D31="",'S1 Input'!$D31=""),"",D31/'S1 Input'!$D31),"") -> 5.601266545 | Y31: =IFERROR(IF(OR(E31="",'S1 Input'!$D31=""),"",E31/'S1 Input'!$D31),"") -> 7.086387323 | Z31: =IFERROR(IF(OR(F31="",'S1 Input'!$D31=""),"",F31/'S1 Input'!$D31),"") -> 8.926578191 | AA31: =IFERROR(IF(OR(G31="",'S1 Input'!$D31=""),"",G31/'S1 Input'!$D31),"") -> 11.1554505 | AB31: =IFERROR(IF(OR(H31="",'S1 Input'!$D31=""),"",H31/'S1 Input'!$D31),"") -> 13.79288316 | AC31: =IFERROR(IF(OR(I31="",'S1 Input'!$D31=""),"",I31/'S1 Input'!$D31),"") -> 16.84032678 | AD31: =IFERROR(IF(OR(J31="",'S1 Input'!$D31=""),"",J31/'S1 Input'!$D31),"") -> 20.27683266 | AE31: =IFERROR(IF(OR(K31="",'S1 Input'!$D31=""),"",K31/'S1 Input'!$D31),"") -> 24.05642301 | AF31: =IFERROR(IF(OR(L31="",'S1 Input'!$D31=""),"",L31/'S1 Input'!$D31),"") -> 28.10736811 | AG31: =IFERROR(IF(OR(M31="",'S1 Input'!$D31=""),"",M31/'S1 Input'!$D31),"") -> 32.33378968 | AH31: =IFERROR(IF(OR(N31="",'S1 Input'!$D31=""),"",N31/'S1 Input'!$D31),"") -> 36.61977725 | AI31: =IFERROR(IF(OR(O31="",'S1 Input'!$D31=""),"",O31/'S1 Input'!$D31),"") -> 40.83591117 | AJ31: =IFERROR(IF(OR(P31="",'S1 Input'!$D31=""),"",P31/'S1 Input'!$D31),"") -> 44.84777194 | AK31: =IFERROR(IF(OR(Q31="",'S1 Input'!$D31=""),"",Q31/'S1 Input'!$D31),"") -> 48.52572963 | AL31: =IFERROR(IF(OR(R31="",'S1 Input'!$D31=""),"",R31/'S1 Input'!$D31),"") -> 51.7550922 | AM31: =IFERROR(IF(OR(S31="",'S1 Input'!$D31=""),"",S31/'S1 Input'!$D31),"") -> 54.4455853 | AN31: =IFERROR(IF(OR(T31="",'S1 Input'!$D31=""),"",T31/'S1 Input'!$D31),"") -> 56.5391532 | AO31: =IFERROR(IF(OR(U31="",'S1 Input'!$D31=""),"",U31/'S1 Input'!$D31),"") -> 58.01521197 | AP31: =IFERROR(IF(OR(V31="",'S1 Input'!$D31=""),"",V31/'S1 Input'!$D31),"") -> 58.89272997 | AQ31: =IFERROR(IF(OR(W31="",'S1 Input'!$D31=""),"",W31/'S1 Input'!$D31),"") -> 59.22882592
A32: 2 | B32: POLES | C32: ˂ = 1 kv ; steel | D32: =IFERROR(repcalc('S1 Input'!$CV32:$GH32,'S1 Input'!$G32,'S1 Input'!$E32,'S1 Input'!$F32,20,TRUE,TRUE),"") -> 174.4545081 | E32: 138.1496137 | F32: 113.1321998 | G32: 96.50597768 | H32: 86.03196466 | I32: 80.02903865 | J32: 77.271247 | K32: 76.89401941 | L32: 78.31455874 | M32: 81.16681816 | N32: 85.24857724 | O32: 90.47691347 | P32: 96.84844989 | Q32: 104.4017533 | R32: 113.1807805 | S32: 123.1999488 | T32: 134.4128903 | U32: 146.687916 | V32: 159.793442 | W32: 173.3960199 | X32: =IFERROR(IF(OR(D32="",'S1 Input'!$D32=""),"",D32/'S1 Input'!$D32),"") -> 21.21644999 | Y32: =IFERROR(IF(OR(E32="",'S1 Input'!$D32=""),"",E32/'S1 Input'!$D32),"") -> 16.80119592 | Z32: =IFERROR(IF(OR(F32="",'S1 Input'!$D32=""),"",F32/'S1 Input'!$D32),"") -> 13.75867946 | AA32: =IFERROR(IF(OR(G32="",'S1 Input'!$D32=""),"",G32/'S1 Input'!$D32),"") -> 11.73666574 | AB32: =IFERROR(IF(OR(H32="",'S1 Input'!$D32=""),"",H32/'S1 Input'!$D32),"") -> 10.46285874 | AC32: =IFERROR(IF(OR(I32="",'S1 Input'!$D32=""),"",I32/'S1 Input'!$D32),"") -> 9.732807219 | AD32: =IFERROR(IF(OR(J32="",'S1 Input'!$D32=""),"",J32/'S1 Input'!$D32),"") -> 9.397415779 | AE32: =IFERROR(IF(OR(K32="",'S1 Input'!$D32=""),"",K32/'S1 Input'!$D32),"") -> 9.351538889 | AF32: =IFERROR(IF(OR(L32="",'S1 Input'!$D32=""),"",L32/'S1 Input'!$D32),"") -> 9.524299123 | AG32: =IFERROR(IF(OR(M32="",'S1 Input'!$D32=""),"",M32/'S1 Input'!$D32),"") -> 9.87117935 | AH32: =IFERROR(IF(OR(N32="",'S1 Input'!$D32=""),"",N32/'S1 Input'!$D32),"") -> 10.36758634 | AI32: =IFERROR(IF(OR(O32="",'S1 Input'!$D32=""),"",O32/'S1 Input'!$D32),"") -> 11.0034354 | AJ32: =IFERROR(IF(OR(P32="",'S1 Input'!$D32=""),"",P32/'S1 Input'!$D32),"") -> 11.77831582 | AK32: =IFERROR(IF(OR(Q32="",'S1 Input'!$D32=""),"",Q32/'S1 Input'!$D32),"") -> 12.69691796 | AL32: =IFERROR(IF(OR(R32="",'S1 Input'!$D32=""),"",R32/'S1 Input'!$D32),"") -> 13.76458766 | AM32: =IFERROR(IF(OR(S32="",'S1 Input'!$D32=""),"",S32/'S1 Input'!$D32),"") -> 14.98307828 | AN32: =IFERROR(IF(OR(T32="",'S1 Input'!$D32=""),"",T32/'S1 Input'!$D32),"") -> 16.34675076 | AO32: =IFERROR(IF(OR(U32="",'S1 Input'!$D32=""),"",U32/'S1 Input'!$D32),"") -> 17.83958963 | AP32: =IFERROR(IF(OR(V32="",'S1 Input'!$D32=""),"",V32/'S1 Input'!$D32),"") -> 19.43343057 | AQ32: =IFERROR(IF(OR(W32="",'S1 Input'!$D32=""),"",W32/'S1 Input'!$D32),"") -> 21.08772094
A33: 2 | B33: POLES | C33: > 1 kv & < = 11 kv ; steel | D33: =IFERROR(repcalc('S1 Input'!$CV33:$GH33,'S1 Input'!$G33,'S1 Input'!$E33,'S1 Input'!$F33,20,TRUE,TRUE),"") -> 80.62764647 | E33: 54.07436909 | F33: 39.62359462 | G33: 32.5534998 | H33: 30.04382258 | I33: 30.50112611 | J33: 33.08257968 | K33: 37.37301969 | L33: 43.17214828 | M33: 50.3579852 | N33: 58.80339062 | O33: 68.33128847 | P33: 78.69971351 | Q33: 89.60992738 | R33: 100.730487 | S33: 111.7287337 | T33: 122.3002812 | U33: 132.1879742 | V33: 141.1850021 | W33: 149.121939 | X33: =IFERROR(IF(OR(D33="",'S1 Input'!$D33=""),"",D33/'S1 Input'!$D33),"") -> 7.706957336 | Y33: =IFERROR(IF(OR(E33="",'S1 Input'!$D33=""),"",E33/'S1 Input'!$D33),"") -> 5.168808391 | Z33: =IFERROR(IF(OR(F33="",'S1 Input'!$D33=""),"",F33/'S1 Input'!$D33),"") -> 3.787501765 | AA33: =IFERROR(IF(OR(G33="",'S1 Input'!$D33=""),"",G33/'S1 Input'!$D33),"") -> 3.111692392 | AB33: =IFERROR(IF(OR(H33="",'S1 Input'!$D33=""),"",H33/'S1 Input'!$D33),"") -> 2.871799798 | AC33: =IFERROR(IF(OR(I33="",'S1 Input'!$D33=""),"",I33/'S1 Input'!$D33),"") -> 2.915512084 | AD33: =IFERROR(IF(OR(J33="",'S1 Input'!$D33=""),"",J33/'S1 Input'!$D33),"") -> 3.162265567 | AE33: =IFERROR(IF(OR(K33="",'S1 Input'!$D33=""),"",K33/'S1 Input'!$D33),"") -> 3.572375989 | AF33: =IFERROR(IF(OR(L33="",'S1 Input'!$D33=""),"",L33/'S1 Input'!$D33),"") -> 4.126697472 | AG33: =IFERROR(IF(OR(M33="",'S1 Input'!$D33=""),"",M33/'S1 Input'!$D33),"") -> 4.813570288 | AH33: =IFERROR(IF(OR(N33="",'S1 Input'!$D33=""),"",N33/'S1 Input'!$D33),"") -> 5.620841517 | AI33: =IFERROR(IF(OR(O33="",'S1 Input'!$D33=""),"",O33/'S1 Input'!$D33),"") -> 6.531584984 | AJ33: =IFERROR(IF(OR(P33="",'S1 Input'!$D33=""),"",P33/'S1 Input'!$D33),"") -> 7.522671948 | AK33: =IFERROR(IF(OR(Q33="",'S1 Input'!$D33=""),"",Q33/'S1 Input'!$D33),"") -> 8.5655469 | AL33: =IFERROR(IF(OR(R33="",'S1 Input'!$D33=""),"",R33/'S1 Input'!$D33),"") -> 9.628528173 | AM33: =IFERROR(IF(OR(S33="",'S1 Input'!$D33=""),"",S33/'S1 Input'!$D33),"") -> 10.67981792 | AN33: =IFERROR(IF(OR(T33="",'S1 Input'!$D33=""),"",T33/'S1 Input'!$D33),"") -> 11.69032076 | AO33: =IFERROR(IF(OR(U33="",'S1 Input'!$D33=""),"",U33/'S1 Input'!$D33),"") -> 12.63545598 | AP33: =IFERROR(IF(OR(V33="",'S1 Input'!$D33=""),"",V33/'S1 Input'!$D33),"") -> 13.49545516 | AQ33: =IFERROR(IF(OR(W33="",'S1 Input'!$D33=""),"",W33/'S1 Input'!$D33),"") -> 14.2541234
A34: 2 | B34: POLES | C34: ˃ 11 kv & < = 22 kv ; steel | D34: =IFERROR(repcalc('S1 Input'!$CV34:$GH34,'S1 Input'!$G34,'S1 Input'!$E34,'S1 Input'!$F34,20,TRUE,TRUE),"") -> 53.24029883 | E34: 78.98317251 | F34: 113.3779551 | G34: 156.6226138 | H34: 207.2407015 | I34: 261.675125 | J34: 314.4137135 | K34: 358.8100104 | L34: 388.5037992 | M34: 399.0571571 | N34: 389.2545245 | O34: 361.5801435 | P34: 321.6765926 | Q34: 276.9720567 | R34: 234.9570586 | S34: 201.6636455 | T34: 180.7445086 | U34: 173.2716556 | V34: 178.1179206 | W34: 192.6504083 | X34: =IFERROR(IF(OR(D34="",'S1 Input'!$D34=""),"",D34/'S1 Input'!$D34),"") -> 4.269157002 | Y34: =IFERROR(IF(OR(E34="",'S1 Input'!$D34=""),"",E34/'S1 Input'!$D34),"") -> 6.333389769 | Z34: =IFERROR(IF(OR(F34="",'S1 Input'!$D34=""),"",F34/'S1 Input'!$D34),"") -> 9.091389446 | AA34: =IFERROR(IF(OR(G34="",'S1 Input'!$D34=""),"",G34/'S1 Input'!$D34),"") -> 12.55903034 | AB34: =IFERROR(IF(OR(H34="",'S1 Input'!$D34=""),"",H34/'S1 Input'!$D34),"") -> 16.61792122 | AC34: =IFERROR(IF(OR(I34="",'S1 Input'!$D34=""),"",I34/'S1 Input'!$D34),"") -> 20.98283099 | AD34: =IFERROR(IF(OR(J34="",'S1 Input'!$D34=""),"",J34/'S1 Input'!$D34),"") -> 25.21175756 | AE34: =IFERROR(IF(OR(K34="",'S1 Input'!$D34=""),"",K34/'S1 Input'!$D34),"") -> 28.77174437 | AF34: =IFERROR(IF(OR(L34="",'S1 Input'!$D34=""),"",L34/'S1 Input'!$D34),"") -> 31.15278748 | AG34: =IFERROR(IF(OR(M34="",'S1 Input'!$D34=""),"",M34/'S1 Input'!$D34),"") -> 31.99902505 | AH34: =IFERROR(IF(OR(N34="",'S1 Input'!$D34=""),"",N34/'S1 Input'!$D34),"") -> 31.21298556 | AI34: =IFERROR(IF(OR(O34="",'S1 Input'!$D34=""),"",O34/'S1 Input'!$D34),"") -> 28.99387184 | AJ34: =IFERROR(IF(OR(P34="",'S1 Input'!$D34=""),"",P34/'S1 Input'!$D34),"") -> 25.79414293 | AK34: =IFERROR(IF(OR(Q34="",'S1 Input'!$D34=""),"",Q34/'S1 Input'!$D34),"") -> 22.20943949 | AL34: =IFERROR(IF(OR(R34="",'S1 Input'!$D34=""),"",R34/'S1 Input'!$D34),"") -> 18.84040086 | AM34: =IFERROR(IF(OR(S34="",'S1 Input'!$D34=""),"",S34/'S1 Input'!$D34),"") -> 16.17071622 | AN34: =IFERROR(IF(OR(T34="",'S1 Input'!$D34=""),"",T34/'S1 Input'!$D34),"") -> 14.49328237 | AO34: =IFERROR(IF(OR(U34="",'S1 Input'!$D34=""),"",U34/'S1 Input'!$D34),"") -> 13.89405991 | AP34: =IFERROR(IF(OR(V34="",'S1 Input'!$D34=""),"",V34/'S1 Input'!$D34),"") -> 14.28266528 | AQ34: =IFERROR(IF(OR(W34="",'S1 Input'!$D34=""),"",W34/'S1 Input'!$D34),"") -> 15.44797564
A35: 2 | B35: POLES | C35: > 22 kv & < = 66 kv ; steel | D35: =IFERROR(repcalc('S1 Input'!$CV35:$GH35,'S1 Input'!$G35,'S1 Input'!$E35,'S1 Input'!$F35,20,TRUE,TRUE),"") -> 468.6794478 | E35: 504.2578724 | F35: 567.3762059 | G35: 636.7128853 | H35: 702.3725768 | I35: 757.5705859 | J35: 797.1114504 | K35: 817.7565738 | L35: 818.410127 | M35: 800.2118322 | N35: 766.3931171 | O35: 721.8818195 | P35: 672.6759479 | Q35: 625.0515806 | R35: 584.7156006 | S35: 556.0428573 | T35: 541.5343027 | U35: 541.5934816 | V35: 554.6520443 | W35: 577.5989918 | X35: =IFERROR(IF(OR(D35="",'S1 Input'!$D35=""),"",D35/'S1 Input'!$D35),"") -> 19.29323818 | Y35: =IFERROR(IF(OR(E35="",'S1 Input'!$D35=""),"",E35/'S1 Input'!$D35),"") -> 20.75782772 | Z35: =IFERROR(IF(OR(F35="",'S1 Input'!$D35=""),"",F35/'S1 Input'!$D35),"") -> 23.35610048 | AA35: =IFERROR(IF(OR(G35="",'S1 Input'!$D35=""),"",G35/'S1 Input'!$D35),"") -> 26.21035209 | AB35: =IFERROR(IF(OR(H35="",'S1 Input'!$D35=""),"",H35/'S1 Input'!$D35),"") -> 28.91324012 | AC35: =IFERROR(IF(OR(I35="",'S1 Input'!$D35=""),"",I35/'S1 Input'!$D35),"") -> 31.1854719 | AD35: =IFERROR(IF(OR(J35="",'S1 Input'!$D35=""),"",J35/'S1 Input'!$D35),"") -> 32.81317569 | AE35: =IFERROR(IF(OR(K35="",'S1 Input'!$D35=""),"",K35/'S1 Input'!$D35),"") -> 33.66303435 | AF35: =IFERROR(IF(OR(L35="",'S1 Input'!$D35=""),"",L35/'S1 Input'!$D35),"") -> 33.68993793 | AG35: =IFERROR(IF(OR(M35="",'S1 Input'!$D35=""),"",M35/'S1 Input'!$D35),"") -> 32.94080323 | AH35: =IFERROR(IF(OR(N35="",'S1 Input'!$D35=""),"",N35/'S1 Input'!$D35),"") -> 31.54865231 | AI35: =IFERROR(IF(OR(O35="",'S1 Input'!$D35=""),"",O35/'S1 Input'!$D35),"") -> 29.71634012 | AJ35: =IFERROR(IF(OR(P35="",'S1 Input'!$D35=""),"",P35/'S1 Input'!$D35),"") -> 27.6907753 | AK35: =IFERROR(IF(OR(Q35="",'S1 Input'!$D35=""),"",Q35/'S1 Input'!$D35),"") -> 25.73031327 | AL35: =IFERROR(IF(OR(R35="",'S1 Input'!$D35=""),"",R35/'S1 Input'!$D35),"") -> 24.06987846 | AM35: =IFERROR(IF(OR(S35="",'S1 Input'!$D35=""),"",S35/'S1 Input'!$D35),"") -> 22.88956201 | AN35: =IFERROR(IF(OR(T35="",'S1 Input'!$D35=""),"",T35/'S1 Input'!$D35),"") -> 22.29231585 | AO35: =IFERROR(IF(OR(U35="",'S1 Input'!$D35=""),"",U35/'S1 Input'!$D35),"") -> 22.29475195 | AP35: =IFERROR(IF(OR(V35="",'S1 Input'!$D35=""),"",V35/'S1 Input'!$D35),"") -> 22.83230904 | AQ35: =IFERROR(IF(OR(W35="",'S1 Input'!$D35=""),"",W35/'S1 Input'!$D35),"") -> 23.77692252
A36: 2 | B36: POLES | C36: > 66 kv & < = 132 kv ; steel | D36: =IFERROR(repcalc('S1 Input'!$CV36:$GH36,'S1 Input'!$G36,'S1 Input'!$E36,'S1 Input'!$F36,20,TRUE,TRUE),"") -> 178.1073156 | E36: 221.8208733 | F36: 267.7349218 | G36: 311.7182376 | H36: 349.0521538 | I36: 375.2743378 | J36: 387.0695862 | K36: 382.9676862 | L36: 363.6539673 | M36: 331.8133721 | N36: 291.5703621 | O36: 247.7001132 | P36: 204.8307018 | Q36: 166.8224888 | R36: 136.4234686 | S36: 115.1994939 | T36: 103.6643148 | U36: 101.5057735 | V36: 107.8182946 | W36: 121.2898765 | X36: =IFERROR(IF(OR(D36="",'S1 Input'!$D36=""),"",D36/'S1 Input'!$D36),"") -> 6.276561893 | Y36: =IFERROR(IF(OR(E36="",'S1 Input'!$D36=""),"",E36/'S1 Input'!$D36),"") -> 7.817042415 | Z36: =IFERROR(IF(OR(F36="",'S1 Input'!$D36=""),"",F36/'S1 Input'!$D36),"") -> 9.435068975 | AA36: =IFERROR(IF(OR(G36="",'S1 Input'!$D36=""),"",G36/'S1 Input'!$D36),"") -> 10.98505586 | AB36: =IFERROR(IF(OR(H36="",'S1 Input'!$D36=""),"",H36/'S1 Input'!$D36),"") -> 12.30071567 | AC36: =IFERROR(IF(OR(I36="",'S1 Input'!$D36=""),"",I36/'S1 Input'!$D36),"") -> 13.22479428 | AD36: =IFERROR(IF(OR(J36="",'S1 Input'!$D36=""),"",J36/'S1 Input'!$D36),"") -> 13.64046281 | AE36: =IFERROR(IF(OR(K36="",'S1 Input'!$D36=""),"",K36/'S1 Input'!$D36),"") -> 13.49591047 | AF36: =IFERROR(IF(OR(L36="",'S1 Input'!$D36=""),"",L36/'S1 Input'!$D36),"") -> 12.8152885 | AG36: =IFERROR(IF(OR(M36="",'S1 Input'!$D36=""),"",M36/'S1 Input'!$D36),"") -> 11.69321518 | AH36: =IFERROR(IF(OR(N36="",'S1 Input'!$D36=""),"",N36/'S1 Input'!$D36),"") -> 10.27503793 | AI36: =IFERROR(IF(OR(O36="",'S1 Input'!$D36=""),"",O36/'S1 Input'!$D36),"") -> 8.729035562 | AJ36: =IFERROR(IF(OR(P36="",'S1 Input'!$D36=""),"",P36/'S1 Input'!$D36),"") -> 7.218303041 | AK36: =IFERROR(IF(OR(Q36="",'S1 Input'!$D36=""),"",Q36/'S1 Input'!$D36),"") -> 5.878880789 | AL36: =IFERROR(IF(OR(R36="",'S1 Input'!$D36=""),"",R36/'S1 Input'!$D36),"") -> 4.807609062 | AM36: =IFERROR(IF(OR(S36="",'S1 Input'!$D36=""),"",S36/'S1 Input'!$D36),"") -> 4.059669031 | AN36: =IFERROR(IF(OR(T36="",'S1 Input'!$D36=""),"",T36/'S1 Input'!$D36),"") -> 3.65316543 | AO36: =IFERROR(IF(OR(U36="",'S1 Input'!$D36=""),"",U36/'S1 Input'!$D36),"") -> 3.577097704 | AP36: =IFERROR(IF(OR(V36="",'S1 Input'!$D36=""),"",V36/'S1 Input'!$D36),"") -> 3.799553079 | AQ36: =IFERROR(IF(OR(W36="",'S1 Input'!$D36=""),"",W36/'S1 Input'!$D36),"") -> 4.27429617
A37: 1 | B37: OVERHEAD CONDUCTORS | C37: ˂ = 1 kv | D37: =IFERROR(repcalc('S1 Input'!$CV37:$GH37,'S1 Input'!$G37,'S1 Input'!$E37,'S1 Input'!$F37,20,TRUE,TRUE),"") -> 3635.177862 | E37: 4408.696286 | F37: 5281.718736 | G37: 6251.638116 | H37: 7312.204072 | I37: 8453.403452 | J37: 9661.577036 | K37: 10919.78807 | L37: 12208.43467 | M37: 13506.0734 | N37: 14790.39796 | O37: 16039.29865 | P37: 17231.91728 | Q37: 18349.61052 | R37: 19376.74298 | S37: 20301.24829 | T37: 21114.92043 | U37: 21813.42543 | V37: 22396.05111 | W37: 22865.23716 | X37: =IFERROR(IF(OR(D37="",'S1 Input'!$D37=""),"",D37/'S1 Input'!$D37),"") -> 46.32439924 | Y37: =IFERROR(IF(OR(E37="",'S1 Input'!$D37=""),"",E37/'S1 Input'!$D37),"") -> 56.18162705 | Z37: =IFERROR(IF(OR(F37="",'S1 Input'!$D37=""),"",F37/'S1 Input'!$D37),"") -> 67.306871 | AA37: =IFERROR(IF(OR(G37="",'S1 Input'!$D37=""),"",G37/'S1 Input'!$D37),"") -> 79.66690792 | AB37: =IFERROR(IF(OR(H37="",'S1 Input'!$D37=""),"",H37/'S1 Input'!$D37),"") -> 93.18208727 | AC37: =IFERROR(IF(OR(I37="",'S1 Input'!$D37=""),"",I37/'S1 Input'!$D37),"") -> 107.7248078 | AD37: =IFERROR(IF(OR(J37="",'S1 Input'!$D37=""),"",J37/'S1 Input'!$D37),"") -> 123.1210051 | AE37: =IFERROR(IF(OR(K37="",'S1 Input'!$D37=""),"",K37/'S1 Input'!$D37),"") -> 139.1548478 | AF37: =IFERROR(IF(OR(L37="",'S1 Input'!$D37=""),"",L37/'S1 Input'!$D37),"") -> 155.5765421 | AG37: =IFERROR(IF(OR(M37="",'S1 Input'!$D37=""),"",M37/'S1 Input'!$D37),"") -> 172.1128265 | AH37: =IFERROR(IF(OR(N37="",'S1 Input'!$D37=""),"",N37/'S1 Input'!$D37),"") -> 188.4794434 | AI37: =IFERROR(IF(OR(O37="",'S1 Input'!$D37=""),"",O37/'S1 Input'!$D37),"") -> 204.3946411 | AJ37: =IFERROR(IF(OR(P37="",'S1 Input'!$D37=""),"",P37/'S1 Input'!$D37),"") -> 219.5926158 | AK37: =IFERROR(IF(OR(Q37="",'S1 Input'!$D37=""),"",Q37/'S1 Input'!$D37),"") -> 233.835789 | AL37: =IFERROR(IF(OR(R37="",'S1 Input'!$D37=""),"",R37/'S1 Input'!$D37),"") -> 246.9249132 | AM37: =IFERROR(IF(OR(S37="",'S1 Input'!$D37=""),"",S37/'S1 Input'!$D37),"") -> 258.7062219 | AN37: =IFERROR(IF(OR(T37="",'S1 Input'!$D37=""),"",T37/'S1 Input'!$D37),"") -> 269.0751432 | AO37: =IFERROR(IF(OR(U37="",'S1 Input'!$D37=""),"",U37/'S1 Input'!$D37),"") -> 277.9764476 | AP37: =IFERROR(IF(OR(V37="",'S1 Input'!$D37=""),"",V37/'S1 Input'!$D37),"") -> 285.4010594 | AQ37: =IFERROR(IF(OR(W37="",'S1 Input'!$D37=""),"",W37/'S1 Input'!$D37),"") -> 291.3800687
A38: 1 | B38: OVERHEAD CONDUCTORS | C38: > 1 kv & < = 11 kv | D38: =IFERROR(repcalc('S1 Input'!$CV38:$GH38,'S1 Input'!$G38,'S1 Input'!$E38,'S1 Input'!$F38,20,TRUE,TRUE),"") -> 8525.504439 | E38: 9352.655612 | F38: 10164.12266 | G38: 10949.06483 | H38: 11698.34512 | I38: 12404.8835 | J38: 13063.81729 | K38: 13672.4609 | L38: 14230.08071 | M38: 14737.52168 | N38: 15196.73737 | O38: 15610.28308 | P38: 15980.83107 | Q38: 16310.75896 | R38: 16601.8491 | S38: 16855.12029 | T38: 17070.79654 | U38: 17248.40316 | V38: 17386.9695 | W38: 17485.31069 | X38: =IFERROR(IF(OR(D38="",'S1 Input'!$D38=""),"",D38/'S1 Input'!$D38),"") -> 98.7843943 | Y38: =IFERROR(IF(OR(E38="",'S1 Input'!$D38=""),"",E38/'S1 Input'!$D38),"") -> 108.3685342 | Z38: =IFERROR(IF(OR(F38="",'S1 Input'!$D38=""),"",F38/'S1 Input'!$D38),"") -> 117.7709434 | AA38: =IFERROR(IF(OR(G38="",'S1 Input'!$D38=""),"",G38/'S1 Input'!$D38),"") -> 126.8660107 | AB38: =IFERROR(IF(OR(H38="",'S1 Input'!$D38=""),"",H38/'S1 Input'!$D38),"") -> 135.5478664 | AC38: =IFERROR(IF(OR(I38="",'S1 Input'!$D38=""),"",I38/'S1 Input'!$D38),"") -> 143.7344748 | AD38: =IFERROR(IF(OR(J38="",'S1 Input'!$D38=""),"",J38/'S1 Input'!$D38),"") -> 151.3694922 | AE38: =IFERROR(IF(OR(K38="",'S1 Input'!$D38=""),"",K38/'S1 Input'!$D38),"") -> 158.4218011 | AF38: =IFERROR(IF(OR(L38="",'S1 Input'!$D38=""),"",L38/'S1 Input'!$D38),"") -> 164.882901 | AG38: =IFERROR(IF(OR(M38="",'S1 Input'!$D38=""),"",M38/'S1 Input'!$D38),"") -> 170.7625822 | AH38: =IFERROR(IF(OR(N38="",'S1 Input'!$D38=""),"",N38/'S1 Input'!$D38),"") -> 176.0834807 | AI38: =IFERROR(IF(OR(O38="",'S1 Input'!$D38=""),"",O38/'S1 Input'!$D38),"") -> 180.8752045 | AJ38: =IFERROR(IF(OR(P38="",'S1 Input'!$D38=""),"",P38/'S1 Input'!$D38),"") -> 185.1687169 | AK38: =IFERROR(IF(OR(Q38="",'S1 Input'!$D38=""),"",Q38/'S1 Input'!$D38),"") -> 188.9915671 | AL38: =IFERROR(IF(OR(R38="",'S1 Input'!$D38=""),"",R38/'S1 Input'!$D38),"") -> 192.3644072 | AM38: =IFERROR(IF(OR(S38="",'S1 Input'!$D38=""),"",S38/'S1 Input'!$D38),"") -> 195.2990419 | AN38: =IFERROR(IF(OR(T38="",'S1 Input'!$D38=""),"",T38/'S1 Input'!$D38),"") -> 197.7980668 | AO38: =IFERROR(IF(OR(U38="",'S1 Input'!$D38=""),"",U38/'S1 Input'!$D38),"") -> 199.8559817 | AP38: =IFERROR(IF(OR(V38="",'S1 Input'!$D38=""),"",V38/'S1 Input'!$D38),"") -> 201.4615397 | AQ38: =IFERROR(IF(OR(W38="",'S1 Input'!$D38=""),"",W38/'S1 Input'!$D38),"") -> 202.6010118
A39: 1 | B39: OVERHEAD CONDUCTORS | C39: ˃ 11 kv & < = 22 kv ; swer | D39: =IFERROR(repcalc('S1 Input'!$CV39:$GH39,'S1 Input'!$G39,'S1 Input'!$E39,'S1 Input'!$F39,20,TRUE,TRUE),"") -> 125.1319709 | E39: 146.7244434 | F39: 170.0688849 | G39: 194.9048364 | H39: 220.889036 | I39: 247.6008656 | J39: 274.5538467 | K39: 301.2135173 | L39: 327.0213687 | M39: 351.423714 | N39: 373.9035083 | O39: 394.0123786 | P39: 411.3996253 | Q39: 425.83485 | R39: 437.2212537 | S39: 445.5975298 | T39: 451.1275779 | U39: 454.0788122 | V39: 454.7914134 | W39: 453.6422205 | X39: =IFERROR(IF(OR(D39="",'S1 Input'!$D39=""),"",D39/'S1 Input'!$D39),"") -> 2.693511743 | Y39: =IFERROR(IF(OR(E39="",'S1 Input'!$D39=""),"",E39/'S1 Input'!$D39),"") -> 3.158297663 | Z39: =IFERROR(IF(OR(F39="",'S1 Input'!$D39=""),"",F39/'S1 Input'!$D39),"") -> 3.660795362 | AA39: =IFERROR(IF(OR(G39="",'S1 Input'!$D39=""),"",G39/'S1 Input'!$D39),"") -> 4.195398362 | AB39: =IFERROR(IF(OR(H39="",'S1 Input'!$D39=""),"",H39/'S1 Input'!$D39),"") -> 4.754717825 | AC39: =IFERROR(IF(OR(I39="",'S1 Input'!$D39=""),"",I39/'S1 Input'!$D39),"") -> 5.329699792 | AD39: =IFERROR(IF(OR(J39="",'S1 Input'!$D39=""),"",J39/'S1 Input'!$D39),"") -> 5.909872633 | AE39: =IFERROR(IF(OR(K39="",'S1 Input'!$D39=""),"",K39/'S1 Input'!$D39),"") -> 6.483731858 | AF39: =IFERROR(IF(OR(L39="",'S1 Input'!$D39=""),"",L39/'S1 Input'!$D39),"") -> 7.03925536 | AG39: =IFERROR(IF(OR(M39="",'S1 Input'!$D39=""),"",M39/'S1 Input'!$D39),"") -> 7.564524827 | AH39: =IFERROR(IF(OR(N39="",'S1 Input'!$D39=""),"",N39/'S1 Input'!$D39),"") -> 8.048410675 | AI39: =IFERROR(IF(OR(O39="",'S1 Input'!$D39=""),"",O39/'S1 Input'!$D39),"") -> 8.481261513 | AJ39: =IFERROR(IF(OR(P39="",'S1 Input'!$D39=""),"",P39/'S1 Input'!$D39),"") -> 8.8555284 | AK39: =IFERROR(IF(OR(Q39="",'S1 Input'!$D39=""),"",Q39/'S1 Input'!$D39),"") -> 9.166251926 | AL39: =IFERROR(IF(OR(R39="",'S1 Input'!$D39=""),"",R39/'S1 Input'!$D39),"") -> 9.411348456 | AM39: =IFERROR(IF(OR(S39="",'S1 Input'!$D39=""),"",S39/'S1 Input'!$D39),"") -> 9.591650883 | AN39: =IFERROR(IF(OR(T39="",'S1 Input'!$D39=""),"",T39/'S1 Input'!$D39),"") -> 9.710687204 | AO39: =IFERROR(IF(OR(U39="",'S1 Input'!$D39=""),"",U39/'S1 Input'!$D39),"") -> 9.77421361 | AP39: =IFERROR(IF(OR(V39="",'S1 Input'!$D39=""),"",V39/'S1 Input'!$D39),"") -> 9.789552612 | AQ39: =IFERROR(IF(OR(W39="",'S1 Input'!$D39=""),"",W39/'S1 Input'!$D39),"") -> 9.764815813
B40: OVERHEAD CONDUCTORS | C40: ˃ 11 kv & < = 22 kv ; single-phase | D40: =IFERROR(repcalc('S1 Input'!$CV40:$GH40,'S1 Input'!$G40,'S1 Input'!$E40,'S1 Input'!$F40,20,TRUE,TRUE),"") ->  | X40: =IFERROR(IF(OR(D40="",'S1 Input'!$D40=""),"",D40/'S1 Input'!$D40),"") ->  | Y40: =IFERROR(IF(OR(E40="",'S1 Input'!$D40=""),"",E40/'S1 Input'!$D40),"") ->  | Z40: =IFERROR(IF(OR(F40="",'S1 Input'!$D40=""),"",F40/'S1 Input'!$D40),"") ->  | AA40: =IFERROR(IF(OR(G40="",'S1 Input'!$D40=""),"",G40/'S1 Input'!$D40),"") ->  | AB40: =IFERROR(IF(OR(H40="",'S1 Input'!$D40=""),"",H40/'S1 Input'!$D40),"") ->  | AC40: =IFERROR(IF(OR(I40="",'S1 Input'!$D40=""),"",I40/'S1 Input'!$D40),"") ->  | AD40: =IFERROR(IF(OR(J40="",'S1 Input'!$D40=""),"",J40/'S1 Input'!$D40),"") ->  | AE40: =IFERROR(IF(OR(K40="",'S1 Input'!$D40=""),"",K40/'S1 Input'!$D40),"") ->  | AF40: =IFERROR(IF(OR(L40="",'S1 Input'!$D40=""),"",L40/'S1 Input'!$D40),"") ->  | AG40: =IFERROR(IF(OR(M40="",'S1 Input'!$D40=""),"",M40/'S1 Input'!$D40),"") ->  | AH40: =IFERROR(IF(OR(N40="",'S1 Input'!$D40=""),"",N40/'S1 Input'!$D40),"") ->  | AI40: =IFERROR(IF(OR(O40="",'S1 Input'!$D40=""),"",O40/'S1 Input'!$D40),"") ->  | AJ40: =IFERROR(IF(OR(P40="",'S1 Input'!$D40=""),"",P40/'S1 Input'!$D40),"") ->  | AK40: =IFERROR(IF(OR(Q40="",'S1 Input'!$D40=""),"",Q40/'S1 Input'!$D40),"") ->  | AL40: =IFERROR(IF(OR(R40="",'S1 Input'!$D40=""),"",R40/'S1 Input'!$D40),"") ->  | AM40: =IFERROR(IF(OR(S40="",'S1 Input'!$D40=""),"",S40/'S1 Input'!$D40),"") ->  | AN40: =IFERROR(IF(OR(T40="",'S1 Input'!$D40=""),"",T40/'S1 Input'!$D40),"") ->  | AO40: =IFERROR(IF(OR(U40="",'S1 Input'!$D40=""),"",U40/'S1 Input'!$D40),"") ->  | AP40: =IFERROR(IF(OR(V40="",'S1 Input'!$D40=""),"",V40/'S1 Input'!$D40),"") ->  | AQ40: =IFERROR(IF(OR(W40="",'S1 Input'!$D40=""),"",W40/'S1 Input'!$D40),"") -> 
A41: 1 | B41: OVERHEAD CONDUCTORS | C41: ˃ 11 kv & < = 22 kv ; multiple-phase | D41: =IFERROR(repcalc('S1 Input'!$CV41:$GH41,'S1 Input'!$G41,'S1 Input'!$E41,'S1 Input'!$F41,20,TRUE,TRUE),"") -> 142.1596374 | E41: 154.8899149 | F41: 168.2099471 | G41: 182.1973181 | H41: 196.9070816 | I41: 212.354822 | J41: 228.5035827 | K41: 245.2572162 | L41: 262.4619205 | M41: 279.9165649 | N41: 297.3910276 | O41: 314.6503976 | P41: 331.4817658 | Q41: 347.7196472 | R41: 363.265994 | S41: 378.1013115 | T41: 392.2845336 | U41: 405.9408932 | V41: 419.2388054 | W41: 432.3585048 | X41: =IFERROR(IF(OR(D41="",'S1 Input'!$D41=""),"",D41/'S1 Input'!$D41),"") -> 1.697991097 | Y41: =IFERROR(IF(OR(E41="",'S1 Input'!$D41=""),"",E41/'S1 Input'!$D41),"") -> 1.85004479 | Z41: =IFERROR(IF(OR(F41="",'S1 Input'!$D41=""),"",F41/'S1 Input'!$D41),"") -> 2.009142663 | AA41: =IFERROR(IF(OR(G41="",'S1 Input'!$D41=""),"",G41/'S1 Input'!$D41),"") -> 2.176211403 | AB41: =IFERROR(IF(OR(H41="",'S1 Input'!$D41=""),"",H41/'S1 Input'!$D41),"") -> 2.351908584 | AC41: =IFERROR(IF(OR(I41="",'S1 Input'!$D41=""),"",I41/'S1 Input'!$D41),"") -> 2.536420348 | AD41: =IFERROR(IF(OR(J41="",'S1 Input'!$D41=""),"",J41/'S1 Input'!$D41),"") -> 2.72930528 | AE41: =IFERROR(IF(OR(K41="",'S1 Input'!$D41=""),"",K41/'S1 Input'!$D41),"") -> 2.929414966 | AF41: =IFERROR(IF(OR(L41="",'S1 Input'!$D41=""),"",L41/'S1 Input'!$D41),"") -> 3.134912358 | AG41: =IFERROR(IF(OR(M41="",'S1 Input'!$D41=""),"",M41/'S1 Input'!$D41),"") -> 3.343395099 | AH41: =IFERROR(IF(OR(N41="",'S1 Input'!$D41=""),"",N41/'S1 Input'!$D41),"") -> 3.552114554 | AI41: =IFERROR(IF(OR(O41="",'S1 Input'!$D41=""),"",O41/'S1 Input'!$D41),"") -> 3.758264887 | AJ41: =IFERROR(IF(OR(P41="",'S1 Input'!$D41=""),"",P41/'S1 Input'!$D41),"") -> 3.959303057 | AK41: =IFERROR(IF(OR(Q41="",'S1 Input'!$D41=""),"",Q41/'S1 Input'!$D41),"") -> 4.153252468 | AL41: =IFERROR(IF(OR(R41="",'S1 Input'!$D41=""),"",R41/'S1 Input'!$D41),"") -> 4.338942014 | AM41: =IFERROR(IF(OR(S41="",'S1 Input'!$D41=""),"",S41/'S1 Input'!$D41),"") -> 4.516138844 | AN41: =IFERROR(IF(OR(T41="",'S1 Input'!$D41=""),"",T41/'S1 Input'!$D41),"") -> 4.685546878 | AO41: =IFERROR(IF(OR(U41="",'S1 Input'!$D41=""),"",U41/'S1 Input'!$D41),"") -> 4.848661934 | AP41: =IFERROR(IF(OR(V41="",'S1 Input'!$D41=""),"",V41/'S1 Input'!$D41),"") -> 5.0074956 | AQ41: =IFERROR(IF(OR(W41="",'S1 Input'!$D41=""),"",W41/'S1 Input'!$D41),"") -> 5.164200648
A42: 1 | B42: OVERHEAD CONDUCTORS | C42: > 22 kv & < = 66 kv | D42: =IFERROR(repcalc('S1 Input'!$CV42:$GH42,'S1 Input'!$G42,'S1 Input'!$E42,'S1 Input'!$F42,20,TRUE,TRUE),"") -> 8907.108111 | E42: 10043.9057 | F42: 11201.54248 | G42: 12359.48574 | H42: 13496.21466 | I42: 14590.06831 | J42: 15620.11034 | K42: 16566.96395 | L42: 17413.57775 | M42: 18145.89201 | N42: 18753.38377 | O42: 19229.47648 | P42: 19571.80483 | Q42: 19782.32673 | R42: 19867.27458 | S42: 19836.93686 | T42: 19705.26146 | U42: 19489.27603 | V42: 19208.32842 | W42: 18883.16358 | X42: =IFERROR(IF(OR(D42="",'S1 Input'!$D42=""),"",D42/'S1 Input'!$D42),"") -> 16.05884034 | Y42: =IFERROR(IF(OR(E42="",'S1 Input'!$D42=""),"",E42/'S1 Input'!$D42),"") -> 18.10840018 | Z42: =IFERROR(IF(OR(F42="",'S1 Input'!$D42=""),"",F42/'S1 Input'!$D42),"") -> 20.19553148 | AA42: =IFERROR(IF(OR(G42="",'S1 Input'!$D42=""),"",G42/'S1 Input'!$D42),"") -> 22.28321535 | AB42: =IFERROR(IF(OR(H42="",'S1 Input'!$D42=""),"",H42/'S1 Input'!$D42),"") -> 24.33265137 | AC42: =IFERROR(IF(OR(I42="",'S1 Input'!$D42=""),"",I42/'S1 Input'!$D42),"") -> 26.30478654 | AD42: =IFERROR(IF(OR(J42="",'S1 Input'!$D42=""),"",J42/'S1 Input'!$D42),"") -> 28.16187419 | AE42: =IFERROR(IF(OR(K42="",'S1 Input'!$D42=""),"",K42/'S1 Input'!$D42),"") -> 29.86897943 | AF42: =IFERROR(IF(OR(L42="",'S1 Input'!$D42=""),"",L42/'S1 Input'!$D42),"") -> 31.3953599 | AG42: =IFERROR(IF(OR(M42="",'S1 Input'!$D42=""),"",M42/'S1 Input'!$D42),"") -> 32.71566698 | AH42: =IFERROR(IF(OR(N42="",'S1 Input'!$D42=""),"",N42/'S1 Input'!$D42),"") -> 33.81092853 | AI42: =IFERROR(IF(OR(O42="",'S1 Input'!$D42=""),"",O42/'S1 Input'!$D42),"") -> 34.66928759 | AJ42: =IFERROR(IF(OR(P42="",'S1 Input'!$D42=""),"",P42/'S1 Input'!$D42),"") -> 35.28647964 | AK42: =IFERROR(IF(OR(Q42="",'S1 Input'!$D42=""),"",Q42/'S1 Input'!$D42),"") -> 35.66603465 | AL42: =IFERROR(IF(OR(R42="",'S1 Input'!$D42=""),"",R42/'S1 Input'!$D42),"") -> 35.81918918 | AM42: =IFERROR(IF(OR(S42="",'S1 Input'!$D42=""),"",S42/'S1 Input'!$D42),"") -> 35.76449257 | AN42: =IFERROR(IF(OR(T42="",'S1 Input'!$D42=""),"",T42/'S1 Input'!$D42),"") -> 35.52709181 | AO42: =IFERROR(IF(OR(U42="",'S1 Input'!$D42=""),"",U42/'S1 Input'!$D42),"") -> 35.13768646 | AP42: =IFERROR(IF(OR(V42="",'S1 Input'!$D42=""),"",V42/'S1 Input'!$D42),"") -> 34.63115923 | AQ42: =IFERROR(IF(OR(W42="",'S1 Input'!$D42=""),"",W42/'S1 Input'!$D42),"") -> 34.04491169
A43: 1 | B43: OVERHEAD CONDUCTORS | C43: > 66 kv & < = 132 kv | D43: =IFERROR(repcalc('S1 Input'!$CV43:$GH43,'S1 Input'!$G43,'S1 Input'!$E43,'S1 Input'!$F43,20,TRUE,TRUE),"") -> 3022.859586 | E43: 3522.834148 | F43: 4059.845545 | G43: 4627.829503 | H43: 5219.308142 | I43: 5825.645898 | J43: 6437.392019 | K43: 7044.689265 | L43: 7637.722128 | M43: 8207.174314 | N43: 8744.664763 | O43: 9243.134016 | P43: 9697.15797 | Q43: 10103.17285 | R43: 10459.60279 | S43: 10766.88857 | T43: 11027.42189 | U43: 11245.39396 | V43: 11426.56988 | W43: 11578.00137 | X43: =IFERROR(IF(OR(D43="",'S1 Input'!$D43=""),"",D43/'S1 Input'!$D43),"") -> 4.265543252 | Y43: =IFERROR(IF(OR(E43="",'S1 Input'!$D43=""),"",E43/'S1 Input'!$D43),"") -> 4.971055055 | Z43: =IFERROR(IF(OR(F43="",'S1 Input'!$D43=""),"",F43/'S1 Input'!$D43),"") -> 5.728829367 | AA43: =IFERROR(IF(OR(G43="",'S1 Input'!$D43=""),"",G43/'S1 Input'!$D43),"") -> 6.530308916 | AB43: =IFERROR(IF(OR(H43="",'S1 Input'!$D43=""),"",H43/'S1 Input'!$D43),"") -> 7.364941702 | AC43: =IFERROR(IF(OR(I43="",'S1 Input'!$D43=""),"",I43/'S1 Input'!$D43),"") -> 8.220542119 | AD43: =IFERROR(IF(OR(J43="",'S1 Input'!$D43=""),"",J43/'S1 Input'!$D43),"") -> 9.083774255 | AE43: =IFERROR(IF(OR(K43="",'S1 Input'!$D43=""),"",K43/'S1 Input'!$D43),"") -> 9.940728605 | AF43: =IFERROR(IF(OR(L43="",'S1 Input'!$D43=""),"",L43/'S1 Input'!$D43),"") -> 10.77755455 | AG43: =IFERROR(IF(OR(M43="",'S1 Input'!$D43=""),"",M43/'S1 Input'!$D43),"") -> 11.58110591 | AH43: =IFERROR(IF(OR(N43="",'S1 Input'!$D43=""),"",N43/'S1 Input'!$D43),"") -> 12.33955621 | AI43: =IFERROR(IF(OR(O43="",'S1 Input'!$D43=""),"",O43/'S1 Input'!$D43),"") -> 13.04294388 | AJ43: =IFERROR(IF(OR(P43="",'S1 Input'!$D43=""),"",P43/'S1 Input'!$D43),"") -> 13.68361499 | AK43: =IFERROR(IF(OR(Q43="",'S1 Input'!$D43=""),"",Q43/'S1 Input'!$D43),"") -> 14.25654071 | AL43: =IFERROR(IF(OR(R43="",'S1 Input'!$D43=""),"",R43/'S1 Input'!$D43),"") -> 14.75949737 | AM43: =IFERROR(IF(OR(S43="",'S1 Input'!$D43=""),"",S43/'S1 Input'!$D43),"") -> 15.19310692 | AN43: =IFERROR(IF(OR(T43="",'S1 Input'!$D43=""),"",T43/'S1 Input'!$D43),"") -> 15.56074428 | AO43: =IFERROR(IF(OR(U43="",'S1 Input'!$D43=""),"",U43/'S1 Input'!$D43),"") -> 15.86832367 | AP43: =IFERROR(IF(OR(V43="",'S1 Input'!$D43=""),"",V43/'S1 Input'!$D43),"") -> 16.12398017 | AQ43: =IFERROR(IF(OR(W43="",'S1 Input'!$D43=""),"",W43/'S1 Input'!$D43),"") -> 16.33766445
B44: OVERHEAD CONDUCTORS | C44: > 132 kv | D44: =IFERROR(repcalc('S1 Input'!$CV44:$GH44,'S1 Input'!$G44,'S1 Input'!$E44,'S1 Input'!$F44,20,TRUE,TRUE),"") ->  | X44: =IFERROR(IF(OR(D44="",'S1 Input'!$D44=""),"",D44/'S1 Input'!$D44),"") ->  | Y44: =IFERROR(IF(OR(E44="",'S1 Input'!$D44=""),"",E44/'S1 Input'!$D44),"") ->  | Z44: =IFERROR(IF(OR(F44="",'S1 Input'!$D44=""),"",F44/'S1 Input'!$D44),"") ->  | AA44: =IFERROR(IF(OR(G44="",'S1 Input'!$D44=""),"",G44/'S1 Input'!$D44),"") ->  | AB44: =IFERROR(IF(OR(H44="",'S1 Input'!$D44=""),"",H44/'S1 Input'!$D44),"") ->  | AC44: =IFERROR(IF(OR(I44="",'S1 Input'!$D44=""),"",I44/'S1 Input'!$D44),"") ->  | AD44: =IFERROR(IF(OR(J44="",'S1 Input'!$D44=""),"",J44/'S1 Input'!$D44),"") ->  | AE44: =IFERROR(IF(OR(K44="",'S1 Input'!$D44=""),"",K44/'S1 Input'!$D44),"") ->  | AF44: =IFERROR(IF(OR(L44="",'S1 Input'!$D44=""),"",L44/'S1 Input'!$D44),"") ->  | AG44: =IFERROR(IF(OR(M44="",'S1 Input'!$D44=""),"",M44/'S1 Input'!$D44),"") ->  | AH44: =IFERROR(IF(OR(N44="",'S1 Input'!$D44=""),"",N44/'S1 Input'!$D44),"") ->  | AI44: =IFERROR(IF(OR(O44="",'S1 Input'!$D44=""),"",O44/'S1 Input'!$D44),"") ->  | AJ44: =IFERROR(IF(OR(P44="",'S1 Input'!$D44=""),"",P44/'S1 Input'!$D44),"") ->  | AK44: =IFERROR(IF(OR(Q44="",'S1 Input'!$D44=""),"",Q44/'S1 Input'!$D44),"") ->  | AL44: =IFERROR(IF(OR(R44="",'S1 Input'!$D44=""),"",R44/'S1 Input'!$D44),"") ->  | AM44: =IFERROR(IF(OR(S44="",'S1 Input'!$D44=""),"",S44/'S1 Input'!$D44),"") ->  | AN44: =IFERROR(IF(OR(T44="",'S1 Input'!$D44=""),"",T44/'S1 Input'!$D44),"") ->  | AO44: =IFERROR(IF(OR(U44="",'S1 Input'!$D44=""),"",U44/'S1 Input'!$D44),"") ->  | AP44: =IFERROR(IF(OR(V44="",'S1 Input'!$D44=""),"",V44/'S1 Input'!$D44),"") ->  | AQ44: =IFERROR(IF(OR(W44="",'S1 Input'!$D44=""),"",W44/'S1 Input'!$D44),"") -> 
A45: 6 | B45: UNDERGROUND CABLES | C45: ˂ = 1 kv | D45: =IFERROR(repcalc('S1 Input'!$CV45:$GH45,'S1 Input'!$G45,'S1 Input'!$E45,'S1 Input'!$F45,20,TRUE,TRUE),"") -> 4276.810778 | E45: 5383.838715 | F45: 6734.883436 | G45: 8369.333837 | H45: 10328.32257 | I45: 12653.29195 | J45: 15384.12702 | K45: 18556.87709 | L45: 22201.13303 | M45: 26337.17774 | N45: 30973.07985 | O45: 36101.94635 | P45: 41699.58423 | Q45: 47722.83538 | R45: 54108.83818 | S45: 60775.42927 | T45: 67622.83008 | U45: 74536.66763 | V45: 81392.26647 | W45: 88060.02886 | X45: =IFERROR(IF(OR(D45="",'S1 Input'!$D45=""),"",D45/'S1 Input'!$D45),"") -> 8.153220669 | Y45: =IFERROR(IF(OR(E45="",'S1 Input'!$D45=""),"",E45/'S1 Input'!$D45),"") -> 10.26363507 | Z45: =IFERROR(IF(OR(F45="",'S1 Input'!$D45=""),"",F45/'S1 Input'!$D45),"") -> 12.83923785 | AA45: =IFERROR(IF(OR(G45="",'S1 Input'!$D45=""),"",G45/'S1 Input'!$D45),"") -> 15.95511917 | AB45: =IFERROR(IF(OR(H45="",'S1 Input'!$D45=""),"",H45/'S1 Input'!$D45),"") -> 19.68969342 | AC45: =IFERROR(IF(OR(I45="",'S1 Input'!$D45=""),"",I45/'S1 Input'!$D45),"") -> 24.12196537 | AD45: =IFERROR(IF(OR(J45="",'S1 Input'!$D45=""),"",J45/'S1 Input'!$D45),"") -> 29.32797098 | AE45: =IFERROR(IF(OR(K45="",'S1 Input'!$D45=""),"",K45/'S1 Input'!$D45),"") -> 35.37643392 | AF45: =IFERROR(IF(OR(L45="",'S1 Input'!$D45=""),"",L45/'S1 Input'!$D45),"") -> 42.32376556 | AG45: =IFERROR(IF(OR(M45="",'S1 Input'!$D45=""),"",M45/'S1 Input'!$D45),"") -> 50.2086328 | AH45: =IFERROR(IF(OR(N45="",'S1 Input'!$D45=""),"",N45/'S1 Input'!$D45),"") -> 59.04641751 | AI45: =IFERROR(IF(OR(O45="",'S1 Input'!$D45=""),"",O45/'S1 Input'!$D45),"") -> 68.823979 | AJ45: =IFERROR(IF(OR(P45="",'S1 Input'!$D45=""),"",P45/'S1 Input'!$D45),"") -> 79.49519623 | AK45: =IFERROR(IF(OR(Q45="",'S1 Input'!$D45=""),"",Q45/'S1 Input'!$D45),"") -> 90.97779351 | AL45: =IFERROR(IF(OR(R45="",'S1 Input'!$D45=""),"",R45/'S1 Input'!$D45),"") -> 103.1519328 | AM45: =IFERROR(IF(OR(S45="",'S1 Input'!$D45=""),"",S45/'S1 Input'!$D45),"") -> 115.8609795 | AN45: =IFERROR(IF(OR(T45="",'S1 Input'!$D45=""),"",T45/'S1 Input'!$D45),"") -> 128.9147181 | AO45: =IFERROR(IF(OR(U45="",'S1 Input'!$D45=""),"",U45/'S1 Input'!$D45),"") -> 142.0951103 | AP45: =IFERROR(IF(OR(V45="",'S1 Input'!$D45=""),"",V45/'S1 Input'!$D45),"") -> 155.1644774 | AQ45: =IFERROR(IF(OR(W45="",'S1 Input'!$D45=""),"",W45/'S1 Input'!$D45),"") -> 167.8757571
B46: UNDERGROUND CABLES | C46: > 1 kv & < = 11 kv | D46: =IFERROR(repcalc('S1 Input'!$CV46:$GH46,'S1 Input'!$G46,'S1 Input'!$E46,'S1 Input'!$F46,20,TRUE,TRUE),"") ->  | X46: =IFERROR(IF(OR(D46="",'S1 Input'!$D46=""),"",D46/'S1 Input'!$D46),"") ->  | Y46: =IFERROR(IF(OR(E46="",'S1 Input'!$D46=""),"",E46/'S1 Input'!$D46),"") ->  | Z46: =IFERROR(IF(OR(F46="",'S1 Input'!$D46=""),"",F46/'S1 Input'!$D46),"") ->  | AA46: =IFERROR(IF(OR(G46="",'S1 Input'!$D46=""),"",G46/'S1 Input'!$D46),"") ->  | AB46: =IFERROR(IF(OR(H46="",'S1 Input'!$D46=""),"",H46/'S1 Input'!$D46),"") ->  | AC46: =IFERROR(IF(OR(I46="",'S1 Input'!$D46=""),"",I46/'S1 Input'!$D46),"") ->  | AD46: =IFERROR(IF(OR(J46="",'S1 Input'!$D46=""),"",J46/'S1 Input'!$D46),"") ->  | AE46: =IFERROR(IF(OR(K46="",'S1 Input'!$D46=""),"",K46/'S1 Input'!$D46),"") ->  | AF46: =IFERROR(IF(OR(L46="",'S1 Input'!$D46=""),"",L46/'S1 Input'!$D46),"") ->  | AG46: =IFERROR(IF(OR(M46="",'S1 Input'!$D46=""),"",M46/'S1 Input'!$D46),"") ->  | AH46: =IFERROR(IF(OR(N46="",'S1 Input'!$D46=""),"",N46/'S1 Input'!$D46),"") ->  | AI46: =IFERROR(IF(OR(O46="",'S1 Input'!$D46=""),"",O46/'S1 Input'!$D46),"") ->  | AJ46: =IFERROR(IF(OR(P46="",'S1 Input'!$D46=""),"",P46/'S1 Input'!$D46),"") ->  | AK46: =IFERROR(IF(OR(Q46="",'S1 Input'!$D46=""),"",Q46/'S1 Input'!$D46),"") ->  | AL46: =IFERROR(IF(OR(R46="",'S1 Input'!$D46=""),"",R46/'S1 Input'!$D46),"") ->  | AM46: =IFERROR(IF(OR(S46="",'S1 Input'!$D46=""),"",S46/'S1 Input'!$D46),"") ->  | AN46: =IFERROR(IF(OR(T46="",'S1 Input'!$D46=""),"",T46/'S1 Input'!$D46),"") ->  | AO46: =IFERROR(IF(OR(U46="",'S1 Input'!$D46=""),"",U46/'S1 Input'!$D46),"") ->  | AP46: =IFERROR(IF(OR(V46="",'S1 Input'!$D46=""),"",V46/'S1 Input'!$D46),"") ->  | AQ46: =IFERROR(IF(OR(W46="",'S1 Input'!$D46=""),"",W46/'S1 Input'!$D46),"") -> 
B47: UNDERGROUND CABLES | C47: > 11 kv & < = 22 kv | D47: =IFERROR(repcalc('S1 Input'!$CV47:$GH47,'S1 Input'!$G47,'S1 Input'!$E47,'S1 Input'!$F47,20,TRUE,TRUE),"") ->  | X47: =IFERROR(IF(OR(D47="",'S1 Input'!$D47=""),"",D47/'S1 Input'!$D47),"") ->  | Y47: =IFERROR(IF(OR(E47="",'S1 Input'!$D47=""),"",E47/'S1 Input'!$D47),"") ->  | Z47: =IFERROR(IF(OR(F47="",'S1 Input'!$D47=""),"",F47/'S1 Input'!$D47),"") ->  | AA47: =IFERROR(IF(OR(G47="",'S1 Input'!$D47=""),"",G47/'S1 Input'!$D47),"") ->  | AB47: =IFERROR(IF(OR(H47="",'S1 Input'!$D47=""),"",H47/'S1 Input'!$D47),"") ->  | AC47: =IFERROR(IF(OR(I47="",'S1 Input'!$D47=""),"",I47/'S1 Input'!$D47),"") ->  | AD47: =IFERROR(IF(OR(J47="",'S1 Input'!$D47=""),"",J47/'S1 Input'!$D47),"") ->  | AE47: =IFERROR(IF(OR(K47="",'S1 Input'!$D47=""),"",K47/'S1 Input'!$D47),"") ->  | AF47: =IFERROR(IF(OR(L47="",'S1 Input'!$D47=""),"",L47/'S1 Input'!$D47),"") ->  | AG47: =IFERROR(IF(OR(M47="",'S1 Input'!$D47=""),"",M47/'S1 Input'!$D47),"") ->  | AH47: =IFERROR(IF(OR(N47="",'S1 Input'!$D47=""),"",N47/'S1 Input'!$D47),"") ->  | AI47: =IFERROR(IF(OR(O47="",'S1 Input'!$D47=""),"",O47/'S1 Input'!$D47),"") ->  | AJ47: =IFERROR(IF(OR(P47="",'S1 Input'!$D47=""),"",P47/'S1 Input'!$D47),"") ->  | AK47: =IFERROR(IF(OR(Q47="",'S1 Input'!$D47=""),"",Q47/'S1 Input'!$D47),"") ->  | AL47: =IFERROR(IF(OR(R47="",'S1 Input'!$D47=""),"",R47/'S1 Input'!$D47),"") ->  | AM47: =IFERROR(IF(OR(S47="",'S1 Input'!$D47=""),"",S47/'S1 Input'!$D47),"") ->  | AN47: =IFERROR(IF(OR(T47="",'S1 Input'!$D47=""),"",T47/'S1 Input'!$D47),"") ->  | AO47: =IFERROR(IF(OR(U47="",'S1 Input'!$D47=""),"",U47/'S1 Input'!$D47),"") ->  | AP47: =IFERROR(IF(OR(V47="",'S1 Input'!$D47=""),"",V47/'S1 Input'!$D47),"") ->  | AQ47: =IFERROR(IF(OR(W47="",'S1 Input'!$D47=""),"",W47/'S1 Input'!$D47),"") -> 
B48: UNDERGROUND CABLES | C48: > 22 kv & < = 33 kv | D48: =IFERROR(repcalc('S1 Input'!$CV48:$GH48,'S1 Input'!$G48,'S1 Input'!$E48,'S1 Input'!$F48,20,TRUE,TRUE),"") ->  | X48: =IFERROR(IF(OR(D48="",'S1 Input'!$D48=""),"",D48/'S1 Input'!$D48),"") ->  | Y48: =IFERROR(IF(OR(E48="",'S1 Input'!$D48=""),"",E48/'S1 Input'!$D48),"") ->  | Z48: =IFERROR(IF(OR(F48="",'S1 Input'!$D48=""),"",F48/'S1 Input'!$D48),"") ->  | AA48: =IFERROR(IF(OR(G48="",'S1 Input'!$D48=""),"",G48/'S1 Input'!$D48),"") ->  | AB48: =IFERROR(IF(OR(H48="",'S1 Input'!$D48=""),"",H48/'S1 Input'!$D48),"") ->  | AC48: =IFERROR(IF(OR(I48="",'S1 Input'!$D48=""),"",I48/'S1 Input'!$D48),"") ->  | AD48: =IFERROR(IF(OR(J48="",'S1 Input'!$D48=""),"",J48/'S1 Input'!$D48),"") ->  | AE48: =IFERROR(IF(OR(K48="",'S1 Input'!$D48=""),"",K48/'S1 Input'!$D48),"") ->  | AF48: =IFERROR(IF(OR(L48="",'S1 Input'!$D48=""),"",L48/'S1 Input'!$D48),"") ->  | AG48: =IFERROR(IF(OR(M48="",'S1 Input'!$D48=""),"",M48/'S1 Input'!$D48),"") ->  | AH48: =IFERROR(IF(OR(N48="",'S1 Input'!$D48=""),"",N48/'S1 Input'!$D48),"") ->  | AI48: =IFERROR(IF(OR(O48="",'S1 Input'!$D48=""),"",O48/'S1 Input'!$D48),"") ->  | AJ48: =IFERROR(IF(OR(P48="",'S1 Input'!$D48=""),"",P48/'S1 Input'!$D48),"") ->  | AK48: =IFERROR(IF(OR(Q48="",'S1 Input'!$D48=""),"",Q48/'S1 Input'!$D48),"") ->  | AL48: =IFERROR(IF(OR(R48="",'S1 Input'!$D48=""),"",R48/'S1 Input'!$D48),"") ->  | AM48: =IFERROR(IF(OR(S48="",'S1 Input'!$D48=""),"",S48/'S1 Input'!$D48),"") ->  | AN48: =IFERROR(IF(OR(T48="",'S1 Input'!$D48=""),"",T48/'S1 Input'!$D48),"") ->  | AO48: =IFERROR(IF(OR(U48="",'S1 Input'!$D48=""),"",U48/'S1 Input'!$D48),"") ->  | AP48: =IFERROR(IF(OR(V48="",'S1 Input'!$D48=""),"",V48/'S1 Input'!$D48),"") ->  | AQ48: =IFERROR(IF(OR(W48="",'S1 Input'!$D48=""),"",W48/'S1 Input'!$D48),"") -> 
B49: UNDERGROUND CABLES | C49: > 33 kv & < = 66 kv | D49: =IFERROR(repcalc('S1 Input'!$CV49:$GH49,'S1 Input'!$G49,'S1 Input'!$E49,'S1 Input'!$F49,20,TRUE,TRUE),"") ->  | X49: =IFERROR(IF(OR(D49="",'S1 Input'!$D49=""),"",D49/'S1 Input'!$D49),"") ->  | Y49: =IFERROR(IF(OR(E49="",'S1 Input'!$D49=""),"",E49/'S1 Input'!$D49),"") ->  | Z49: =IFERROR(IF(OR(F49="",'S1 Input'!$D49=""),"",F49/'S1 Input'!$D49),"") ->  | AA49: =IFERROR(IF(OR(G49="",'S1 Input'!$D49=""),"",G49/'S1 Input'!$D49),"") ->  | AB49: =IFERROR(IF(OR(H49="",'S1 Input'!$D49=""),"",H49/'S1 Input'!$D49),"") ->  | AC49: =IFERROR(IF(OR(I49="",'S1 Input'!$D49=""),"",I49/'S1 Input'!$D49),"") ->  | AD49: =IFERROR(IF(OR(J49="",'S1 Input'!$D49=""),"",J49/'S1 Input'!$D49),"") ->  | AE49: =IFERROR(IF(OR(K49="",'S1 Input'!$D49=""),"",K49/'S1 Input'!$D49),"") ->  | AF49: =IFERROR(IF(OR(L49="",'S1 Input'!$D49=""),"",L49/'S1 Input'!$D49),"") ->  | AG49: =IFERROR(IF(OR(M49="",'S1 Input'!$D49=""),"",M49/'S1 Input'!$D49),"") ->  | AH49: =IFERROR(IF(OR(N49="",'S1 Input'!$D49=""),"",N49/'S1 Input'!$D49),"") ->  | AI49: =IFERROR(IF(OR(O49="",'S1 Input'!$D49=""),"",O49/'S1 Input'!$D49),"") ->  | AJ49: =IFERROR(IF(OR(P49="",'S1 Input'!$D49=""),"",P49/'S1 Input'!$D49),"") ->  | AK49: =IFERROR(IF(OR(Q49="",'S1 Input'!$D49=""),"",Q49/'S1 Input'!$D49),"") ->  | AL49: =IFERROR(IF(OR(R49="",'S1 Input'!$D49=""),"",R49/'S1 Input'!$D49),"") ->  | AM49: =IFERROR(IF(OR(S49="",'S1 Input'!$D49=""),"",S49/'S1 Input'!$D49),"") ->  | AN49: =IFERROR(IF(OR(T49="",'S1 Input'!$D49=""),"",T49/'S1 Input'!$D49),"") ->  | AO49: =IFERROR(IF(OR(U49="",'S1 Input'!$D49=""),"",U49/'S1 Input'!$D49),"") ->  | AP49: =IFERROR(IF(OR(V49="",'S1 Input'!$D49=""),"",V49/'S1 Input'!$D49),"") ->  | AQ49: =IFERROR(IF(OR(W49="",'S1 Input'!$D49=""),"",W49/'S1 Input'!$D49),"") -> 
B50: UNDERGROUND CABLES | C50: > 66 kv & < = 132 kv | D50: =IFERROR(repcalc('S1 Input'!$CV50:$GH50,'S1 Input'!$G50,'S1 Input'!$E50,'S1 Input'!$F50,20,TRUE,TRUE),"") ->  | X50: =IFERROR(IF(OR(D50="",'S1 Input'!$D50=""),"",D50/'S1 Input'!$D50),"") ->  | Y50: =IFERROR(IF(OR(E50="",'S1 Input'!$D50=""),"",E50/'S1 Input'!$D50),"") ->  | Z50: =IFERROR(IF(OR(F50="",'S1 Input'!$D50=""),"",F50/'S1 Input'!$D50),"") ->  | AA50: =IFERROR(IF(OR(G50="",'S1 Input'!$D50=""),"",G50/'S1 Input'!$D50),"") ->  | AB50: =IFERROR(IF(OR(H50="",'S1 Input'!$D50=""),"",H50/'S1 Input'!$D50),"") ->  | AC50: =IFERROR(IF(OR(I50="",'S1 Input'!$D50=""),"",I50/'S1 Input'!$D50),"") ->  | AD50: =IFERROR(IF(OR(J50="",'S1 Input'!$D50=""),"",J50/'S1 Input'!$D50),"") ->  | AE50: =IFERROR(IF(OR(K50="",'S1 Input'!$D50=""),"",K50/'S1 Input'!$D50),"") ->  | AF50: =IFERROR(IF(OR(L50="",'S1 Input'!$D50=""),"",L50/'S1 Input'!$D50),"") ->  | AG50: =IFERROR(IF(OR(M50="",'S1 Input'!$D50=""),"",M50/'S1 Input'!$D50),"") ->  | AH50: =IFERROR(IF(OR(N50="",'S1 Input'!$D50=""),"",N50/'S1 Input'!$D50),"") ->  | AI50: =IFERROR(IF(OR(O50="",'S1 Input'!$D50=""),"",O50/'S1 Input'!$D50),"") ->  | AJ50: =IFERROR(IF(OR(P50="",'S1 Input'!$D50=""),"",P50/'S1 Input'!$D50),"") ->  | AK50: =IFERROR(IF(OR(Q50="",'S1 Input'!$D50=""),"",Q50/'S1 Input'!$D50),"") ->  | AL50: =IFERROR(IF(OR(R50="",'S1 Input'!$D50=""),"",R50/'S1 Input'!$D50),"") ->  | AM50: =IFERROR(IF(OR(S50="",'S1 Input'!$D50=""),"",S50/'S1 Input'!$D50),"") ->  | AN50: =IFERROR(IF(OR(T50="",'S1 Input'!$D50=""),"",T50/'S1 Input'!$D50),"") ->  | AO50: =IFERROR(IF(OR(U50="",'S1 Input'!$D50=""),"",U50/'S1 Input'!$D50),"") ->  | AP50: =IFERROR(IF(OR(V50="",'S1 Input'!$D50=""),"",V50/'S1 Input'!$D50),"") ->  | AQ50: =IFERROR(IF(OR(W50="",'S1 Input'!$D50=""),"",W50/'S1 Input'!$D50),"") -> 
A51: 3 | B51: SERVICE LINES | C51: ˂ = 11 kv ; residential ; simple type | D51: =IFERROR(repcalc('S1 Input'!$CV51:$GH51,'S1 Input'!$G51,'S1 Input'!$E51,'S1 Input'!$F51,20,TRUE,TRUE),"") -> 4705.80226 | E51: 4937.434289 | F51: 5128.614831 | G51: 5277.57762 | H51: 5384.428749 | I51: 5451.012457 | J51: 5480.651771 | K51: 5477.796382 | L51: 5447.617988 | M51: 5395.595582 | N51: 5327.129978 | O51: 5247.21938 | P51: 5160.217469 | Q51: 5069.684312 | R51: 4978.329912 | S51: 4888.041745 | T51: 4799.981761 | U51: 4714.735047 | V51: 4632.491317 | W51: 4553.240832 | X51: =IFERROR(IF(OR(D51="",'S1 Input'!$D51=""),"",D51/'S1 Input'!$D51),"") -> 6934.738034 | Y51: =IFERROR(IF(OR(E51="",'S1 Input'!$D51=""),"",E51/'S1 Input'!$D51),"") -> 7276.084175 | Z51: =IFERROR(IF(OR(F51="",'S1 Input'!$D51=""),"",F51/'S1 Input'!$D51),"") -> 7557.818703 | AA51: =IFERROR(IF(OR(G51="",'S1 Input'!$D51=""),"",G51/'S1 Input'!$D51),"") -> 7777.338748 | AB51: =IFERROR(IF(OR(H51="",'S1 Input'!$D51=""),"",H51/'S1 Input'!$D51),"") -> 7934.800652 | AC51: =IFERROR(IF(OR(I51="",'S1 Input'!$D51=""),"",I51/'S1 Input'!$D51),"") -> 8032.922194 | AD51: =IFERROR(IF(OR(J51="",'S1 Input'!$D51=""),"",J51/'S1 Input'!$D51),"") -> 8076.600374 | AE51: =IFERROR(IF(OR(K51="",'S1 Input'!$D51=""),"",K51/'S1 Input'!$D51),"") -> 8072.39251 | AF51: =IFERROR(IF(OR(L51="",'S1 Input'!$D51=""),"",L51/'S1 Input'!$D51),"") -> 8027.919912 | AG51: =IFERROR(IF(OR(M51="",'S1 Input'!$D51=""),"",M51/'S1 Input'!$D51),"") -> 7951.256733 | AH51: =IFERROR(IF(OR(N51="",'S1 Input'!$D51=""),"",N51/'S1 Input'!$D51),"") -> 7850.361922 | AI51: =IFERROR(IF(OR(O51="",'S1 Input'!$D51=""),"",O51/'S1 Input'!$D51),"") -> 7732.601117 | AJ51: =IFERROR(IF(OR(P51="",'S1 Input'!$D51=""),"",P51/'S1 Input'!$D51),"") -> 7604.390149 | AK51: =IFERROR(IF(OR(Q51="",'S1 Input'!$D51=""),"",Q51/'S1 Input'!$D51),"") -> 7470.975337 | AL51: =IFERROR(IF(OR(R51="",'S1 Input'!$D51=""),"",R51/'S1 Input'!$D51),"") -> 7336.350293 | AM51: =IFERROR(IF(OR(S51="",'S1 Input'!$D51=""),"",S51/'S1 Input'!$D51),"") -> 7203.296512 | AN51: =IFERROR(IF(OR(T51="",'S1 Input'!$D51=""),"",T51/'S1 Input'!$D51),"") -> 7073.526308 | AO51: =IFERROR(IF(OR(U51="",'S1 Input'!$D51=""),"",U51/'S1 Input'!$D51),"") -> 6947.901899 | AP51: =IFERROR(IF(OR(V51="",'S1 Input'!$D51=""),"",V51/'S1 Input'!$D51),"") -> 6826.702857 | AQ51: =IFERROR(IF(OR(W51="",'S1 Input'!$D51=""),"",W51/'S1 Input'!$D51),"") -> 6709.914832
B52: SERVICE LINES | C52: ˂ = 11 kv ; residential ; complex type | D52: =IFERROR(repcalc('S1 Input'!$CV52:$GH52,'S1 Input'!$G52,'S1 Input'!$E52,'S1 Input'!$F52,20,TRUE,TRUE),"") ->  | X52: =IFERROR(IF(OR(D52="",'S1 Input'!$D52=""),"",D52/'S1 Input'!$D52),"") ->  | Y52: =IFERROR(IF(OR(E52="",'S1 Input'!$D52=""),"",E52/'S1 Input'!$D52),"") ->  | Z52: =IFERROR(IF(OR(F52="",'S1 Input'!$D52=""),"",F52/'S1 Input'!$D52),"") ->  | AA52: =IFERROR(IF(OR(G52="",'S1 Input'!$D52=""),"",G52/'S1 Input'!$D52),"") ->  | AB52: =IFERROR(IF(OR(H52="",'S1 Input'!$D52=""),"",H52/'S1 Input'!$D52),"") ->  | AC52: =IFERROR(IF(OR(I52="",'S1 Input'!$D52=""),"",I52/'S1 Input'!$D52),"") ->  | AD52: =IFERROR(IF(OR(J52="",'S1 Input'!$D52=""),"",J52/'S1 Input'!$D52),"") ->  | AE52: =IFERROR(IF(OR(K52="",'S1 Input'!$D52=""),"",K52/'S1 Input'!$D52),"") ->  | AF52: =IFERROR(IF(OR(L52="",'S1 Input'!$D52=""),"",L52/'S1 Input'!$D52),"") ->  | AG52: =IFERROR(IF(OR(M52="",'S1 Input'!$D52=""),"",M52/'S1 Input'!$D52),"") ->  | AH52: =IFERROR(IF(OR(N52="",'S1 Input'!$D52=""),"",N52/'S1 Input'!$D52),"") ->  | AI52: =IFERROR(IF(OR(O52="",'S1 Input'!$D52=""),"",O52/'S1 Input'!$D52),"") ->  | AJ52: =IFERROR(IF(OR(P52="",'S1 Input'!$D52=""),"",P52/'S1 Input'!$D52),"") ->  | AK52: =IFERROR(IF(OR(Q52="",'S1 Input'!$D52=""),"",Q52/'S1 Input'!$D52),"") ->  | AL52: =IFERROR(IF(OR(R52="",'S1 Input'!$D52=""),"",R52/'S1 Input'!$D52),"") ->  | AM52: =IFERROR(IF(OR(S52="",'S1 Input'!$D52=""),"",S52/'S1 Input'!$D52),"") ->  | AN52: =IFERROR(IF(OR(T52="",'S1 Input'!$D52=""),"",T52/'S1 Input'!$D52),"") ->  | AO52: =IFERROR(IF(OR(U52="",'S1 Input'!$D52=""),"",U52/'S1 Input'!$D52),"") ->  | AP52: =IFERROR(IF(OR(V52="",'S1 Input'!$D52=""),"",V52/'S1 Input'!$D52),"") ->  | AQ52: =IFERROR(IF(OR(W52="",'S1 Input'!$D52=""),"",W52/'S1 Input'!$D52),"") -> 
A53: 5 | B53: TRANSFORMERS | C53: pole mounted ; < = 22 kv ; < = 60 kva ; single phase | D53: =IFERROR(repcalc('S1 Input'!$CV53:$GH53,'S1 Input'!$G53,'S1 Input'!$E53,'S1 Input'!$F53,20,TRUE,TRUE),"") -> 100.3705244 | E53: 106.6147926 | F53: 113.7550179 | G53: 121.9714904 | H53: 131.4733011 | I53: 142.4990273 | J53: 155.3152531 | K53: 170.2124463 | L53: 187.4978177 | M53: 207.4849294 | N53: 230.4800234 | O53: 256.7652895 | P53: 286.5795878 | Q53: 320.097467 | R53: 357.407642 | S53: 398.4923949 | T53: 443.2095846 | U53: 491.279068 | V53: 542.2752969 | W53: 595.6276352 | X53: =IFERROR(IF(OR(D53="",'S1 Input'!$D53=""),"",D53/'S1 Input'!$D53),"") -> 8.572672796 | Y53: =IFERROR(IF(OR(E53="",'S1 Input'!$D53=""),"",E53/'S1 Input'!$D53),"") -> 9.105997379 | Z53: =IFERROR(IF(OR(F53="",'S1 Input'!$D53=""),"",F53/'S1 Input'!$D53),"") -> 9.715845895 | AA53: =IFERROR(IF(OR(G53="",'S1 Input'!$D53=""),"",G53/'S1 Input'!$D53),"") -> 10.41761697 | AB53: =IFERROR(IF(OR(H53="",'S1 Input'!$D53=""),"",H53/'S1 Input'!$D53),"") -> 11.22916911 | AC53: =IFERROR(IF(OR(I53="",'S1 Input'!$D53=""),"",I53/'S1 Input'!$D53),"") -> 12.17087928 | AD53: =IFERROR(IF(OR(J53="",'S1 Input'!$D53=""),"",J53/'S1 Input'!$D53),"") -> 13.26551648 | AE53: =IFERROR(IF(OR(K53="",'S1 Input'!$D53=""),"",K53/'S1 Input'!$D53),"") -> 14.53788966 | AF53: =IFERROR(IF(OR(L53="",'S1 Input'!$D53=""),"",L53/'S1 Input'!$D53),"") -> 16.01423776 | AG53: =IFERROR(IF(OR(M53="",'S1 Input'!$D53=""),"",M53/'S1 Input'!$D53),"") -> 17.7213422 | AH53: =IFERROR(IF(OR(N53="",'S1 Input'!$D53=""),"",N53/'S1 Input'!$D53),"") -> 19.68535922 | AI53: =IFERROR(IF(OR(O53="",'S1 Input'!$D53=""),"",O53/'S1 Input'!$D53),"") -> 21.93039068 | AJ53: =IFERROR(IF(OR(P53="",'S1 Input'!$D53=""),"",P53/'S1 Input'!$D53),"") -> 24.47683772 | AK53: =IFERROR(IF(OR(Q53="",'S1 Input'!$D53=""),"",Q53/'S1 Input'!$D53),"") -> 27.33960856 | AL53: =IFERROR(IF(OR(R53="",'S1 Input'!$D53=""),"",R53/'S1 Input'!$D53),"") -> 30.52628039 | AM53: =IFERROR(IF(OR(S53="",'S1 Input'!$D53=""),"",S53/'S1 Input'!$D53),"") -> 34.03533991 | AN53: =IFERROR(IF(OR(T53="",'S1 Input'!$D53=""),"",T53/'S1 Input'!$D53),"") -> 37.8546468 | AO53: =IFERROR(IF(OR(U53="",'S1 Input'!$D53=""),"",U53/'S1 Input'!$D53),"") -> 41.96027398 | AP53: =IFERROR(IF(OR(V53="",'S1 Input'!$D53=""),"",V53/'S1 Input'!$D53),"") -> 46.31587526 | AQ53: =IFERROR(IF(OR(W53="",'S1 Input'!$D53=""),"",W53/'S1 Input'!$D53),"") -> 50.87271245
A54: 5 | B54: TRANSFORMERS | C54: pole mounted ; < = 22 kv ; > 60 kva and < = 600 kva ; single phase | D54: =IFERROR(repcalc('S1 Input'!$CV54:$GH54,'S1 Input'!$G54,'S1 Input'!$E54,'S1 Input'!$F54,20,TRUE,TRUE),"") -> 1.260459663 | E54: 1.396523421 | F54: 1.538590735 | G54: 1.688076345 | H54: 1.847282118 | I54: 2.01947941 | J54: 2.208942302 | K54: 2.420926778 | L54: 2.661595157 | M54: 2.937889751 | N54: 3.257364292 | O54: 3.62798597 | P54: 4.057924489 | Q54: 4.555347014 | R54: 5.128238479 | S54: 5.784265097 | T54: 6.530694161 | U54: 7.374375318 | V54: 8.321777321 | W54: 9.379060806 | X54: =IFERROR(IF(OR(D54="",'S1 Input'!$D54=""),"",D54/'S1 Input'!$D54),"") -> 0.08915768593 | Y54: =IFERROR(IF(OR(E54="",'S1 Input'!$D54=""),"",E54/'S1 Input'!$D54),"") -> 0.09878205562 | Z54: =IFERROR(IF(OR(F54="",'S1 Input'!$D54=""),"",F54/'S1 Input'!$D54),"") -> 0.1088310825 | AA54: =IFERROR(IF(OR(G54="",'S1 Input'!$D54=""),"",G54/'S1 Input'!$D54),"") -> 0.119404837 | AB54: =IFERROR(IF(OR(H54="",'S1 Input'!$D54=""),"",H54/'S1 Input'!$D54),"") -> 0.1306661401 | AC54: =IFERROR(IF(OR(I54="",'S1 Input'!$D54=""),"",I54/'S1 Input'!$D54),"") -> 0.1428463886 | AD54: =IFERROR(IF(OR(J54="",'S1 Input'!$D54=""),"",J54/'S1 Input'!$D54),"") -> 0.1562479068 | AE54: =IFERROR(IF(OR(K54="",'S1 Input'!$D54=""),"",K54/'S1 Input'!$D54),"") -> 0.1712424726 | AF54: =IFERROR(IF(OR(L54="",'S1 Input'!$D54=""),"",L54/'S1 Input'!$D54),"") -> 0.1882659731 | AG54: =IFERROR(IF(OR(M54="",'S1 Input'!$D54=""),"",M54/'S1 Input'!$D54),"") -> 0.2078094677 | AH54: =IFERROR(IF(OR(N54="",'S1 Input'!$D54=""),"",N54/'S1 Input'!$D54),"") -> 0.2304072641 | AI54: =IFERROR(IF(OR(O54="",'S1 Input'!$D54=""),"",O54/'S1 Input'!$D54),"") -> 0.2566229155 | AJ54: =IFERROR(IF(OR(P54="",'S1 Input'!$D54=""),"",P54/'S1 Input'!$D54),"") -> 0.2870343 | AK54: =IFERROR(IF(OR(Q54="",'S1 Input'!$D54=""),"",Q54/'S1 Input'!$D54),"") -> 0.3222191159 | AL54: =IFERROR(IF(OR(R54="",'S1 Input'!$D54=""),"",R54/'S1 Input'!$D54),"") -> 0.3627421718 | AM54: =IFERROR(IF(OR(S54="",'S1 Input'!$D54=""),"",S54/'S1 Input'!$D54),"") -> 0.4091457314 | AN54: =IFERROR(IF(OR(T54="",'S1 Input'!$D54=""),"",T54/'S1 Input'!$D54),"") -> 0.4619438415 | AO54: =IFERROR(IF(OR(U54="",'S1 Input'!$D54=""),"",U54/'S1 Input'!$D54),"") -> 0.5216210067 | AP54: =IFERROR(IF(OR(V54="",'S1 Input'!$D54=""),"",V54/'S1 Input'!$D54),"") -> 0.5886347896 | AQ54: =IFERROR(IF(OR(W54="",'S1 Input'!$D54=""),"",W54/'S1 Input'!$D54),"") -> 0.6634209582
B55: TRANSFORMERS | C55: pole mounted ; < = 22 kv ; > 600 kva ; single phase | D55: =IFERROR(repcalc('S1 Input'!$CV55:$GH55,'S1 Input'!$G55,'S1 Input'!$E55,'S1 Input'!$F55,20,TRUE,TRUE),"") ->  | X55: =IFERROR(IF(OR(D55="",'S1 Input'!$D55=""),"",D55/'S1 Input'!$D55),"") ->  | Y55: =IFERROR(IF(OR(E55="",'S1 Input'!$D55=""),"",E55/'S1 Input'!$D55),"") ->  | Z55: =IFERROR(IF(OR(F55="",'S1 Input'!$D55=""),"",F55/'S1 Input'!$D55),"") ->  | AA55: =IFERROR(IF(OR(G55="",'S1 Input'!$D55=""),"",G55/'S1 Input'!$D55),"") ->  | AB55: =IFERROR(IF(OR(H55="",'S1 Input'!$D55=""),"",H55/'S1 Input'!$D55),"") ->  | AC55: =IFERROR(IF(OR(I55="",'S1 Input'!$D55=""),"",I55/'S1 Input'!$D55),"") ->  | AD55: =IFERROR(IF(OR(J55="",'S1 Input'!$D55=""),"",J55/'S1 Input'!$D55),"") ->  | AE55: =IFERROR(IF(OR(K55="",'S1 Input'!$D55=""),"",K55/'S1 Input'!$D55),"") ->  | AF55: =IFERROR(IF(OR(L55="",'S1 Input'!$D55=""),"",L55/'S1 Input'!$D55),"") ->  | AG55: =IFERROR(IF(OR(M55="",'S1 Input'!$D55=""),"",M55/'S1 Input'!$D55),"") ->  | AH55: =IFERROR(IF(OR(N55="",'S1 Input'!$D55=""),"",N55/'S1 Input'!$D55),"") ->  | AI55: =IFERROR(IF(OR(O55="",'S1 Input'!$D55=""),"",O55/'S1 Input'!$D55),"") ->  | AJ55: =IFERROR(IF(OR(P55="",'S1 Input'!$D55=""),"",P55/'S1 Input'!$D55),"") ->  | AK55: =IFERROR(IF(OR(Q55="",'S1 Input'!$D55=""),"",Q55/'S1 Input'!$D55),"") ->  | AL55: =IFERROR(IF(OR(R55="",'S1 Input'!$D55=""),"",R55/'S1 Input'!$D55),"") ->  | AM55: =IFERROR(IF(OR(S55="",'S1 Input'!$D55=""),"",S55/'S1 Input'!$D55),"") ->  | AN55: =IFERROR(IF(OR(T55="",'S1 Input'!$D55=""),"",T55/'S1 Input'!$D55),"") ->  | AO55: =IFERROR(IF(OR(U55="",'S1 Input'!$D55=""),"",U55/'S1 Input'!$D55),"") ->  | AP55: =IFERROR(IF(OR(V55="",'S1 Input'!$D55=""),"",V55/'S1 Input'!$D55),"") ->  | AQ55: =IFERROR(IF(OR(W55="",'S1 Input'!$D55=""),"",W55/'S1 Input'!$D55),"") -> 
A56: 5 | B56: TRANSFORMERS | C56: pole mounted ; < = 22 kv ; < = 60 kva ; multiple phase | D56: =IFERROR(repcalc('S1 Input'!$CV56:$GH56,'S1 Input'!$G56,'S1 Input'!$E56,'S1 Input'!$F56,20,TRUE,TRUE),"") -> 63.55471307 | E56: 71.19297833 | F56: 79.33631714 | G56: 87.98691409 | H56: 97.149582 | I56: 106.8332451 | J56: 117.0527055 | K56: 127.8307477 | L56: 139.2005924 | M56: 151.2086277 | N56: 163.9172474 | O56: 177.4075042 | P56: 191.7811751 | Q56: 207.1617459 | R56: 223.6937809 | S56: 241.5401651 | T56: 260.8768075 | U56: 281.8845666 | V56: 304.7384114 | W56: 329.5941181 | X56: =IFERROR(IF(OR(D56="",'S1 Input'!$D56=""),"",D56/'S1 Input'!$D56),"") -> 3.678858738 | Y56: =IFERROR(IF(OR(E56="",'S1 Input'!$D56=""),"",E56/'S1 Input'!$D56),"") -> 4.120999022 | Z56: =IFERROR(IF(OR(F56="",'S1 Input'!$D56=""),"",F56/'S1 Input'!$D56),"") -> 4.592375442 | AA56: =IFERROR(IF(OR(G56="",'S1 Input'!$D56=""),"",G56/'S1 Input'!$D56),"") -> 5.093114453 | AB56: =IFERROR(IF(OR(H56="",'S1 Input'!$D56=""),"",H56/'S1 Input'!$D56),"") -> 5.623494645 | AC56: =IFERROR(IF(OR(I56="",'S1 Input'!$D56=""),"",I56/'S1 Input'!$D56),"") -> 6.184032598 | AD56: =IFERROR(IF(OR(J56="",'S1 Input'!$D56=""),"",J56/'S1 Input'!$D56),"") -> 6.775585122 | AE56: =IFERROR(IF(OR(K56="",'S1 Input'!$D56=""),"",K56/'S1 Input'!$D56),"") -> 7.399471107 | AF56: =IFERROR(IF(OR(L56="",'S1 Input'!$D56=""),"",L56/'S1 Input'!$D56),"") -> 8.057613523 | AG56: =IFERROR(IF(OR(M56="",'S1 Input'!$D56=""),"",M56/'S1 Input'!$D56),"") -> 8.752697546 | AH56: =IFERROR(IF(OR(N56="",'S1 Input'!$D56=""),"",N56/'S1 Input'!$D56),"") -> 9.488334832 | AI56: =IFERROR(IF(OR(O56="",'S1 Input'!$D56=""),"",O56/'S1 Input'!$D56),"") -> 10.26921711 | AJ56: =IFERROR(IF(OR(P56="",'S1 Input'!$D56=""),"",P56/'S1 Input'!$D56),"") -> 11.10123573 | AK56: =IFERROR(IF(OR(Q56="",'S1 Input'!$D56=""),"",Q56/'S1 Input'!$D56),"") -> 11.99153866 | AL56: =IFERROR(IF(OR(R56="",'S1 Input'!$D56=""),"",R56/'S1 Input'!$D56),"") -> 12.94849399 | AM56: =IFERROR(IF(OR(S56="",'S1 Input'!$D56=""),"",S56/'S1 Input'!$D56),"") -> 13.98153031 | AN56: =IFERROR(IF(OR(T56="",'S1 Input'!$D56=""),"",T56/'S1 Input'!$D56),"") -> 15.10083008 | AO56: =IFERROR(IF(OR(U56="",'S1 Input'!$D56=""),"",U56/'S1 Input'!$D56),"") -> 16.31686229 | AP56: =IFERROR(IF(OR(V56="",'S1 Input'!$D56=""),"",V56/'S1 Input'!$D56),"") -> 17.639755 | AQ56: =IFERROR(IF(OR(W56="",'S1 Input'!$D56=""),"",W56/'S1 Input'!$D56),"") -> 19.0785253
A57: 5 | B57: TRANSFORMERS | C57: pole mounted ; < = 22 kv ; > 60 kva and < = 600 kva ; multiple phase | D57: =IFERROR(repcalc('S1 Input'!$CV57:$GH57,'S1 Input'!$G57,'S1 Input'!$E57,'S1 Input'!$F57,20,TRUE,TRUE),"") -> 838.5058429 | E57: 971.1033244 | F57: 1116.563838 | G57: 1274.860417 | H57: 1445.8788 | I57: 1629.471726 | J57: 1825.52183 | K57: 2034.005814 | L57: 2255.050924 | M57: 2488.974028 | N57: 2736.294086 | O57: 2997.710669 | P57: 3274.044375 | Q57: 3566.139289 | R57: 3874.732584 | S57: 4200.301382 | T57: 4542.901399 | U57: 4902.015044 | V57: 5276.427886 | W57: 5664.151541 | X57: =IFERROR(IF(OR(D57="",'S1 Input'!$D57=""),"",D57/'S1 Input'!$D57),"") -> 20.44274433 | Y57: =IFERROR(IF(OR(E57="",'S1 Input'!$D57=""),"",E57/'S1 Input'!$D57),"") -> 23.67546648 | Z57: =IFERROR(IF(OR(F57="",'S1 Input'!$D57=""),"",F57/'S1 Input'!$D57),"") -> 27.22178891 | AA57: =IFERROR(IF(OR(G57="",'S1 Input'!$D57=""),"",G57/'S1 Input'!$D57),"") -> 31.08105422 | AB57: =IFERROR(IF(OR(H57="",'S1 Input'!$D57=""),"",H57/'S1 Input'!$D57),"") -> 35.25047666 | AC57: =IFERROR(IF(OR(I57="",'S1 Input'!$D57=""),"",I57/'S1 Input'!$D57),"") -> 39.72646603 | AD57: =IFERROR(IF(OR(J57="",'S1 Input'!$D57=""),"",J57/'S1 Input'!$D57),"") -> 44.50616098 | AE57: =IFERROR(IF(OR(K57="",'S1 Input'!$D57=""),"",K57/'S1 Input'!$D57),"") -> 49.58899352 | AF57: =IFERROR(IF(OR(L57="",'S1 Input'!$D57=""),"",L57/'S1 Input'!$D57),"") -> 54.9780659 | AG57: =IFERROR(IF(OR(M57="",'S1 Input'!$D57=""),"",M57/'S1 Input'!$D57),"") -> 60.68110333 | AH57: =IFERROR(IF(OR(N57="",'S1 Input'!$D57=""),"",N57/'S1 Input'!$D57),"") -> 66.71075805 | AI57: =IFERROR(IF(OR(O57="",'S1 Input'!$D57=""),"",O57/'S1 Input'!$D57),"") -> 73.08408557 | AJ57: =IFERROR(IF(OR(P57="",'S1 Input'!$D57=""),"",P57/'S1 Input'!$D57),"") -> 79.82109205 | AK57: =IFERROR(IF(OR(Q57="",'S1 Input'!$D57=""),"",Q57/'S1 Input'!$D57),"") -> 86.94235626 | AL57: =IFERROR(IF(OR(R57="",'S1 Input'!$D57=""),"",R57/'S1 Input'!$D57),"") -> 94.46585045 | AM57: =IFERROR(IF(OR(S57="",'S1 Input'!$D57=""),"",S57/'S1 Input'!$D57),"") -> 102.4032068 | AN57: =IFERROR(IF(OR(T57="",'S1 Input'!$D57=""),"",T57/'S1 Input'!$D57),"") -> 110.7557838 | AO57: =IFERROR(IF(OR(U57="",'S1 Input'!$D57=""),"",U57/'S1 Input'!$D57),"") -> 119.5109624 | AP57: =IFERROR(IF(OR(V57="",'S1 Input'!$D57=""),"",V57/'S1 Input'!$D57),"") -> 128.6391349 | AQ57: =IFERROR(IF(OR(W57="",'S1 Input'!$D57=""),"",W57/'S1 Input'!$D57),"") -> 138.0918246
B58: TRANSFORMERS | C58: pole mounted ; < = 22 kv ; > 600 kva ; multiple phase | D58: =IFERROR(repcalc('S1 Input'!$CV58:$GH58,'S1 Input'!$G58,'S1 Input'!$E58,'S1 Input'!$F58,20,TRUE,TRUE),"") ->  | X58: =IFERROR(IF(OR(D58="",'S1 Input'!$D58=""),"",D58/'S1 Input'!$D58),"") ->  | Y58: =IFERROR(IF(OR(E58="",'S1 Input'!$D58=""),"",E58/'S1 Input'!$D58),"") ->  | Z58: =IFERROR(IF(OR(F58="",'S1 Input'!$D58=""),"",F58/'S1 Input'!$D58),"") ->  | AA58: =IFERROR(IF(OR(G58="",'S1 Input'!$D58=""),"",G58/'S1 Input'!$D58),"") ->  | AB58: =IFERROR(IF(OR(H58="",'S1 Input'!$D58=""),"",H58/'S1 Input'!$D58),"") ->  | AC58: =IFERROR(IF(OR(I58="",'S1 Input'!$D58=""),"",I58/'S1 Input'!$D58),"") ->  | AD58: =IFERROR(IF(OR(J58="",'S1 Input'!$D58=""),"",J58/'S1 Input'!$D58),"") ->  | AE58: =IFERROR(IF(OR(K58="",'S1 Input'!$D58=""),"",K58/'S1 Input'!$D58),"") ->  | AF58: =IFERROR(IF(OR(L58="",'S1 Input'!$D58=""),"",L58/'S1 Input'!$D58),"") ->  | AG58: =IFERROR(IF(OR(M58="",'S1 Input'!$D58=""),"",M58/'S1 Input'!$D58),"") ->  | AH58: =IFERROR(IF(OR(N58="",'S1 Input'!$D58=""),"",N58/'S1 Input'!$D58),"") ->  | AI58: =IFERROR(IF(OR(O58="",'S1 Input'!$D58=""),"",O58/'S1 Input'!$D58),"") ->  | AJ58: =IFERROR(IF(OR(P58="",'S1 Input'!$D58=""),"",P58/'S1 Input'!$D58),"") ->  | AK58: =IFERROR(IF(OR(Q58="",'S1 Input'!$D58=""),"",Q58/'S1 Input'!$D58),"") ->  | AL58: =IFERROR(IF(OR(R58="",'S1 Input'!$D58=""),"",R58/'S1 Input'!$D58),"") ->  | AM58: =IFERROR(IF(OR(S58="",'S1 Input'!$D58=""),"",S58/'S1 Input'!$D58),"") ->  | AN58: =IFERROR(IF(OR(T58="",'S1 Input'!$D58=""),"",T58/'S1 Input'!$D58),"") ->  | AO58: =IFERROR(IF(OR(U58="",'S1 Input'!$D58=""),"",U58/'S1 Input'!$D58),"") ->  | AP58: =IFERROR(IF(OR(V58="",'S1 Input'!$D58=""),"",V58/'S1 Input'!$D58),"") ->  | AQ58: =IFERROR(IF(OR(W58="",'S1 Input'!$D58=""),"",W58/'S1 Input'!$D58),"") -> 
B59: TRANSFORMERS | C59: kiosk mounted ; < = 22 kv ; < = 60 kva ; single phase | D59: =IFERROR(repcalc('S1 Input'!$CV59:$GH59,'S1 Input'!$G59,'S1 Input'!$E59,'S1 Input'!$F59,20,TRUE,TRUE),"") ->  | X59: =IFERROR(IF(OR(D59="",'S1 Input'!$D59=""),"",D59/'S1 Input'!$D59),"") ->  | Y59: =IFERROR(IF(OR(E59="",'S1 Input'!$D59=""),"",E59/'S1 Input'!$D59),"") ->  | Z59: =IFERROR(IF(OR(F59="",'S1 Input'!$D59=""),"",F59/'S1 Input'!$D59),"") ->  | AA59: =IFERROR(IF(OR(G59="",'S1 Input'!$D59=""),"",G59/'S1 Input'!$D59),"") ->  | AB59: =IFERROR(IF(OR(H59="",'S1 Input'!$D59=""),"",H59/'S1 Input'!$D59),"") ->  | AC59: =IFERROR(IF(OR(I59="",'S1 Input'!$D59=""),"",I59/'S1 Input'!$D59),"") ->  | AD59: =IFERROR(IF(OR(J59="",'S1 Input'!$D59=""),"",J59/'S1 Input'!$D59),"") ->  | AE59: =IFERROR(IF(OR(K59="",'S1 Input'!$D59=""),"",K59/'S1 Input'!$D59),"") ->  | AF59: =IFERROR(IF(OR(L59="",'S1 Input'!$D59=""),"",L59/'S1 Input'!$D59),"") ->  | AG59: =IFERROR(IF(OR(M59="",'S1 Input'!$D59=""),"",M59/'S1 Input'!$D59),"") ->  | AH59: =IFERROR(IF(OR(N59="",'S1 Input'!$D59=""),"",N59/'S1 Input'!$D59),"") ->  | AI59: =IFERROR(IF(OR(O59="",'S1 Input'!$D59=""),"",O59/'S1 Input'!$D59),"") ->  | AJ59: =IFERROR(IF(OR(P59="",'S1 Input'!$D59=""),"",P59/'S1 Input'!$D59),"") ->  | AK59: =IFERROR(IF(OR(Q59="",'S1 Input'!$D59=""),"",Q59/'S1 Input'!$D59),"") ->  | AL59: =IFERROR(IF(OR(R59="",'S1 Input'!$D59=""),"",R59/'S1 Input'!$D59),"") ->  | AM59: =IFERROR(IF(OR(S59="",'S1 Input'!$D59=""),"",S59/'S1 Input'!$D59),"") ->  | AN59: =IFERROR(IF(OR(T59="",'S1 Input'!$D59=""),"",T59/'S1 Input'!$D59),"") ->  | AO59: =IFERROR(IF(OR(U59="",'S1 Input'!$D59=""),"",U59/'S1 Input'!$D59),"") ->  | AP59: =IFERROR(IF(OR(V59="",'S1 Input'!$D59=""),"",V59/'S1 Input'!$D59),"") ->  | AQ59: =IFERROR(IF(OR(W59="",'S1 Input'!$D59=""),"",W59/'S1 Input'!$D59),"") -> 
A60: 5 | B60: TRANSFORMERS | C60: kiosk mounted ; < = 22 kv ; < = 60 kva ; multiple phase | D60: =IFERROR(repcalc('S1 Input'!$CV60:$GH60,'S1 Input'!$G60,'S1 Input'!$E60,'S1 Input'!$F60,20,TRUE,TRUE),"") -> 0.06349499977 | E60: 0.113011747 | F60: 0.1902205141 | G60: 0.3027918007 | H60: 0.4558155285 | I60: 0.6489347109 | J60: 0.8737643922 | K60: 1.112741294 | L60: 1.340431255 | M60: 1.527649474 | N60: 1.647683104 | O60: 1.682890419 | P60: 1.629515303 | Q60: 1.499010218 | R60: 1.315375519 | S60: 1.109459562 | T60: 0.9121623861 | U60: 0.7486291925 | V60: 0.6348443497 | W60: 0.5769622747 | X60: =IFERROR(IF(OR(D60="",'S1 Input'!$D60=""),"",D60/'S1 Input'!$D60),"") -> 0.003593017634 | Y60: =IFERROR(IF(OR(E60="",'S1 Input'!$D60=""),"",E60/'S1 Input'!$D60),"") -> 0.00639504215 | Z60: =IFERROR(IF(OR(F60="",'S1 Input'!$D60=""),"",F60/'S1 Input'!$D60),"") -> 0.01076408637 | AA60: =IFERROR(IF(OR(G60="",'S1 Input'!$D60=""),"",G60/'S1 Input'!$D60),"") -> 0.017134204 | AB60: =IFERROR(IF(OR(H60="",'S1 Input'!$D60=""),"",H60/'S1 Input'!$D60),"") -> 0.02579342055 | AC60: =IFERROR(IF(OR(I60="",'S1 Input'!$D60=""),"",I60/'S1 Input'!$D60),"") -> 0.03672153505 | AD60: =IFERROR(IF(OR(J60="",'S1 Input'!$D60=""),"",J60/'S1 Input'!$D60),"") -> 0.04944406459 | AE60: =IFERROR(IF(OR(K60="",'S1 Input'!$D60=""),"",K60/'S1 Input'!$D60),"") -> 0.0629671487 | AF60: =IFERROR(IF(OR(L60="",'S1 Input'!$D60=""),"",L60/'S1 Input'!$D60),"") -> 0.07585153403 | AG60: =IFERROR(IF(OR(M60="",'S1 Input'!$D60=""),"",M60/'S1 Input'!$D60),"") -> 0.08644572832 | AH60: =IFERROR(IF(OR(N60="",'S1 Input'!$D60=""),"",N60/'S1 Input'!$D60),"") -> 0.09323812065 | AI60: =IFERROR(IF(OR(O60="",'S1 Input'!$D60=""),"",O60/'S1 Input'!$D60),"") -> 0.09523041146 | AJ60: =IFERROR(IF(OR(P60="",'S1 Input'!$D60=""),"",P60/'S1 Input'!$D60),"") -> 0.09221005185 | AK60: =IFERROR(IF(OR(Q60="",'S1 Input'!$D60=""),"",Q60/'S1 Input'!$D60),"") -> 0.084825107 | AL60: =IFERROR(IF(OR(R60="",'S1 Input'!$D60=""),"",R60/'S1 Input'!$D60),"") -> 0.07443369485 | AM60: =IFERROR(IF(OR(S60="",'S1 Input'!$D60=""),"",S60/'S1 Input'!$D60),"") -> 0.062781444 | AN60: =IFERROR(IF(OR(T60="",'S1 Input'!$D60=""),"",T60/'S1 Input'!$D60),"") -> 0.05161690764 | AO60: =IFERROR(IF(OR(U60="",'S1 Input'!$D60=""),"",U60/'S1 Input'!$D60),"") -> 0.04236298764 | AP60: =IFERROR(IF(OR(V60="",'S1 Input'!$D60=""),"",V60/'S1 Input'!$D60),"") -> 0.035924198 | AQ60: =IFERROR(IF(OR(W60="",'S1 Input'!$D60=""),"",W60/'S1 Input'!$D60),"") -> 0.03264880124
A61: 5 | B61: TRANSFORMERS | C61: kiosk mounted ; < = 22 kv ; > 60 kva and < = 600 kva ; multiple phase | D61: =IFERROR(repcalc('S1 Input'!$CV61:$GH61,'S1 Input'!$G61,'S1 Input'!$E61,'S1 Input'!$F61,20,TRUE,TRUE),"") -> 619.7534539 | E61: 742.6694242 | F61: 884.4295094 | G61: 1045.932206 | H61: 1227.542264 | I61: 1428.977351 | J61: 1649.223677 | K61: 1886.494612 | L61: 2138.244704 | M61: 2401.248022 | N61: 2671.744518 | O61: 2945.651628 | P61: 3218.831057 | Q61: 3487.393609 | R61: 3748.018851 | S61: 3998.262137 | T61: 4236.819843 | U61: 4463.72483 | V61: 4680.448255 | W61: 4889.890624 | X61: =IFERROR(IF(OR(D61="",'S1 Input'!$D61=""),"",D61/'S1 Input'!$D61),"") -> 15.18257523 | Y61: =IFERROR(IF(OR(E61="",'S1 Input'!$D61=""),"",E61/'S1 Input'!$D61),"") -> 18.19374194 | Z61: =IFERROR(IF(OR(F61="",'S1 Input'!$D61=""),"",F61/'S1 Input'!$D61),"") -> 21.66654737 | AA61: =IFERROR(IF(OR(G61="",'S1 Input'!$D61=""),"",G61/'S1 Input'!$D61),"") -> 25.62300268 | AB61: =IFERROR(IF(OR(H61="",'S1 Input'!$D61=""),"",H61/'S1 Input'!$D61),"") -> 30.07204341 | AC61: =IFERROR(IF(OR(I61="",'S1 Input'!$D61=""),"",I61/'S1 Input'!$D61),"") -> 35.00675309 | AD61: =IFERROR(IF(OR(J61="",'S1 Input'!$D61=""),"",J61/'S1 Input'!$D61),"") -> 40.4022961 | AE61: =IFERROR(IF(OR(K61="",'S1 Input'!$D61=""),"",K61/'S1 Input'!$D61),"") -> 46.21490399 | AF61: =IFERROR(IF(OR(L61="",'S1 Input'!$D61=""),"",L61/'S1 Input'!$D61),"") -> 52.38221891 | AG61: =IFERROR(IF(OR(M61="",'S1 Input'!$D61=""),"",M61/'S1 Input'!$D61),"") -> 58.8252127 | AH61: =IFERROR(IF(OR(N61="",'S1 Input'!$D61=""),"",N61/'S1 Input'!$D61),"") -> 65.45177263 | AI61: =IFERROR(IF(OR(O61="",'S1 Input'!$D61=""),"",O61/'S1 Input'!$D61),"") -> 72.16188499 | AJ61: =IFERROR(IF(OR(P61="",'S1 Input'!$D61=""),"",P61/'S1 Input'!$D61),"") -> 78.85417076 | AK61: =IFERROR(IF(OR(Q61="",'S1 Input'!$D61=""),"",Q61/'S1 Input'!$D61),"") -> 85.43335339 | AL61: =IFERROR(IF(OR(R61="",'S1 Input'!$D61=""),"",R61/'S1 Input'!$D61),"") -> 91.81808964 | AM61: =IFERROR(IF(OR(S61="",'S1 Input'!$D61=""),"",S61/'S1 Input'!$D61),"") -> 97.94849116 | AN61: =IFERROR(IF(OR(T61="",'S1 Input'!$D61=""),"",T61/'S1 Input'!$D61),"") -> 103.7926221 | AO61: =IFERROR(IF(OR(U61="",'S1 Input'!$D61=""),"",U61/'S1 Input'!$D61),"") -> 109.3512874 | AP61: =IFERROR(IF(OR(V61="",'S1 Input'!$D61=""),"",V61/'S1 Input'!$D61),"") -> 114.6605272 | AQ61: =IFERROR(IF(OR(W61="",'S1 Input'!$D61=""),"",W61/'S1 Input'!$D61),"") -> 119.7913974
A62: 5 | B62: TRANSFORMERS | C62: kiosk mounted ; < = 22 kv ; > 600 kva ; multiple phase | D62: =IFERROR(repcalc('S1 Input'!$CV62:$GH62,'S1 Input'!$G62,'S1 Input'!$E62,'S1 Input'!$F62,20,TRUE,TRUE),"") -> 683.7642008 | E62: 745.9838093 | F62: 818.1918155 | G62: 901.3701527 | H62: 996.4016555 | I62: 1104.060246 | J62: 1225.012089 | K62: 1359.825182 | L62: 1508.982136 | M62: 1672.889136 | N62: 1851.873625 | O62: 2046.164448 | P62: 2255.850786 | Q62: 2480.819798 | R62: 2720.676899 | S62: 2974.656245 | T62: 3241.531855 | U62: 3519.541383 | V62: 3806.334722 | W62: 4098.958407 | X62: =IFERROR(IF(OR(D62="",'S1 Input'!$D62=""),"",D62/'S1 Input'!$D62),"") -> 11.57339118 | Y62: =IFERROR(IF(OR(E62="",'S1 Input'!$D62=""),"",E62/'S1 Input'!$D62),"") -> 12.62652012 | Z62: =IFERROR(IF(OR(F62="",'S1 Input'!$D62=""),"",F62/'S1 Input'!$D62),"") -> 13.84871266 | AA62: =IFERROR(IF(OR(G62="",'S1 Input'!$D62=""),"",G62/'S1 Input'!$D62),"") -> 15.25658899 | AB62: =IFERROR(IF(OR(H62="",'S1 Input'!$D62=""),"",H62/'S1 Input'!$D62),"") -> 16.86509197 | AC62: =IFERROR(IF(OR(I62="",'S1 Input'!$D62=""),"",I62/'S1 Input'!$D62),"") -> 18.68732101 | AD62: =IFERROR(IF(OR(J62="",'S1 Input'!$D62=""),"",J62/'S1 Input'!$D62),"") -> 20.73455162 | AE62: =IFERROR(IF(OR(K62="",'S1 Input'!$D62=""),"",K62/'S1 Input'!$D62),"") -> 23.01639769 | AF62: =IFERROR(IF(OR(L62="",'S1 Input'!$D62=""),"",L62/'S1 Input'!$D62),"") -> 25.54102793 | AG62: =IFERROR(IF(OR(M62="",'S1 Input'!$D62=""),"",M62/'S1 Input'!$D62),"") -> 28.31531741 | AH62: =IFERROR(IF(OR(N62="",'S1 Input'!$D62=""),"",N62/'S1 Input'!$D62),"") -> 31.34480843 | AI62: =IFERROR(IF(OR(O62="",'S1 Input'!$D62=""),"",O62/'S1 Input'!$D62),"") -> 34.63337443 | AJ62: =IFERROR(IF(OR(P62="",'S1 Input'!$D62=""),"",P62/'S1 Input'!$D62),"") -> 38.18252486 | AK62: =IFERROR(IF(OR(Q62="",'S1 Input'!$D62=""),"",Q62/'S1 Input'!$D62),"") -> 41.99034981 | AL62: =IFERROR(IF(OR(R62="",'S1 Input'!$D62=""),"",R62/'S1 Input'!$D62),"") -> 46.05017051 | AM62: =IFERROR(IF(OR(S62="",'S1 Input'!$D62=""),"",S62/'S1 Input'!$D62),"") -> 50.3490243 | AN62: =IFERROR(IF(OR(T62="",'S1 Input'!$D62=""),"",T62/'S1 Input'!$D62),"") -> 54.86616022 | AO62: =IFERROR(IF(OR(U62="",'S1 Input'!$D62=""),"",U62/'S1 Input'!$D62),"") -> 59.57174881 | AP62: =IFERROR(IF(OR(V62="",'S1 Input'!$D62=""),"",V62/'S1 Input'!$D62),"") -> 64.42601216 | AQ62: =IFERROR(IF(OR(W62="",'S1 Input'!$D62=""),"",W62/'S1 Input'!$D62),"") -> 69.37895993
B63: TRANSFORMERS | C63: ground outdoor / indoor chamber mounted ; ˂ 22 kv ; < = 60 kva ; single phase | D63: =IFERROR(repcalc('S1 Input'!$CV63:$GH63,'S1 Input'!$G63,'S1 Input'!$E63,'S1 Input'!$F63,20,TRUE,TRUE),"") ->  | X63: =IFERROR(IF(OR(D63="",'S1 Input'!$D63=""),"",D63/'S1 Input'!$D63),"") ->  | Y63: =IFERROR(IF(OR(E63="",'S1 Input'!$D63=""),"",E63/'S1 Input'!$D63),"") ->  | Z63: =IFERROR(IF(OR(F63="",'S1 Input'!$D63=""),"",F63/'S1 Input'!$D63),"") ->  | AA63: =IFERROR(IF(OR(G63="",'S1 Input'!$D63=""),"",G63/'S1 Input'!$D63),"") ->  | AB63: =IFERROR(IF(OR(H63="",'S1 Input'!$D63=""),"",H63/'S1 Input'!$D63),"") ->  | AC63: =IFERROR(IF(OR(I63="",'S1 Input'!$D63=""),"",I63/'S1 Input'!$D63),"") ->  | AD63: =IFERROR(IF(OR(J63="",'S1 Input'!$D63=""),"",J63/'S1 Input'!$D63),"") ->  | AE63: =IFERROR(IF(OR(K63="",'S1 Input'!$D63=""),"",K63/'S1 Input'!$D63),"") ->  | AF63: =IFERROR(IF(OR(L63="",'S1 Input'!$D63=""),"",L63/'S1 Input'!$D63),"") ->  | AG63: =IFERROR(IF(OR(M63="",'S1 Input'!$D63=""),"",M63/'S1 Input'!$D63),"") ->  | AH63: =IFERROR(IF(OR(N63="",'S1 Input'!$D63=""),"",N63/'S1 Input'!$D63),"") ->  | AI63: =IFERROR(IF(OR(O63="",'S1 Input'!$D63=""),"",O63/'S1 Input'!$D63),"") ->  | AJ63: =IFERROR(IF(OR(P63="",'S1 Input'!$D63=""),"",P63/'S1 Input'!$D63),"") ->  | AK63: =IFERROR(IF(OR(Q63="",'S1 Input'!$D63=""),"",Q63/'S1 Input'!$D63),"") ->  | AL63: =IFERROR(IF(OR(R63="",'S1 Input'!$D63=""),"",R63/'S1 Input'!$D63),"") ->  | AM63: =IFERROR(IF(OR(S63="",'S1 Input'!$D63=""),"",S63/'S1 Input'!$D63),"") ->  | AN63: =IFERROR(IF(OR(T63="",'S1 Input'!$D63=""),"",T63/'S1 Input'!$D63),"") ->  | AO63: =IFERROR(IF(OR(U63="",'S1 Input'!$D63=""),"",U63/'S1 Input'!$D63),"") ->  | AP63: =IFERROR(IF(OR(V63="",'S1 Input'!$D63=""),"",V63/'S1 Input'!$D63),"") ->  | AQ63: =IFERROR(IF(OR(W63="",'S1 Input'!$D63=""),"",W63/'S1 Input'!$D63),"") -> 
B64: TRANSFORMERS | C64: ground outdoor / indoor chamber mounted ; ˂ 22 kv ; < = 60 kva ; multiple phase | D64: =IFERROR(repcalc('S1 Input'!$CV64:$GH64,'S1 Input'!$G64,'S1 Input'!$E64,'S1 Input'!$F64,20,TRUE,TRUE),"") -> 17.67177516 | E64: 0.0006159268033 | F64: 0.001532669581 | G64: 0.003606709678 | H64: 0.008026348481 | I64: 0.01689157305 | J64: 0.03361775538 | K64: 0.06327256842 | L64: 0.1126192116 | M64: 0.1895670116 | N64: 0.3017662793 | O64: 0.4543003141 | P64: 0.6468302944 | Q64: 0.8710234534 | R64: 1.109405021 | S64: 1.336656622 | T64: 1.523714785 | U64: 1.643962621 | V64: 1.679797421 | W64: 1.627423828 | X64: =IFERROR(IF(OR(D64="",'S1 Input'!$D64=""),"",D64/'S1 Input'!$D64),"") -> 1 | Y64: =IFERROR(IF(OR(E64="",'S1 Input'!$D64=""),"",E64/'S1 Input'!$D64),"") -> 3.485370303e-05 | Z64: =IFERROR(IF(OR(F64="",'S1 Input'!$D64=""),"",F64/'S1 Input'!$D64),"") -> 8.672980319e-05 | AA64: =IFERROR(IF(OR(G64="",'S1 Input'!$D64=""),"",G64/'S1 Input'!$D64),"") -> 0.0002040943621 | AB64: =IFERROR(IF(OR(H64="",'S1 Input'!$D64=""),"",H64/'S1 Input'!$D64),"") -> 0.0004541902786 | AC64: =IFERROR(IF(OR(I64="",'S1 Input'!$D64=""),"",I64/'S1 Input'!$D64),"") -> 0.0009558503831 | AD64: =IFERROR(IF(OR(J64="",'S1 Input'!$D64=""),"",J64/'S1 Input'!$D64),"") -> 0.001902341733 | AE64: =IFERROR(IF(OR(K64="",'S1 Input'!$D64=""),"",K64/'S1 Input'!$D64),"") -> 0.00358043082 | AF64: =IFERROR(IF(OR(L64="",'S1 Input'!$D64=""),"",L64/'S1 Input'!$D64),"") -> 0.006372829591 | AG64: =IFERROR(IF(OR(M64="",'S1 Input'!$D64=""),"",M64/'S1 Input'!$D64),"") -> 0.01072710636 | AH64: =IFERROR(IF(OR(N64="",'S1 Input'!$D64=""),"",N64/'S1 Input'!$D64),"") -> 0.01707617241 | AI64: =IFERROR(IF(OR(O64="",'S1 Input'!$D64=""),"",O64/'S1 Input'!$D64),"") -> 0.02570767849 | AJ64: =IFERROR(IF(OR(P64="",'S1 Input'!$D64=""),"",P64/'S1 Input'!$D64),"") -> 0.03660245157 | AK64: =IFERROR(IF(OR(Q64="",'S1 Input'!$D64=""),"",Q64/'S1 Input'!$D64),"") -> 0.04928896196 | AL64: =IFERROR(IF(OR(R64="",'S1 Input'!$D64=""),"",R64/'S1 Input'!$D64),"") -> 0.06277835762 | AM64: =IFERROR(IF(OR(S64="",'S1 Input'!$D64=""),"",S64/'S1 Input'!$D64),"") -> 0.07563793736 | AN64: =IFERROR(IF(OR(T64="",'S1 Input'!$D64=""),"",T64/'S1 Input'!$D64),"") -> 0.08622307444 | AO64: =IFERROR(IF(OR(U64="",'S1 Input'!$D64=""),"",U64/'S1 Input'!$D64),"") -> 0.09302758813 | AP64: =IFERROR(IF(OR(V64="",'S1 Input'!$D64=""),"",V64/'S1 Input'!$D64),"") -> 0.09505538668 | AQ64: =IFERROR(IF(OR(W64="",'S1 Input'!$D64=""),"",W64/'S1 Input'!$D64),"") -> 0.09209170065
B65: TRANSFORMERS | C65: ground outdoor / indoor chamber mounted ; ˂ 22 kv ; > 60 kva and < = 600 kva ; multiple phase | D65: =IFERROR(repcalc('S1 Input'!$CV65:$GH65,'S1 Input'!$G65,'S1 Input'!$E65,'S1 Input'!$F65,20,TRUE,TRUE),"") -> 87.35470144 | E65: 82.48826956 | F65: 78.3208128 | G65: 74.8614628 | H65: 72.08825016 | I65: 69.95323989 | J65: 68.38787951 | K65: 67.30844126 | L65: 66.62145289 | M65: 66.22897651 | N65: 66.03353934 | O65: 65.94247431 | P65: 65.87141982 | Q65: 65.74677108 | R65: 65.50697151 | S65: 65.10266732 | T65: 64.49589664 | U65: 63.65861596 | V65: 62.57095183 | W65: 61.21958484 | X65: =IFERROR(IF(OR(D65="",'S1 Input'!$D65=""),"",D65/'S1 Input'!$D65),"") -> 2.139995055 | Y65: =IFERROR(IF(OR(E65="",'S1 Input'!$D65=""),"",E65/'S1 Input'!$D65),"") -> 2.020778345 | Z65: =IFERROR(IF(OR(F65="",'S1 Input'!$D65=""),"",F65/'S1 Input'!$D65),"") -> 1.918684963 | AA65: =IFERROR(IF(OR(G65="",'S1 Input'!$D65=""),"",G65/'S1 Input'!$D65),"") -> 1.833938615 | AB65: =IFERROR(IF(OR(H65="",'S1 Input'!$D65=""),"",H65/'S1 Input'!$D65),"") -> 1.7660011 | AC65: =IFERROR(IF(OR(I65="",'S1 Input'!$D65=""),"",I65/'S1 Input'!$D65),"") -> 1.713698118 | AD65: =IFERROR(IF(OR(J65="",'S1 Input'!$D65=""),"",J65/'S1 Input'!$D65),"") -> 1.675350285 | AE65: =IFERROR(IF(OR(K65="",'S1 Input'!$D65=""),"",K65/'S1 Input'!$D65),"") -> 1.648906459 | AF65: =IFERROR(IF(OR(L65="",'S1 Input'!$D65=""),"",L65/'S1 Input'!$D65),"") -> 1.632076779 | AG65: =IFERROR(IF(OR(M65="",'S1 Input'!$D65=""),"",M65/'S1 Input'!$D65),"") -> 1.622461984 | AH65: =IFERROR(IF(OR(N65="",'S1 Input'!$D65=""),"",N65/'S1 Input'!$D65),"") -> 1.61767421 | AI65: =IFERROR(IF(OR(O65="",'S1 Input'!$D65=""),"",O65/'S1 Input'!$D65),"") -> 1.61544332 | AJ65: =IFERROR(IF(OR(P65="",'S1 Input'!$D65=""),"",P65/'S1 Input'!$D65),"") -> 1.613702644 | AK65: =IFERROR(IF(OR(Q65="",'S1 Input'!$D65=""),"",Q65/'S1 Input'!$D65),"") -> 1.610649028 | AL65: =IFERROR(IF(OR(R65="",'S1 Input'!$D65=""),"",R65/'S1 Input'!$D65),"") -> 1.604774475 | AM65: =IFERROR(IF(OR(S65="",'S1 Input'!$D65=""),"",S65/'S1 Input'!$D65),"") -> 1.594869925 | AN65: =IFERROR(IF(OR(T65="",'S1 Input'!$D65=""),"",T65/'S1 Input'!$D65),"") -> 1.580005399 | AO65: =IFERROR(IF(OR(U65="",'S1 Input'!$D65=""),"",U65/'S1 Input'!$D65),"") -> 1.559493892 | AP65: =IFERROR(IF(OR(V65="",'S1 Input'!$D65=""),"",V65/'S1 Input'!$D65),"") -> 1.532848551 | AQ65: =IFERROR(IF(OR(W65="",'S1 Input'!$D65=""),"",W65/'S1 Input'!$D65),"") -> 1.499743078
B66: TRANSFORMERS | C66: ground outdoor / indoor chamber mounted ; ˂ 22 kv ; > 600 kva ; multiple phase | D66: =IFERROR(repcalc('S1 Input'!$CV66:$GH66,'S1 Input'!$G66,'S1 Input'!$E66,'S1 Input'!$F66,20,TRUE,TRUE),"") -> 207.6202785 | E66: 193.0445264 | F66: 184.3089467 | G66: 179.341679 | H66: 176.5709905 | I66: 174.8068383 | J66: 173.1569462 | K66: 170.9693795 | L66: 167.7936636 | M66: 163.3534576 | N66: 157.5251662 | O66: 150.3183562 | P66: 141.8552995 | Q66: 132.3483164 | R66: 122.0747806 | S66: 111.3506036 | T66: 100.5036846 | U66: 89.84913947 | V66: 79.66810977 | W66: 70.1916345 | X66: =IFERROR(IF(OR(D66="",'S1 Input'!$D66=""),"",D66/'S1 Input'!$D66),"") -> 3.514180324 | Y66: =IFERROR(IF(OR(E66="",'S1 Input'!$D66=""),"",E66/'S1 Input'!$D66),"") -> 3.26747118 | Z66: =IFERROR(IF(OR(F66="",'S1 Input'!$D66=""),"",F66/'S1 Input'!$D66),"") -> 3.119612779 | AA66: =IFERROR(IF(OR(G66="",'S1 Input'!$D66=""),"",G66/'S1 Input'!$D66),"") -> 3.035536819 | AB66: =IFERROR(IF(OR(H66="",'S1 Input'!$D66=""),"",H66/'S1 Input'!$D66),"") -> 2.988640151 | AC66: =IFERROR(IF(OR(I66="",'S1 Input'!$D66=""),"",I66/'S1 Input'!$D66),"") -> 2.958780115 | AD66: =IFERROR(IF(OR(J66="",'S1 Input'!$D66=""),"",J66/'S1 Input'!$D66),"") -> 2.930854046 | AE66: =IFERROR(IF(OR(K66="",'S1 Input'!$D66=""),"",K66/'S1 Input'!$D66),"") -> 2.893827298 | AF66: =IFERROR(IF(OR(L66="",'S1 Input'!$D66=""),"",L66/'S1 Input'!$D66),"") -> 2.840075139 | AG66: =IFERROR(IF(OR(M66="",'S1 Input'!$D66=""),"",M66/'S1 Input'!$D66),"") -> 2.764920223 | AH66: =IFERROR(IF(OR(N66="",'S1 Input'!$D66=""),"",N66/'S1 Input'!$D66),"") -> 2.666270577 | AI66: =IFERROR(IF(OR(O66="",'S1 Input'!$D66=""),"",O66/'S1 Input'!$D66),"") -> 2.544288128 | AJ66: =IFERROR(IF(OR(P66="",'S1 Input'!$D66=""),"",P66/'S1 Input'!$D66),"") -> 2.40104245 | AK66: =IFERROR(IF(OR(Q66="",'S1 Input'!$D66=""),"",Q66/'S1 Input'!$D66),"") -> 2.240127278 | AL66: =IFERROR(IF(OR(R66="",'S1 Input'!$D66=""),"",R66/'S1 Input'!$D66),"") -> 2.066237436 | AM66: =IFERROR(IF(OR(S66="",'S1 Input'!$D66=""),"",S66/'S1 Input'!$D66),"") -> 1.884720043 | AN66: =IFERROR(IF(OR(T66="",'S1 Input'!$D66=""),"",T66/'S1 Input'!$D66),"") -> 1.701125119 | AO66: =IFERROR(IF(OR(U66="",'S1 Input'!$D66=""),"",U66/'S1 Input'!$D66),"") -> 1.520786314 | AP66: =IFERROR(IF(OR(V66="",'S1 Input'!$D66=""),"",V66/'S1 Input'!$D66),"") -> 1.34846223 | AQ66: =IFERROR(IF(OR(W66="",'S1 Input'!$D66=""),"",W66/'S1 Input'!$D66),"") -> 1.188063433
B67: TRANSFORMERS | C67: ground outdoor / indoor chamber mounted ; > = 22 kv & < = 33 kv ; < = 15 mva | D67: =IFERROR(repcalc('S1 Input'!$CV67:$GH67,'S1 Input'!$G67,'S1 Input'!$E67,'S1 Input'!$F67,20,TRUE,TRUE),"") ->  | X67: =IFERROR(IF(OR(D67="",'S1 Input'!$D67=""),"",D67/'S1 Input'!$D67),"") ->  | Y67: =IFERROR(IF(OR(E67="",'S1 Input'!$D67=""),"",E67/'S1 Input'!$D67),"") ->  | Z67: =IFERROR(IF(OR(F67="",'S1 Input'!$D67=""),"",F67/'S1 Input'!$D67),"") ->  | AA67: =IFERROR(IF(OR(G67="",'S1 Input'!$D67=""),"",G67/'S1 Input'!$D67),"") ->  | AB67: =IFERROR(IF(OR(H67="",'S1 Input'!$D67=""),"",H67/'S1 Input'!$D67),"") ->  | AC67: =IFERROR(IF(OR(I67="",'S1 Input'!$D67=""),"",I67/'S1 Input'!$D67),"") ->  | AD67: =IFERROR(IF(OR(J67="",'S1 Input'!$D67=""),"",J67/'S1 Input'!$D67),"") ->  | AE67: =IFERROR(IF(OR(K67="",'S1 Input'!$D67=""),"",K67/'S1 Input'!$D67),"") ->  | AF67: =IFERROR(IF(OR(L67="",'S1 Input'!$D67=""),"",L67/'S1 Input'!$D67),"") ->  | AG67: =IFERROR(IF(OR(M67="",'S1 Input'!$D67=""),"",M67/'S1 Input'!$D67),"") ->  | AH67: =IFERROR(IF(OR(N67="",'S1 Input'!$D67=""),"",N67/'S1 Input'!$D67),"") ->  | AI67: =IFERROR(IF(OR(O67="",'S1 Input'!$D67=""),"",O67/'S1 Input'!$D67),"") ->  | AJ67: =IFERROR(IF(OR(P67="",'S1 Input'!$D67=""),"",P67/'S1 Input'!$D67),"") ->  | AK67: =IFERROR(IF(OR(Q67="",'S1 Input'!$D67=""),"",Q67/'S1 Input'!$D67),"") ->  | AL67: =IFERROR(IF(OR(R67="",'S1 Input'!$D67=""),"",R67/'S1 Input'!$D67),"") ->  | AM67: =IFERROR(IF(OR(S67="",'S1 Input'!$D67=""),"",S67/'S1 Input'!$D67),"") ->  | AN67: =IFERROR(IF(OR(T67="",'S1 Input'!$D67=""),"",T67/'S1 Input'!$D67),"") ->  | AO67: =IFERROR(IF(OR(U67="",'S1 Input'!$D67=""),"",U67/'S1 Input'!$D67),"") ->  | AP67: =IFERROR(IF(OR(V67="",'S1 Input'!$D67=""),"",V67/'S1 Input'!$D67),"") ->  | AQ67: =IFERROR(IF(OR(W67="",'S1 Input'!$D67=""),"",W67/'S1 Input'!$D67),"") -> 
B68: TRANSFORMERS | C68: ground outdoor / indoor chamber mounted ; > = 22 kv & < = 33 kv ; > 15 mva and < = 40 mva | D68: =IFERROR(repcalc('S1 Input'!$CV68:$GH68,'S1 Input'!$G68,'S1 Input'!$E68,'S1 Input'!$F68,20,TRUE,TRUE),"") ->  | X68: =IFERROR(IF(OR(D68="",'S1 Input'!$D68=""),"",D68/'S1 Input'!$D68),"") ->  | Y68: =IFERROR(IF(OR(E68="",'S1 Input'!$D68=""),"",E68/'S1 Input'!$D68),"") ->  | Z68: =IFERROR(IF(OR(F68="",'S1 Input'!$D68=""),"",F68/'S1 Input'!$D68),"") ->  | AA68: =IFERROR(IF(OR(G68="",'S1 Input'!$D68=""),"",G68/'S1 Input'!$D68),"") ->  | AB68: =IFERROR(IF(OR(H68="",'S1 Input'!$D68=""),"",H68/'S1 Input'!$D68),"") ->  | AC68: =IFERROR(IF(OR(I68="",'S1 Input'!$D68=""),"",I68/'S1 Input'!$D68),"") ->  | AD68: =IFERROR(IF(OR(J68="",'S1 Input'!$D68=""),"",J68/'S1 Input'!$D68),"") ->  | AE68: =IFERROR(IF(OR(K68="",'S1 Input'!$D68=""),"",K68/'S1 Input'!$D68),"") ->  | AF68: =IFERROR(IF(OR(L68="",'S1 Input'!$D68=""),"",L68/'S1 Input'!$D68),"") ->  | AG68: =IFERROR(IF(OR(M68="",'S1 Input'!$D68=""),"",M68/'S1 Input'!$D68),"") ->  | AH68: =IFERROR(IF(OR(N68="",'S1 Input'!$D68=""),"",N68/'S1 Input'!$D68),"") ->  | AI68: =IFERROR(IF(OR(O68="",'S1 Input'!$D68=""),"",O68/'S1 Input'!$D68),"") ->  | AJ68: =IFERROR(IF(OR(P68="",'S1 Input'!$D68=""),"",P68/'S1 Input'!$D68),"") ->  | AK68: =IFERROR(IF(OR(Q68="",'S1 Input'!$D68=""),"",Q68/'S1 Input'!$D68),"") ->  | AL68: =IFERROR(IF(OR(R68="",'S1 Input'!$D68=""),"",R68/'S1 Input'!$D68),"") ->  | AM68: =IFERROR(IF(OR(S68="",'S1 Input'!$D68=""),"",S68/'S1 Input'!$D68),"") ->  | AN68: =IFERROR(IF(OR(T68="",'S1 Input'!$D68=""),"",T68/'S1 Input'!$D68),"") ->  | AO68: =IFERROR(IF(OR(U68="",'S1 Input'!$D68=""),"",U68/'S1 Input'!$D68),"") ->  | AP68: =IFERROR(IF(OR(V68="",'S1 Input'!$D68=""),"",V68/'S1 Input'!$D68),"") ->  | AQ68: =IFERROR(IF(OR(W68="",'S1 Input'!$D68=""),"",W68/'S1 Input'!$D68),"") -> 
B69: TRANSFORMERS | C69: ground outdoor / indoor chamber mounted ; > 33 kv & < = 66 kv ; < = 15 mva | D69: =IFERROR(repcalc('S1 Input'!$CV69:$GH69,'S1 Input'!$G69,'S1 Input'!$E69,'S1 Input'!$F69,20,TRUE,TRUE),"") ->  | X69: =IFERROR(IF(OR(D69="",'S1 Input'!$D69=""),"",D69/'S1 Input'!$D69),"") ->  | Y69: =IFERROR(IF(OR(E69="",'S1 Input'!$D69=""),"",E69/'S1 Input'!$D69),"") ->  | Z69: =IFERROR(IF(OR(F69="",'S1 Input'!$D69=""),"",F69/'S1 Input'!$D69),"") ->  | AA69: =IFERROR(IF(OR(G69="",'S1 Input'!$D69=""),"",G69/'S1 Input'!$D69),"") ->  | AB69: =IFERROR(IF(OR(H69="",'S1 Input'!$D69=""),"",H69/'S1 Input'!$D69),"") ->  | AC69: =IFERROR(IF(OR(I69="",'S1 Input'!$D69=""),"",I69/'S1 Input'!$D69),"") ->  | AD69: =IFERROR(IF(OR(J69="",'S1 Input'!$D69=""),"",J69/'S1 Input'!$D69),"") ->  | AE69: =IFERROR(IF(OR(K69="",'S1 Input'!$D69=""),"",K69/'S1 Input'!$D69),"") ->  | AF69: =IFERROR(IF(OR(L69="",'S1 Input'!$D69=""),"",L69/'S1 Input'!$D69),"") ->  | AG69: =IFERROR(IF(OR(M69="",'S1 Input'!$D69=""),"",M69/'S1 Input'!$D69),"") ->  | AH69: =IFERROR(IF(OR(N69="",'S1 Input'!$D69=""),"",N69/'S1 Input'!$D69),"") ->  | AI69: =IFERROR(IF(OR(O69="",'S1 Input'!$D69=""),"",O69/'S1 Input'!$D69),"") ->  | AJ69: =IFERROR(IF(OR(P69="",'S1 Input'!$D69=""),"",P69/'S1 Input'!$D69),"") ->  | AK69: =IFERROR(IF(OR(Q69="",'S1 Input'!$D69=""),"",Q69/'S1 Input'!$D69),"") ->  | AL69: =IFERROR(IF(OR(R69="",'S1 Input'!$D69=""),"",R69/'S1 Input'!$D69),"") ->  | AM69: =IFERROR(IF(OR(S69="",'S1 Input'!$D69=""),"",S69/'S1 Input'!$D69),"") ->  | AN69: =IFERROR(IF(OR(T69="",'S1 Input'!$D69=""),"",T69/'S1 Input'!$D69),"") ->  | AO69: =IFERROR(IF(OR(U69="",'S1 Input'!$D69=""),"",U69/'S1 Input'!$D69),"") ->  | AP69: =IFERROR(IF(OR(V69="",'S1 Input'!$D69=""),"",V69/'S1 Input'!$D69),"") ->  | AQ69: =IFERROR(IF(OR(W69="",'S1 Input'!$D69=""),"",W69/'S1 Input'!$D69),"") -> 
B70: TRANSFORMERS | C70: ground outdoor / indoor chamber mounted ; > 33 kv & < = 66 kv ; > 15 mva and < = 40 mva | D70: =IFERROR(repcalc('S1 Input'!$CV70:$GH70,'S1 Input'!$G70,'S1 Input'!$E70,'S1 Input'!$F70,20,TRUE,TRUE),"") ->  | X70: =IFERROR(IF(OR(D70="",'S1 Input'!$D70=""),"",D70/'S1 Input'!$D70),"") ->  | Y70: =IFERROR(IF(OR(E70="",'S1 Input'!$D70=""),"",E70/'S1 Input'!$D70),"") ->  | Z70: =IFERROR(IF(OR(F70="",'S1 Input'!$D70=""),"",F70/'S1 Input'!$D70),"") ->  | AA70: =IFERROR(IF(OR(G70="",'S1 Input'!$D70=""),"",G70/'S1 Input'!$D70),"") ->  | AB70: =IFERROR(IF(OR(H70="",'S1 Input'!$D70=""),"",H70/'S1 Input'!$D70),"") ->  | AC70: =IFERROR(IF(OR(I70="",'S1 Input'!$D70=""),"",I70/'S1 Input'!$D70),"") ->  | AD70: =IFERROR(IF(OR(J70="",'S1 Input'!$D70=""),"",J70/'S1 Input'!$D70),"") ->  | AE70: =IFERROR(IF(OR(K70="",'S1 Input'!$D70=""),"",K70/'S1 Input'!$D70),"") ->  | AF70: =IFERROR(IF(OR(L70="",'S1 Input'!$D70=""),"",L70/'S1 Input'!$D70),"") ->  | AG70: =IFERROR(IF(OR(M70="",'S1 Input'!$D70=""),"",M70/'S1 Input'!$D70),"") ->  | AH70: =IFERROR(IF(OR(N70="",'S1 Input'!$D70=""),"",N70/'S1 Input'!$D70),"") ->  | AI70: =IFERROR(IF(OR(O70="",'S1 Input'!$D70=""),"",O70/'S1 Input'!$D70),"") ->  | AJ70: =IFERROR(IF(OR(P70="",'S1 Input'!$D70=""),"",P70/'S1 Input'!$D70),"") ->  | AK70: =IFERROR(IF(OR(Q70="",'S1 Input'!$D70=""),"",Q70/'S1 Input'!$D70),"") ->  | AL70: =IFERROR(IF(OR(R70="",'S1 Input'!$D70=""),"",R70/'S1 Input'!$D70),"") ->  | AM70: =IFERROR(IF(OR(S70="",'S1 Input'!$D70=""),"",S70/'S1 Input'!$D70),"") ->  | AN70: =IFERROR(IF(OR(T70="",'S1 Input'!$D70=""),"",T70/'S1 Input'!$D70),"") ->  | AO70: =IFERROR(IF(OR(U70="",'S1 Input'!$D70=""),"",U70/'S1 Input'!$D70),"") ->  | AP70: =IFERROR(IF(OR(V70="",'S1 Input'!$D70=""),"",V70/'S1 Input'!$D70),"") ->  | AQ70: =IFERROR(IF(OR(W70="",'S1 Input'!$D70=""),"",W70/'S1 Input'!$D70),"") -> 
B71: TRANSFORMERS | C71: ground outdoor / indoor chamber mounted ; > 66 kv & < = 132 kv ; < = 100 mva | D71: =IFERROR(repcalc('S1 Input'!$CV71:$GH71,'S1 Input'!$G71,'S1 Input'!$E71,'S1 Input'!$F71,20,TRUE,TRUE),"") ->  | X71: =IFERROR(IF(OR(D71="",'S1 Input'!$D71=""),"",D71/'S1 Input'!$D71),"") ->  | Y71: =IFERROR(IF(OR(E71="",'S1 Input'!$D71=""),"",E71/'S1 Input'!$D71),"") ->  | Z71: =IFERROR(IF(OR(F71="",'S1 Input'!$D71=""),"",F71/'S1 Input'!$D71),"") ->  | AA71: =IFERROR(IF(OR(G71="",'S1 Input'!$D71=""),"",G71/'S1 Input'!$D71),"") ->  | AB71: =IFERROR(IF(OR(H71="",'S1 Input'!$D71=""),"",H71/'S1 Input'!$D71),"") ->  | AC71: =IFERROR(IF(OR(I71="",'S1 Input'!$D71=""),"",I71/'S1 Input'!$D71),"") ->  | AD71: =IFERROR(IF(OR(J71="",'S1 Input'!$D71=""),"",J71/'S1 Input'!$D71),"") ->  | AE71: =IFERROR(IF(OR(K71="",'S1 Input'!$D71=""),"",K71/'S1 Input'!$D71),"") ->  | AF71: =IFERROR(IF(OR(L71="",'S1 Input'!$D71=""),"",L71/'S1 Input'!$D71),"") ->  | AG71: =IFERROR(IF(OR(M71="",'S1 Input'!$D71=""),"",M71/'S1 Input'!$D71),"") ->  | AH71: =IFERROR(IF(OR(N71="",'S1 Input'!$D71=""),"",N71/'S1 Input'!$D71),"") ->  | AI71: =IFERROR(IF(OR(O71="",'S1 Input'!$D71=""),"",O71/'S1 Input'!$D71),"") ->  | AJ71: =IFERROR(IF(OR(P71="",'S1 Input'!$D71=""),"",P71/'S1 Input'!$D71),"") ->  | AK71: =IFERROR(IF(OR(Q71="",'S1 Input'!$D71=""),"",Q71/'S1 Input'!$D71),"") ->  | AL71: =IFERROR(IF(OR(R71="",'S1 Input'!$D71=""),"",R71/'S1 Input'!$D71),"") ->  | AM71: =IFERROR(IF(OR(S71="",'S1 Input'!$D71=""),"",S71/'S1 Input'!$D71),"") ->  | AN71: =IFERROR(IF(OR(T71="",'S1 Input'!$D71=""),"",T71/'S1 Input'!$D71),"") ->  | AO71: =IFERROR(IF(OR(U71="",'S1 Input'!$D71=""),"",U71/'S1 Input'!$D71),"") ->  | AP71: =IFERROR(IF(OR(V71="",'S1 Input'!$D71=""),"",V71/'S1 Input'!$D71),"") ->  | AQ71: =IFERROR(IF(OR(W71="",'S1 Input'!$D71=""),"",W71/'S1 Input'!$D71),"") -> 
B72: TRANSFORMERS | C72: ground outdoor / indoor chamber mounted ; > 66 kv & < = 132 kv ; > 100 mva | D72: =IFERROR(repcalc('S1 Input'!$CV72:$GH72,'S1 Input'!$G72,'S1 Input'!$E72,'S1 Input'!$F72,20,TRUE,TRUE),"") ->  | X72: =IFERROR(IF(OR(D72="",'S1 Input'!$D72=""),"",D72/'S1 Input'!$D72),"") ->  | Y72: =IFERROR(IF(OR(E72="",'S1 Input'!$D72=""),"",E72/'S1 Input'!$D72),"") ->  | Z72: =IFERROR(IF(OR(F72="",'S1 Input'!$D72=""),"",F72/'S1 Input'!$D72),"") ->  | AA72: =IFERROR(IF(OR(G72="",'S1 Input'!$D72=""),"",G72/'S1 Input'!$D72),"") ->  | AB72: =IFERROR(IF(OR(H72="",'S1 Input'!$D72=""),"",H72/'S1 Input'!$D72),"") ->  | AC72: =IFERROR(IF(OR(I72="",'S1 Input'!$D72=""),"",I72/'S1 Input'!$D72),"") ->  | AD72: =IFERROR(IF(OR(J72="",'S1 Input'!$D72=""),"",J72/'S1 Input'!$D72),"") ->  | AE72: =IFERROR(IF(OR(K72="",'S1 Input'!$D72=""),"",K72/'S1 Input'!$D72),"") ->  | AF72: =IFERROR(IF(OR(L72="",'S1 Input'!$D72=""),"",L72/'S1 Input'!$D72),"") ->  | AG72: =IFERROR(IF(OR(M72="",'S1 Input'!$D72=""),"",M72/'S1 Input'!$D72),"") ->  | AH72: =IFERROR(IF(OR(N72="",'S1 Input'!$D72=""),"",N72/'S1 Input'!$D72),"") ->  | AI72: =IFERROR(IF(OR(O72="",'S1 Input'!$D72=""),"",O72/'S1 Input'!$D72),"") ->  | AJ72: =IFERROR(IF(OR(P72="",'S1 Input'!$D72=""),"",P72/'S1 Input'!$D72),"") ->  | AK72: =IFERROR(IF(OR(Q72="",'S1 Input'!$D72=""),"",Q72/'S1 Input'!$D72),"") ->  | AL72: =IFERROR(IF(OR(R72="",'S1 Input'!$D72=""),"",R72/'S1 Input'!$D72),"") ->  | AM72: =IFERROR(IF(OR(S72="",'S1 Input'!$D72=""),"",S72/'S1 Input'!$D72),"") ->  | AN72: =IFERROR(IF(OR(T72="",'S1 Input'!$D72=""),"",T72/'S1 Input'!$D72),"") ->  | AO72: =IFERROR(IF(OR(U72="",'S1 Input'!$D72=""),"",U72/'S1 Input'!$D72),"") ->  | AP72: =IFERROR(IF(OR(V72="",'S1 Input'!$D72=""),"",V72/'S1 Input'!$D72),"") ->  | AQ72: =IFERROR(IF(OR(W72="",'S1 Input'!$D72=""),"",W72/'S1 Input'!$D72),"") -> 
A73: 4 | B73: SWITCHGEAR | C73: ˂ = 11 kv ; fuse | D73: =IFERROR(repcalc('S1 Input'!$CV73:$GH73,'S1 Input'!$G73,'S1 Input'!$E73,'S1 Input'!$F73,20,TRUE,TRUE),"") -> 317.238228 | E73: 360.7671779 | F73: 408.4755473 | G73: 460.6346341 | H73: 517.5449666 | I73: 579.5394349 | J73: 646.9834447 | K73: 720.2705528 | L73: 799.8119915 | M73: 886.0186555 | N73: 979.274552 | O73: 1079.901432 | P73: 1188.115295 | Q73: 1303.976622 | R73: 1427.337446 | S73: 1557.789505 | T73: 1694.618638 | U73: 1836.771035 | V73: 1982.836864 | W73: 2131.056006 | X73: =IFERROR(IF(OR(D73="",'S1 Input'!$D73=""),"",D73/'S1 Input'!$D73),"") -> 91.1531439 | Y73: =IFERROR(IF(OR(E73="",'S1 Input'!$D73=""),"",E73/'S1 Input'!$D73),"") -> 103.6604658 | Z73: =IFERROR(IF(OR(F73="",'S1 Input'!$D73=""),"",F73/'S1 Input'!$D73),"") -> 117.3686746 | AA73: =IFERROR(IF(OR(G73="",'S1 Input'!$D73=""),"",G73/'S1 Input'!$D73),"") -> 132.3557232 | AB73: =IFERROR(IF(OR(H73="",'S1 Input'!$D73=""),"",H73/'S1 Input'!$D73),"") -> 148.7079634 | AC73: =IFERROR(IF(OR(I73="",'S1 Input'!$D73=""),"",I73/'S1 Input'!$D73),"") -> 166.5210458 | AD73: =IFERROR(IF(OR(J73="",'S1 Input'!$D73=""),"",J73/'S1 Input'!$D73),"") -> 185.8999636 | AE73: =IFERROR(IF(OR(K73="",'S1 Input'!$D73=""),"",K73/'S1 Input'!$D73),"") -> 206.9577987 | AF73: =IFERROR(IF(OR(L73="",'S1 Input'!$D73=""),"",L73/'S1 Input'!$D73),"") -> 229.8127121 | AG73: =IFERROR(IF(OR(M73="",'S1 Input'!$D73=""),"",M73/'S1 Input'!$D73),"") -> 254.5827674 | AH73: =IFERROR(IF(OR(N73="",'S1 Input'!$D73=""),"",N73/'S1 Input'!$D73),"") -> 281.3783028 | AI73: =IFERROR(IF(OR(O73="",'S1 Input'!$D73=""),"",O73/'S1 Input'!$D73),"") -> 310.291768 | AJ73: =IFERROR(IF(OR(P73="",'S1 Input'!$D73=""),"",P73/'S1 Input'!$D73),"") -> 341.3852268 | AK73: =IFERROR(IF(OR(Q73="",'S1 Input'!$D73=""),"",Q73/'S1 Input'!$D73),"") -> 374.6760577 | AL73: =IFERROR(IF(OR(R73="",'S1 Input'!$D73=""),"",R73/'S1 Input'!$D73),"") -> 410.1217449 | AM73: =IFERROR(IF(OR(S73="",'S1 Input'!$D73=""),"",S73/'S1 Input'!$D73),"") -> 447.6049808 | AN73: =IFERROR(IF(OR(T73="",'S1 Input'!$D73=""),"",T73/'S1 Input'!$D73),"") -> 486.9205628 | AO73: =IFERROR(IF(OR(U73="",'S1 Input'!$D73=""),"",U73/'S1 Input'!$D73),"") -> 527.7656968 | AP73: =IFERROR(IF(OR(V73="",'S1 Input'!$D73=""),"",V73/'S1 Input'!$D73),"") -> 569.7352906 | AQ73: =IFERROR(IF(OR(W73="",'S1 Input'!$D73=""),"",W73/'S1 Input'!$D73),"") -> 612.3236029
A74: 4 | B74: SWITCHGEAR | C74: ˂ = 11 kv ; switch | D74: =IFERROR(repcalc('S1 Input'!$CV74:$GH74,'S1 Input'!$G74,'S1 Input'!$E74,'S1 Input'!$F74,20,TRUE,TRUE),"") -> 15331.88824 | E74: 14665.92742 | F74: 14072.78637 | G74: 13521.00477 | H74: 12990.71371 | I74: 12472.55718 | J74: 11966.28525 | K74: 11479.11529 | L74: 11023.93848 | M74: 10617.43832 | N74: 10278.18468 | O74: 10024.76989 | P74: 9874.059332 | Q74: 9839.635186 | R74: 9930.513473 | S74: 10150.20937 | T74: 10496.21065 | U74: 10959.89462 | V74: 11526.89105 | W74: 12177.85685 | X74: =IFERROR(IF(OR(D74="",'S1 Input'!$D74=""),"",D74/'S1 Input'!$D74),"") -> 861.2818431 | Y74: =IFERROR(IF(OR(E74="",'S1 Input'!$D74=""),"",E74/'S1 Input'!$D74),"") -> 823.8709282 | Z74: =IFERROR(IF(OR(F74="",'S1 Input'!$D74=""),"",F74/'S1 Input'!$D74),"") -> 790.5507261 | AA74: =IFERROR(IF(OR(G74="",'S1 Input'!$D74=""),"",G74/'S1 Input'!$D74),"") -> 759.5539259 | AB74: =IFERROR(IF(OR(H74="",'S1 Input'!$D74=""),"",H74/'S1 Input'!$D74),"") -> 729.7643757 | AC74: =IFERROR(IF(OR(I74="",'S1 Input'!$D74=""),"",I74/'S1 Input'!$D74),"") -> 700.6564925 | AD74: =IFERROR(IF(OR(J74="",'S1 Input'!$D74=""),"",J74/'S1 Input'!$D74),"") -> 672.2162368 | AE74: =IFERROR(IF(OR(K74="",'S1 Input'!$D74=""),"",K74/'S1 Input'!$D74),"") -> 644.8490506 | AF74: =IFERROR(IF(OR(L74="",'S1 Input'!$D74=""),"",L74/'S1 Input'!$D74),"") -> 619.2791067 | AG74: =IFERROR(IF(OR(M74="",'S1 Input'!$D74=""),"",M74/'S1 Input'!$D74),"") -> 596.4436148 | AH74: =IFERROR(IF(OR(N74="",'S1 Input'!$D74=""),"",N74/'S1 Input'!$D74),"") -> 577.3857536 | AI74: =IFERROR(IF(OR(O74="",'S1 Input'!$D74=""),"",O74/'S1 Input'!$D74),"") -> 563.1499624 | AJ74: =IFERROR(IF(OR(P74="",'S1 Input'!$D74=""),"",P74/'S1 Input'!$D74),"") -> 554.6836689 | AK74: =IFERROR(IF(OR(Q74="",'S1 Input'!$D74=""),"",Q74/'S1 Input'!$D74),"") -> 552.7498633 | AL74: =IFERROR(IF(OR(R74="",'S1 Input'!$D74=""),"",R74/'S1 Input'!$D74),"") -> 557.8550282 | AM74: =IFERROR(IF(OR(S74="",'S1 Input'!$D74=""),"",S74/'S1 Input'!$D74),"") -> 570.1966316 | AN74: =IFERROR(IF(OR(T74="",'S1 Input'!$D74=""),"",T74/'S1 Input'!$D74),"") -> 589.6335475 | AO74: =IFERROR(IF(OR(U74="",'S1 Input'!$D74=""),"",U74/'S1 Input'!$D74),"") -> 615.6813882 | AP74: =IFERROR(IF(OR(V74="",'S1 Input'!$D74=""),"",V74/'S1 Input'!$D74),"") -> 647.5328942 | AQ74: =IFERROR(IF(OR(W74="",'S1 Input'!$D74=""),"",W74/'S1 Input'!$D74),"") -> 684.1014509
A75: 4 | B75: SWITCHGEAR | C75: ˂ = 11 kv ; circuit breaker | D75: =IFERROR(repcalc('S1 Input'!$CV75:$GH75,'S1 Input'!$G75,'S1 Input'!$E75,'S1 Input'!$F75,20,TRUE,TRUE),"") -> 4858.478116 | E75: 5198.61329 | F75: 5603.093599 | G75: 6079.529043 | H75: 6630.193946 | I75: 7250.986133 | J75: 7930.956791 | K75: 8652.523721 | L75: 9392.409697 | M75: 10123.26619 | N75: 10815.86063 | O75: 11441.63416 | P75: 11975.38583 | Q75: 12397.81711 | R75: 12697.67982 | S75: 12873.31106 | T75: 12933.40385 | U75: 12896.94296 | V75: 12792.32008 | W75: 12655.71938 | X75: =IFERROR(IF(OR(D75="",'S1 Input'!$D75=""),"",D75/'S1 Input'!$D75),"") -> 14.78020177 | Y75: =IFERROR(IF(OR(E75="",'S1 Input'!$D75=""),"",E75/'S1 Input'!$D75),"") -> 15.81494278 | Z75: =IFERROR(IF(OR(F75="",'S1 Input'!$D75=""),"",F75/'S1 Input'!$D75),"") -> 17.0454311 | AA75: =IFERROR(IF(OR(G75="",'S1 Input'!$D75=""),"",G75/'S1 Input'!$D75),"") -> 18.49481747 | AB75: =IFERROR(IF(OR(H75="",'S1 Input'!$D75=""),"",H75/'S1 Input'!$D75),"") -> 20.17002073 | AC75: =IFERROR(IF(OR(I75="",'S1 Input'!$D75=""),"",I75/'S1 Input'!$D75),"") -> 22.05856146 | AD75: =IFERROR(IF(OR(J75="",'S1 Input'!$D75=""),"",J75/'S1 Input'!$D75),"") -> 24.12713176 | AE75: =IFERROR(IF(OR(K75="",'S1 Input'!$D75=""),"",K75/'S1 Input'!$D75),"") -> 26.322244 | AF75: =IFERROR(IF(OR(L75="",'S1 Input'!$D75=""),"",L75/'S1 Input'!$D75),"") -> 28.57308547 | AG75: =IFERROR(IF(OR(M75="",'S1 Input'!$D75=""),"",M75/'S1 Input'!$D75),"") -> 30.79645792 | AH75: =IFERROR(IF(OR(N75="",'S1 Input'!$D75=""),"",N75/'S1 Input'!$D75),"") -> 32.90343163 | AI75: =IFERROR(IF(OR(O75="",'S1 Input'!$D75=""),"",O75/'S1 Input'!$D75),"") -> 34.80712632 | AJ75: =IFERROR(IF(OR(P75="",'S1 Input'!$D75=""),"",P75/'S1 Input'!$D75),"") -> 36.43087705 | AK75: =IFERROR(IF(OR(Q75="",'S1 Input'!$D75=""),"",Q75/'S1 Input'!$D75),"") -> 37.71597484 | AL75: =IFERROR(IF(OR(R75="",'S1 Input'!$D75=""),"",R75/'S1 Input'!$D75),"") -> 38.62820112 | AM75: =IFERROR(IF(OR(S75="",'S1 Input'!$D75=""),"",S75/'S1 Input'!$D75),"") -> 39.16249708 | AN75: =IFERROR(IF(OR(T75="",'S1 Input'!$D75=""),"",T75/'S1 Input'!$D75),"") -> 39.34530814 | AO75: =IFERROR(IF(OR(U75="",'S1 Input'!$D75=""),"",U75/'S1 Input'!$D75),"") -> 39.23438877 | AP75: =IFERROR(IF(OR(V75="",'S1 Input'!$D75=""),"",V75/'S1 Input'!$D75),"") -> 38.91611064 | AQ75: =IFERROR(IF(OR(W75="",'S1 Input'!$D75=""),"",W75/'S1 Input'!$D75),"") -> 38.50055132
A76: 4 | B76: SWITCHGEAR | C76: > 11 kv & < = 22 kv ; switch | D76: =IFERROR(repcalc('S1 Input'!$CV76:$GH76,'S1 Input'!$G76,'S1 Input'!$E76,'S1 Input'!$F76,20,TRUE,TRUE),"") -> 15.55473158 | E76: 17.14970502 | F76: 18.92391537 | G76: 20.93122942 | H76: 23.24695686 | I76: 25.96863553 | J76: 29.21365928 | K76: 33.11322805 | L76: 37.80257015 | M76: 43.40797109 | N76: 50.03177151 | O76: 57.73707137 | P76: 66.53428485 | Q76: 76.37181594 | R76: 87.13287553 | S76: 98.63979452 | T76: 110.6661365 | U76: 122.9555974 | V76: 135.2453111 | W76: 147.2900271 | X76: =IFERROR(IF(OR(D76="",'S1 Input'!$D76=""),"",D76/'S1 Input'!$D76),"") -> 2.913941075 | Y76: =IFERROR(IF(OR(E76="",'S1 Input'!$D76=""),"",E76/'S1 Input'!$D76),"") -> 3.212734956 | Z76: =IFERROR(IF(OR(F76="",'S1 Input'!$D76=""),"",F76/'S1 Input'!$D76),"") -> 3.545106132 | AA76: =IFERROR(IF(OR(G76="",'S1 Input'!$D76=""),"",G76/'S1 Input'!$D76),"") -> 3.92114572 | AB76: =IFERROR(IF(OR(H76="",'S1 Input'!$D76=""),"",H76/'S1 Input'!$D76),"") -> 4.354961842 | AC76: =IFERROR(IF(OR(I76="",'S1 Input'!$D76=""),"",I76/'S1 Input'!$D76),"") -> 4.864826717 | AD76: =IFERROR(IF(OR(J76="",'S1 Input'!$D76=""),"",J76/'S1 Input'!$D76),"") -> 5.472732287 | AE76: =IFERROR(IF(OR(K76="",'S1 Input'!$D76=""),"",K76/'S1 Input'!$D76),"") -> 6.203256858 | AF76: =IFERROR(IF(OR(L76="",'S1 Input'!$D76=""),"",L76/'S1 Input'!$D76),"") -> 7.081733384 | AG76: =IFERROR(IF(OR(M76="",'S1 Input'!$D76=""),"",M76/'S1 Input'!$D76),"") -> 8.131819525 | AH76: =IFERROR(IF(OR(N76="",'S1 Input'!$D76=""),"",N76/'S1 Input'!$D76),"") -> 9.372687233 | AI76: =IFERROR(IF(OR(O76="",'S1 Input'!$D76=""),"",O76/'S1 Input'!$D76),"") -> 10.81615732 | AJ76: =IFERROR(IF(OR(P76="",'S1 Input'!$D76=""),"",P76/'S1 Input'!$D76),"") -> 12.46418073 | AK76: =IFERROR(IF(OR(Q76="",'S1 Input'!$D76=""),"",Q76/'S1 Input'!$D76),"") -> 14.30709173 | AL76: =IFERROR(IF(OR(R76="",'S1 Input'!$D76=""),"",R76/'S1 Input'!$D76),"") -> 16.32301167 | AM76: =IFERROR(IF(OR(S76="",'S1 Input'!$D76=""),"",S76/'S1 Input'!$D76),"") -> 18.47865696 | AN76: =IFERROR(IF(OR(T76="",'S1 Input'!$D76=""),"",T76/'S1 Input'!$D76),"") -> 20.7316082 | AO76: =IFERROR(IF(OR(U76="",'S1 Input'!$D76=""),"",U76/'S1 Input'!$D76),"") -> 23.03385076 | AP76: =IFERROR(IF(OR(V76="",'S1 Input'!$D76=""),"",V76/'S1 Input'!$D76),"") -> 25.33614066 | AQ76: =IFERROR(IF(OR(W76="",'S1 Input'!$D76=""),"",W76/'S1 Input'!$D76),"") -> 27.59253401
B77: SWITCHGEAR | C77: > 11 kv & < = 22 kv ; circuit breaker | D77: =IFERROR(repcalc('S1 Input'!$CV77:$GH77,'S1 Input'!$G77,'S1 Input'!$E77,'S1 Input'!$F77,20,TRUE,TRUE),"") -> 0.05606916337 | E77: 0.09839443042 | F77: 0.1695199109 | G77: 0.2867414496 | H77: 0.4762093346 | I77: 0.7765398868 | J77: 1.24340302 | K77: 1.955103537 | L77: 3.019039615 | M77: 4.578732878 | N77: 6.820887955 | O77: 9.981677014 | P77: 14.35119468 | Q77: 20.2748441 | R77: 28.15035834 | S77: 38.41929289 | T77: 51.55218666 | U77: 68.02718744 | V77: 88.30272996 | W77: 112.7857401 | X77: =IFERROR(IF(OR(D77="",'S1 Input'!$D77=""),"",D77/'S1 Input'!$D77),"") -> 0.0001705706042 | Y77: =IFERROR(IF(OR(E77="",'S1 Input'!$D77=""),"",E77/'S1 Input'!$D77),"") -> 0.0002993302636 | Z77: =IFERROR(IF(OR(F77="",'S1 Input'!$D77=""),"",F77/'S1 Input'!$D77),"") -> 0.000515704389 | AA77: =IFERROR(IF(OR(G77="",'S1 Input'!$D77=""),"",G77/'S1 Input'!$D77),"") -> 0.0008723094724 | AB77: =IFERROR(IF(OR(H77="",'S1 Input'!$D77=""),"",H77/'S1 Input'!$D77),"") -> 0.001448698519 | AC77: =IFERROR(IF(OR(I77="",'S1 Input'!$D77=""),"",I77/'S1 Input'!$D77),"") -> 0.002362348031 | AD77: =IFERROR(IF(OR(J77="",'S1 Input'!$D77=""),"",J77/'S1 Input'!$D77),"") -> 0.003782614038 | AE77: =IFERROR(IF(OR(K77="",'S1 Input'!$D77=""),"",K77/'S1 Input'!$D77),"") -> 0.005947711214 | AF77: =IFERROR(IF(OR(L77="",'S1 Input'!$D77=""),"",L77/'S1 Input'!$D77),"") -> 0.009184360536 | AG77: =IFERROR(IF(OR(M77="",'S1 Input'!$D77=""),"",M77/'S1 Input'!$D77),"") -> 0.0139291758 | AH77: =IFERROR(IF(OR(N77="",'S1 Input'!$D77=""),"",N77/'S1 Input'!$D77),"") -> 0.02075013983 | AI77: =IFERROR(IF(OR(O77="",'S1 Input'!$D77=""),"",O77/'S1 Input'!$D77),"") -> 0.03036572293 | AJ77: =IFERROR(IF(OR(P77="",'S1 Input'!$D77=""),"",P77/'S1 Input'!$D77),"") -> 0.04365843543 | AK77: =IFERROR(IF(OR(Q77="",'S1 Input'!$D77=""),"",Q77/'S1 Input'!$D77),"") -> 0.06167904425 | AL77: =IFERROR(IF(OR(R77="",'S1 Input'!$D77=""),"",R77/'S1 Input'!$D77),"") -> 0.08563751165 | AM77: =IFERROR(IF(OR(S77="",'S1 Input'!$D77=""),"",S77/'S1 Input'!$D77),"") -> 0.1168771141 | AN77: =IFERROR(IF(OR(T77="",'S1 Input'!$D77=""),"",T77/'S1 Input'!$D77),"") -> 0.1568292998 | AO77: =IFERROR(IF(OR(U77="",'S1 Input'!$D77=""),"",U77/'S1 Input'!$D77),"") -> 0.2069486643 | AP77: =IFERROR(IF(OR(V77="",'S1 Input'!$D77=""),"",V77/'S1 Input'!$D77),"") -> 0.2686298332 | AQ77: =IFERROR(IF(OR(W77="",'S1 Input'!$D77=""),"",W77/'S1 Input'!$D77),"") -> 0.3431107349
A78: 4 | B78: SWITCHGEAR | C78: > 22 kv & < = 33 kv ; switch | D78: =IFERROR(repcalc('S1 Input'!$CV78:$GH78,'S1 Input'!$G78,'S1 Input'!$E78,'S1 Input'!$F78,20,TRUE,TRUE),"") -> 85.0502352 | E78: 88.53252639 | F78: 93.01075258 | G78: 97.67876621 | H78: 101.9212217 | I78: 105.3385071 | J78: 107.7475451 | K78: 109.1629223 | L78: 109.7607041 | M78: 109.8269409 | N78: 109.6946668 | O78: 109.6763888 | P78: 110.0020975 | Q78: 110.7740084 | R78: 111.9474984 | S78: 113.3430047 | T78: 114.6870749 | U78: 115.674053 | V78: 116.0349058 | W78: 115.5978486 | X78: =IFERROR(IF(OR(D78="",'S1 Input'!$D78=""),"",D78/'S1 Input'!$D78),"") -> 3.320062731 | Y78: =IFERROR(IF(OR(E78="",'S1 Input'!$D78=""),"",E78/'S1 Input'!$D78),"") -> 3.455999159 | Z78: =IFERROR(IF(OR(F78="",'S1 Input'!$D78=""),"",F78/'S1 Input'!$D78),"") -> 3.630813395 | AA78: =IFERROR(IF(OR(G78="",'S1 Input'!$D78=""),"",G78/'S1 Input'!$D78),"") -> 3.813036267 | AB78: =IFERROR(IF(OR(H78="",'S1 Input'!$D78=""),"",H78/'S1 Input'!$D78),"") -> 3.978646843 | AC78: =IFERROR(IF(OR(I78="",'S1 Input'!$D78=""),"",I78/'S1 Input'!$D78),"") -> 4.112045671 | AD78: =IFERROR(IF(OR(J78="",'S1 Input'!$D78=""),"",J78/'S1 Input'!$D78),"") -> 4.206086063 | AE78: =IFERROR(IF(OR(K78="",'S1 Input'!$D78=""),"",K78/'S1 Input'!$D78),"") -> 4.261337421 | AF78: =IFERROR(IF(OR(L78="",'S1 Input'!$D78=""),"",L78/'S1 Input'!$D78),"") -> 4.284672724 | AG78: =IFERROR(IF(OR(M78="",'S1 Input'!$D78=""),"",M78/'S1 Input'!$D78),"") -> 4.287258377 | AH78: =IFERROR(IF(OR(N78="",'S1 Input'!$D78=""),"",N78/'S1 Input'!$D78),"") -> 4.282094859 | AI78: =IFERROR(IF(OR(O78="",'S1 Input'!$D78=""),"",O78/'S1 Input'!$D78),"") -> 4.281381353 | AJ78: =IFERROR(IF(OR(P78="",'S1 Input'!$D78=""),"",P78/'S1 Input'!$D78),"") -> 4.294095878 | AK78: =IFERROR(IF(OR(Q78="",'S1 Input'!$D78=""),"",Q78/'S1 Input'!$D78),"") -> 4.32422857 | AL78: =IFERROR(IF(OR(R78="",'S1 Input'!$D78=""),"",R78/'S1 Input'!$D78),"") -> 4.370037502 | AM78: =IFERROR(IF(OR(S78="",'S1 Input'!$D78=""),"",S78/'S1 Input'!$D78),"") -> 4.42451317 | AN78: =IFERROR(IF(OR(T78="",'S1 Input'!$D78=""),"",T78/'S1 Input'!$D78),"") -> 4.476980955 | AO78: =IFERROR(IF(OR(U78="",'S1 Input'!$D78=""),"",U78/'S1 Input'!$D78),"") -> 4.515509115 | AP78: =IFERROR(IF(OR(V78="",'S1 Input'!$D78=""),"",V78/'S1 Input'!$D78),"") -> 4.529595544 | AQ78: =IFERROR(IF(OR(W78="",'S1 Input'!$D78=""),"",W78/'S1 Input'!$D78),"") -> 4.512534365
A79: 4 | B79: SWITCHGEAR | C79: > 22 kv & < = 33 kv ; circuit breaker | D79: =IFERROR(repcalc('S1 Input'!$CV79:$GH79,'S1 Input'!$G79,'S1 Input'!$E79,'S1 Input'!$F79,20,TRUE,TRUE),"") -> 637.6020023 | E79: 764.7847636 | F79: 906.0875343 | G79: 1060.402119 | H79: 1225.953395 | I79: 1400.295825 | J79: 1580.35468 | K79: 1762.514636 | L79: 1942.754229 | M79: 2116.820108 | N79: 2280.430627 | O79: 2429.494681 | P79: 2560.32926 | Q79: 2669.858468 | R79: 2755.777809 | S79: 2816.670476 | T79: 2852.066801 | U79: 2862.443529 | V79: 2849.165383 | W79: 2814.376976 | X79: =IFERROR(IF(OR(D79="",'S1 Input'!$D79=""),"",D79/'S1 Input'!$D79),"") -> 2.004458135 | Y79: =IFERROR(IF(OR(E79="",'S1 Input'!$D79=""),"",E79/'S1 Input'!$D79),"") -> 2.40428831 | Z79: =IFERROR(IF(OR(F79="",'S1 Input'!$D79=""),"",F79/'S1 Input'!$D79),"") -> 2.848508195 | AA79: =IFERROR(IF(OR(G79="",'S1 Input'!$D79=""),"",G79/'S1 Input'!$D79),"") -> 3.333633907 | AB79: =IFERROR(IF(OR(H79="",'S1 Input'!$D79=""),"",H79/'S1 Input'!$D79),"") -> 3.854084909 | AC79: =IFERROR(IF(OR(I79="",'S1 Input'!$D79=""),"",I79/'S1 Input'!$D79),"") -> 4.402173059 | AD79: =IFERROR(IF(OR(J79="",'S1 Input'!$D79=""),"",J79/'S1 Input'!$D79),"") -> 4.968232193 | AE79: =IFERROR(IF(OR(K79="",'S1 Input'!$D79=""),"",K79/'S1 Input'!$D79),"") -> 5.540896651 | AF79: =IFERROR(IF(OR(L79="",'S1 Input'!$D79=""),"",L79/'S1 Input'!$D79),"") -> 6.107523978 | AG79: =IFERROR(IF(OR(M79="",'S1 Input'!$D79=""),"",M79/'S1 Input'!$D79),"") -> 6.654742722 | AH79: =IFERROR(IF(OR(N79="",'S1 Input'!$D79=""),"",N79/'S1 Input'!$D79),"") -> 7.169092482 | AI79: =IFERROR(IF(OR(O79="",'S1 Input'!$D79=""),"",O79/'S1 Input'!$D79),"") -> 7.637711861 | AJ79: =IFERROR(IF(OR(P79="",'S1 Input'!$D79=""),"",P79/'S1 Input'!$D79),"") -> 8.04902242 | AK79: =IFERROR(IF(OR(Q79="",'S1 Input'!$D79=""),"",Q79/'S1 Input'!$D79),"") -> 8.393354325 | AL79: =IFERROR(IF(OR(R79="",'S1 Input'!$D79=""),"",R79/'S1 Input'!$D79),"") -> 8.663462828 | AM79: =IFERROR(IF(OR(S79="",'S1 Input'!$D79=""),"",S79/'S1 Input'!$D79),"") -> 8.854893846 | AN79: =IFERROR(IF(OR(T79="",'S1 Input'!$D79=""),"",T79/'S1 Input'!$D79),"") -> 8.96617087 | AO79: =IFERROR(IF(OR(U79="",'S1 Input'!$D79=""),"",U79/'S1 Input'!$D79),"") -> 8.998792655 | AP79: =IFERROR(IF(OR(V79="",'S1 Input'!$D79=""),"",V79/'S1 Input'!$D79),"") -> 8.957049551 | AQ79: =IFERROR(IF(OR(W79="",'S1 Input'!$D79=""),"",W79/'S1 Input'!$D79),"") -> 8.84768367
A80: 4 | B80: SWITCHGEAR | C80: > 33 kv & < = 66 kv ; switch | D80: =IFERROR(repcalc('S1 Input'!$CV80:$GH80,'S1 Input'!$G80,'S1 Input'!$E80,'S1 Input'!$F80,20,TRUE,TRUE),"") -> 24.31059185 | E80: 21.63613817 | F80: 19.51761031 | G80: 18.02933611 | H80: 17.10771656 | I80: 16.59248078 | J80: 16.27496811 | K80: 15.94652482 | L80: 15.44263661 | M80: 14.67750357 | N80: 13.66206358 | O80: 12.49947923 | P80: 11.35720401 | Q80: 10.42216286 | R80: 9.851660149 | S80: 9.73423155 | T80: 10.07098387 | U80: 10.78076974 | V80: 11.72493254 | W80: 12.74217053 | X80: =IFERROR(IF(OR(D80="",'S1 Input'!$D80=""),"",D80/'S1 Input'!$D80),"") -> 1.033699996 | Y80: =IFERROR(IF(OR(E80="",'S1 Input'!$D80=""),"",E80/'S1 Input'!$D80),"") -> 0.9199807256 | Z80: =IFERROR(IF(OR(F80="",'S1 Input'!$D80=""),"",F80/'S1 Input'!$D80),"") -> 0.8298997333 | AA80: =IFERROR(IF(OR(G80="",'S1 Input'!$D80=""),"",G80/'S1 Input'!$D80),"") -> 0.7666174799 | AB80: =IFERROR(IF(OR(H80="",'S1 Input'!$D80=""),"",H80/'S1 Input'!$D80),"") -> 0.7274297 | AC80: =IFERROR(IF(OR(I80="",'S1 Input'!$D80=""),"",I80/'S1 Input'!$D80),"") -> 0.7055215856 | AD80: =IFERROR(IF(OR(J80="",'S1 Input'!$D80=""),"",J80/'S1 Input'!$D80),"") -> 0.692020769 | AE80: =IFERROR(IF(OR(K80="",'S1 Input'!$D80=""),"",K80/'S1 Input'!$D80),"") -> 0.6780551759 | AF80: =IFERROR(IF(OR(L80="",'S1 Input'!$D80=""),"",L80/'S1 Input'!$D80),"") -> 0.6566295669 | AG80: =IFERROR(IF(OR(M80="",'S1 Input'!$D80=""),"",M80/'S1 Input'!$D80),"") -> 0.6240956809 | AH80: =IFERROR(IF(OR(N80="",'S1 Input'!$D80=""),"",N80/'S1 Input'!$D80),"") -> 0.5809186035 | AI80: =IFERROR(IF(OR(O80="",'S1 Input'!$D80=""),"",O80/'S1 Input'!$D80),"") -> 0.5314848648 | AJ80: =IFERROR(IF(OR(P80="",'S1 Input'!$D80=""),"",P80/'S1 Input'!$D80),"") -> 0.4829146819 | AK80: =IFERROR(IF(OR(Q80="",'S1 Input'!$D80=""),"",Q80/'S1 Input'!$D80),"") -> 0.4431562081 | AL80: =IFERROR(IF(OR(R80="",'S1 Input'!$D80=""),"",R80/'S1 Input'!$D80),"") -> 0.4188981131 | AM80: =IFERROR(IF(OR(S80="",'S1 Input'!$D80=""),"",S80/'S1 Input'!$D80),"") -> 0.4139049832 | AN80: =IFERROR(IF(OR(T80="",'S1 Input'!$D80=""),"",T80/'S1 Input'!$D80),"") -> 0.4282238809 | AO80: =IFERROR(IF(OR(U80="",'S1 Input'!$D80=""),"",U80/'S1 Input'!$D80),"") -> 0.4584043737 | AP80: =IFERROR(IF(OR(V80="",'S1 Input'!$D80=""),"",V80/'S1 Input'!$D80),"") -> 0.4985507054 | AQ80: =IFERROR(IF(OR(W80="",'S1 Input'!$D80=""),"",W80/'S1 Input'!$D80),"") -> 0.5418042352
A81: 4 | B81: SWITCHGEAR | C81: > 33 kv & < = 66 kv ; circuit breaker | D81: =IFERROR(repcalc('S1 Input'!$CV81:$GH81,'S1 Input'!$G81,'S1 Input'!$E81,'S1 Input'!$F81,20,TRUE,TRUE),"") -> 246.3585657 | E81: 255.0063093 | F81: 267.2247326 | G81: 282.3699617 | H81: 299.5820193 | I81: 317.8707918 | J81: 336.2079592 | K81: 353.6176674 | L81: 369.2601939 | M81: 382.5044158 | N81: 392.9862412 | O81: 400.6511176 | P81: 405.7792623 | Q81: 408.9924555 | R81: 411.2412761 | S81: 413.7717442 | T81: 418.0706327 | U81: 425.7893562 | V81: 438.6473848 | W81: 458.3175651 | X81: =IFERROR(IF(OR(D81="",'S1 Input'!$D81=""),"",D81/'S1 Input'!$D81),"") -> 1.356312964 | Y81: =IFERROR(IF(OR(E81="",'S1 Input'!$D81=""),"",E81/'S1 Input'!$D81),"") -> 1.403922621 | Z81: =IFERROR(IF(OR(F81="",'S1 Input'!$D81=""),"",F81/'S1 Input'!$D81),"") -> 1.47119045 | AA81: =IFERROR(IF(OR(G81="",'S1 Input'!$D81=""),"",G81/'S1 Input'!$D81),"") -> 1.554571641 | AB81: =IFERROR(IF(OR(H81="",'S1 Input'!$D81=""),"",H81/'S1 Input'!$D81),"") -> 1.649331637 | AC81: =IFERROR(IF(OR(I81="",'S1 Input'!$D81=""),"",I81/'S1 Input'!$D81),"") -> 1.750019427 | AD81: =IFERROR(IF(OR(J81="",'S1 Input'!$D81=""),"",J81/'S1 Input'!$D81),"") -> 1.850973651 | AE81: =IFERROR(IF(OR(K81="",'S1 Input'!$D81=""),"",K81/'S1 Input'!$D81),"") -> 1.946821801 | AF81: =IFERROR(IF(OR(L81="",'S1 Input'!$D81=""),"",L81/'S1 Input'!$D81),"") -> 2.032940834 | AG81: =IFERROR(IF(OR(M81="",'S1 Input'!$D81=""),"",M81/'S1 Input'!$D81),"") -> 2.105856139 | AH81: =IFERROR(IF(OR(N81="",'S1 Input'!$D81=""),"",N81/'S1 Input'!$D81),"") -> 2.163563228 | AI81: =IFERROR(IF(OR(O81="",'S1 Input'!$D81=""),"",O81/'S1 Input'!$D81),"") -> 2.205761766 | AJ81: =IFERROR(IF(OR(P81="",'S1 Input'!$D81=""),"",P81/'S1 Input'!$D81),"") -> 2.233994473 | AK81: =IFERROR(IF(OR(Q81="",'S1 Input'!$D81=""),"",Q81/'S1 Input'!$D81),"") -> 2.251684524 | AL81: =IFERROR(IF(OR(R81="",'S1 Input'!$D81=""),"",R81/'S1 Input'!$D81),"") -> 2.264065277 | AM81: =IFERROR(IF(OR(S81="",'S1 Input'!$D81=""),"",S81/'S1 Input'!$D81),"") -> 2.277996624 | AN81: =IFERROR(IF(OR(T81="",'S1 Input'!$D81=""),"",T81/'S1 Input'!$D81),"") -> 2.301663908 | AO81: =IFERROR(IF(OR(U81="",'S1 Input'!$D81=""),"",U81/'S1 Input'!$D81),"") -> 2.344158898 | AP81: =IFERROR(IF(OR(V81="",'S1 Input'!$D81=""),"",V81/'S1 Input'!$D81),"") -> 2.414948037 | AQ81: =IFERROR(IF(OR(W81="",'S1 Input'!$D81=""),"",W81/'S1 Input'!$D81),"") -> 2.523241087
